Workbook

Sheet DONNEES INFOGRAPHIES
D1: Synthèse DOMEX
T5: colonne EMPLOI | U5: colonne NAF | V5: colonne DPAE et OEE | W5: colonne EMPLOI
B6: Mobilité, systèmes de transport intelligents | L6: =VLOOKUP(E9,R:S,2,FALSE) -> ARA | P6: Aéronautique | Q6: =IF(P6=$B$6,1,0) -> 0 | R6: Ain | S6: 01 | T6: =HLOOKUP(R6,W$6:AI$7,2,FALSE) -> 2 | U6: =HLOOKUP(R6,$W$11:$AI$12,2,FALSE) -> 6 | V6: =HLOOKUP($S6,$W$15:$AI$16,2,FALSE) -> 2 | W6: ='Emploi (DOMEX)'!B1 -> Ain | X6: ='Emploi (DOMEX)'!C1 -> Allier | Y6: ='Emploi (DOMEX)'!D1 -> Ardèche | Z6: ='Emploi (DOMEX)'!E1 -> Cantal | AA6: ='Emploi (DOMEX)'!F1 -> Drôme | AB6: ='Emploi (DOMEX)'!G1 -> Haute-Loire | AC6: ='Emploi (DOMEX)'!H1 -> Haute-Savoie | AD6: ='Emploi (DOMEX)'!I1 -> Isère | AE6: ='Emploi (DOMEX)'!J1 -> Loire | AF6: ='Emploi (DOMEX)'!K1 -> Puy-de-Dôme | AG6: ='Emploi (DOMEX)'!L1 -> Rhône | AH6: ='Emploi (DOMEX)'!M1 -> Savoie | AI6: ='Emploi (DOMEX)'!N1 -> Auvergne-Rhône-Alpes
L7: =VLOOKUP(E9,R:T,3,FALSE) -> 14 | M7: colonne emploi | P7: Agriculture, Agroalimentaire, Forêt | Q7: 0 | R7: Allier | S7: 03 | T7: =HLOOKUP(R7,W$6:AI$7,2,FALSE) -> 3 | U7: =HLOOKUP(R7,$W$11:$AI$12,2,FALSE) -> 7 | V7: =HLOOKUP($S7,$W$15:$AI$16,2,FALSE) -> 3 | W7: 2 | X7: 3 | Y7: 4 | Z7: 5 | AA7: 6 | AB7: 7 | AC7: 8 | AD7: 9 | AE7: 10 | AF7: 11 | AG7: 12 | AH7: 13 | AI7: 14
L8: =VLOOKUP(E9,R:U,4,FALSE) -> 18 | M8: colonne NAF | P8: BTP | Q8: 0 | R8: Ardèche | S8: 07 | T8: 4 | U8: 8 | V8: 4
B9: Territoire : | E9: Auvergne-Rhône-Alpes | L9: =VLOOKUP(E9,R:V,5,FALSE) -> 14 | M9: colonne DPAE et OEE | P9: Energie | Q9: 0 | R9: Cantal | S9: 15 | T9: 5 | U9: 9 | V9: 5
P10: Industrie du futur, production industrielle | Q10: 0 | R10: Drôme | S10: 26 | T10: 6 | U10: 10 | V10: 6 | W10: colonne NAF
P11: Métier de bouche | Q11: 0 | R11: Haute-Loire | S11: 43 | T11: 7 | U11: =HLOOKUP(R11,$W$11:$AI$12,2,FALSE) -> 11 | V11: 9 | W11: ='Emploi (NAF)'!F1 -> Ain | X11: ='Emploi (NAF)'!G1 -> Allier | Y11: ='Emploi (NAF)'!H1 -> Ardèche | Z11: ='Emploi (NAF)'!I1 -> Cantal | AA11: ='Emploi (NAF)'!J1 -> Drôme | AB11: ='Emploi (NAF)'!K1 -> Haute-Loire | AC11: ='Emploi (NAF)'!L1 -> Haute-Savoie | AD11: ='Emploi (NAF)'!M1 -> Isère | AE11: ='Emploi (NAF)'!N1 -> Loire | AF11: ='Emploi (NAF)'!O1 -> Puy-de-Dôme | AG11: ='Emploi (NAF)'!P1 -> Rhône | AH11: ='Emploi (NAF)'!Q1 -> Savoie | AI11: ='Emploi (NAF)'!R1 -> Auvergne-Rhône-Alpes
B12: Les effectifs salariés 2022 | P12: Mobilité, systèmes de transport intelligents | Q12: 1 | R12: Haute-Savoie | S12: 74 | T12: 8 | U12: 12 | V12: 13 | W12: 6 | X12: 7 | Y12: 8 | Z12: 9 | AA12: 10 | AB12: 11 | AC12: 12 | AD12: 13 | AE12: 14 | AF12: 15 | AG12: 16 | AH12: 17 | AI12: 18
B13: (source ACOSS, secteur privé) | P13: Numérique | Q13: 0 | R13: Isère | S13: 38 | T13: 9 | U13: 13 | V13: 7
E14: Nombre d'établissements (2022) : | F14: =ROUND($AL14,IF($AL14>100,-2,-1)) -> 7400 | P14: Polymères | Q14: 0 | R14: Loire | S14: 42 | T14: 10 | U14: 14 | V14: 8 | W14: colonne DPAE et OEE | AL14: =VLOOKUP($B$6,'Emploi (DOMEX)'!$A$37:$N$51,$L$7,FALSE) -> 7426
E15: Effectifs salariés (2022) : | F15: 144400 | P15: Services à la personne | Q15: 0 | R15: Puy-de-Dôme | S15: 63 | T15: 11 | U15: 15 | V15: 10 | W15: ='DPAE (DOMEX)'!B1 -> 01 | X15: ='DPAE (DOMEX)'!C1 -> 03 | Y15: ='DPAE (DOMEX)'!D1 -> 07 | Z15: ='DPAE (DOMEX)'!E1 -> 15 | AA15: ='DPAE (DOMEX)'!F1 -> 26 | AB15: ='DPAE (DOMEX)'!G1 -> 38 | AC15: ='DPAE (DOMEX)'!H1 -> 42 | AD15: ='DPAE (DOMEX)'!I1 -> 43 | AE15: ='DPAE (DOMEX)'!J1 -> 63 | AF15: ='DPAE (DOMEX)'!K1 -> 69 | AG15: ='DPAE (DOMEX)'!L1 -> 73 | AH15: ='DPAE (DOMEX)'!M1 -> 74 | AI15: ='DPAE (DOMEX)'!N1 -> TOTAL | AL15: =VLOOKUP($B$6,'Emploi (DOMEX)'!$A$1:$N$15,$L$7,FALSE) -> 144414
E16: Part du DOMEX dans l'emploi total du territoire : | F16: =VLOOKUP($B$6,'Emploi (DOMEX)'!$A$19:$N$33,$L$7,FALSE) -> 0.05850489121 | P16: Sport, Montagne, Tourisme | Q16: 0 | R16: Rhône | S16: 69 | T16: 12 | U16: 16 | V16: 11 | W16: 2 | X16: 3 | Y16: 4 | Z16: 5 | AA16: 6 | AB16: 7 | AC16: 8 | AD16: 9 | AE16: 10 | AF16: 11 | AG16: 12 | AH16: 13 | AI16: 14
E17: Evolution annuelle de l'emploi (2022) : | F17: =(AL15-VLOOKUP($B$6,'Emploi (DOMEX)'!$A$55:$N$69,$L$7,FALSE))/VLOOKUP($B$6,'Emploi (DOMEX)'!$A$55:$N$69,$L$7,FALSE) -> 0.002408601553 | G17: 300 | P17: Santé | Q17: 0 | R17: Savoie | S17: 73 | T17: 13 | U17: 17 | V17: 12 | AL17: =AL15-VLOOKUP($B$6,'Emploi (DOMEX)'!$A$55:$N$69,$L$7,FALSE) -> 347
P18: Hors DOMEX | Q18: 0 | R18: Auvergne-Rhône-Alpes | S18: ARA | T18: =HLOOKUP(R18,W$6:AI$7,2,FALSE) -> 14 | U18: 18 | V18: =HLOOKUP("TOTAL",$W$15:$AI$16,2,FALSE) -> 14
B19: Les 10 principaux secteurs du DOMEX dans le territoire : | P19: TOTAL TOUS SECTEURS (secteur privé) | Q19: 0
B21: NAF | C21: Libellé NAF | G21: Effectifs (2022) | H21: %
B22: =IF('Emploi (NAF)'!$D2=1,'Emploi (NAF)'!A2,"") -> 4941A | C22: =IF('Emploi (NAF)'!$D2=1,'Emploi (NAF)'!B2,"") -> Transports routiers de fret interurbains | G22: =ROUND($AL22,IF($AL22>100,-2,-1)) -> 29000 | H22: =IF(AL22="","",AL22/AL$15) -> 0.2005484233 | AL22: =IF('Emploi (NAF)'!$D2=1,'Emploi (NAF)'!E2,0) -> 28962
B23: =IF('Emploi (NAF)'!$D3=1,'Emploi (NAF)'!A3,"") -> 4941B | C23: =IF('Emploi (NAF)'!$D3=1,'Emploi (NAF)'!B3,"") -> Transports routiers de fret de proximité | G23: 23000 | H23: 0.1594097525 | AL23: =IF('Emploi (NAF)'!$D3=1,'Emploi (NAF)'!E3,0) -> 23021
B24: =IF('Emploi (NAF)'!$D4=1,'Emploi (NAF)'!A4,"") -> 5310Z | C24: =IF('Emploi (NAF)'!$D4=1,'Emploi (NAF)'!B4,"") -> Activ. poste dans le cadre d'une obligation de service universel | G24: =IF(ROUND($AL24,IF($AL24>100,-2,-1))=0,"",ROUND($AL24,IF($AL24>100,-2,-1))) -> 20100 | H24: =IF(AL24=0,"",AL24/AL$15) -> 0.1391000872 | AL24: =IF('Emploi (NAF)'!$D4=1,'Emploi (NAF)'!E4,0) -> 20088
B25: =IF('Emploi (NAF)'!$D5=1,'Emploi (NAF)'!A5,"") -> 5210B | C25: =IF('Emploi (NAF)'!$D5=1,'Emploi (NAF)'!B5,"") -> Entreposage et stockage non frigorifique | G25: =IF(ROUND($AL25,IF($AL25>100,-2,-1))=0,"",ROUND($AL25,IF($AL25>100,-2,-1))) -> 12300 | H25: =IF(AL25=0,"",AL25/AL$15) -> 0.08509562785 | AL25: =IF('Emploi (NAF)'!$D5=1,'Emploi (NAF)'!E5,0) -> 12289
B26: =IF('Emploi (NAF)'!$D6=1,'Emploi (NAF)'!A6,"") -> 5221Z | C26: =IF('Emploi (NAF)'!$D6=1,'Emploi (NAF)'!B6,"") -> Services auxiliaires des transports terrestres | G26: 11100 | H26: 0.07666846705 | AL26: =IF('Emploi (NAF)'!$D6=1,'Emploi (NAF)'!E6,0) -> 11072
B27: =IF('Emploi (NAF)'!$D7=1,'Emploi (NAF)'!A7,"") -> 5229B | C27: =IF('Emploi (NAF)'!$D7=1,'Emploi (NAF)'!B7,"") -> Affrètement et organisation des transports | G27: 10400 | H27: 0.07180051796 | AL27: =IF('Emploi (NAF)'!$D7=1,'Emploi (NAF)'!E7,0) -> 10369
B28: =IF('Emploi (NAF)'!$D8=1,'Emploi (NAF)'!A8,"") -> 4931Z | C28: =IF('Emploi (NAF)'!$D8=1,'Emploi (NAF)'!B8,"") -> Transports urbains et suburbains de voyageurs | G28: 10300 | H28: 0.07110806432 | AL28: =IF('Emploi (NAF)'!$D8=1,'Emploi (NAF)'!E8,0) -> 10269
B29: =IF('Emploi (NAF)'!$D9=1,'Emploi (NAF)'!A9,"") -> 4939A | C29: =IF('Emploi (NAF)'!$D9=1,'Emploi (NAF)'!B9,"") -> Transports routiers réguliers de voyageurs | G29: 7600 | H29: 0.05270264656 | AL29: =IF('Emploi (NAF)'!$D9=1,'Emploi (NAF)'!E9,0) -> 7611
B30: =IF('Emploi (NAF)'!$D10=1,'Emploi (NAF)'!A10,"") -> 5229A | C30: =IF('Emploi (NAF)'!$D10=1,'Emploi (NAF)'!B10,"") -> Messagerie, fret express | G30: 5100 | H30: 0.03539130555 | AL30: =IF('Emploi (NAF)'!$D10=1,'Emploi (NAF)'!E10,0) -> 5111
B31: =IF('Emploi (NAF)'!$D11=1,'Emploi (NAF)'!A11,"") -> 4932Z | C31: =IF('Emploi (NAF)'!$D11=1,'Emploi (NAF)'!B11,"") -> Transports de voyageurs par taxis | G31: 3900 | H31: 0.02725497528 | AL31: =IF('Emploi (NAF)'!$D11=1,'Emploi (NAF)'!E11,0) -> 3936
B33: Les embauches sur les 12 derniers mois
B34: (DPAE, source ACOSS, cumul de avril 2023 à mars 2024)
H36: Nombre d'embauches (tous types de contrats) : | I36: =IF(ROUND($AL36,IF($AL36>100,-2,-1))=0,"NC",ROUND($AL36,IF($AL36>100,-2,-1))) -> 71100 | AL36: =VLOOKUP($B$6,'DPAE (DOMEX)'!$A$1:$N$15,$L$9,FALSE) -> 71125
H37: dont contrats de plus d'un mois (hors intérim) : | I37: =IF(ROUND(AL37,IF(AL37>100,-2,-1))=0,"NC",ROUND(AL37,IF(AL37>100,-2,-1))) -> 51300 | AL37: =VLOOKUP($B$6,'DPAE (DOMEX)'!A19:N33,$L$9,FALSE) -> 51272
G38: =IF(AL36=0,"","(soit "&TEXT(AL37/AL36,"0%")&" des embauches du secteur)") -> (soit 72% des embauches du secteur)
H39: Part du DOMEX dans l'ensemble des embauches de plus d'un mois sur le territoire : | I39: =IF(AL37=0,"NC",AL37/VLOOKUP("TOTAL",'DPAE (DOMEX)'!A20:N34,$L$9,FALSE)) -> 0.04009255255
B41: Les offres d'emploi sur les 12 derniers mois
B42: (source France Travail, cumul de avril 2023 à mars 2024)
H44: Nombre d'offres d'emploi enregistrées (tous types de contrats) : | I44: =ROUND(AL44,IF(AL44>100,-2,-1)) -> 51000 | AL44: =SUMIFS(SILOSTMAT!$C:$C,SILOSTMAT!$A:$A,IF($L$6="ARA","TOTAL",$L$6),SILOSTMAT!$M:$M,$B$6) -> 50959
H45: dont contrats durables (plus de 6 mois) : | I45: =ROUND(AL45,IF(AL45>100,-2,-1)) -> 25900 | AL45: =SUMIFS(SILOSTMAT!$D:$D,SILOSTMAT!$A:$A,IF($L$6="ARA","TOTAL",$L$6),SILOSTMAT!$M:$M,$B$6) -> 25908
H46: ="(soit "&TEXT(AL45/AL44,"0%")&" des offres du secteur)" -> (soit 51% des offres du secteur)
H47: dont missions en intérim : | I47: =ROUND(AL47,IF(AL47>100,-2,-1)) -> 20100 | AL47: =SUMIFS(SILOSTMAT!$E:$E,SILOSTMAT!$A:$A,IF($L$6="ARA","TOTAL",$L$6),SILOSTMAT!$M:$M,$B$6) -> 20130
H48: ="(soit "&TEXT(AL47/AL44,"0%")&" des offres du secteur)" -> (soit 40% des offres du secteur)
B50: Les 5 métiers les plus recherchés par les employeurs du DOMEX dans le territoire (parmi les offres enregistrées) :
B51: ROME | C51: Libellé ROME | G51: Nb Offres (cumul sur 12 mois)
B52: =IF('OEE (ROME)'!D2=1,'OEE (ROME)'!A2,"") -> N1103 | C52: =IF('OEE (ROME)'!D2=1,'OEE (ROME)'!B2,"") -> Magasinage et préparation de commandes | G52: =ROUND($AL52,IF($AL52>100,-2,-1)) -> 16000 | AL52: =IF('OEE (ROME)'!D2=1,'OEE (ROME)'!$E2,0) -> 16015
B53: =IF('OEE (ROME)'!D3=1,'OEE (ROME)'!A3,"") -> N4101 | C53: =IF('OEE (ROME)'!D3=1,'OEE (ROME)'!B3,"") -> Conduite de transport de marchandises sur longue distance | G53: =ROUND($AL53,IF($AL53>100,-2,-1)) -> 8600 | AL53: =IF('OEE (ROME)'!D3=1,'OEE (ROME)'!$E3,0) -> 8583
B54: =IF('OEE (ROME)'!D4=1,'OEE (ROME)'!A4,"") -> N1101 | C54: =IF('OEE (ROME)'!D4=1,'OEE (ROME)'!B4,"") -> Conduite d'engins de déplacement des charges | G54: 6500 | AL54: =IF('OEE (ROME)'!D4=1,'OEE (ROME)'!$E4,0) -> 6470
B55: =IF('OEE (ROME)'!D5=1,'OEE (ROME)'!A5,"") -> N1105 | C55: =IF('OEE (ROME)'!D5=1,'OEE (ROME)'!B5,"") -> Manutention manuelle de charges | G55: 5100 | AL55: =IF('OEE (ROME)'!D5=1,'OEE (ROME)'!$E5,0) -> 5102
B56: =IF('OEE (ROME)'!D6=1,'OEE (ROME)'!A6,"") -> N4105 | C56: =IF('OEE (ROME)'!D6=1,'OEE (ROME)'!B6,"") -> Conduite et livraison par tournées sur courte distance | G56: 3800 | AL56: =IF('OEE (ROME)'!D6=1,'OEE (ROME)'!$E6,0) -> 3783
B58: Les demandeurs d'emploi inscrits à fin mars 2024
B59: (catégorie A, source France Travail)
F60: DEFM A : | G60: =ROUND($AL60,IF($AL60>100,-2,-1)) -> 34000 | AL60: =SUMIFS(SILOSTMAT!$F:$F,SILOSTMAT!$A:$A,IF($L$6="ARA","TOTAL",$L$6),SILOSTMAT!$M:$M,$B$6) -> 34031
F61: dont catégorie A (%) : | G61: =SUMIFS(SILOSTMAT!$G:$G,SILOSTMAT!$A:$A,IF($L$6="ARA","TOTAL",$L$6),SILOSTMAT!$M:$M,$B$6)/AL60 -> 1
F62: dont Femmes (%) : | G62: =SUMIFS(SILOSTMAT!$I:$I,SILOSTMAT!$A:$A,IF($L$6="ARA","TOTAL",$L$6),SILOSTMAT!$M:$M,$B$6)/AL60 -> 0.1432223561
F63: dont Moins de 26 ans (%) : | G63: =SUMIFS(SILOSTMAT!$J:$J,SILOSTMAT!$A:$A,IF($L$6="ARA","TOTAL",$L$6),SILOSTMAT!$M:$M,$B$6)/AL60 -> 0.1760747554
F64: dont 50 ans et plus (%) : | G64: =SUMIFS(SILOSTMAT!$K:$K,SILOSTMAT!$A:$A,IF($L$6="ARA","TOTAL",$L$6),SILOSTMAT!$M:$M,$B$6)/AL60 -> 0.2425141782
F65: dont infra-bac (%) : | G65: =SUMIFS(SILOSTMAT!$H:$H,SILOSTMAT!$A:$A,IF($L$6="ARA","TOTAL",$L$6),SILOSTMAT!$M:$M,$B$6)/AL60 -> 0.7354764773
F66: dont éloignés durablement de l'emploi (%) : | G66: =SUMIFS(SILOSTMAT!$L:$L,SILOSTMAT!$A:$A,IF($L$6="ARA","TOTAL",$L$6),SILOSTMAT!$M:$M,$B$6)/AL60 -> 0.275924892
B68: Les perspectives d'embauche par département :
F70: Nb intentions d'embauche 2024* | G70: Nb offres enregistrées au cours des 12 derniers mois
D71: 01 | E71: Ain | F71: =ROUND($AL71,IF($AL71>100,-2,-1)) -> 1200 | G71: =ROUND($AM71,IF($AM71>100,-2,-1)) -> 4900 | H71: 2 | AL71: =VLOOKUP($B$6,siloBMO!$A$1:$N$15,$H71,FALSE) -> 1243.918497 | AM71: =SUMIFS(SILOSTMAT!$C:$C,SILOSTMAT!$A:$A,$D71,SILOSTMAT!$M:$M,$B$6) -> 4852
D72: 03 | E72: Allier | F72: 300 | G72: 1100 | H72: 3 | AL72: =VLOOKUP($B$6,siloBMO!$A$1:$N$15,$H72,FALSE) -> 328.6932116 | AM72: =SUMIFS(SILOSTMAT!$C:$C,SILOSTMAT!$A:$A,$D72,SILOSTMAT!$M:$M,$B$6) -> 1075
D73: 07 | E73: Ardèche | F73: 200 | G73: 900 | H73: 4 | AL73: =VLOOKUP($B$6,siloBMO!$A$1:$N$15,$H73,FALSE) -> 164.2342975 | AM73: =SUMIFS(SILOSTMAT!$C:$C,SILOSTMAT!$A:$A,$D73,SILOSTMAT!$M:$M,$B$6) -> 894
D74: 15 | E74: Cantal | F74: 100 | G74: 400 | H74: 5 | AL74: =VLOOKUP($B$6,siloBMO!$A$1:$N$15,$H74,FALSE) -> 135.3565381 | AM74: =SUMIFS(SILOSTMAT!$C:$C,SILOSTMAT!$A:$A,$D74,SILOSTMAT!$M:$M,$B$6) -> 421
D75: 26 | E75: Drôme | F75: 1200 | G75: 4200 | H75: 6 | AL75: =VLOOKUP($B$6,siloBMO!$A$1:$N$15,$H75,FALSE) -> 1212.892699 | AM75: =SUMIFS(SILOSTMAT!$C:$C,SILOSTMAT!$A:$A,$D75,SILOSTMAT!$M:$M,$B$6) -> 4163
D76: 38 | E76: Isère | F76: 1700 | G76: 7800 | H76: 7 | AL76: =VLOOKUP($B$6,siloBMO!$A$1:$N$15,$H76,FALSE) -> 1722.564378 | AM76: =SUMIFS(SILOSTMAT!$C:$C,SILOSTMAT!$A:$A,$D76,SILOSTMAT!$M:$M,$B$6) -> 7759
D77: 42 | E77: Loire | F77: 800 | G77: 3000 | H77: 8 | AL77: =VLOOKUP($B$6,siloBMO!$A$1:$N$15,$H77,FALSE) -> 806.2340584 | AM77: =SUMIFS(SILOSTMAT!$C:$C,SILOSTMAT!$A:$A,$D77,SILOSTMAT!$M:$M,$B$6) -> 3015
D78: 43 | E78: Haute-Loire | F78: 90 | G78: 900 | H78: 9 | AL78: =VLOOKUP($B$6,siloBMO!$A$1:$N$15,$H78,FALSE) -> 86.83647689 | AM78: =SUMIFS(SILOSTMAT!$C:$C,SILOSTMAT!$A:$A,$D78,SILOSTMAT!$M:$M,$B$6) -> 891
D79: 63 | E79: Puy-de-Dôme | F79: 800 | G79: 3300 | H79: 10 | AL79: =VLOOKUP($B$6,siloBMO!$A$1:$N$15,$H79,FALSE) -> 778.1600267 | AM79: =SUMIFS(SILOSTMAT!$C:$C,SILOSTMAT!$A:$A,$D79,SILOSTMAT!$M:$M,$B$6) -> 3348
D80: 69 | E80: Rhône | F80: 3900 | G80: 16800 | H80: 11 | AL80: =VLOOKUP($B$6,siloBMO!$A$1:$N$15,$H80,FALSE) -> 3898.642009 | AM80: =SUMIFS(SILOSTMAT!$C:$C,SILOSTMAT!$A:$A,$D80,SILOSTMAT!$M:$M,$B$6) -> 16765
D81: 73 | E81: Savoie | F81: 700 | G81: 3900 | H81: 12 | AL81: =VLOOKUP($B$6,siloBMO!$A$1:$N$15,$H81,FALSE) -> 678.6494051 | AM81: =SUMIFS(SILOSTMAT!$C:$C,SILOSTMAT!$A:$A,$D81,SILOSTMAT!$M:$M,$B$6) -> 3910
D82: 74 | E82: Haute-Savoie | F82: 900 | G82: 3900 | H82: 13 | AL82: =VLOOKUP($B$6,siloBMO!$A$1:$N$15,$H82,FALSE) -> 915.8959506 | AM82: =SUMIFS(SILOSTMAT!$C:$C,SILOSTMAT!$A:$A,$D82,SILOSTMAT!$M:$M,$B$6) -> 3866
D83: TOTAL | E83: Auvergne-Rhône-Alpes | F83: 12000 | G83: 51000 | H83: 14 | AL83: =VLOOKUP($B$6,siloBMO!$A$1:$N$15,$H83,FALSE) -> 11972.07755 | AM83: =SUMIFS(SILOSTMAT!$C:$C,SILOSTMAT!$A:$A,$D83,SILOSTMAT!$M:$M,$B$6) -> 50959
E85: Taux de projets difficiles* : | F85: =VLOOKUP($B$6,siloBMO!$A$19:$N$33,$H$85,FALSE) -> 0.5690223088 | H85: =VLOOKUP(E9,E71:H83,4,FALSE) -> 14
D86: * source enquête BMO 2024
B90: Les entrées en formation sur les 12 derniers mois :
B91: (AES, cumul de avril 2023 à mars 2024)
H93: Nombre d'entrées en formation (tous financeurs) : | I93: =SUMIFS('Formation (détail)'!E:E,'Formation (détail)'!D:D,1) -> 24370
B96: Les 5 formacodes les plus fréquents parmi les entrées en formation en lien avec le DOMEX :
B97: Formacode | C97: Libellé formation | G97: Nb entrées en formation (cumul sur 12 mois)
B98: =IF('Formation (détail)'!D2=1,'Formation (détail)'!A2,"") -> 31812 | C98: =IF('Formation (détail)'!D2=1,'Formation (détail)'!B2,"") -> conduite auto | G98: =ROUND($AL98,IF($AL98>100,-2,-1)) -> 7700 | AL98: =IF('Formation (détail)'!D2=1,'Formation (détail)'!$E2,0) -> 7664
B99: =IF('Formation (détail)'!D3=1,'Formation (détail)'!A3,"") -> 31768 | C99: =IF('Formation (détail)'!D3=1,'Formation (détail)'!B3,"") -> chariot automoteur | G99: =ROUND($AL99,IF($AL99>100,-2,-1)) -> 4300 | AL99: =IF('Formation (détail)'!D3=1,'Formation (détail)'!$E3,0) -> 4293
B100: =IF('Formation (détail)'!D4=1,'Formation (détail)'!A4,"") -> 31826 | C100: =IF('Formation (détail)'!D4=1,'Formation (détail)'!B4,"") -> FIMO FCO | G100: 2300 | AL100: =IF('Formation (détail)'!D4=1,'Formation (détail)'!$E4,0) -> 2270
B101: =IF('Formation (détail)'!D5=1,'Formation (détail)'!A5,"") -> 31816 | C101: =IF('Formation (détail)'!D5=1,'Formation (détail)'!B5,"") -> conduite poids lourd | G101: 2300 | AL101: =IF('Formation (détail)'!D5=1,'Formation (détail)'!$E5,0) -> 2255
B102: =IF('Formation (détail)'!D6=1,'Formation (détail)'!A6,"") -> 31827 | C102: =IF('Formation (détail)'!D6=1,'Formation (détail)'!B6,"") -> transport marchandise | G102: 1200 | AL102: =IF('Formation (détail)'!D6=1,'Formation (détail)'!$E6,0) -> 1220
B105: Le taux d'accès à l'emploi après une formation : | H105: =SUMIFS(siloFOR1!$D:$D,siloFOR1!$E:$E,$B$6,siloFOR1!$A:$A,$L$6,siloFOR1!$B:$B,"o")/SUMIFS(siloFOR1!$D:$D,siloFOR1!$E:$E,$B$6,siloFOR1!$A:$A,$L$6,siloFOR1!$B:$B,"t") -> 0.6686139915
B106: (FOR1 : taux d'accès à l'emploi (plus d'un mois, hors intérim) au cours des six mois qui suivent une sortie de formation (hors remises à niveau et savoirs de base) parmi les sortants de août 2022 à juillet 2023)

Sheet siloBMO (hidden)
A1: Intentions d'embauche (BMO 2024) | B1: 01 | C1: 03 | D1: 07 | E1: 15 | F1: 26 | G1: 38 | H1: 42 | I1: 43 | J1: 63 | K1: 69 | L1: 73 | M1: 74 | N1: TOTAL
A2: Aéronautique | B2: 469.1427471 | C2: 215.2268183 | D2: 79.87734979 | E2: 35.86812071 | F2: 512.8354082 | G2: 531.2397671 | H2: 774.1466451 | I2: 253.4492662 | J2: 528.9977796 | K2: 765.9860102 | L2: 336.7603426 | M2: 906.0711295 | N2: 5409.601384
A3: Agriculture, Agroalimentaire, Forêt | B3: 1674.668424 | C3: 747.2295453 | D3: 2176.950496 | E3: 431.565259 | F3: 5493.20606 | G3: 2498.75018 | H3: 2487.824491 | I3: 851.0796535 | J3: 1849.870168 | K3: 5677.649351 | L3: 1302.430918 | M3: 1398.255776 | N3: 26589.48032
A4: BTP | B4: 1785.400688 | C4: 985.1665152 | D4: 587.9985264 | E4: 518.899943 | F4: 1889.513593 | G4: 4454.492675 | H4: 1584.476028 | I4: 563.2376588 | J4: 1774.612704 | K4: 6736.280416 | L4: 2535.978316 | M4: 3081.409168 | N4: 26497.46623
A5: Energie | B5: 142.7193296 | C5: 27.16833753 | D5: 47.20713733 | E5: 7.014000412 | F5: 67.42534741 | G5: 179.3112635 | H5: 59.133672 | I5: 24.55525366 | J5: 77.63016941 | K5: 428.2190223 | L5: 112.6129471 | M5: 38.89375266 | N5: 1211.890233
A6: Industrie du futur, production industrielle | B6: 1257.835956 | C6: 442.5325709 | D6: 785.4742182 | E6: 118.1116271 | F6: 1032.902023 | G6: 2814.824564 | H6: 1337.477844 | I6: 280.5584492 | J6: 870.9869173 | K6: 3144.952878 | L6: 474.4157177 | M6: 1078.176536 | N6: 13638.2493
A7: Métier de bouche | B7: 299.6646341 | C7: 116.0259963 | D7: 406.5061442 | E7: 96.60601445 | F7: 533.6137806 | G7: 828.7887853 | H7: 568.4392653 | I7: 154.5454919 | J7: 507.943535 | K7: 1754.54029 | L7: 669.0914371 | M7: 612.9806921 | N7: 6548.746066
A8: Mobilité, systèmes de transport intelligents | B8: 1243.918497 | C8: 328.6932116 | D8: 164.2342975 | E8: 135.3565381 | F8: 1212.892699 | G8: 1722.564378 | H8: 806.2340584 | I8: 86.83647689 | J8: 778.1600267 | K8: 3898.642009 | L8: 678.6494051 | M8: 915.8959506 | N8: 11972.07755
A9: Numérique | B9: 127.726814 | C9: 12.7745237 | D9: 21.77252559 | E9: 2.727648155 | F9: 374.3543513 | G9: 1251.523122 | H9: 188.1808343 | I9: 38.10776929 | J9: 429.7761987 | K9: 6418.485354 | L9: 143.4879328 | M9: 471.7393179 | N9: 9480.656392
A10: Polymères | B10: 505.5690613 | C10: 17.25931321 | D10: 56.8838136 | E10: 43.37672548 | F10: 277.0215788 | G10: 249.4691549 | H10: 70.84548482 | I10: 193.7039322 | J10: 26.90338711 | K10: 171.3712749 | L10: 13.06108487 | M10: 37.08696664 | N10: 1662.551778
A11: Santé | B11: 490.1170422 | C11: 303.3477073 | D11: 671.9531632 | E11: 60.93106188 | F11: 679.2580734 | G11: 1321.385771 | H11: 469.8381192 | I11: 538.2908371 | J11: 871.9646514 | K11: 1639.348452 | L11: 409.3184092 | M11: 2030.599085 | N11: 9486.352372
A12: Services à la personne | B12: 384.9767136 | C12: 329.2167461 | D12: 241.8338461 | E12: 207.0973278 | F12: 872.0213661 | G12: 1336.098169 | H12: 702.5672167 | I12: 289.401558 | J12: 665.2925062 | K12: 3598.475921 | L12: 997.754489 | M12: 850.9557806 | N12: 10475.69164
A13: Sport, Montagne, Tourisme | B13: 2336.966416 | C13: 1907.216582 | D13: 3639.930766 | E13: 1837.100207 | F13: 3221.004546 | G13: 6409.485047 | H13: 2435.339602 | I13: 1261.620304 | J13: 3342.062538 | K13: 8131.744145 | L13: 10153.74444 | M13: 11399.62082 | N13: 56075.83541
A14: Hors DOMEX | B14: 7668.650042 | C14: 4555.101677 | D14: 5099.019712 | E14: 2334.395468 | F14: 9788.495005 | G14: 20542.86652 | H14: 9159.588522 | I14: 3052.483025 | J14: 11164.38354 | K14: 43427.54817 | L14: 11199.69199 | M14: 14664.04496 | N14: 142656.2686
A15: TOTAL | B15: 18387.35637 | C15: 9986.959545 | D15: 13979.64199 | E15: 5829.049942 | F15: 25954.54383 | G15: 44140.7994 | H15: 20644.09178 | I15: 7587.869676 | J15: 22888.58413 | K15: 85793.24329 | L15: 29026.99743 | M15: 37485.72994 | N15: 321704.8673
A19: Taux de difficulté à recruter (%, BMO 2024) | B19: =B1 -> 01 | C19: =C1 -> 03 | D19: 07 | E19: 15 | F19: 26 | G19: 38 | H19: 42 | I19: 43 | J19: 63 | K19: 69 | L19: 73 | M19: 74 | N19: TOTAL
A20: =A2 -> Aéronautique | B20: 0.666213488 | C20: 0.7585218606 | D20: 0.9333366734 | E20: 0.747282066 | F20: 0.5487983467 | G20: 0.7303837526 | H20: 0.758603089 | I20: 0.8407280457 | J20: 0.5603811642 | K20: 0.7683587058 | L20: 0.6365856102 | M20: 0.6551386025 | N20: 0.6913513038
A21: =A3 -> Agriculture, Agroalimentaire, Forêt | B21: 0.4978165824 | C21: 0.6362658064 | D21: 0.5404637755 | E21: 0.5294523754 | F21: 0.4159646567 | G21: 0.5062872061 | H21: 0.5449663992 | I21: 0.755505859 | J21: 0.5454390821 | K21: 0.4888425819 | L21: 0.6090885685 | M21: 0.6240241667 | N21: 0.5157423524
A22: BTP | B22: 0.8437601682 | C22: 0.7518503076 | D22: 0.6472723361 | E22: 0.8179363076 | F22: 0.6514396743 | G22: 0.6613650173 | H22: 0.7826822089 | I22: 0.8464496952 | J22: 0.715675881 | K22: 0.6254068828 | L22: 0.7788114942 | M22: 0.8453794192 | N22: 0.7173888151
A23: Energie | B23: 0.1852798314 | C23: 1 | D23: 0 | E23: 0.7048369395 | F23: 0 | G23: 0.2319426982 | H23: 0.5317371689 | I23: 0.7871826171 | J23: 0.4505759252 | K23: 0.4440327107 | L23: 0.2118396761 | M23: 0.6447739447 | N23: 0.3506696824
A24: Industrie du futur, production industrielle | B24: 0.5860763239 | C24: 0.5362376906 | D24: 0.2658705728 | E24: 0.4942174779 | F24: 0.713788526 | G24: 0.600378487 | H24: 0.7152829351 | I24: 0.7095608189 | J24: 0.5386084869 | K24: 0.7212620208 | L24: 0.6253691862 | M24: 0.6366421882 | N24: 0.6265638191
A25: Métier de bouche | B25: 0.2962638058 | C25: 0.7166807484 | D25: 0.2955376252 | E25: 0.6573217305 | F25: 0.6587038962 | G25: 0.3814408389 | H25: 0.3856315918 | I25: 0.4469753775 | J25: 0.7242005311 | K25: 0.4553152524 | L25: 0.41448013 | M25: 0.6275442188 | N25: 0.4795124909
A26: Mobilité, systèmes de transport intelligents | B26: 0.488078427 | C26: 0.7790595582 | D26: 0.5161300974 | E26: 0.5753074809 | F26: 0.3639869738 | G26: 0.5650343135 | H26: 0.684534384 | I26: 0.7703578297 | J26: 0.5435609756 | K26: 0.5726316362 | L26: 0.6346352592 | M26: 0.7280376191 | N26: 0.5690223088
A27: Numérique | B27: 0.5760390827 | C27: 0.1852667565 | D27: 0.05244030149 | E27: 1 | F27: 0.2288393368 | G27: 0.5367772339 | H27: 0.5612128996 | I27: 0.3895674903 | J27: 0.3968802829 | K27: 0.5350582512 | L27: 0.7282697981 | M27: 0.5962344874 | N27: 0.5219386865
A28: Polymères | B28: 0.6934519463 | C28: 0.7342626914 | D28: 0.2968122658 | E28: 0.06666666667 | F28: 0.9648296995 | G28: 0.3965956532 | H28: 0.2759054108 | I28: 0.7040070502 | J28: 0.2779845034 | K28: 0.7958283504 | L28: 0.5174296587 | M28: 0.9259344686 | N28: 0.6556957094
A29: Santé | B29: 0.8953279667 | C29: 0.3798969599 | D29: 0.8952912994 | E29: 1 | F29: 0.7421958976 | G29: 0.8039341746 | H29: 0.5529994424 | I29: 0.8505234969 | J29: 0.749512429 | K29: 0.5969465954 | L29: 0.7210675748 | M29: 0.9037137106 | N29: 0.7656323747
A30: Services à la personne | B30: 0.912126416 | C30: 0.9187060871 | D30: 0.867988903 | E30: 0.4061016585 | F30: 0.8823010803 | G30: 0.7827483025 | H30: 0.7916826664 | I30: 0.7606982074 | J30: 0.8754515928 | K30: 0.8255830947 | L30: 0.478300978 | M30: 0.9603994234 | N30: 0.8006097326
A31: Sport, Montagne, Tourisme | B31: 0.564209805 | C31: 0.4136473026 | D31: 0.542524465 | E31: 0.5726027612 | F31: 0.593423922 | G31: 0.5999204201 | H31: 0.4903146599 | I31: 0.4980386854 | J31: 0.5448274185 | K31: 0.5750213628 | L31: 0.4481325079 | M31: 0.5959718085 | N31: 0.5448693598
A32: Hors DOMEX | B32: 0.5892036413 | C32: 0.4624754472 | D32: 0.5116563271 | E32: 0.5765696615 | F32: 0.487764984 | G32: 0.5237535512 | H32: 0.5932123833 | I32: 0.5939417094 | J32: 0.5035257909 | K32: 0.5264062975 | L32: 0.5133591802 | M32: 0.6086943274 | N32: 0.5363791269
A33: TOTAL | B33: 0.6071171658 | C33: 0.531829161 | D33: 0.5335383272 | E33: 0.5889358862 | F33: 0.5255322957 | G33: 0.5687159168 | H33: 0.6060457664 | I33: 0.6533756516 | J33: 0.5560343734 | K33: 0.5609221377 | L33: 0.5234643865 | M33: 0.6541634828 | N33: 0.572404555

Sheet Emploi (DOMEX) (hidden)
A1: Effectifs salariés 2022 (secteur privé) | B1: Ain | C1: Allier | D1: Ardèche | E1: Cantal | F1: Drôme | G1: Haute-Loire | H1: Haute-Savoie | I1: Isère | J1: Loire | K1: Puy-de-Dôme | L1: Rhône | M1: Savoie | N1: Auvergne-Rhône-Alpes
A2: Aéronautique | B2: =SUMIFS(siloEMPLOI!$H:$H,siloEMPLOI!$A:$A,B$1,siloEMPLOI!$E:$E,$A2) -> 6677 | C2: =SUMIFS(siloEMPLOI!$H:$H,siloEMPLOI!$A:$A,C$1,siloEMPLOI!$E:$E,$A2) -> 4446 | D2: =SUMIFS(siloEMPLOI!$H:$H,siloEMPLOI!$A:$A,D$1,siloEMPLOI!$E:$E,$A2) -> 1030 | E2: =SUMIFS(siloEMPLOI!$H:$H,siloEMPLOI!$A:$A,E$1,siloEMPLOI!$E:$E,$A2) -> 252 | F2: =SUMIFS(siloEMPLOI!$H:$H,siloEMPLOI!$A:$A,F$1,siloEMPLOI!$E:$E,$A2) -> 7928 | G2: =SUMIFS(siloEMPLOI!$H:$H,siloEMPLOI!$A:$A,G$1,siloEMPLOI!$E:$E,$A2) -> 2325 | H2: =SUMIFS(siloEMPLOI!$H:$H,siloEMPLOI!$A:$A,H$1,siloEMPLOI!$E:$E,$A2) -> 13598 | I2: =SUMIFS(siloEMPLOI!$H:$H,siloEMPLOI!$A:$A,I$1,siloEMPLOI!$E:$E,$A2) -> 9908 | J2: =SUMIFS(siloEMPLOI!$H:$H,siloEMPLOI!$A:$A,J$1,siloEMPLOI!$E:$E,$A2) -> 11121 | K2: =SUMIFS(siloEMPLOI!$H:$H,siloEMPLOI!$A:$A,K$1,siloEMPLOI!$E:$E,$A2) -> 8335 | L2: =SUMIFS(siloEMPLOI!$H:$H,siloEMPLOI!$A:$A,L$1,siloEMPLOI!$E:$E,$A2) -> 12311 | M2: =SUMIFS(siloEMPLOI!$H:$H,siloEMPLOI!$A:$A,M$1,siloEMPLOI!$E:$E,$A2) -> 5918 | N2: =SUMIFS(siloEMPLOI!$H:$H,siloEMPLOI!$E:$E,$A2) -> 83849
A3: Agriculture, Agroalimentaire, Forêt | B3: =SUMIFS(siloEMPLOI!$H:$H,siloEMPLOI!$A:$A,B$1,siloEMPLOI!$E:$E,$A3) -> 4248 | C3: =SUMIFS(siloEMPLOI!$H:$H,siloEMPLOI!$A:$A,C$1,siloEMPLOI!$E:$E,$A3) -> 2546 | D3: =SUMIFS(siloEMPLOI!$H:$H,siloEMPLOI!$A:$A,D$1,siloEMPLOI!$E:$E,$A3) -> 2753 | E3: =SUMIFS(siloEMPLOI!$H:$H,siloEMPLOI!$A:$A,E$1,siloEMPLOI!$E:$E,$A3) -> 1179 | F3: =SUMIFS(siloEMPLOI!$H:$H,siloEMPLOI!$A:$A,F$1,siloEMPLOI!$E:$E,$A3) -> 7792 | G3: =SUMIFS(siloEMPLOI!$H:$H,siloEMPLOI!$A:$A,G$1,siloEMPLOI!$E:$E,$A3) -> 2575 | H3: =SUMIFS(siloEMPLOI!$H:$H,siloEMPLOI!$A:$A,H$1,siloEMPLOI!$E:$E,$A3) -> 5019 | I3: =SUMIFS(siloEMPLOI!$H:$H,siloEMPLOI!$A:$A,I$1,siloEMPLOI!$E:$E,$A3) -> 6510 | J3: =SUMIFS(siloEMPLOI!$H:$H,siloEMPLOI!$A:$A,J$1,siloEMPLOI!$E:$E,$A3) -> 7989 | K3: =SUMIFS(siloEMPLOI!$H:$H,siloEMPLOI!$A:$A,K$1,siloEMPLOI!$E:$E,$A3) -> 4388 | L3: =SUMIFS(siloEMPLOI!$H:$H,siloEMPLOI!$A:$A,L$1,siloEMPLOI!$E:$E,$A3) -> 7288 | M3: =SUMIFS(siloEMPLOI!$H:$H,siloEMPLOI!$A:$A,M$1,siloEMPLOI!$E:$E,$A3) -> 3267 | N3: =SUMIFS(siloEMPLOI!$H:$H,siloEMPLOI!$E:$E,$A3) -> 55554
A4: BTP | B4: =SUMIFS(siloEMPLOI!$H:$H,siloEMPLOI!$A:$A,B$1,siloEMPLOI!$E:$E,$A4) -> 14204 | C4: =SUMIFS(siloEMPLOI!$H:$H,siloEMPLOI!$A:$A,C$1,siloEMPLOI!$E:$E,$A4) -> 6375 | D4: =SUMIFS(siloEMPLOI!$H:$H,siloEMPLOI!$A:$A,D$1,siloEMPLOI!$E:$E,$A4) -> 6616 | E4: =SUMIFS(siloEMPLOI!$H:$H,siloEMPLOI!$A:$A,E$1,siloEMPLOI!$E:$E,$A4) -> 3681 | F4: =SUMIFS(siloEMPLOI!$H:$H,siloEMPLOI!$A:$A,F$1,siloEMPLOI!$E:$E,$A4) -> 13968 | G4: =SUMIFS(siloEMPLOI!$H:$H,siloEMPLOI!$A:$A,G$1,siloEMPLOI!$E:$E,$A4) -> 5159 | H4: =SUMIFS(siloEMPLOI!$H:$H,siloEMPLOI!$A:$A,H$1,siloEMPLOI!$E:$E,$A4) -> 20145 | I4: =SUMIFS(siloEMPLOI!$H:$H,siloEMPLOI!$A:$A,I$1,siloEMPLOI!$E:$E,$A4) -> 32099 | J4: =SUMIFS(siloEMPLOI!$H:$H,siloEMPLOI!$A:$A,J$1,siloEMPLOI!$E:$E,$A4) -> 18087 | K4: =SUMIFS(siloEMPLOI!$H:$H,siloEMPLOI!$A:$A,K$1,siloEMPLOI!$E:$E,$A4) -> 14654 | L4: =SUMIFS(siloEMPLOI!$H:$H,siloEMPLOI!$A:$A,L$1,siloEMPLOI!$E:$E,$A4) -> 55730 | M4: =SUMIFS(siloEMPLOI!$H:$H,siloEMPLOI!$A:$A,M$1,siloEMPLOI!$E:$E,$A4) -> 14209 | N4: =SUMIFS(siloEMPLOI!$H:$H,siloEMPLOI!$E:$E,$A4) -> 204927
A5: Energie | B5: =SUMIFS(siloEMPLOI!$H:$H,siloEMPLOI!$A:$A,B$1,siloEMPLOI!$E:$E,$A5) -> 2848 | C5: =SUMIFS(siloEMPLOI!$H:$H,siloEMPLOI!$A:$A,C$1,siloEMPLOI!$E:$E,$A5) -> 370 | D5: =SUMIFS(siloEMPLOI!$H:$H,siloEMPLOI!$A:$A,D$1,siloEMPLOI!$E:$E,$A5) -> 1714 | E5: =SUMIFS(siloEMPLOI!$H:$H,siloEMPLOI!$A:$A,E$1,siloEMPLOI!$E:$E,$A5) -> 282 | F5: =SUMIFS(siloEMPLOI!$H:$H,siloEMPLOI!$A:$A,F$1,siloEMPLOI!$E:$E,$A5) -> 2979 | G5: =SUMIFS(siloEMPLOI!$H:$H,siloEMPLOI!$A:$A,G$1,siloEMPLOI!$E:$E,$A5) -> 321 | H5: =SUMIFS(siloEMPLOI!$H:$H,siloEMPLOI!$A:$A,H$1,siloEMPLOI!$E:$E,$A5) -> 1018 | I5: =SUMIFS(siloEMPLOI!$H:$H,siloEMPLOI!$A:$A,I$1,siloEMPLOI!$E:$E,$A5) -> 4746 | J5: =SUMIFS(siloEMPLOI!$H:$H,siloEMPLOI!$A:$A,J$1,siloEMPLOI!$E:$E,$A5) -> 1084 | K5: =SUMIFS(siloEMPLOI!$H:$H,siloEMPLOI!$A:$A,K$1,siloEMPLOI!$E:$E,$A5) -> 1628 | L5: =SUMIFS(siloEMPLOI!$H:$H,siloEMPLOI!$A:$A,L$1,siloEMPLOI!$E:$E,$A5) -> 10547 | M5: =SUMIFS(siloEMPLOI!$H:$H,siloEMPLOI!$A:$A,M$1,siloEMPLOI!$E:$E,$A5) -> 2229 | N5: =SUMIFS(siloEMPLOI!$H:$H,siloEMPLOI!$E:$E,$A5) -> 29766
A6: Industrie du futur, production industrielle | B6: =SUMIFS(siloEMPLOI!$H:$H,siloEMPLOI!$A:$A,B$1,siloEMPLOI!$E:$E,$A6) -> 20072 | C6: =SUMIFS(siloEMPLOI!$H:$H,siloEMPLOI!$A:$A,C$1,siloEMPLOI!$E:$E,$A6) -> 8201 | D6: =SUMIFS(siloEMPLOI!$H:$H,siloEMPLOI!$A:$A,D$1,siloEMPLOI!$E:$E,$A6) -> 10890 | E6: =SUMIFS(siloEMPLOI!$H:$H,siloEMPLOI!$A:$A,E$1,siloEMPLOI!$E:$E,$A6) -> 2187 | F6: =SUMIFS(siloEMPLOI!$H:$H,siloEMPLOI!$A:$A,F$1,siloEMPLOI!$E:$E,$A6) -> 15453 | G6: =SUMIFS(siloEMPLOI!$H:$H,siloEMPLOI!$A:$A,G$1,siloEMPLOI!$E:$E,$A6) -> 5385 | H6: =SUMIFS(siloEMPLOI!$H:$H,siloEMPLOI!$A:$A,H$1,siloEMPLOI!$E:$E,$A6) -> 21220 | I6: =SUMIFS(siloEMPLOI!$H:$H,siloEMPLOI!$A:$A,I$1,siloEMPLOI!$E:$E,$A6) -> 54595 | J6: =SUMIFS(siloEMPLOI!$H:$H,siloEMPLOI!$A:$A,J$1,siloEMPLOI!$E:$E,$A6) -> 23593 | K6: =SUMIFS(siloEMPLOI!$H:$H,siloEMPLOI!$A:$A,K$1,siloEMPLOI!$E:$E,$A6) -> 22288 | L6: =SUMIFS(siloEMPLOI!$H:$H,siloEMPLOI!$A:$A,L$1,siloEMPLOI!$E:$E,$A6) -> 66241 | M6: =SUMIFS(siloEMPLOI!$H:$H,siloEMPLOI!$A:$A,M$1,siloEMPLOI!$E:$E,$A6) -> 8128 | N6: =SUMIFS(siloEMPLOI!$H:$H,siloEMPLOI!$E:$E,$A6) -> 258253
A7: Métier de bouche | B7: =SUMIFS(siloEMPLOI!$H:$H,siloEMPLOI!$A:$A,B$1,siloEMPLOI!$E:$E,$A7) -> 3325 | C7: =SUMIFS(siloEMPLOI!$H:$H,siloEMPLOI!$A:$A,C$1,siloEMPLOI!$E:$E,$A7) -> 1694 | D7: =SUMIFS(siloEMPLOI!$H:$H,siloEMPLOI!$A:$A,D$1,siloEMPLOI!$E:$E,$A7) -> 1932 | E7: =SUMIFS(siloEMPLOI!$H:$H,siloEMPLOI!$A:$A,E$1,siloEMPLOI!$E:$E,$A7) -> 812 | F7: =SUMIFS(siloEMPLOI!$H:$H,siloEMPLOI!$A:$A,F$1,siloEMPLOI!$E:$E,$A7) -> 2868 | G7: =SUMIFS(siloEMPLOI!$H:$H,siloEMPLOI!$A:$A,G$1,siloEMPLOI!$E:$E,$A7) -> 1245 | H7: =SUMIFS(siloEMPLOI!$H:$H,siloEMPLOI!$A:$A,H$1,siloEMPLOI!$E:$E,$A7) -> 5936 | I7: =SUMIFS(siloEMPLOI!$H:$H,siloEMPLOI!$A:$A,I$1,siloEMPLOI!$E:$E,$A7) -> 6612 | J7: =SUMIFS(siloEMPLOI!$H:$H,siloEMPLOI!$A:$A,J$1,siloEMPLOI!$E:$E,$A7) -> 4351 | K7: =SUMIFS(siloEMPLOI!$H:$H,siloEMPLOI!$A:$A,K$1,siloEMPLOI!$E:$E,$A7) -> 3364 | L7: =SUMIFS(siloEMPLOI!$H:$H,siloEMPLOI!$A:$A,L$1,siloEMPLOI!$E:$E,$A7) -> 11711 | M7: =SUMIFS(siloEMPLOI!$H:$H,siloEMPLOI!$A:$A,M$1,siloEMPLOI!$E:$E,$A7) -> 3092 | N7: =SUMIFS(siloEMPLOI!$H:$H,siloEMPLOI!$E:$E,$A7) -> 46942
A8: Mobilité, systèmes de transport intelligents | B8: =SUMIFS(siloEMPLOI!$H:$H,siloEMPLOI!$A:$A,B$1,siloEMPLOI!$E:$E,$A8) -> 10980 | C8: =SUMIFS(siloEMPLOI!$H:$H,siloEMPLOI!$A:$A,C$1,siloEMPLOI!$E:$E,$A8) -> 4191 | D8: =SUMIFS(siloEMPLOI!$H:$H,siloEMPLOI!$A:$A,D$1,siloEMPLOI!$E:$E,$A8) -> 2852 | E8: =SUMIFS(siloEMPLOI!$H:$H,siloEMPLOI!$A:$A,E$1,siloEMPLOI!$E:$E,$A8) -> 1967 | F8: =SUMIFS(siloEMPLOI!$H:$H,siloEMPLOI!$A:$A,F$1,siloEMPLOI!$E:$E,$A8) -> 12151 | G8: =SUMIFS(siloEMPLOI!$H:$H,siloEMPLOI!$A:$A,G$1,siloEMPLOI!$E:$E,$A8) -> 2178 | H8: =SUMIFS(siloEMPLOI!$H:$H,siloEMPLOI!$A:$A,H$1,siloEMPLOI!$E:$E,$A8) -> 8300 | I8: =SUMIFS(siloEMPLOI!$H:$H,siloEMPLOI!$A:$A,I$1,siloEMPLOI!$E:$E,$A8) -> 21664 | J8: =SUMIFS(siloEMPLOI!$H:$H,siloEMPLOI!$A:$A,J$1,siloEMPLOI!$E:$E,$A8) -> 10871 | K8: =SUMIFS(siloEMPLOI!$H:$H,siloEMPLOI!$A:$A,K$1,siloEMPLOI!$E:$E,$A8) -> 12362 | L8: =SUMIFS(siloEMPLOI!$H:$H,siloEMPLOI!$A:$A,L$1,siloEMPLOI!$E:$E,$A8) -> 49148 | M8: =SUMIFS(siloEMPLOI!$H:$H,siloEMPLOI!$A:$A,M$1,siloEMPLOI!$E:$E,$A8) -> 7750 | N8: =SUMIFS(siloEMPLOI!$H:$H,siloEMPLOI!$E:$E,$A8) -> 144414
A9: Numérique | B9: =SUMIFS(siloEMPLOI!$H:$H,siloEMPLOI!$A:$A,B$1,siloEMPLOI!$E:$E,$A9) -> 1378 | C9: =SUMIFS(siloEMPLOI!$H:$H,siloEMPLOI!$A:$A,C$1,siloEMPLOI!$E:$E,$A9) -> 961 | D9: =SUMIFS(siloEMPLOI!$H:$H,siloEMPLOI!$A:$A,D$1,siloEMPLOI!$E:$E,$A9) -> 1065 | E9: =SUMIFS(siloEMPLOI!$H:$H,siloEMPLOI!$A:$A,E$1,siloEMPLOI!$E:$E,$A9) -> 294 | F9: =SUMIFS(siloEMPLOI!$H:$H,siloEMPLOI!$A:$A,F$1,siloEMPLOI!$E:$E,$A9) -> 2983 | G9: =SUMIFS(siloEMPLOI!$H:$H,siloEMPLOI!$A:$A,G$1,siloEMPLOI!$E:$E,$A9) -> 585 | H9: =SUMIFS(siloEMPLOI!$H:$H,siloEMPLOI!$A:$A,H$1,siloEMPLOI!$E:$E,$A9) -> 4473 | I9: =SUMIFS(siloEMPLOI!$H:$H,siloEMPLOI!$A:$A,I$1,siloEMPLOI!$E:$E,$A9) -> 17416 | J9: =SUMIFS(siloEMPLOI!$H:$H,siloEMPLOI!$A:$A,J$1,siloEMPLOI!$E:$E,$A9) -> 3338 | K9: =SUMIFS(siloEMPLOI!$H:$H,siloEMPLOI!$A:$A,K$1,siloEMPLOI!$E:$E,$A9) -> 5217 | L9: =SUMIFS(siloEMPLOI!$H:$H,siloEMPLOI!$A:$A,L$1,siloEMPLOI!$E:$E,$A9) -> 58437 | M9: =SUMIFS(siloEMPLOI!$H:$H,siloEMPLOI!$A:$A,M$1,siloEMPLOI!$E:$E,$A9) -> 2205 | N9: =SUMIFS(siloEMPLOI!$H:$H,siloEMPLOI!$E:$E,$A9) -> 98352
A10: Polymères | B10: =SUMIFS(siloEMPLOI!$H:$H,siloEMPLOI!$A:$A,B$1,siloEMPLOI!$E:$E,$A10) -> 7566 | C10: =SUMIFS(siloEMPLOI!$H:$H,siloEMPLOI!$A:$A,C$1,siloEMPLOI!$E:$E,$A10) -> 836 | D10: =SUMIFS(siloEMPLOI!$H:$H,siloEMPLOI!$A:$A,D$1,siloEMPLOI!$E:$E,$A10) -> 432 | E10: =SUMIFS(siloEMPLOI!$H:$H,siloEMPLOI!$A:$A,E$1,siloEMPLOI!$E:$E,$A10) -> 508 | F10: =SUMIFS(siloEMPLOI!$H:$H,siloEMPLOI!$A:$A,F$1,siloEMPLOI!$E:$E,$A10) -> 2188 | G10: =SUMIFS(siloEMPLOI!$H:$H,siloEMPLOI!$A:$A,G$1,siloEMPLOI!$E:$E,$A10) -> 2902 | H10: =SUMIFS(siloEMPLOI!$H:$H,siloEMPLOI!$A:$A,H$1,siloEMPLOI!$E:$E,$A10) -> 1082 | I10: =SUMIFS(siloEMPLOI!$H:$H,siloEMPLOI!$A:$A,I$1,siloEMPLOI!$E:$E,$A10) -> 3132 | J10: =SUMIFS(siloEMPLOI!$H:$H,siloEMPLOI!$A:$A,J$1,siloEMPLOI!$E:$E,$A10) -> 1378 | K10: =SUMIFS(siloEMPLOI!$H:$H,siloEMPLOI!$A:$A,K$1,siloEMPLOI!$E:$E,$A10) -> 1201 | L10: =SUMIFS(siloEMPLOI!$H:$H,siloEMPLOI!$A:$A,L$1,siloEMPLOI!$E:$E,$A10) -> 2879 | M10: =SUMIFS(siloEMPLOI!$H:$H,siloEMPLOI!$A:$A,M$1,siloEMPLOI!$E:$E,$A10) -> 339 | N10: =SUMIFS(siloEMPLOI!$H:$H,siloEMPLOI!$E:$E,$A10) -> 24443
A11: Services à la personne | B11: =SUMIFS(siloEMPLOI!$H:$H,siloEMPLOI!$A:$A,B$1,siloEMPLOI!$E:$E,$A11) -> 2805 | C11: =SUMIFS(siloEMPLOI!$H:$H,siloEMPLOI!$A:$A,C$1,siloEMPLOI!$E:$E,$A11) -> 1562 | D11: =SUMIFS(siloEMPLOI!$H:$H,siloEMPLOI!$A:$A,D$1,siloEMPLOI!$E:$E,$A11) -> 2034 | E11: =SUMIFS(siloEMPLOI!$H:$H,siloEMPLOI!$A:$A,E$1,siloEMPLOI!$E:$E,$A11) -> 710 | F11: =SUMIFS(siloEMPLOI!$H:$H,siloEMPLOI!$A:$A,F$1,siloEMPLOI!$E:$E,$A11) -> 3513 | G11: =SUMIFS(siloEMPLOI!$H:$H,siloEMPLOI!$A:$A,G$1,siloEMPLOI!$E:$E,$A11) -> 1537 | H11: =SUMIFS(siloEMPLOI!$H:$H,siloEMPLOI!$A:$A,H$1,siloEMPLOI!$E:$E,$A11) -> 3748 | I11: =SUMIFS(siloEMPLOI!$H:$H,siloEMPLOI!$A:$A,I$1,siloEMPLOI!$E:$E,$A11) -> 7108 | J11: =SUMIFS(siloEMPLOI!$H:$H,siloEMPLOI!$A:$A,J$1,siloEMPLOI!$E:$E,$A11) -> 5255 | K11: =SUMIFS(siloEMPLOI!$H:$H,siloEMPLOI!$A:$A,K$1,siloEMPLOI!$E:$E,$A11) -> 2437 | L11: =SUMIFS(siloEMPLOI!$H:$H,siloEMPLOI!$A:$A,L$1,siloEMPLOI!$E:$E,$A11) -> 13802 | M11: =SUMIFS(siloEMPLOI!$H:$H,siloEMPLOI!$A:$A,M$1,siloEMPLOI!$E:$E,$A11) -> 3200 | N11: =SUMIFS(siloEMPLOI!$H:$H,siloEMPLOI!$E:$E,$A11) -> 47711
A12: Sport, Montagne, Tourisme | B12: =SUMIFS(siloEMPLOI!$H:$H,siloEMPLOI!$A:$A,B$1,siloEMPLOI!$E:$E,$A12) -> 9851 | C12: =SUMIFS(siloEMPLOI!$H:$H,siloEMPLOI!$A:$A,C$1,siloEMPLOI!$E:$E,$A12) -> 5186 | D12: =SUMIFS(siloEMPLOI!$H:$H,siloEMPLOI!$A:$A,D$1,siloEMPLOI!$E:$E,$A12) -> 4379 | E12: =SUMIFS(siloEMPLOI!$H:$H,siloEMPLOI!$A:$A,E$1,siloEMPLOI!$E:$E,$A12) -> 2365 | F12: =SUMIFS(siloEMPLOI!$H:$H,siloEMPLOI!$A:$A,F$1,siloEMPLOI!$E:$E,$A12) -> 9663 | G12: =SUMIFS(siloEMPLOI!$H:$H,siloEMPLOI!$A:$A,G$1,siloEMPLOI!$E:$E,$A12) -> 3014 | H12: =SUMIFS(siloEMPLOI!$H:$H,siloEMPLOI!$A:$A,H$1,siloEMPLOI!$E:$E,$A12) -> 37230 | I12: =SUMIFS(siloEMPLOI!$H:$H,siloEMPLOI!$A:$A,I$1,siloEMPLOI!$E:$E,$A12) -> 26138 | J12: =SUMIFS(siloEMPLOI!$H:$H,siloEMPLOI!$A:$A,J$1,siloEMPLOI!$E:$E,$A12) -> 11626 | K12: =SUMIFS(siloEMPLOI!$H:$H,siloEMPLOI!$A:$A,K$1,siloEMPLOI!$E:$E,$A12) -> 13802 | L12: =SUMIFS(siloEMPLOI!$H:$H,siloEMPLOI!$A:$A,L$1,siloEMPLOI!$E:$E,$A12) -> 54453 | M12: =SUMIFS(siloEMPLOI!$H:$H,siloEMPLOI!$A:$A,M$1,siloEMPLOI!$E:$E,$A12) -> 41722 | N12: =SUMIFS(siloEMPLOI!$H:$H,siloEMPLOI!$E:$E,$A12) -> 219429
A13: Santé | B13: =SUMIFS(siloEMPLOI!$H:$H,siloEMPLOI!$A:$A,B$1,siloEMPLOI!$E:$E,$A13) -> 4519 | C13: =SUMIFS(siloEMPLOI!$H:$H,siloEMPLOI!$A:$A,C$1,siloEMPLOI!$E:$E,$A13) -> 1892 | D13: =SUMIFS(siloEMPLOI!$H:$H,siloEMPLOI!$A:$A,D$1,siloEMPLOI!$E:$E,$A13) -> 2799 | E13: =SUMIFS(siloEMPLOI!$H:$H,siloEMPLOI!$A:$A,E$1,siloEMPLOI!$E:$E,$A13) -> 1249 | F13: =SUMIFS(siloEMPLOI!$H:$H,siloEMPLOI!$A:$A,F$1,siloEMPLOI!$E:$E,$A13) -> 3850 | G13: =SUMIFS(siloEMPLOI!$H:$H,siloEMPLOI!$A:$A,G$1,siloEMPLOI!$E:$E,$A13) -> 2372 | H13: =SUMIFS(siloEMPLOI!$H:$H,siloEMPLOI!$A:$A,H$1,siloEMPLOI!$E:$E,$A13) -> 5958 | I13: =SUMIFS(siloEMPLOI!$H:$H,siloEMPLOI!$A:$A,I$1,siloEMPLOI!$E:$E,$A13) -> 9838 | J13: =SUMIFS(siloEMPLOI!$H:$H,siloEMPLOI!$A:$A,J$1,siloEMPLOI!$E:$E,$A13) -> 6093 | K13: =SUMIFS(siloEMPLOI!$H:$H,siloEMPLOI!$A:$A,K$1,siloEMPLOI!$E:$E,$A13) -> 7155 | L13: =SUMIFS(siloEMPLOI!$H:$H,siloEMPLOI!$A:$A,L$1,siloEMPLOI!$E:$E,$A13) -> 23811 | M13: =SUMIFS(siloEMPLOI!$H:$H,siloEMPLOI!$A:$A,M$1,siloEMPLOI!$E:$E,$A13) -> 2809 | N13: =SUMIFS(siloEMPLOI!$H:$H,siloEMPLOI!$E:$E,$A13) -> 72345
A14: Hors DOMEX | B14: =SUMIFS(siloEMPLOI!$H:$H,siloEMPLOI!$A:$A,B$1,siloEMPLOI!$E:$E,$A14) -> 0 | C14: =SUMIFS(siloEMPLOI!$H:$H,siloEMPLOI!$A:$A,C$1,siloEMPLOI!$E:$E,$A14) -> 0 | D14: =SUMIFS(siloEMPLOI!$H:$H,siloEMPLOI!$A:$A,D$1,siloEMPLOI!$E:$E,$A14) -> 0 | E14: =SUMIFS(siloEMPLOI!$H:$H,siloEMPLOI!$A:$A,E$1,siloEMPLOI!$E:$E,$A14) -> 0 | F14: =SUMIFS(siloEMPLOI!$H:$H,siloEMPLOI!$A:$A,F$1,siloEMPLOI!$E:$E,$A14) -> 0 | G14: =SUMIFS(siloEMPLOI!$H:$H,siloEMPLOI!$A:$A,G$1,siloEMPLOI!$E:$E,$A14) -> 0 | H14: =SUMIFS(siloEMPLOI!$H:$H,siloEMPLOI!$A:$A,H$1,siloEMPLOI!$E:$E,$A14) -> 0 | I14: =SUMIFS(siloEMPLOI!$H:$H,siloEMPLOI!$A:$A,I$1,siloEMPLOI!$E:$E,$A14) -> 0 | J14: =SUMIFS(siloEMPLOI!$H:$H,siloEMPLOI!$A:$A,J$1,siloEMPLOI!$E:$E,$A14) -> 0 | K14: =SUMIFS(siloEMPLOI!$H:$H,siloEMPLOI!$A:$A,K$1,siloEMPLOI!$E:$E,$A14) -> 0 | L14: =SUMIFS(siloEMPLOI!$H:$H,siloEMPLOI!$A:$A,L$1,siloEMPLOI!$E:$E,$A14) -> 0 | M14: =SUMIFS(siloEMPLOI!$H:$H,siloEMPLOI!$A:$A,M$1,siloEMPLOI!$E:$E,$A14) -> 0 | N14: =SUMIFS(siloEMPLOI!$H:$H,siloEMPLOI!$E:$E,$A14) -> 0
A15: TOTAL TOUS SECTEURS (secteur privé) | B15: =SUMIFS(siloEMPLOI!$H:$H,siloEMPLOI!$A:$A,B$1) -> 156088 | C15: =SUMIFS(siloEMPLOI!$H:$H,siloEMPLOI!$A:$A,C$1) -> 73011 | D15: =SUMIFS(siloEMPLOI!$H:$H,siloEMPLOI!$A:$A,D$1) -> 65411 | E15: =SUMIFS(siloEMPLOI!$H:$H,siloEMPLOI!$A:$A,E$1) -> 30151 | F15: =SUMIFS(siloEMPLOI!$H:$H,siloEMPLOI!$A:$A,F$1) -> 159498 | G15: =SUMIFS(siloEMPLOI!$H:$H,siloEMPLOI!$A:$A,G$1) -> 51602 | H15: =SUMIFS(siloEMPLOI!$H:$H,siloEMPLOI!$A:$A,H$1) -> 229437 | I15: =SUMIFS(siloEMPLOI!$H:$H,siloEMPLOI!$A:$A,I$1) -> 373158 | J15: =SUMIFS(siloEMPLOI!$H:$H,siloEMPLOI!$A:$A,J$1) -> 199597 | K15: =SUMIFS(siloEMPLOI!$H:$H,siloEMPLOI!$A:$A,K$1) -> 178404 | L15: =SUMIFS(siloEMPLOI!$H:$H,siloEMPLOI!$A:$A,L$1) -> 790639 | M15: =SUMIFS(siloEMPLOI!$H:$H,siloEMPLOI!$A:$A,M$1) -> 161413 | N15: =SUM(siloEMPLOI!$H:$H) -> 2468409
A19: Poids des DOMEX dans les territoires | B19: =B1 -> Ain | C19: =C1 -> Allier | D19: Ardèche | E19: Cantal | F19: Drôme | G19: Haute-Loire | H19: Haute-Savoie | I19: Isère | J19: Loire | K19: Puy-de-Dôme | L19: Rhône | M19: Savoie | N19: Auvergne-Rhône-Alpes
A20: =A2 -> Aéronautique | B20: =B2/B$15 -> 0.04277715135 | C20: =C2/C$15 -> 0.06089493364 | D20: 0.01574658697 | E20: 0.008357931744 | F20: 0.04970595243 | G20: 0.04505639316 | H20: 0.05926681398 | I20: 0.02655175556 | J20: 0.0557172703 | K20: 0.04671980449 | L20: 0.01557094957 | M20: 0.03666371358 | N20: 0.0339688439
A21: =A3 -> Agriculture, Agroalimentaire, Forêt | B21: =B3/B$15 -> 0.02721541694 | C21: 0.03487145773 | D21: 0.04208772225 | E21: 0.03910318066 | F21: 0.04885327716 | G21: 0.04990116662 | H21: 0.02187528603 | I21: 0.01744569325 | J21: 0.04002565169 | K21: 0.02459586108 | L21: 0.00921786049 | M21: 0.02024000545 | N21: 0.02250599475
A22: BTP | B22: =B4/B$15 -> 0.09099994875 | C22: 0.08731560998 | D22: 0.1011450673 | E22: 0.122085503 | F22: 0.08757476583 | G22: 0.09997674509 | H22: 0.08780188025 | I22: 0.0860198629 | J22: 0.09061759445 | K22: 0.08213941391 | L22: 0.0704872894 | M22: 0.08802884526 | N22: 0.08301987231
A23: Energie | B23: =B5/B$15 -> 0.01824611757 | C23: 0.00506772952 | D23: 0.02620354375 | E23: 0.009352923618 | F23: 0.01867735019 | G23: 0.006220689121 | H23: 0.004436947833 | I23: 0.01271847314 | J23: 0.005430943351 | K23: 0.009125355934 | L23: 0.01333984284 | M23: 0.01380929665 | N23: 0.01205877956
A24: Industrie du futur, production industrielle | B24: =B6/B$15 -> 0.1285941264 | C24: 0.11232554 | D24: 0.1664857593 | E24: 0.07253490763 | F24: 0.0968852274 | G24: 0.1043564203 | H24: 0.0924872623 | I24: 0.1463053184 | J24: 0.1182031794 | K24: 0.1249299343 | L24: 0.08378159944 | M24: 0.05035529976 | N24: 0.1046232614
A25: Métier de bouche | B25: =B7/B$15 -> 0.021302086 | C25: 0.02320198326 | D25: 0.02953631652 | E25: 0.0269311134 | F25: 0.01798141669 | G25: 0.02412697182 | H25: 0.02587202587 | I25: 0.0177190359 | J25: 0.02179892483 | K25: 0.01885607946 | L25: 0.01481206973 | M25: 0.01915583008 | N25: 0.01901710778
A26: Mobilité, systèmes de transport intelligents | B26: =B8/B$15 -> 0.07034493363 | C26: 0.05740230924 | D26: 0.04360122915 | E26: 0.06523830055 | F26: 0.07618277345 | G26: 0.04220766637 | H26: 0.03617550787 | I26: 0.05805583694 | J26: 0.05446474646 | K26: 0.06929216834 | L26: 0.06216237752 | M26: 0.04801348095 | N26: 0.05850489121
A27: Numérique | B27: =B9/B$15 -> 0.008828353237 | C27: 0.01316240019 | D27: 0.01628166516 | E27: 0.009750920367 | F27: 0.01870242887 | G27: 0.01133676989 | H27: 0.0194955478 | I27: 0.04667191913 | J27: 0.01672369825 | K27: 0.02924261788 | L27: 0.07391110229 | M27: 0.01366060974 | N27: 0.03984428837
A28: Polymères | B28: =B10/B$15 -> 0.04847265645 | C28: 0.0114503294 | D28: 0.006604393756 | E28: 0.01684852907 | F28: 0.01371804035 | G28: 0.05623813031 | H28: 0.004715891508 | I28: 0.008393227534 | J28: 0.006903911381 | K28: 0.006731911841 | L28: 0.003641358446 | M28: 0.002100202586 | N28: 0.0099023298
A29: Services à la personne | B29: =B11/B$15 -> 0.01797063195 | C29: 0.02139403652 | D29: 0.03109568727 | E29: 0.02354814102 | F29: 0.02202535455 | G29: 0.02978566722 | H29: 0.01633563898 | I29: 0.01904823158 | J29: 0.02632805102 | K29: 0.01366000762 | L29: 0.01745676598 | M29: 0.01982492116 | N29: 0.01932864448
A30: Sport, Montagne, Tourisme | B30: =B12/B$15 -> 0.06311183435 | C30: 0.07103039268 | D30: 0.06694592653 | E30: 0.07843852609 | F30: 0.06058383177 | G30: 0.05840858881 | H30: 0.162266766 | I30: 0.07004539632 | J30: 0.05824736845 | K30: 0.07736373624 | L30: 0.06887214013 | M30: 0.2584798003 | N30: 0.08889491166
A31: Santé | B31: =B13/B$15 -> 0.02895161704 | C31: 0.02591390338 | D31: 0.04279096788 | E31: 0.04142482836 | F31: 0.02413823371 | G31: 0.04596721057 | H31: 0.02596791276 | I31: 0.02636416746 | J31: 0.03052651092 | K31: 0.04010560301 | L31: 0.03011614656 | M31: 0.01740256361 | N31: 0.02930835206
A32: Hors DOMEX | B32: =B14/B$15 -> 0 | C32: 0 | D32: 0 | E32: 0 | F32: 0 | G32: 0 | H32: 0 | I32: 0 | J32: 0 | K32: 0 | L32: 0 | M32: 0 | N32: 0
A33: TOTAL TOUS SECTEURS (secteur privé) | B33: =B15/B$15 -> 1 | C33: 1 | D33: 1 | E33: 1 | F33: 1 | G33: 1 | H33: 1 | I33: 1 | J33: 1 | K33: 1 | L33: 1 | M33: 1 | N33: 1
A37: nombre d'établissements 2022 (secteur privé) | B37: =B1 -> Ain | C37: =C1 -> Allier | D37: Ardèche | E37: Cantal | F37: Drôme | G37: Haute-Loire | H37: Haute-Savoie | I37: Isère | J37: Loire | K37: Puy-de-Dôme | L37: Rhône | M37: Savoie | N37: Auvergne-Rhône-Alpes
A38: =A2 -> Aéronautique | B38: =SUMIFS(siloEMPLOI!$G:$G,siloEMPLOI!$A:$A,B$1,siloEMPLOI!$E:$E,$A38) -> 393 | C38: =SUMIFS(siloEMPLOI!$G:$G,siloEMPLOI!$A:$A,C$1,siloEMPLOI!$E:$E,$A38) -> 101 | D38: =SUMIFS(siloEMPLOI!$G:$G,siloEMPLOI!$A:$A,D$1,siloEMPLOI!$E:$E,$A38) -> 74 | E38: =SUMIFS(siloEMPLOI!$G:$G,siloEMPLOI!$A:$A,E$1,siloEMPLOI!$E:$E,$A38) -> 22 | F38: =SUMIFS(siloEMPLOI!$G:$G,siloEMPLOI!$A:$A,F$1,siloEMPLOI!$E:$E,$A38) -> 215 | G38: =SUMIFS(siloEMPLOI!$G:$G,siloEMPLOI!$A:$A,G$1,siloEMPLOI!$E:$E,$A38) -> 120 | H38: =SUMIFS(siloEMPLOI!$G:$G,siloEMPLOI!$A:$A,H$1,siloEMPLOI!$E:$E,$A38) -> 581 | I38: =SUMIFS(siloEMPLOI!$G:$G,siloEMPLOI!$A:$A,I$1,siloEMPLOI!$E:$E,$A38) -> 496 | J38: =SUMIFS(siloEMPLOI!$G:$G,siloEMPLOI!$A:$A,J$1,siloEMPLOI!$E:$E,$A38) -> 537 | K38: =SUMIFS(siloEMPLOI!$G:$G,siloEMPLOI!$A:$A,K$1,siloEMPLOI!$E:$E,$A38) -> 274 | L38: =SUMIFS(siloEMPLOI!$G:$G,siloEMPLOI!$A:$A,L$1,siloEMPLOI!$E:$E,$A38) -> 620 | M38: =SUMIFS(siloEMPLOI!$G:$G,siloEMPLOI!$A:$A,M$1,siloEMPLOI!$E:$E,$A38) -> 173 | N38: =SUMIFS(siloEMPLOI!$G:$G,siloEMPLOI!$E:$E,$A38) -> 3606
A39: =A3 -> Agriculture, Agroalimentaire, Forêt | B39: =SUMIFS(siloEMPLOI!$G:$G,siloEMPLOI!$A:$A,B$1,siloEMPLOI!$E:$E,$A39) -> 198 | C39: =SUMIFS(siloEMPLOI!$G:$G,siloEMPLOI!$A:$A,C$1,siloEMPLOI!$E:$E,$A39) -> 104 | D39: =SUMIFS(siloEMPLOI!$G:$G,siloEMPLOI!$A:$A,D$1,siloEMPLOI!$E:$E,$A39) -> 157 | E39: =SUMIFS(siloEMPLOI!$G:$G,siloEMPLOI!$A:$A,E$1,siloEMPLOI!$E:$E,$A39) -> 75 | F39: =SUMIFS(siloEMPLOI!$G:$G,siloEMPLOI!$A:$A,F$1,siloEMPLOI!$E:$E,$A39) -> 256 | G39: =SUMIFS(siloEMPLOI!$G:$G,siloEMPLOI!$A:$A,G$1,siloEMPLOI!$E:$E,$A39) -> 117 | H39: =SUMIFS(siloEMPLOI!$G:$G,siloEMPLOI!$A:$A,H$1,siloEMPLOI!$E:$E,$A39) -> 287 | I39: =SUMIFS(siloEMPLOI!$G:$G,siloEMPLOI!$A:$A,I$1,siloEMPLOI!$E:$E,$A39) -> 344 | J39: =SUMIFS(siloEMPLOI!$G:$G,siloEMPLOI!$A:$A,J$1,siloEMPLOI!$E:$E,$A39) -> 294 | K39: =SUMIFS(siloEMPLOI!$G:$G,siloEMPLOI!$A:$A,K$1,siloEMPLOI!$E:$E,$A39) -> 191 | L39: =SUMIFS(siloEMPLOI!$G:$G,siloEMPLOI!$A:$A,L$1,siloEMPLOI!$E:$E,$A39) -> 465 | M39: =SUMIFS(siloEMPLOI!$G:$G,siloEMPLOI!$A:$A,M$1,siloEMPLOI!$E:$E,$A39) -> 192 | N39: =SUMIFS(siloEMPLOI!$G:$G,siloEMPLOI!$E:$E,$A39) -> 2680
A40: BTP | B40: =SUMIFS(siloEMPLOI!$G:$G,siloEMPLOI!$A:$A,B$1,siloEMPLOI!$E:$E,$A40) -> 2515 | C40: =SUMIFS(siloEMPLOI!$G:$G,siloEMPLOI!$A:$A,C$1,siloEMPLOI!$E:$E,$A40) -> 1076 | D40: =SUMIFS(siloEMPLOI!$G:$G,siloEMPLOI!$A:$A,D$1,siloEMPLOI!$E:$E,$A40) -> 1275 | E40: =SUMIFS(siloEMPLOI!$G:$G,siloEMPLOI!$A:$A,E$1,siloEMPLOI!$E:$E,$A40) -> 554 | F40: =SUMIFS(siloEMPLOI!$G:$G,siloEMPLOI!$A:$A,F$1,siloEMPLOI!$E:$E,$A40) -> 2217 | G40: =SUMIFS(siloEMPLOI!$G:$G,siloEMPLOI!$A:$A,G$1,siloEMPLOI!$E:$E,$A40) -> 873 | H40: =SUMIFS(siloEMPLOI!$G:$G,siloEMPLOI!$A:$A,H$1,siloEMPLOI!$E:$E,$A40) -> 3404 | I40: =SUMIFS(siloEMPLOI!$G:$G,siloEMPLOI!$A:$A,I$1,siloEMPLOI!$E:$E,$A40) -> 5249 | J40: =SUMIFS(siloEMPLOI!$G:$G,siloEMPLOI!$A:$A,J$1,siloEMPLOI!$E:$E,$A40) -> 2854 | K40: =SUMIFS(siloEMPLOI!$G:$G,siloEMPLOI!$A:$A,K$1,siloEMPLOI!$E:$E,$A40) -> 2278 | L40: =SUMIFS(siloEMPLOI!$G:$G,siloEMPLOI!$A:$A,L$1,siloEMPLOI!$E:$E,$A40) -> 6912 | M40: =SUMIFS(siloEMPLOI!$G:$G,siloEMPLOI!$A:$A,M$1,siloEMPLOI!$E:$E,$A40) -> 2097 | N40: =SUMIFS(siloEMPLOI!$G:$G,siloEMPLOI!$E:$E,$A40) -> 31304
A41: Energie | B41: =SUMIFS(siloEMPLOI!$G:$G,siloEMPLOI!$A:$A,B$1,siloEMPLOI!$E:$E,$A41) -> 48 | C41: =SUMIFS(siloEMPLOI!$G:$G,siloEMPLOI!$A:$A,C$1,siloEMPLOI!$E:$E,$A41) -> 18 | D41: =SUMIFS(siloEMPLOI!$G:$G,siloEMPLOI!$A:$A,D$1,siloEMPLOI!$E:$E,$A41) -> 25 | E41: =SUMIFS(siloEMPLOI!$G:$G,siloEMPLOI!$A:$A,E$1,siloEMPLOI!$E:$E,$A41) -> 28 | F41: =SUMIFS(siloEMPLOI!$G:$G,siloEMPLOI!$A:$A,F$1,siloEMPLOI!$E:$E,$A41) -> 55 | G41: =SUMIFS(siloEMPLOI!$G:$G,siloEMPLOI!$A:$A,G$1,siloEMPLOI!$E:$E,$A41) -> 27 | H41: =SUMIFS(siloEMPLOI!$G:$G,siloEMPLOI!$A:$A,H$1,siloEMPLOI!$E:$E,$A41) -> 45 | I41: =SUMIFS(siloEMPLOI!$G:$G,siloEMPLOI!$A:$A,I$1,siloEMPLOI!$E:$E,$A41) -> 91 | J41: =SUMIFS(siloEMPLOI!$G:$G,siloEMPLOI!$A:$A,J$1,siloEMPLOI!$E:$E,$A41) -> 36 | K41: =SUMIFS(siloEMPLOI!$G:$G,siloEMPLOI!$A:$A,K$1,siloEMPLOI!$E:$E,$A41) -> 47 | L41: =SUMIFS(siloEMPLOI!$G:$G,siloEMPLOI!$A:$A,L$1,siloEMPLOI!$E:$E,$A41) -> 121 | M41: =SUMIFS(siloEMPLOI!$G:$G,siloEMPLOI!$A:$A,M$1,siloEMPLOI!$E:$E,$A41) -> 72 | N41: =SUMIFS(siloEMPLOI!$G:$G,siloEMPLOI!$E:$E,$A41) -> 613
A42: Industrie du futur, production industrielle | B42: =SUMIFS(siloEMPLOI!$G:$G,siloEMPLOI!$A:$A,B$1,siloEMPLOI!$E:$E,$A42) -> 757 | C42: =SUMIFS(siloEMPLOI!$G:$G,siloEMPLOI!$A:$A,C$1,siloEMPLOI!$E:$E,$A42) -> 295 | D42: =SUMIFS(siloEMPLOI!$G:$G,siloEMPLOI!$A:$A,D$1,siloEMPLOI!$E:$E,$A42) -> 303 | E42: =SUMIFS(siloEMPLOI!$G:$G,siloEMPLOI!$A:$A,E$1,siloEMPLOI!$E:$E,$A42) -> 101 | F42: =SUMIFS(siloEMPLOI!$G:$G,siloEMPLOI!$A:$A,F$1,siloEMPLOI!$E:$E,$A42) -> 653 | G42: =SUMIFS(siloEMPLOI!$G:$G,siloEMPLOI!$A:$A,G$1,siloEMPLOI!$E:$E,$A42) -> 271 | H42: =SUMIFS(siloEMPLOI!$G:$G,siloEMPLOI!$A:$A,H$1,siloEMPLOI!$E:$E,$A42) -> 708 | I42: =SUMIFS(siloEMPLOI!$G:$G,siloEMPLOI!$A:$A,I$1,siloEMPLOI!$E:$E,$A42) -> 1501 | J42: =SUMIFS(siloEMPLOI!$G:$G,siloEMPLOI!$A:$A,J$1,siloEMPLOI!$E:$E,$A42) -> 948 | K42: =SUMIFS(siloEMPLOI!$G:$G,siloEMPLOI!$A:$A,K$1,siloEMPLOI!$E:$E,$A42) -> 532 | L42: =SUMIFS(siloEMPLOI!$G:$G,siloEMPLOI!$A:$A,L$1,siloEMPLOI!$E:$E,$A42) -> 2138 | M42: =SUMIFS(siloEMPLOI!$G:$G,siloEMPLOI!$A:$A,M$1,siloEMPLOI!$E:$E,$A42) -> 471 | N42: =SUMIFS(siloEMPLOI!$G:$G,siloEMPLOI!$E:$E,$A42) -> 8678
A43: Métier de bouche | B43: =SUMIFS(siloEMPLOI!$G:$G,siloEMPLOI!$A:$A,B$1,siloEMPLOI!$E:$E,$A43) -> 624 | C43: =SUMIFS(siloEMPLOI!$G:$G,siloEMPLOI!$A:$A,C$1,siloEMPLOI!$E:$E,$A43) -> 339 | D43: =SUMIFS(siloEMPLOI!$G:$G,siloEMPLOI!$A:$A,D$1,siloEMPLOI!$E:$E,$A43) -> 456 | E43: =SUMIFS(siloEMPLOI!$G:$G,siloEMPLOI!$A:$A,E$1,siloEMPLOI!$E:$E,$A43) -> 204 | F43: =SUMIFS(siloEMPLOI!$G:$G,siloEMPLOI!$A:$A,F$1,siloEMPLOI!$E:$E,$A43) -> 572 | G43: =SUMIFS(siloEMPLOI!$G:$G,siloEMPLOI!$A:$A,G$1,siloEMPLOI!$E:$E,$A43) -> 307 | H43: =SUMIFS(siloEMPLOI!$G:$G,siloEMPLOI!$A:$A,H$1,siloEMPLOI!$E:$E,$A43) -> 965 | I43: =SUMIFS(siloEMPLOI!$G:$G,siloEMPLOI!$A:$A,I$1,siloEMPLOI!$E:$E,$A43) -> 1213 | J43: =SUMIFS(siloEMPLOI!$G:$G,siloEMPLOI!$A:$A,J$1,siloEMPLOI!$E:$E,$A43) -> 843 | K43: =SUMIFS(siloEMPLOI!$G:$G,siloEMPLOI!$A:$A,K$1,siloEMPLOI!$E:$E,$A43) -> 694 | L43: =SUMIFS(siloEMPLOI!$G:$G,siloEMPLOI!$A:$A,L$1,siloEMPLOI!$E:$E,$A43) -> 1882 | M43: =SUMIFS(siloEMPLOI!$G:$G,siloEMPLOI!$A:$A,M$1,siloEMPLOI!$E:$E,$A43) -> 576 | N43: =SUMIFS(siloEMPLOI!$G:$G,siloEMPLOI!$E:$E,$A43) -> 8675
A44: Mobilité, systèmes de transport intelligents | B44: =SUMIFS(siloEMPLOI!$G:$G,siloEMPLOI!$A:$A,B$1,siloEMPLOI!$E:$E,$A44) -> 559 | C44: =SUMIFS(siloEMPLOI!$G:$G,siloEMPLOI!$A:$A,C$1,siloEMPLOI!$E:$E,$A44) -> 234 | D44: =SUMIFS(siloEMPLOI!$G:$G,siloEMPLOI!$A:$A,D$1,siloEMPLOI!$E:$E,$A44) -> 221 | E44: =SUMIFS(siloEMPLOI!$G:$G,siloEMPLOI!$A:$A,E$1,siloEMPLOI!$E:$E,$A44) -> 145 | F44: =SUMIFS(siloEMPLOI!$G:$G,siloEMPLOI!$A:$A,F$1,siloEMPLOI!$E:$E,$A44) -> 540 | G44: =SUMIFS(siloEMPLOI!$G:$G,siloEMPLOI!$A:$A,G$1,siloEMPLOI!$E:$E,$A44) -> 190 | H44: =SUMIFS(siloEMPLOI!$G:$G,siloEMPLOI!$A:$A,H$1,siloEMPLOI!$E:$E,$A44) -> 595 | I44: =SUMIFS(siloEMPLOI!$G:$G,siloEMPLOI!$A:$A,I$1,siloEMPLOI!$E:$E,$A44) -> 1110 | J44: =SUMIFS(siloEMPLOI!$G:$G,siloEMPLOI!$A:$A,J$1,siloEMPLOI!$E:$E,$A44) -> 621 | K44: =SUMIFS(siloEMPLOI!$G:$G,siloEMPLOI!$A:$A,K$1,siloEMPLOI!$E:$E,$A44) -> 559 | L44: =SUMIFS(siloEMPLOI!$G:$G,siloEMPLOI!$A:$A,L$1,siloEMPLOI!$E:$E,$A44) -> 2147 | M44: =SUMIFS(siloEMPLOI!$G:$G,siloEMPLOI!$A:$A,M$1,siloEMPLOI!$E:$E,$A44) -> 505 | N44: =SUMIFS(siloEMPLOI!$G:$G,siloEMPLOI!$E:$E,$A44) -> 7426
A45: Numérique | B45: =SUMIFS(siloEMPLOI!$G:$G,siloEMPLOI!$A:$A,B$1,siloEMPLOI!$E:$E,$A45) -> 272 | C45: =SUMIFS(siloEMPLOI!$G:$G,siloEMPLOI!$A:$A,C$1,siloEMPLOI!$E:$E,$A45) -> 99 | D45: =SUMIFS(siloEMPLOI!$G:$G,siloEMPLOI!$A:$A,D$1,siloEMPLOI!$E:$E,$A45) -> 127 | E45: =SUMIFS(siloEMPLOI!$G:$G,siloEMPLOI!$A:$A,E$1,siloEMPLOI!$E:$E,$A45) -> 50 | F45: =SUMIFS(siloEMPLOI!$G:$G,siloEMPLOI!$A:$A,F$1,siloEMPLOI!$E:$E,$A45) -> 328 | G45: =SUMIFS(siloEMPLOI!$G:$G,siloEMPLOI!$A:$A,G$1,siloEMPLOI!$E:$E,$A45) -> 94 | H45: =SUMIFS(siloEMPLOI!$G:$G,siloEMPLOI!$A:$A,H$1,siloEMPLOI!$E:$E,$A45) -> 549 | I45: =SUMIFS(siloEMPLOI!$G:$G,siloEMPLOI!$A:$A,I$1,siloEMPLOI!$E:$E,$A45) -> 1107 | J45: =SUMIFS(siloEMPLOI!$G:$G,siloEMPLOI!$A:$A,J$1,siloEMPLOI!$E:$E,$A45) -> 423 | K45: =SUMIFS(siloEMPLOI!$G:$G,siloEMPLOI!$A:$A,K$1,siloEMPLOI!$E:$E,$A45) -> 418 | L45: =SUMIFS(siloEMPLOI!$G:$G,siloEMPLOI!$A:$A,L$1,siloEMPLOI!$E:$E,$A45) -> 3202 | M45: =SUMIFS(siloEMPLOI!$G:$G,siloEMPLOI!$A:$A,M$1,siloEMPLOI!$E:$E,$A45) -> 271 | N45: =SUMIFS(siloEMPLOI!$G:$G,siloEMPLOI!$E:$E,$A45) -> 6940
A46: Polymères | B46: =SUMIFS(siloEMPLOI!$G:$G,siloEMPLOI!$A:$A,B$1,siloEMPLOI!$E:$E,$A46) -> 211 | C46: =SUMIFS(siloEMPLOI!$G:$G,siloEMPLOI!$A:$A,C$1,siloEMPLOI!$E:$E,$A46) -> 19 | D46: =SUMIFS(siloEMPLOI!$G:$G,siloEMPLOI!$A:$A,D$1,siloEMPLOI!$E:$E,$A46) -> 16 | E46: =SUMIFS(siloEMPLOI!$G:$G,siloEMPLOI!$A:$A,E$1,siloEMPLOI!$E:$E,$A46) -> 3 | F46: =SUMIFS(siloEMPLOI!$G:$G,siloEMPLOI!$A:$A,F$1,siloEMPLOI!$E:$E,$A46) -> 58 | G46: =SUMIFS(siloEMPLOI!$G:$G,siloEMPLOI!$A:$A,G$1,siloEMPLOI!$E:$E,$A46) -> 65 | H46: =SUMIFS(siloEMPLOI!$G:$G,siloEMPLOI!$A:$A,H$1,siloEMPLOI!$E:$E,$A46) -> 42 | I46: =SUMIFS(siloEMPLOI!$G:$G,siloEMPLOI!$A:$A,I$1,siloEMPLOI!$E:$E,$A46) -> 110 | J46: =SUMIFS(siloEMPLOI!$G:$G,siloEMPLOI!$A:$A,J$1,siloEMPLOI!$E:$E,$A46) -> 35 | K46: =SUMIFS(siloEMPLOI!$G:$G,siloEMPLOI!$A:$A,K$1,siloEMPLOI!$E:$E,$A46) -> 52 | L46: =SUMIFS(siloEMPLOI!$G:$G,siloEMPLOI!$A:$A,L$1,siloEMPLOI!$E:$E,$A46) -> 106 | M46: =SUMIFS(siloEMPLOI!$G:$G,siloEMPLOI!$A:$A,M$1,siloEMPLOI!$E:$E,$A46) -> 17 | N46: =SUMIFS(siloEMPLOI!$G:$G,siloEMPLOI!$E:$E,$A46) -> 734
A47: Services à la personne | B47: =SUMIFS(siloEMPLOI!$G:$G,siloEMPLOI!$A:$A,B$1,siloEMPLOI!$E:$E,$A47) -> 156 | C47: =SUMIFS(siloEMPLOI!$G:$G,siloEMPLOI!$A:$A,C$1,siloEMPLOI!$E:$E,$A47) -> 56 | D47: =SUMIFS(siloEMPLOI!$G:$G,siloEMPLOI!$A:$A,D$1,siloEMPLOI!$E:$E,$A47) -> 87 | E47: =SUMIFS(siloEMPLOI!$G:$G,siloEMPLOI!$A:$A,E$1,siloEMPLOI!$E:$E,$A47) -> 32 | F47: =SUMIFS(siloEMPLOI!$G:$G,siloEMPLOI!$A:$A,F$1,siloEMPLOI!$E:$E,$A47) -> 176 | G47: =SUMIFS(siloEMPLOI!$G:$G,siloEMPLOI!$A:$A,G$1,siloEMPLOI!$E:$E,$A47) -> 90 | H47: =SUMIFS(siloEMPLOI!$G:$G,siloEMPLOI!$A:$A,H$1,siloEMPLOI!$E:$E,$A47) -> 284 | I47: =SUMIFS(siloEMPLOI!$G:$G,siloEMPLOI!$A:$A,I$1,siloEMPLOI!$E:$E,$A47) -> 431 | J47: =SUMIFS(siloEMPLOI!$G:$G,siloEMPLOI!$A:$A,J$1,siloEMPLOI!$E:$E,$A47) -> 252 | K47: =SUMIFS(siloEMPLOI!$G:$G,siloEMPLOI!$A:$A,K$1,siloEMPLOI!$E:$E,$A47) -> 137 | L47: =SUMIFS(siloEMPLOI!$G:$G,siloEMPLOI!$A:$A,L$1,siloEMPLOI!$E:$E,$A47) -> 872 | M47: =SUMIFS(siloEMPLOI!$G:$G,siloEMPLOI!$A:$A,M$1,siloEMPLOI!$E:$E,$A47) -> 130 | N47: =SUMIFS(siloEMPLOI!$G:$G,siloEMPLOI!$E:$E,$A47) -> 2703
A48: Sport, Montagne, Tourisme | B48: =SUMIFS(siloEMPLOI!$G:$G,siloEMPLOI!$A:$A,B$1,siloEMPLOI!$E:$E,$A48) -> 1865 | C48: =SUMIFS(siloEMPLOI!$G:$G,siloEMPLOI!$A:$A,C$1,siloEMPLOI!$E:$E,$A48) -> 932 | D48: =SUMIFS(siloEMPLOI!$G:$G,siloEMPLOI!$A:$A,D$1,siloEMPLOI!$E:$E,$A48) -> 1197 | E48: =SUMIFS(siloEMPLOI!$G:$G,siloEMPLOI!$A:$A,E$1,siloEMPLOI!$E:$E,$A48) -> 557 | F48: =SUMIFS(siloEMPLOI!$G:$G,siloEMPLOI!$A:$A,F$1,siloEMPLOI!$E:$E,$A48) -> 1868 | G48: =SUMIFS(siloEMPLOI!$G:$G,siloEMPLOI!$A:$A,G$1,siloEMPLOI!$E:$E,$A48) -> 758 | H48: =SUMIFS(siloEMPLOI!$G:$G,siloEMPLOI!$A:$A,H$1,siloEMPLOI!$E:$E,$A48) -> 4408 | I48: =SUMIFS(siloEMPLOI!$G:$G,siloEMPLOI!$A:$A,I$1,siloEMPLOI!$E:$E,$A48) -> 4262 | J48: =SUMIFS(siloEMPLOI!$G:$G,siloEMPLOI!$A:$A,J$1,siloEMPLOI!$E:$E,$A48) -> 2152 | K48: =SUMIFS(siloEMPLOI!$G:$G,siloEMPLOI!$A:$A,K$1,siloEMPLOI!$E:$E,$A48) -> 2207 | L48: =SUMIFS(siloEMPLOI!$G:$G,siloEMPLOI!$A:$A,L$1,siloEMPLOI!$E:$E,$A48) -> 6825 | M48: =SUMIFS(siloEMPLOI!$G:$G,siloEMPLOI!$A:$A,M$1,siloEMPLOI!$E:$E,$A48) -> 3653 | N48: =SUMIFS(siloEMPLOI!$G:$G,siloEMPLOI!$E:$E,$A48) -> 30684
A49: Santé | B49: =SUMIFS(siloEMPLOI!$G:$G,siloEMPLOI!$A:$A,B$1,siloEMPLOI!$E:$E,$A49) -> 515 | C49: =SUMIFS(siloEMPLOI!$G:$G,siloEMPLOI!$A:$A,C$1,siloEMPLOI!$E:$E,$A49) -> 445 | D49: =SUMIFS(siloEMPLOI!$G:$G,siloEMPLOI!$A:$A,D$1,siloEMPLOI!$E:$E,$A49) -> 360 | E49: =SUMIFS(siloEMPLOI!$G:$G,siloEMPLOI!$A:$A,E$1,siloEMPLOI!$E:$E,$A49) -> 169 | F49: =SUMIFS(siloEMPLOI!$G:$G,siloEMPLOI!$A:$A,F$1,siloEMPLOI!$E:$E,$A49) -> 529 | G49: =SUMIFS(siloEMPLOI!$G:$G,siloEMPLOI!$A:$A,G$1,siloEMPLOI!$E:$E,$A49) -> 257 | H49: =SUMIFS(siloEMPLOI!$G:$G,siloEMPLOI!$A:$A,H$1,siloEMPLOI!$E:$E,$A49) -> 802 | I49: =SUMIFS(siloEMPLOI!$G:$G,siloEMPLOI!$A:$A,I$1,siloEMPLOI!$E:$E,$A49) -> 1154 | J49: =SUMIFS(siloEMPLOI!$G:$G,siloEMPLOI!$A:$A,J$1,siloEMPLOI!$E:$E,$A49) -> 746 | K49: =SUMIFS(siloEMPLOI!$G:$G,siloEMPLOI!$A:$A,K$1,siloEMPLOI!$E:$E,$A49) -> 655 | L49: =SUMIFS(siloEMPLOI!$G:$G,siloEMPLOI!$A:$A,L$1,siloEMPLOI!$E:$E,$A49) -> 2048 | M49: =SUMIFS(siloEMPLOI!$G:$G,siloEMPLOI!$A:$A,M$1,siloEMPLOI!$E:$E,$A49) -> 473 | N49: =SUMIFS(siloEMPLOI!$G:$G,siloEMPLOI!$E:$E,$A49) -> 8153
A50: Hors DOMEX | B50: =SUMIFS(siloEMPLOI!$G:$G,siloEMPLOI!$A:$A,B$1,siloEMPLOI!$E:$E,$A50) -> 0 | C50: =SUMIFS(siloEMPLOI!$G:$G,siloEMPLOI!$A:$A,C$1,siloEMPLOI!$E:$E,$A50) -> 0 | D50: =SUMIFS(siloEMPLOI!$G:$G,siloEMPLOI!$A:$A,D$1,siloEMPLOI!$E:$E,$A50) -> 0 | E50: =SUMIFS(siloEMPLOI!$G:$G,siloEMPLOI!$A:$A,E$1,siloEMPLOI!$E:$E,$A50) -> 0 | F50: =SUMIFS(siloEMPLOI!$G:$G,siloEMPLOI!$A:$A,F$1,siloEMPLOI!$E:$E,$A50) -> 0 | G50: =SUMIFS(siloEMPLOI!$G:$G,siloEMPLOI!$A:$A,G$1,siloEMPLOI!$E:$E,$A50) -> 0 | H50: =SUMIFS(siloEMPLOI!$G:$G,siloEMPLOI!$A:$A,H$1,siloEMPLOI!$E:$E,$A50) -> 0 | I50: =SUMIFS(siloEMPLOI!$G:$G,siloEMPLOI!$A:$A,I$1,siloEMPLOI!$E:$E,$A50) -> 0 | J50: =SUMIFS(siloEMPLOI!$G:$G,siloEMPLOI!$A:$A,J$1,siloEMPLOI!$E:$E,$A50) -> 0 | K50: =SUMIFS(siloEMPLOI!$G:$G,siloEMPLOI!$A:$A,K$1,siloEMPLOI!$E:$E,$A50) -> 0 | L50: =SUMIFS(siloEMPLOI!$G:$G,siloEMPLOI!$A:$A,L$1,siloEMPLOI!$E:$E,$A50) -> 0 | M50: =SUMIFS(siloEMPLOI!$G:$G,siloEMPLOI!$A:$A,M$1,siloEMPLOI!$E:$E,$A50) -> 0 | N50: =SUMIFS(siloEMPLOI!$G:$G,siloEMPLOI!$E:$E,$A50) -> 0
A51: TOTAL TOUS SECTEURS (secteur privé) | B51: =SUMIFS(siloEMPLOI!$G:$G,siloEMPLOI!$A:$A,B$1) -> 16470 | C51: =SUMIFS(siloEMPLOI!$G:$G,siloEMPLOI!$A:$A,C$1) -> 8158 | D51: =SUMIFS(siloEMPLOI!$G:$G,siloEMPLOI!$A:$A,D$1) -> 8383 | E51: =SUMIFS(siloEMPLOI!$G:$G,siloEMPLOI!$A:$A,E$1) -> 3991 | F51: =SUMIFS(siloEMPLOI!$G:$G,siloEMPLOI!$A:$A,F$1) -> 16310 | G51: =SUMIFS(siloEMPLOI!$G:$G,siloEMPLOI!$A:$A,G$1) -> 6292 | H51: =SUMIFS(siloEMPLOI!$G:$G,siloEMPLOI!$A:$A,H$1) -> 26801 | I51: =SUMIFS(siloEMPLOI!$G:$G,siloEMPLOI!$A:$A,I$1) -> 36104 | J51: =SUMIFS(siloEMPLOI!$G:$G,siloEMPLOI!$A:$A,J$1) -> 20981 | K51: =SUMIFS(siloEMPLOI!$G:$G,siloEMPLOI!$A:$A,K$1) -> 17432 | L51: =SUMIFS(siloEMPLOI!$G:$G,siloEMPLOI!$A:$A,L$1) -> 67071 | M51: =SUMIFS(siloEMPLOI!$G:$G,siloEMPLOI!$A:$A,M$1) -> 17655 | N51: =SUM(siloEMPLOI!$G:$G) -> 245648
A55: Effectifs salariés 2021 (secteur privé) | B55: Ain | C55: Allier | D55: Ardèche | E55: Cantal | F55: Drôme | G55: Haute-Loire | H55: Haute-Savoie | I55: Isère | J55: Loire | K55: Puy-de-Dôme | L55: Rhône | M55: Savoie | N55: Auvergne-Rhône-Alpes
A56: Aéronautique | B56: =SUMIFS(siloEMPLOI!$F:$F,siloEMPLOI!$A:$A,B$1,siloEMPLOI!$E:$E,$A56) -> 6638 | C56: =SUMIFS(siloEMPLOI!$F:$F,siloEMPLOI!$A:$A,C$1,siloEMPLOI!$E:$E,$A56) -> 4506 | D56: =SUMIFS(siloEMPLOI!$F:$F,siloEMPLOI!$A:$A,D$1,siloEMPLOI!$E:$E,$A56) -> 1022 | E56: =SUMIFS(siloEMPLOI!$F:$F,siloEMPLOI!$A:$A,E$1,siloEMPLOI!$E:$E,$A56) -> 200 | F56: =SUMIFS(siloEMPLOI!$F:$F,siloEMPLOI!$A:$A,F$1,siloEMPLOI!$E:$E,$A56) -> 7784 | G56: =SUMIFS(siloEMPLOI!$F:$F,siloEMPLOI!$A:$A,G$1,siloEMPLOI!$E:$E,$A56) -> 2271 | H56: =SUMIFS(siloEMPLOI!$F:$F,siloEMPLOI!$A:$A,H$1,siloEMPLOI!$E:$E,$A56) -> 13656 | I56: =SUMIFS(siloEMPLOI!$F:$F,siloEMPLOI!$A:$A,I$1,siloEMPLOI!$E:$E,$A56) -> 9809 | J56: =SUMIFS(siloEMPLOI!$F:$F,siloEMPLOI!$A:$A,J$1,siloEMPLOI!$E:$E,$A56) -> 11131 | K56: =SUMIFS(siloEMPLOI!$F:$F,siloEMPLOI!$A:$A,K$1,siloEMPLOI!$E:$E,$A56) -> 8173 | L56: =SUMIFS(siloEMPLOI!$F:$F,siloEMPLOI!$A:$A,L$1,siloEMPLOI!$E:$E,$A56) -> 11951 | M56: =SUMIFS(siloEMPLOI!$F:$F,siloEMPLOI!$A:$A,M$1,siloEMPLOI!$E:$E,$A56) -> 5954 | N56: =SUMIFS(siloEMPLOI!$F:$F,siloEMPLOI!$E:$E,$A56) -> 83095
A57: Agriculture, Agroalimentaire, Forêt | B57: =SUMIFS(siloEMPLOI!$F:$F,siloEMPLOI!$A:$A,B$1,siloEMPLOI!$E:$E,$A57) -> 4223 | C57: =SUMIFS(siloEMPLOI!$F:$F,siloEMPLOI!$A:$A,C$1,siloEMPLOI!$E:$E,$A57) -> 2621 | D57: =SUMIFS(siloEMPLOI!$F:$F,siloEMPLOI!$A:$A,D$1,siloEMPLOI!$E:$E,$A57) -> 2758 | E57: =SUMIFS(siloEMPLOI!$F:$F,siloEMPLOI!$A:$A,E$1,siloEMPLOI!$E:$E,$A57) -> 1179 | F57: =SUMIFS(siloEMPLOI!$F:$F,siloEMPLOI!$A:$A,F$1,siloEMPLOI!$E:$E,$A57) -> 7679 | G57: =SUMIFS(siloEMPLOI!$F:$F,siloEMPLOI!$A:$A,G$1,siloEMPLOI!$E:$E,$A57) -> 2529 | H57: =SUMIFS(siloEMPLOI!$F:$F,siloEMPLOI!$A:$A,H$1,siloEMPLOI!$E:$E,$A57) -> 4949 | I57: =SUMIFS(siloEMPLOI!$F:$F,siloEMPLOI!$A:$A,I$1,siloEMPLOI!$E:$E,$A57) -> 6407 | J57: =SUMIFS(siloEMPLOI!$F:$F,siloEMPLOI!$A:$A,J$1,siloEMPLOI!$E:$E,$A57) -> 7954 | K57: =SUMIFS(siloEMPLOI!$F:$F,siloEMPLOI!$A:$A,K$1,siloEMPLOI!$E:$E,$A57) -> 4387 | L57: =SUMIFS(siloEMPLOI!$F:$F,siloEMPLOI!$A:$A,L$1,siloEMPLOI!$E:$E,$A57) -> 7205 | M57: =SUMIFS(siloEMPLOI!$F:$F,siloEMPLOI!$A:$A,M$1,siloEMPLOI!$E:$E,$A57) -> 3225 | N57: =SUMIFS(siloEMPLOI!$F:$F,siloEMPLOI!$E:$E,$A57) -> 55116
A58: BTP | B58: =SUMIFS(siloEMPLOI!$F:$F,siloEMPLOI!$A:$A,B$1,siloEMPLOI!$E:$E,$A58) -> 14153 | C58: =SUMIFS(siloEMPLOI!$F:$F,siloEMPLOI!$A:$A,C$1,siloEMPLOI!$E:$E,$A58) -> 6212 | D58: =SUMIFS(siloEMPLOI!$F:$F,siloEMPLOI!$A:$A,D$1,siloEMPLOI!$E:$E,$A58) -> 6469 | E58: =SUMIFS(siloEMPLOI!$F:$F,siloEMPLOI!$A:$A,E$1,siloEMPLOI!$E:$E,$A58) -> 3742 | F58: =SUMIFS(siloEMPLOI!$F:$F,siloEMPLOI!$A:$A,F$1,siloEMPLOI!$E:$E,$A58) -> 14253 | G58: =SUMIFS(siloEMPLOI!$F:$F,siloEMPLOI!$A:$A,G$1,siloEMPLOI!$E:$E,$A58) -> 5093 | H58: =SUMIFS(siloEMPLOI!$F:$F,siloEMPLOI!$A:$A,H$1,siloEMPLOI!$E:$E,$A58) -> 20202 | I58: =SUMIFS(siloEMPLOI!$F:$F,siloEMPLOI!$A:$A,I$1,siloEMPLOI!$E:$E,$A58) -> 32190 | J58: =SUMIFS(siloEMPLOI!$F:$F,siloEMPLOI!$A:$A,J$1,siloEMPLOI!$E:$E,$A58) -> 17995 | K58: =SUMIFS(siloEMPLOI!$F:$F,siloEMPLOI!$A:$A,K$1,siloEMPLOI!$E:$E,$A58) -> 14420 | L58: =SUMIFS(siloEMPLOI!$F:$F,siloEMPLOI!$A:$A,L$1,siloEMPLOI!$E:$E,$A58) -> 55590 | M58: =SUMIFS(siloEMPLOI!$F:$F,siloEMPLOI!$A:$A,M$1,siloEMPLOI!$E:$E,$A58) -> 13898 | N58: =SUMIFS(siloEMPLOI!$F:$F,siloEMPLOI!$E:$E,$A58) -> 204217
A59: Energie | B59: =SUMIFS(siloEMPLOI!$F:$F,siloEMPLOI!$A:$A,B$1,siloEMPLOI!$E:$E,$A59) -> 2813 | C59: =SUMIFS(siloEMPLOI!$F:$F,siloEMPLOI!$A:$A,C$1,siloEMPLOI!$E:$E,$A59) -> 386 | D59: =SUMIFS(siloEMPLOI!$F:$F,siloEMPLOI!$A:$A,D$1,siloEMPLOI!$E:$E,$A59) -> 1673 | E59: =SUMIFS(siloEMPLOI!$F:$F,siloEMPLOI!$A:$A,E$1,siloEMPLOI!$E:$E,$A59) -> 274 | F59: =SUMIFS(siloEMPLOI!$F:$F,siloEMPLOI!$A:$A,F$1,siloEMPLOI!$E:$E,$A59) -> 2889 | G59: =SUMIFS(siloEMPLOI!$F:$F,siloEMPLOI!$A:$A,G$1,siloEMPLOI!$E:$E,$A59) -> 325 | H59: =SUMIFS(siloEMPLOI!$F:$F,siloEMPLOI!$A:$A,H$1,siloEMPLOI!$E:$E,$A59) -> 1011 | I59: =SUMIFS(siloEMPLOI!$F:$F,siloEMPLOI!$A:$A,I$1,siloEMPLOI!$E:$E,$A59) -> 4660 | J59: =SUMIFS(siloEMPLOI!$F:$F,siloEMPLOI!$A:$A,J$1,siloEMPLOI!$E:$E,$A59) -> 1067 | K59: =SUMIFS(siloEMPLOI!$F:$F,siloEMPLOI!$A:$A,K$1,siloEMPLOI!$E:$E,$A59) -> 1601 | L59: =SUMIFS(siloEMPLOI!$F:$F,siloEMPLOI!$A:$A,L$1,siloEMPLOI!$E:$E,$A59) -> 9970 | M59: =SUMIFS(siloEMPLOI!$F:$F,siloEMPLOI!$A:$A,M$1,siloEMPLOI!$E:$E,$A59) -> 2214 | N59: =SUMIFS(siloEMPLOI!$F:$F,siloEMPLOI!$E:$E,$A59) -> 28883
A60: Industrie du futur, production industrielle | B60: =SUMIFS(siloEMPLOI!$F:$F,siloEMPLOI!$A:$A,B$1,siloEMPLOI!$E:$E,$A60) -> 20160 | C60: =SUMIFS(siloEMPLOI!$F:$F,siloEMPLOI!$A:$A,C$1,siloEMPLOI!$E:$E,$A60) -> 7868 | D60: =SUMIFS(siloEMPLOI!$F:$F,siloEMPLOI!$A:$A,D$1,siloEMPLOI!$E:$E,$A60) -> 11020 | E60: =SUMIFS(siloEMPLOI!$F:$F,siloEMPLOI!$A:$A,E$1,siloEMPLOI!$E:$E,$A60) -> 2110 | F60: =SUMIFS(siloEMPLOI!$F:$F,siloEMPLOI!$A:$A,F$1,siloEMPLOI!$E:$E,$A60) -> 14839 | G60: =SUMIFS(siloEMPLOI!$F:$F,siloEMPLOI!$A:$A,G$1,siloEMPLOI!$E:$E,$A60) -> 5300 | H60: =SUMIFS(siloEMPLOI!$F:$F,siloEMPLOI!$A:$A,H$1,siloEMPLOI!$E:$E,$A60) -> 20761 | I60: =SUMIFS(siloEMPLOI!$F:$F,siloEMPLOI!$A:$A,I$1,siloEMPLOI!$E:$E,$A60) -> 52656 | J60: =SUMIFS(siloEMPLOI!$F:$F,siloEMPLOI!$A:$A,J$1,siloEMPLOI!$E:$E,$A60) -> 23228 | K60: =SUMIFS(siloEMPLOI!$F:$F,siloEMPLOI!$A:$A,K$1,siloEMPLOI!$E:$E,$A60) -> 22217 | L60: =SUMIFS(siloEMPLOI!$F:$F,siloEMPLOI!$A:$A,L$1,siloEMPLOI!$E:$E,$A60) -> 64830 | M60: =SUMIFS(siloEMPLOI!$F:$F,siloEMPLOI!$A:$A,M$1,siloEMPLOI!$E:$E,$A60) -> 7716 | N60: =SUMIFS(siloEMPLOI!$F:$F,siloEMPLOI!$E:$E,$A60) -> 252705
A61: Métier de bouche | B61: =SUMIFS(siloEMPLOI!$F:$F,siloEMPLOI!$A:$A,B$1,siloEMPLOI!$E:$E,$A61) -> 3381 | C61: =SUMIFS(siloEMPLOI!$F:$F,siloEMPLOI!$A:$A,C$1,siloEMPLOI!$E:$E,$A61) -> 1648 | D61: =SUMIFS(siloEMPLOI!$F:$F,siloEMPLOI!$A:$A,D$1,siloEMPLOI!$E:$E,$A61) -> 1892 | E61: =SUMIFS(siloEMPLOI!$F:$F,siloEMPLOI!$A:$A,E$1,siloEMPLOI!$E:$E,$A61) -> 804 | F61: =SUMIFS(siloEMPLOI!$F:$F,siloEMPLOI!$A:$A,F$1,siloEMPLOI!$E:$E,$A61) -> 2860 | G61: =SUMIFS(siloEMPLOI!$F:$F,siloEMPLOI!$A:$A,G$1,siloEMPLOI!$E:$E,$A61) -> 1275 | H61: =SUMIFS(siloEMPLOI!$F:$F,siloEMPLOI!$A:$A,H$1,siloEMPLOI!$E:$E,$A61) -> 5905 | I61: =SUMIFS(siloEMPLOI!$F:$F,siloEMPLOI!$A:$A,I$1,siloEMPLOI!$E:$E,$A61) -> 6744 | J61: =SUMIFS(siloEMPLOI!$F:$F,siloEMPLOI!$A:$A,J$1,siloEMPLOI!$E:$E,$A61) -> 4416 | K61: =SUMIFS(siloEMPLOI!$F:$F,siloEMPLOI!$A:$A,K$1,siloEMPLOI!$E:$E,$A61) -> 3333 | L61: =SUMIFS(siloEMPLOI!$F:$F,siloEMPLOI!$A:$A,L$1,siloEMPLOI!$E:$E,$A61) -> 11668 | M61: =SUMIFS(siloEMPLOI!$F:$F,siloEMPLOI!$A:$A,M$1,siloEMPLOI!$E:$E,$A61) -> 3125 | N61: =SUMIFS(siloEMPLOI!$F:$F,siloEMPLOI!$E:$E,$A61) -> 47051
A62: Mobilité, systèmes de transport intelligents | B62: =SUMIFS(siloEMPLOI!$F:$F,siloEMPLOI!$A:$A,B$1,siloEMPLOI!$E:$E,$A62) -> 10944 | C62: =SUMIFS(siloEMPLOI!$F:$F,siloEMPLOI!$A:$A,C$1,siloEMPLOI!$E:$E,$A62) -> 4249 | D62: =SUMIFS(siloEMPLOI!$F:$F,siloEMPLOI!$A:$A,D$1,siloEMPLOI!$E:$E,$A62) -> 2980 | E62: =SUMIFS(siloEMPLOI!$F:$F,siloEMPLOI!$A:$A,E$1,siloEMPLOI!$E:$E,$A62) -> 1948 | F62: =SUMIFS(siloEMPLOI!$F:$F,siloEMPLOI!$A:$A,F$1,siloEMPLOI!$E:$E,$A62) -> 12346 | G62: =SUMIFS(siloEMPLOI!$F:$F,siloEMPLOI!$A:$A,G$1,siloEMPLOI!$E:$E,$A62) -> 2212 | H62: =SUMIFS(siloEMPLOI!$F:$F,siloEMPLOI!$A:$A,H$1,siloEMPLOI!$E:$E,$A62) -> 8203 | I62: =SUMIFS(siloEMPLOI!$F:$F,siloEMPLOI!$A:$A,I$1,siloEMPLOI!$E:$E,$A62) -> 21453 | J62: =SUMIFS(siloEMPLOI!$F:$F,siloEMPLOI!$A:$A,J$1,siloEMPLOI!$E:$E,$A62) -> 10792 | K62: =SUMIFS(siloEMPLOI!$F:$F,siloEMPLOI!$A:$A,K$1,siloEMPLOI!$E:$E,$A62) -> 12570 | L62: =SUMIFS(siloEMPLOI!$F:$F,siloEMPLOI!$A:$A,L$1,siloEMPLOI!$E:$E,$A62) -> 48840 | M62: =SUMIFS(siloEMPLOI!$F:$F,siloEMPLOI!$A:$A,M$1,siloEMPLOI!$E:$E,$A62) -> 7530 | N62: =SUMIFS(siloEMPLOI!$F:$F,siloEMPLOI!$E:$E,$A62) -> 144067
A63: Numérique | B63: =SUMIFS(siloEMPLOI!$F:$F,siloEMPLOI!$A:$A,B$1,siloEMPLOI!$E:$E,$A63) -> 1319 | C63: =SUMIFS(siloEMPLOI!$F:$F,siloEMPLOI!$A:$A,C$1,siloEMPLOI!$E:$E,$A63) -> 953 | D63: =SUMIFS(siloEMPLOI!$F:$F,siloEMPLOI!$A:$A,D$1,siloEMPLOI!$E:$E,$A63) -> 1107 | E63: =SUMIFS(siloEMPLOI!$F:$F,siloEMPLOI!$A:$A,E$1,siloEMPLOI!$E:$E,$A63) -> 289 | F63: =SUMIFS(siloEMPLOI!$F:$F,siloEMPLOI!$A:$A,F$1,siloEMPLOI!$E:$E,$A63) -> 2863 | G63: =SUMIFS(siloEMPLOI!$F:$F,siloEMPLOI!$A:$A,G$1,siloEMPLOI!$E:$E,$A63) -> 571 | H63: =SUMIFS(siloEMPLOI!$F:$F,siloEMPLOI!$A:$A,H$1,siloEMPLOI!$E:$E,$A63) -> 4265 | I63: =SUMIFS(siloEMPLOI!$F:$F,siloEMPLOI!$A:$A,I$1,siloEMPLOI!$E:$E,$A63) -> 16997 | J63: =SUMIFS(siloEMPLOI!$F:$F,siloEMPLOI!$A:$A,J$1,siloEMPLOI!$E:$E,$A63) -> 3123 | K63: =SUMIFS(siloEMPLOI!$F:$F,siloEMPLOI!$A:$A,K$1,siloEMPLOI!$E:$E,$A63) -> 5009 | L63: =SUMIFS(siloEMPLOI!$F:$F,siloEMPLOI!$A:$A,L$1,siloEMPLOI!$E:$E,$A63) -> 54660 | M63: =SUMIFS(siloEMPLOI!$F:$F,siloEMPLOI!$A:$A,M$1,siloEMPLOI!$E:$E,$A63) -> 2191 | N63: =SUMIFS(siloEMPLOI!$F:$F,siloEMPLOI!$E:$E,$A63) -> 93347
A64: Polymères | B64: =SUMIFS(siloEMPLOI!$F:$F,siloEMPLOI!$A:$A,B$1,siloEMPLOI!$E:$E,$A64) -> 7517 | C64: =SUMIFS(siloEMPLOI!$F:$F,siloEMPLOI!$A:$A,C$1,siloEMPLOI!$E:$E,$A64) -> 814 | D64: =SUMIFS(siloEMPLOI!$F:$F,siloEMPLOI!$A:$A,D$1,siloEMPLOI!$E:$E,$A64) -> 390 | E64: =SUMIFS(siloEMPLOI!$F:$F,siloEMPLOI!$A:$A,E$1,siloEMPLOI!$E:$E,$A64) -> 540 | F64: =SUMIFS(siloEMPLOI!$F:$F,siloEMPLOI!$A:$A,F$1,siloEMPLOI!$E:$E,$A64) -> 2190 | G64: =SUMIFS(siloEMPLOI!$F:$F,siloEMPLOI!$A:$A,G$1,siloEMPLOI!$E:$E,$A64) -> 2885 | H64: =SUMIFS(siloEMPLOI!$F:$F,siloEMPLOI!$A:$A,H$1,siloEMPLOI!$E:$E,$A64) -> 1093 | I64: =SUMIFS(siloEMPLOI!$F:$F,siloEMPLOI!$A:$A,I$1,siloEMPLOI!$E:$E,$A64) -> 3327 | J64: =SUMIFS(siloEMPLOI!$F:$F,siloEMPLOI!$A:$A,J$1,siloEMPLOI!$E:$E,$A64) -> 1369 | K64: =SUMIFS(siloEMPLOI!$F:$F,siloEMPLOI!$A:$A,K$1,siloEMPLOI!$E:$E,$A64) -> 1149 | L64: =SUMIFS(siloEMPLOI!$F:$F,siloEMPLOI!$A:$A,L$1,siloEMPLOI!$E:$E,$A64) -> 2741 | M64: =SUMIFS(siloEMPLOI!$F:$F,siloEMPLOI!$A:$A,M$1,siloEMPLOI!$E:$E,$A64) -> 331 | N64: =SUMIFS(siloEMPLOI!$F:$F,siloEMPLOI!$E:$E,$A64) -> 24346
A65: Services à la personne | B65: =SUMIFS(siloEMPLOI!$F:$F,siloEMPLOI!$A:$A,B$1,siloEMPLOI!$E:$E,$A65) -> 2787 | C65: =SUMIFS(siloEMPLOI!$F:$F,siloEMPLOI!$A:$A,C$1,siloEMPLOI!$E:$E,$A65) -> 1581 | D65: =SUMIFS(siloEMPLOI!$F:$F,siloEMPLOI!$A:$A,D$1,siloEMPLOI!$E:$E,$A65) -> 2088 | E65: =SUMIFS(siloEMPLOI!$F:$F,siloEMPLOI!$A:$A,E$1,siloEMPLOI!$E:$E,$A65) -> 732 | F65: =SUMIFS(siloEMPLOI!$F:$F,siloEMPLOI!$A:$A,F$1,siloEMPLOI!$E:$E,$A65) -> 3430 | G65: =SUMIFS(siloEMPLOI!$F:$F,siloEMPLOI!$A:$A,G$1,siloEMPLOI!$E:$E,$A65) -> 1587 | H65: =SUMIFS(siloEMPLOI!$F:$F,siloEMPLOI!$A:$A,H$1,siloEMPLOI!$E:$E,$A65) -> 3792 | I65: =SUMIFS(siloEMPLOI!$F:$F,siloEMPLOI!$A:$A,I$1,siloEMPLOI!$E:$E,$A65) -> 7374 | J65: =SUMIFS(siloEMPLOI!$F:$F,siloEMPLOI!$A:$A,J$1,siloEMPLOI!$E:$E,$A65) -> 5207 | K65: =SUMIFS(siloEMPLOI!$F:$F,siloEMPLOI!$A:$A,K$1,siloEMPLOI!$E:$E,$A65) -> 2463 | L65: =SUMIFS(siloEMPLOI!$F:$F,siloEMPLOI!$A:$A,L$1,siloEMPLOI!$E:$E,$A65) -> 13777 | M65: =SUMIFS(siloEMPLOI!$F:$F,siloEMPLOI!$A:$A,M$1,siloEMPLOI!$E:$E,$A65) -> 3427 | N65: =SUMIFS(siloEMPLOI!$F:$F,siloEMPLOI!$E:$E,$A65) -> 48245
A66: Sport, Montagne, Tourisme | B66: =SUMIFS(siloEMPLOI!$F:$F,siloEMPLOI!$A:$A,B$1,siloEMPLOI!$E:$E,$A66) -> 9446 | C66: =SUMIFS(siloEMPLOI!$F:$F,siloEMPLOI!$A:$A,C$1,siloEMPLOI!$E:$E,$A66) -> 5246 | D66: =SUMIFS(siloEMPLOI!$F:$F,siloEMPLOI!$A:$A,D$1,siloEMPLOI!$E:$E,$A66) -> 4284 | E66: =SUMIFS(siloEMPLOI!$F:$F,siloEMPLOI!$A:$A,E$1,siloEMPLOI!$E:$E,$A66) -> 2373 | F66: =SUMIFS(siloEMPLOI!$F:$F,siloEMPLOI!$A:$A,F$1,siloEMPLOI!$E:$E,$A66) -> 9380 | G66: =SUMIFS(siloEMPLOI!$F:$F,siloEMPLOI!$A:$A,G$1,siloEMPLOI!$E:$E,$A66) -> 2928 | H66: =SUMIFS(siloEMPLOI!$F:$F,siloEMPLOI!$A:$A,H$1,siloEMPLOI!$E:$E,$A66) -> 34435 | I66: =SUMIFS(siloEMPLOI!$F:$F,siloEMPLOI!$A:$A,I$1,siloEMPLOI!$E:$E,$A66) -> 25116 | J66: =SUMIFS(siloEMPLOI!$F:$F,siloEMPLOI!$A:$A,J$1,siloEMPLOI!$E:$E,$A66) -> 11259 | K66: =SUMIFS(siloEMPLOI!$F:$F,siloEMPLOI!$A:$A,K$1,siloEMPLOI!$E:$E,$A66) -> 13507 | L66: =SUMIFS(siloEMPLOI!$F:$F,siloEMPLOI!$A:$A,L$1,siloEMPLOI!$E:$E,$A66) -> 52315 | M66: =SUMIFS(siloEMPLOI!$F:$F,siloEMPLOI!$A:$A,M$1,siloEMPLOI!$E:$E,$A66) -> 38934 | N66: =SUMIFS(siloEMPLOI!$F:$F,siloEMPLOI!$E:$E,$A66) -> 209223
A67: Santé | B67: =SUMIFS(siloEMPLOI!$F:$F,siloEMPLOI!$A:$A,B$1,siloEMPLOI!$E:$E,$A67) -> 4613 | C67: =SUMIFS(siloEMPLOI!$F:$F,siloEMPLOI!$A:$A,C$1,siloEMPLOI!$E:$E,$A67) -> 1910 | D67: =SUMIFS(siloEMPLOI!$F:$F,siloEMPLOI!$A:$A,D$1,siloEMPLOI!$E:$E,$A67) -> 2846 | E67: =SUMIFS(siloEMPLOI!$F:$F,siloEMPLOI!$A:$A,E$1,siloEMPLOI!$E:$E,$A67) -> 1201 | F67: =SUMIFS(siloEMPLOI!$F:$F,siloEMPLOI!$A:$A,F$1,siloEMPLOI!$E:$E,$A67) -> 3846 | G67: =SUMIFS(siloEMPLOI!$F:$F,siloEMPLOI!$A:$A,G$1,siloEMPLOI!$E:$E,$A67) -> 2356 | H67: =SUMIFS(siloEMPLOI!$F:$F,siloEMPLOI!$A:$A,H$1,siloEMPLOI!$E:$E,$A67) -> 5839 | I67: =SUMIFS(siloEMPLOI!$F:$F,siloEMPLOI!$A:$A,I$1,siloEMPLOI!$E:$E,$A67) -> 9939 | J67: =SUMIFS(siloEMPLOI!$F:$F,siloEMPLOI!$A:$A,J$1,siloEMPLOI!$E:$E,$A67) -> 6121 | K67: =SUMIFS(siloEMPLOI!$F:$F,siloEMPLOI!$A:$A,K$1,siloEMPLOI!$E:$E,$A67) -> 7172 | L67: =SUMIFS(siloEMPLOI!$F:$F,siloEMPLOI!$A:$A,L$1,siloEMPLOI!$E:$E,$A67) -> 23476 | M67: =SUMIFS(siloEMPLOI!$F:$F,siloEMPLOI!$A:$A,M$1,siloEMPLOI!$E:$E,$A67) -> 2821 | N67: =SUMIFS(siloEMPLOI!$F:$F,siloEMPLOI!$E:$E,$A67) -> 72140
A68: Hors DOMEX | B68: =SUMIFS(siloEMPLOI!$F:$F,siloEMPLOI!$A:$A,B$1,siloEMPLOI!$E:$E,$A68) -> 0 | C68: =SUMIFS(siloEMPLOI!$F:$F,siloEMPLOI!$A:$A,C$1,siloEMPLOI!$E:$E,$A68) -> 0 | D68: =SUMIFS(siloEMPLOI!$F:$F,siloEMPLOI!$A:$A,D$1,siloEMPLOI!$E:$E,$A68) -> 0 | E68: =SUMIFS(siloEMPLOI!$F:$F,siloEMPLOI!$A:$A,E$1,siloEMPLOI!$E:$E,$A68) -> 0 | F68: =SUMIFS(siloEMPLOI!$F:$F,siloEMPLOI!$A:$A,F$1,siloEMPLOI!$E:$E,$A68) -> 0 | G68: =SUMIFS(siloEMPLOI!$F:$F,siloEMPLOI!$A:$A,G$1,siloEMPLOI!$E:$E,$A68) -> 0 | H68: =SUMIFS(siloEMPLOI!$F:$F,siloEMPLOI!$A:$A,H$1,siloEMPLOI!$E:$E,$A68) -> 0 | I68: =SUMIFS(siloEMPLOI!$F:$F,siloEMPLOI!$A:$A,I$1,siloEMPLOI!$E:$E,$A68) -> 0 | J68: =SUMIFS(siloEMPLOI!$F:$F,siloEMPLOI!$A:$A,J$1,siloEMPLOI!$E:$E,$A68) -> 0 | K68: =SUMIFS(siloEMPLOI!$F:$F,siloEMPLOI!$A:$A,K$1,siloEMPLOI!$E:$E,$A68) -> 0 | L68: =SUMIFS(siloEMPLOI!$F:$F,siloEMPLOI!$A:$A,L$1,siloEMPLOI!$E:$E,$A68) -> 0 | M68: =SUMIFS(siloEMPLOI!$F:$F,siloEMPLOI!$A:$A,M$1,siloEMPLOI!$E:$E,$A68) -> 0 | N68: =SUMIFS(siloEMPLOI!$F:$F,siloEMPLOI!$E:$E,$A68) -> 0
A69: TOTAL TOUS SECTEURS (secteur privé) | B69: =SUMIFS(siloEMPLOI!$F:$F,siloEMPLOI!$A:$A,B$1) -> 155949 | C69: =SUMIFS(siloEMPLOI!$F:$F,siloEMPLOI!$A:$A,C$1) -> 72468 | D69: =SUMIFS(siloEMPLOI!$F:$F,siloEMPLOI!$A:$A,D$1) -> 65006 | E69: =SUMIFS(siloEMPLOI!$F:$F,siloEMPLOI!$A:$A,E$1) -> 30248 | F69: =SUMIFS(siloEMPLOI!$F:$F,siloEMPLOI!$A:$A,F$1) -> 157698 | G69: =SUMIFS(siloEMPLOI!$F:$F,siloEMPLOI!$A:$A,G$1) -> 51360 | H69: =SUMIFS(siloEMPLOI!$F:$F,siloEMPLOI!$A:$A,H$1) -> 224353 | I69: =SUMIFS(siloEMPLOI!$F:$F,siloEMPLOI!$A:$A,I$1) -> 368270 | J69: =SUMIFS(siloEMPLOI!$F:$F,siloEMPLOI!$A:$A,J$1) -> 197771 | K69: =SUMIFS(siloEMPLOI!$F:$F,siloEMPLOI!$A:$A,K$1) -> 176715 | L69: =SUMIFS(siloEMPLOI!$F:$F,siloEMPLOI!$A:$A,L$1) -> 770155 | M69: =SUMIFS(siloEMPLOI!$F:$F,siloEMPLOI!$A:$A,M$1) -> 156934 | N69: =SUM(siloEMPLOI!$F:$F) -> 2426927

Sheet Emploi (NAF) (hidden)
A1: NAF | B1: Libellé NAF | C1: DOMEX | D1: Clé tri DOMEX | E1: Territoire sélection | F1: Ain | G1: Allier | H1: Ardèche | I1: Cantal | J1: Drôme | K1: Haute-Loire | L1: Haute-Savoie | M1: Isère | N1: Loire | O1: Puy-de-Dôme | P1: Rhône | Q1: Savoie | R1: Auvergne-Rhône-Alpes
A2: 4941A | B2: Transports routiers de fret interurbains | C2: =VLOOKUP(A2,'nomenclature naf'!A:C,3,FALSE) -> Mobilité, systèmes de transport intelligents | D2: =IF(C2='DONNEES INFOGRAPHIES'!$B$6,1,0) -> 1 | E2: =VLOOKUP(A2,A:R,'DONNEES INFOGRAPHIES'!$L$8,FALSE) -> 28962 | F2: 2518 | G2: 1207 | H2: 583 | I2: 831 | J2: 3057 | K2: 560 | L2: 1544 | M2: 3473 | N2: 2878 | O2: 2155 | P2: 8368 | Q2: 1788 | R2: 28962
A3: 4941B | B3: Transports routiers de fret de proximité | C3: =VLOOKUP(A3,'nomenclature naf'!A:C,3,FALSE) -> Mobilité, systèmes de transport intelligents | D3: =IF(C3='DONNEES INFOGRAPHIES'!$B$6,1,0) -> 1 | E3: =VLOOKUP(A3,A:R,'DONNEES INFOGRAPHIES'!$L$8,FALSE) -> 23021 | F3: 1471 | G3: 763 | H3: 258 | I3: 162 | J3: 2444 | K3: 330 | L3: 1153 | M3: 3131 | N3: 2357 | O3: 1855 | P3: 7917 | Q3: 1180 | R3: 23021
A4: 5310Z | B4: Activ. poste dans le cadre d'une obligation de service universel | C4: =VLOOKUP(A4,'nomenclature naf'!A:C,3,FALSE) -> Mobilité, systèmes de transport intelligents | D4: =IF(C4='DONNEES INFOGRAPHIES'!$B$6,1,0) -> 1 | E4: =VLOOKUP(A4,A:R,'DONNEES INFOGRAPHIES'!$L$8,FALSE) -> 20088 | F4: 1119 | G4: 802 | H4: 696 | I4: 420 | J4: 1191 | K4: 541 | L4: 1541 | M4: 3205 | N4: 1585 | O4: 2438 | P4: 5495 | Q4: 1055 | R4: 20088
A5: 5210B | B5: Entreposage et stockage non frigorifique | C5: =VLOOKUP(A5,'nomenclature naf'!A:C,3,FALSE) -> Mobilité, systèmes de transport intelligents | D5: =IF(C5='DONNEES INFOGRAPHIES'!$B$6,1,0) -> 1 | E5: =VLOOKUP(A5,A:R,'DONNEES INFOGRAPHIES'!$L$8,FALSE) -> 12289 | F5: 2165 | G5: 141 | H5: 261 | I5: 27 | J5: 1920 | K5: 40 | L5: 233 | M5: 3252 | N5: 781 | O5: 507 | P5: 2841 | Q5: 121 | R5: 12289
A6: 5221Z | B6: Services auxiliaires des transports terrestres | C6: =VLOOKUP(A6,'nomenclature naf'!A:C,3,FALSE) -> Mobilité, systèmes de transport intelligents | D6: =IF(C6='DONNEES INFOGRAPHIES'!$B$6,1,0) -> 1 | E6: =VLOOKUP(A6,A:R,'DONNEES INFOGRAPHIES'!$L$8,FALSE) -> 11072 | F6: 629 | G6: 428 | H6: 49 | I6: 86 | J6: 635 | K6: 118 | L6: 743 | M6: 876 | N6: 334 | O6: 905 | P6: 4530 | Q6: 1739 | R6: 11072
A7: 5229B | B7: Affrètement et organisation des transports | C7: =VLOOKUP(A7,'nomenclature naf'!A:C,3,FALSE) -> Mobilité, systèmes de transport intelligents | D7: =IF(C7='DONNEES INFOGRAPHIES'!$B$6,1,0) -> 1 | E7: =VLOOKUP(A7,A:R,'DONNEES INFOGRAPHIES'!$L$8,FALSE) -> 10369 | F7: 846 | G7: 80 | H7: 70 | I7: 18 | J7: 541 | K7: 12 | L7: 712 | M7: 1890 | N7: 517 | O7: 603 | P7: 4974 | Q7: 106 | R7: 10369
A8: 4931Z | B8: Transports urbains et suburbains de voyageurs | C8: =VLOOKUP(A8,'nomenclature naf'!A:C,3,FALSE) -> Mobilité, systèmes de transport intelligents | D8: =IF(C8='DONNEES INFOGRAPHIES'!$B$6,1,0) -> 1 | E8: =VLOOKUP(A8,A:R,'DONNEES INFOGRAPHIES'!$L$8,FALSE) -> 10269 | F8: 118 | G8: 213 | H8: 59 | I8: 58 | J8: 329 | K8: 7 | L8: 610 | M8: 1820 | N8: 782 | O8: 1061 | P8: 4782 | Q8: 430 | R8: 10269
A9: 4939A | B9: Transports routiers réguliers de voyageurs | C9: =VLOOKUP(A9,'nomenclature naf'!A:C,3,FALSE) -> Mobilité, systèmes de transport intelligents | D9: =IF(C9='DONNEES INFOGRAPHIES'!$B$6,1,0) -> 1 | E9: =VLOOKUP(A9,A:R,'DONNEES INFOGRAPHIES'!$L$8,FALSE) -> 7611 | F9: 700 | G9: 261 | H9: 314 | I9: 151 | J9: 699 | K9: 327 | L9: 813 | M9: 816 | N9: 557 | O9: 695 | P9: 1797 | Q9: 481 | R9: 7611
A10: 5229A | B10: Messagerie, fret express | C10: =VLOOKUP(A10,'nomenclature naf'!A:C,3,FALSE) -> Mobilité, systèmes de transport intelligents | D10: =IF(C10='DONNEES INFOGRAPHIES'!$B$6,1,0) -> 1 | E10: =VLOOKUP(A10,A:R,'DONNEES INFOGRAPHIES'!$L$8,FALSE) -> 5111 | F10: 304 | G10: 45 | H10: 43 | I10: 109 | J10: 371 | K10: 59 | L10: 222 | M10: 570 | N10: 382 | O10: 534 | P10: 2356 | Q10: 116 | R10: 5111
A11: 4932Z | B11: Transports de voyageurs par taxis | C11: =VLOOKUP(A11,'nomenclature naf'!A:C,3,FALSE) -> Mobilité, systèmes de transport intelligents | D11: =IF(C11='DONNEES INFOGRAPHIES'!$B$6,1,0) -> 1 | E11: =VLOOKUP(A11,A:R,'DONNEES INFOGRAPHIES'!$L$8,FALSE) -> 3936 | F11: 309 | G11: 131 | H11: 414 | I11: 104 | J11: 304 | K11: 98 | L11: 377 | M11: 608 | N11: 250 | O11: 288 | P11: 615 | Q11: 438 | R11: 3936
A12: 5210A | B12: Entreposage et stockage frigorifique | C12: =VLOOKUP(A12,'nomenclature naf'!A:C,3,FALSE) -> Mobilité, systèmes de transport intelligents | D12: =IF(C12='DONNEES INFOGRAPHIES'!$B$6,1,0) -> 1 | E12: =VLOOKUP(A12,A:R,'DONNEES INFOGRAPHIES'!$L$8,FALSE) -> 2322 | F12: 339 | G12: 32 | H12: 11 | J12: 343 | K12: 6 | L12: 15 | M12: 1148 | N12: 2 | O12: 73 | P12: 353 | R12: 2322
A13: 4941C | B13: Location de camions avec chauffeur | C13: =VLOOKUP(A13,'nomenclature naf'!A:C,3,FALSE) -> Mobilité, systèmes de transport intelligents | D13: =IF(C13='DONNEES INFOGRAPHIES'!$B$6,1,0) -> 1 | E13: =VLOOKUP(A13,A:R,'DONNEES INFOGRAPHIES'!$L$8,FALSE) -> 2248 | F13: 147 | G13: 5 | H13: 64 | J13: 88 | K13: 19 | L13: 158 | M13: 384 | N13: 103 | O13: 231 | P13: 980 | Q13: 69 | R13: 2248
A14: 5320Z | B14: Autres activités de poste et de courrier | C14: =VLOOKUP(A14,'nomenclature naf'!A:C,3,FALSE) -> Mobilité, systèmes de transport intelligents | D14: =IF(C14='DONNEES INFOGRAPHIES'!$B$6,1,0) -> 1 | E14: =VLOOKUP(A14,A:R,'DONNEES INFOGRAPHIES'!$L$8,FALSE) -> 1583 | F14: 13 | G14: 16 | H14: 6 | K14: 40 | L14: 24 | M14: 117 | N14: 130 | O14: 539 | P14: 676 | Q14: 22 | R14: 1583
A15: 4920Z | B15: Transports ferroviaires de fret | C15: =VLOOKUP(A15,'nomenclature naf'!A:C,3,FALSE) -> Mobilité, systèmes de transport intelligents | D15: =IF(C15='DONNEES INFOGRAPHIES'!$B$6,1,0) -> 1 | E15: =VLOOKUP(A15,A:R,'DONNEES INFOGRAPHIES'!$L$8,FALSE) -> 1535 | F15: 144 | G15: 42 | H15: 1 | J15: 3 | L15: 4 | M15: 38 | N15: 10 | O15: 119 | P15: 1057 | Q15: 117 | R15: 1535
A16: 5223Z | B16: Services auxiliaires des transports aériens | C16: =VLOOKUP(A16,'nomenclature naf'!A:C,3,FALSE) -> Mobilité, systèmes de transport intelligents | D16: =IF(C16='DONNEES INFOGRAPHIES'!$B$6,1,0) -> 1 | E16: =VLOOKUP(A16,A:R,'DONNEES INFOGRAPHIES'!$L$8,FALSE) -> 1295 | G16: 3 | J16: 1 | L16: 12 | M16: 50 | O16: 79 | P16: 1120 | Q16: 30 | R16: 1295
A17: 4942Z | B17: Services de déménagement | C17: =VLOOKUP(A17,'nomenclature naf'!A:C,3,FALSE) -> Mobilité, systèmes de transport intelligents | D17: =IF(C17='DONNEES INFOGRAPHIES'!$B$6,1,0) -> 1 | E17: =VLOOKUP(A17,A:R,'DONNEES INFOGRAPHIES'!$L$8,FALSE) -> 1288 | F17: 79 | G17: 5 | H17: 18 | I17: 1 | J17: 119 | K17: 21 | L17: 104 | M17: 109 | N17: 131 | O17: 145 | P17: 515 | Q17: 41 | R17: 1288
A18: 5224B | B18: Manutention non portuaire | C18: =VLOOKUP(A18,'nomenclature naf'!A:C,3,FALSE) -> Mobilité, systèmes de transport intelligents | D18: =IF(C18='DONNEES INFOGRAPHIES'!$B$6,1,0) -> 1 | E18: =VLOOKUP(A18,A:R,'DONNEES INFOGRAPHIES'!$L$8,FALSE) -> 594 | F18: 64 | J18: 58 | L18: 4 | M18: 18 | N18: 60 | O18: 126 | P18: 256 | Q18: 8 | R18: 594
A19: 4950Z | B19: Transports par conduites | C19: =VLOOKUP(A19,'nomenclature naf'!A:C,3,FALSE) -> Mobilité, systèmes de transport intelligents | D19: =IF(C19='DONNEES INFOGRAPHIES'!$B$6,1,0) -> 1 | E19: =VLOOKUP(A19,A:R,'DONNEES INFOGRAPHIES'!$L$8,FALSE) -> 575 | F19: 12 | G19: 17 | J19: 39 | L19: 8 | M19: 123 | N19: 12 | O19: 9 | P19: 347 | Q19: 8 | R19: 575
A20: 5040Z | B20: Transports fluviaux de fret | C20: =VLOOKUP(A20,'nomenclature naf'!A:C,3,FALSE) -> Mobilité, systèmes de transport intelligents | D20: =IF(C20='DONNEES INFOGRAPHIES'!$B$6,1,0) -> 1 | E20: =VLOOKUP(A20,A:R,'DONNEES INFOGRAPHIES'!$L$8,FALSE) -> 161 | F20: 3 | J20: 5 | M20: 23 | P20: 130 | R20: 161
A21: 5222Z | B21: Services auxiliaires des transports par eau | C21: =VLOOKUP(A21,'nomenclature naf'!A:C,3,FALSE) -> Mobilité, systèmes de transport intelligents | D21: =IF(C21='DONNEES INFOGRAPHIES'!$B$6,1,0) -> 1 | E21: =VLOOKUP(A21,A:R,'DONNEES INFOGRAPHIES'!$L$8,FALSE) -> 35 | J21: 4 | M21: 13 | P21: 18 | R21: 35
A22: 5020Z | B22: Transports maritimes et côtiers de fret | C22: =VLOOKUP(A22,'nomenclature naf'!A:C,3,FALSE) -> Mobilité, systèmes de transport intelligents | D22: =IF(C22='DONNEES INFOGRAPHIES'!$B$6,1,0) -> 1 | E22: =VLOOKUP(A22,A:R,'DONNEES INFOGRAPHIES'!$L$8,FALSE) -> 22 | H22: 5 | P22: 17 | R22: 22
A23: 5121Z | B23: Transports aériens de fret | C23: =VLOOKUP(A23,'nomenclature naf'!A:C,3,FALSE) -> Mobilité, systèmes de transport intelligents | D23: =IF(C23='DONNEES INFOGRAPHIES'!$B$6,1,0) -> 1 | E23: =VLOOKUP(A23,A:R,'DONNEES INFOGRAPHIES'!$L$8,FALSE) -> 19 | L23: 18 | Q23: 1 | R23: 19
A24: 5224A | B24: Manutention portuaire | C24: =VLOOKUP(A24,'nomenclature naf'!A:C,3,FALSE) -> Mobilité, systèmes de transport intelligents | D24: =IF(C24='DONNEES INFOGRAPHIES'!$B$6,1,0) -> 1 | E24: =VLOOKUP(A24,A:R,'DONNEES INFOGRAPHIES'!$L$8,FALSE) -> 9 | L24: 5 | P24: 4 | R24: 9
A25: 7820Z | B25: Activités des agences de travail temporaire | C25: =VLOOKUP(A25,'nomenclature naf'!A:C,3,FALSE) ->  | D25: =IF(C25='DONNEES INFOGRAPHIES'!$B$6,1,0) -> 0 | E25: =VLOOKUP(A25,A:R,'DONNEES INFOGRAPHIES'!$L$8,FALSE) -> 77700 | F25: 5518 | G25: 2473 | H25: 1018 | I25: 611 | J25: 5075 | K25: 1668 | L25: 5353 | M25: 14077 | N25: 5658 | O25: 4929 | P25: 27812 | Q25: 3508 | R25: 77700
A26: 5610A | B26: Restauration traditionnelle | C26: =VLOOKUP(A26,'nomenclature naf'!A:C,3,FALSE) -> Sport, Montagne, Tourisme | D26: =IF(C26='DONNEES INFOGRAPHIES'!$B$6,1,0) -> 0 | E26: =VLOOKUP(A26,A:R,'DONNEES INFOGRAPHIES'!$L$8,FALSE) -> 58398 | F26: 3004 | G26: 1301 | H26: 1041 | I26: 516 | J26: 2648 | K26: 687 | L26: 11151 | M26: 6987 | N26: 3102 | O26: 3418 | P26: 14712 | Q26: 9831 | R26: 58398
A27: 7112B | B27: Ingénierie, études techniques | C27: =VLOOKUP(A27,'nomenclature naf'!A:C,3,FALSE) ->  | D27: =IF(C27='DONNEES INFOGRAPHIES'!$B$6,1,0) -> 0 | E27: =VLOOKUP(A27,A:R,'DONNEES INFOGRAPHIES'!$L$8,FALSE) -> 49270 | F27: 1363 | G27: 217 | H27: 702 | I27: 135 | J27: 3071 | K27: 137 | L27: 2459 | M27: 7493 | N27: 1715 | O27: 2073 | P27: 27981 | Q27: 1924 | R27: 49270
A28: 8121Z | B28: Nettoyage courant des bâtiments | C28: =VLOOKUP(A28,'nomenclature naf'!A:C,3,FALSE) ->  | D28: =IF(C28='DONNEES INFOGRAPHIES'!$B$6,1,0) -> 0 | E28: =VLOOKUP(A28,A:R,'DONNEES INFOGRAPHIES'!$L$8,FALSE) -> 48385 | F28: 2320 | G28: 1033 | H28: 890 | I28: 197 | J28: 2567 | K28: 216 | L28: 4986 | M28: 8442 | N28: 3394 | O28: 3301 | P28: 17448 | Q28: 3591 | R28: 48385
A29: 8610Z | B29: Activités hospitalières | C29: =VLOOKUP(A29,'nomenclature naf'!A:C,3,FALSE) -> Santé | D29: =IF(C29='DONNEES INFOGRAPHIES'!$B$6,1,0) -> 0 | E29: =VLOOKUP(A29,A:R,'DONNEES INFOGRAPHIES'!$L$8,FALSE) -> 38257 | F29: 2400 | G29: 338 | H29: 1471 | I29: 526 | J29: 1706 | K29: 1328 | L29: 2598 | M29: 4902 | N29: 2724 | O29: 4538 | P29: 14716 | Q29: 1010 | R29: 38257
A30: 6202A | B30: Conseil en systèmes et logiciels informatiques | C30: =VLOOKUP(A30,'nomenclature naf'!A:C,3,FALSE) -> Numérique | D30: =IF(C30='DONNEES INFOGRAPHIES'!$B$6,1,0) -> 0 | E30: =VLOOKUP(A30,A:R,'DONNEES INFOGRAPHIES'!$L$8,FALSE) -> 37941 | F30: 177 | G30: 388 | H30: 183 | I30: 8 | J30: 858 | K30: 110 | L30: 922 | M30: 6809 | N30: 721 | O30: 1930 | P30: 25197 | Q30: 638 | R30: 37941
A31: 5610C | B31: Restauration de type rapide | C31: =VLOOKUP(A31,'nomenclature naf'!A:C,3,FALSE) -> Sport, Montagne, Tourisme | D31: =IF(C31='DONNEES INFOGRAPHIES'!$B$6,1,0) -> 0 | E31: =VLOOKUP(A31,A:R,'DONNEES INFOGRAPHIES'!$L$8,FALSE) -> 34794 | F31: 1618 | G31: 1410 | H31: 719 | I31: 315 | J31: 2052 | K31: 476 | L31: 3996 | M31: 5245 | N31: 2795 | O31: 2703 | P31: 11379 | Q31: 2086 | R31: 34794
A32: 4711D | B32: Supermarchés | C32: =VLOOKUP(A32,'nomenclature naf'!A:C,3,FALSE) ->  | D32: =IF(C32='DONNEES INFOGRAPHIES'!$B$6,1,0) -> 0 | E32: =VLOOKUP(A32,A:R,'DONNEES INFOGRAPHIES'!$L$8,FALSE) -> 34478 | F32: 3488 | G32: 1475 | H32: 1538 | I32: 877 | J32: 2086 | K32: 1082 | L32: 4337 | M32: 5499 | N32: 2769 | O32: 2968 | P32: 6332 | Q32: 2027 | R32: 34478
A33: 4711F | B33: Hypermarchés | C33: =VLOOKUP(A33,'nomenclature naf'!A:C,3,FALSE) ->  | D33: =IF(C33='DONNEES INFOGRAPHIES'!$B$6,1,0) -> 0 | E33: =VLOOKUP(A33,A:R,'DONNEES INFOGRAPHIES'!$L$8,FALSE) -> 34340 | F33: 1915 | G33: 2292 | H33: 1099 | I33: 365 | J33: 2273 | K33: 720 | L33: 3557 | M33: 4493 | N33: 5341 | O33: 3368 | P33: 6658 | Q33: 2259 | R33: 34340
A34: 5510Z | B34: Hôtels et hébergement similaire | C34: =VLOOKUP(A34,'nomenclature naf'!A:C,3,FALSE) -> Sport, Montagne, Tourisme | D34: =IF(C34='DONNEES INFOGRAPHIES'!$B$6,1,0) -> 0 | E34: =VLOOKUP(A34,A:R,'DONNEES INFOGRAPHIES'!$L$8,FALSE) -> 32459 | F34: 1149 | G34: 695 | H34: 407 | I34: 400 | J34: 1162 | K34: 330 | L34: 7707 | M34: 2718 | N34: 609 | O34: 1734 | P34: 4948 | Q34: 10600 | R34: 32459
A35: 8810A | B35: Aide à domicile | C35: =VLOOKUP(A35,'nomenclature naf'!A:C,3,FALSE) -> Services à la personne | D35: =IF(C35='DONNEES INFOGRAPHIES'!$B$6,1,0) -> 0 | E35: =VLOOKUP(A35,A:R,'DONNEES INFOGRAPHIES'!$L$8,FALSE) -> 30970 | F35: 1533 | G35: 1402 | H35: 1587 | I35: 644 | J35: 2835 | K35: 1253 | L35: 2080 | M35: 5304 | N35: 3599 | O35: 1491 | P35: 6710 | Q35: 2532 | R35: 30970
A36: 4399C | B36: Travaux de maçonnerie générale et gros oeuvre de bâtiment | C36: =VLOOKUP(A36,'nomenclature naf'!A:C,3,FALSE) -> BTP | D36: =IF(C36='DONNEES INFOGRAPHIES'!$B$6,1,0) -> 0 | E36: =VLOOKUP(A36,A:R,'DONNEES INFOGRAPHIES'!$L$8,FALSE) -> 26783 | F36: 1816 | G36: 901 | H36: 1529 | I36: 439 | J36: 2267 | K36: 788 | L36: 2897 | M36: 4346 | N36: 2399 | O36: 2089 | P36: 5256 | Q36: 2056 | R36: 26783
A37: 4321A | B37: Travaux d'installation électrique dans tous locaux | C37: =VLOOKUP(A37,'nomenclature naf'!A:C,3,FALSE) -> BTP | D37: =IF(C37='DONNEES INFOGRAPHIES'!$B$6,1,0) -> 0 | E37: =VLOOKUP(A37,A:R,'DONNEES INFOGRAPHIES'!$L$8,FALSE) -> 26444 | F37: 1992 | G37: 690 | H37: 633 | I37: 250 | J37: 2235 | K37: 412 | L37: 1944 | M37: 4067 | N37: 2026 | O37: 1779 | P37: 8886 | Q37: 1530 | R37: 26444
A38: 7022Z | B38: Conseil pour les affaires et autres conseils de gestion | C38: =VLOOKUP(A38,'nomenclature naf'!A:C,3,FALSE) ->  | D38: =IF(C38='DONNEES INFOGRAPHIES'!$B$6,1,0) -> 0 | E38: =VLOOKUP(A38,A:R,'DONNEES INFOGRAPHIES'!$L$8,FALSE) -> 26325 | F38: 1046 | G38: 172 | H38: 344 | I38: 28 | J38: 1074 | K38: 122 | L38: 1066 | M38: 2414 | N38: 796 | O38: 1083 | P38: 17137 | Q38: 1043 | R38: 26325
A39: 6920Z | B39: Activités comptables | C39: =VLOOKUP(A39,'nomenclature naf'!A:C,3,FALSE) ->  | D39: =IF(C39='DONNEES INFOGRAPHIES'!$B$6,1,0) -> 0 | E39: =VLOOKUP(A39,A:R,'DONNEES INFOGRAPHIES'!$L$8,FALSE) -> 23019 | F39: 870 | G39: 603 | H39: 474 | I39: 344 | J39: 1196 | K39: 420 | L39: 2388 | M39: 3180 | N39: 1893 | O39: 1370 | P39: 8829 | Q39: 1452 | R39: 23019
A40: 6419Z | B40: Autres intermédiations monétaires | C40: =VLOOKUP(A40,'nomenclature naf'!A:C,3,FALSE) ->  | D40: =IF(C40='DONNEES INFOGRAPHIES'!$B$6,1,0) -> 0 | E40: =VLOOKUP(A40,A:R,'DONNEES INFOGRAPHIES'!$L$8,FALSE) -> 22662 | F40: 954 | G40: 530 | H40: 514 | I40: 170 | J40: 1433 | K40: 296 | L40: 1944 | M40: 2949 | N40: 1899 | O40: 1873 | P40: 9182 | Q40: 918 | R40: 22662
A41: 8899B | B41: Action sociale sans hébergement n.c.a. | C41: =VLOOKUP(A41,'nomenclature naf'!A:C,3,FALSE) ->  | D41: =IF(C41='DONNEES INFOGRAPHIES'!$B$6,1,0) -> 0 | E41: =VLOOKUP(A41,A:R,'DONNEES INFOGRAPHIES'!$L$8,FALSE) -> 22205 | F41: 2067 | G41: 901 | H41: 677 | I41: 1069 | J41: 1269 | K41: 937 | L41: 1068 | M41: 2577 | N41: 2251 | O41: 1891 | P41: 6201 | Q41: 1297 | R41: 22205
A42: 9499Z | B42: Autres organisations fonctionnant par adhésion volontaire | C42: =VLOOKUP(A42,'nomenclature naf'!A:C,3,FALSE) ->  | D42: =IF(C42='DONNEES INFOGRAPHIES'!$B$6,1,0) -> 0 | E42: =VLOOKUP(A42,A:R,'DONNEES INFOGRAPHIES'!$L$8,FALSE) -> 21506 | F42: 1097 | G42: 504 | H42: 963 | I42: 202 | J42: 1659 | K42: 428 | L42: 1492 | M42: 2926 | N42: 1920 | O42: 1529 | P42: 7632 | Q42: 1154 | R42: 21506
A43: 1071C | B43: Boulangerie et boulangerie-pâtisserie | C43: =VLOOKUP(A43,'nomenclature naf'!A:C,3,FALSE) -> Métier de bouche | D43: =IF(C43='DONNEES INFOGRAPHIES'!$B$6,1,0) -> 0 | E43: =VLOOKUP(A43,A:R,'DONNEES INFOGRAPHIES'!$L$8,FALSE) -> 21384 | F43: 1487 | G43: 810 | H43: 842 | I43: 412 | J43: 1455 | K43: 612 | L43: 2709 | M43: 3076 | N43: 1906 | O43: 1590 | P43: 5033 | Q43: 1452 | R43: 21384
A44: 8710A | B44: Hébergement médicalisé pour personnes âgées | C44: =VLOOKUP(A44,'nomenclature naf'!A:C,3,FALSE) ->  | D44: =IF(C44='DONNEES INFOGRAPHIES'!$B$6,1,0) -> 0 | E44: =VLOOKUP(A44,A:R,'DONNEES INFOGRAPHIES'!$L$8,FALSE) -> 21243 | F44: 1603 | G44: 1029 | H44: 1281 | I44: 607 | J44: 1665 | K44: 992 | L44: 1129 | M44: 2333 | N44: 2636 | O44: 1290 | P44: 6053 | Q44: 625 | R44: 21243
A45: 4520A | B45: Entretien et réparation de véhicules automobiles légers | C45: =VLOOKUP(A45,'nomenclature naf'!A:C,3,FALSE) ->  | D45: =IF(C45='DONNEES INFOGRAPHIES'!$B$6,1,0) -> 0 | E45: =VLOOKUP(A45,A:R,'DONNEES INFOGRAPHIES'!$L$8,FALSE) -> 21088 | F45: 1556 | G45: 670 | H45: 772 | I45: 488 | J45: 1661 | K45: 541 | L45: 2282 | M45: 3640 | N45: 2045 | O45: 1780 | P45: 4310 | Q45: 1343 | R45: 21088
A46: 4511Z | B46: Commerce de voitures et de véhicules automobiles légers | C46: =VLOOKUP(A46,'nomenclature naf'!A:C,3,FALSE) ->  | D46: =IF(C46='DONNEES INFOGRAPHIES'!$B$6,1,0) -> 0 | E46: =VLOOKUP(A46,A:R,'DONNEES INFOGRAPHIES'!$L$8,FALSE) -> 19614 | F46: 1264 | G46: 854 | H46: 434 | I46: 393 | J46: 1785 | K46: 457 | L46: 2360 | M46: 2729 | N46: 1861 | O46: 1686 | P46: 4427 | Q46: 1364 | R46: 19614
A47: 7010Z | B47: Activités des sièges sociaux | C47: =VLOOKUP(A47,'nomenclature naf'!A:C,3,FALSE) ->  | D47: =IF(C47='DONNEES INFOGRAPHIES'!$B$6,1,0) -> 0 | E47: =VLOOKUP(A47,A:R,'DONNEES INFOGRAPHIES'!$L$8,FALSE) -> 19408 | F47: 1076 | G47: 230 | H47: 245 | I47: 43 | J47: 1577 | K47: 164 | L47: 1396 | M47: 2040 | N47: 1494 | O47: 900 | P47: 9103 | Q47: 1140 | R47: 19408
A48: 8810C | B48: Aide par le travail | C48: =VLOOKUP(A48,'nomenclature naf'!A:C,3,FALSE) ->  | D48: =IF(C48='DONNEES INFOGRAPHIES'!$B$6,1,0) -> 0 | E48: =VLOOKUP(A48,A:R,'DONNEES INFOGRAPHIES'!$L$8,FALSE) -> 17748 | F48: 987 | G48: 823 | H48: 809 | I48: 324 | J48: 1202 | K48: 558 | L48: 1753 | M48: 2934 | N48: 1602 | O48: 1611 | P48: 4100 | Q48: 1045 | R48: 17748
A49: 8891A | B49: Accueil de jeunes enfants | C49: =VLOOKUP(A49,'nomenclature naf'!A:C,3,FALSE) -> Services à la personne | D49: =IF(C49='DONNEES INFOGRAPHIES'!$B$6,1,0) -> 0 | E49: =VLOOKUP(A49,A:R,'DONNEES INFOGRAPHIES'!$L$8,FALSE) -> 16741 | F49: 1272 | G49: 160 | H49: 447 | I49: 66 | J49: 678 | K49: 284 | L49: 1668 | M49: 1804 | N49: 1656 | O49: 946 | P49: 7092 | Q49: 668 | R49: 16741
A50: 4669B | B50: Commerce de gros de fournitures et équipements industriels divers | C50: =VLOOKUP(A50,'nomenclature naf'!A:C,3,FALSE) ->  | D50: =IF(C50='DONNEES INFOGRAPHIES'!$B$6,1,0) -> 0 | E50: =VLOOKUP(A50,A:R,'DONNEES INFOGRAPHIES'!$L$8,FALSE) -> 16053 | F50: 1528 | G50: 235 | H50: 182 | I50: 21 | J50: 823 | K50: 197 | L50: 1375 | M50: 2194 | N50: 980 | O50: 593 | P50: 7272 | Q50: 653 | R50: 16053
A51: 4773Z | B51: Commerce de détail produits pharmaceutiques (magasin spécialisé) | C51: =VLOOKUP(A51,'nomenclature naf'!A:C,3,FALSE) ->  | D51: =IF(C51='DONNEES INFOGRAPHIES'!$B$6,1,0) -> 0 | E51: =VLOOKUP(A51,A:R,'DONNEES INFOGRAPHIES'!$L$8,FALSE) -> 15923 | F51: 1151 | G51: 774 | H51: 625 | I51: 321 | J51: 1122 | K51: 520 | L51: 1475 | M51: 2362 | N51: 1604 | O51: 1363 | P51: 3700 | Q51: 906 | R51: 15923
A52: 4322B | B52: Travaux d'installation équipements thermiques et climatisation | C52: =VLOOKUP(A52,'nomenclature naf'!A:C,3,FALSE) -> BTP | D52: =IF(C52='DONNEES INFOGRAPHIES'!$B$6,1,0) -> 0 | E52: =VLOOKUP(A52,A:R,'DONNEES INFOGRAPHIES'!$L$8,FALSE) -> 15764 | F52: 827 | G52: 630 | H52: 376 | I52: 132 | J52: 1378 | K52: 341 | L52: 1476 | M52: 2425 | N52: 1358 | O52: 1053 | P52: 5012 | Q52: 756 | R52: 15764
A53: 8010Z | B53: Activités de sécurité privée | C53: =VLOOKUP(A53,'nomenclature naf'!A:C,3,FALSE) ->  | D53: =IF(C53='DONNEES INFOGRAPHIES'!$B$6,1,0) -> 0 | E53: =VLOOKUP(A53,A:R,'DONNEES INFOGRAPHIES'!$L$8,FALSE) -> 15726 | F53: 374 | G53: 40 | H53: 100 | I53: 20 | J53: 315 | K53: 21 | L53: 665 | M53: 1300 | N53: 793 | O53: 1131 | P53: 9969 | Q53: 998 | R53: 15726
A54: 4771Z | B54: Commerce de détail d'habillement en magasin spécialisé | C54: =VLOOKUP(A54,'nomenclature naf'!A:C,3,FALSE) ->  | D54: =IF(C54='DONNEES INFOGRAPHIES'!$B$6,1,0) -> 0 | E54: =VLOOKUP(A54,A:R,'DONNEES INFOGRAPHIES'!$L$8,FALSE) -> 15563 | F54: 822 | G54: 527 | H54: 274 | I54: 206 | J54: 972 | K54: 277 | L54: 1978 | M54: 2451 | N54: 1388 | O54: 1215 | P54: 4557 | Q54: 896 | R54: 15563
A55: 6910Z | B55: Activités juridiques | C55: =VLOOKUP(A55,'nomenclature naf'!A:C,3,FALSE) ->  | D55: =IF(C55='DONNEES INFOGRAPHIES'!$B$6,1,0) -> 0 | E55: =VLOOKUP(A55,A:R,'DONNEES INFOGRAPHIES'!$L$8,FALSE) -> 15408 | F55: 999 | G55: 459 | H55: 430 | I55: 274 | J55: 875 | K55: 261 | L55: 1835 | M55: 1992 | N55: 1109 | O55: 1187 | P55: 5093 | Q55: 894 | R55: 15408
A56: 8299Z | B56: Autres activités de soutien aux entreprises n.c.a. | C56: =VLOOKUP(A56,'nomenclature naf'!A:C,3,FALSE) ->  | D56: =IF(C56='DONNEES INFOGRAPHIES'!$B$6,1,0) -> 0 | E56: =VLOOKUP(A56,A:R,'DONNEES INFOGRAPHIES'!$L$8,FALSE) -> 14963 | F56: 412 | G56: 182 | H56: 100 | I56: 28 | J56: 677 | K56: 117 | L56: 959 | M56: 1880 | N56: 1034 | O56: 1087 | P56: 7843 | Q56: 644 | R56: 14963
A57: 2120Z | B57: Fabrication de préparations pharmaceutiques | C57: =VLOOKUP(A57,'nomenclature naf'!A:C,3,FALSE) -> Industrie du futur, production industrielle | D57: =IF(C57='DONNEES INFOGRAPHIES'!$B$6,1,0) -> 0 | E57: =VLOOKUP(A57,A:R,'DONNEES INFOGRAPHIES'!$L$8,FALSE) -> 14900 | F57: 689 | G57: 260 | H57: 976 | J57: 331 | K57: 4 | L57: 1470 | M57: 1019 | N57: 5 | O57: 1347 | P57: 8797 | Q57: 2 | R57: 14900
A58: 7219Z | B58: Recherche-développement : autres sciences physiques et naturelles | C58: =VLOOKUP(A58,'nomenclature naf'!A:C,3,FALSE) ->  | D58: =IF(C58='DONNEES INFOGRAPHIES'!$B$6,1,0) -> 0 | E58: =VLOOKUP(A58,A:R,'DONNEES INFOGRAPHIES'!$L$8,FALSE) -> 14790 | F58: 170 | G58: 82 | H58: 5 | J58: 126 | K58: 6 | L58: 338 | M58: 8670 | N58: 348 | O58: 341 | P58: 4322 | Q58: 382 | R58: 14790
A59: 6201Z | B59: Programmation informatique | C59: =VLOOKUP(A59,'nomenclature naf'!A:C,3,FALSE) -> Numérique | D59: =IF(C59='DONNEES INFOGRAPHIES'!$B$6,1,0) -> 0 | E59: =VLOOKUP(A59,A:R,'DONNEES INFOGRAPHIES'!$L$8,FALSE) -> 14369 | F59: 288 | G59: 76 | H59: 430 | I59: 46 | J59: 402 | K59: 77 | L59: 477 | M59: 2814 | N59: 601 | O59: 713 | P59: 8116 | Q59: 329 | R59: 14369
A60: 2562B | B60: Mécanique industrielle | C60: =VLOOKUP(A60,'nomenclature naf'!A:C,3,FALSE) -> Aéronautique | D60: =IF(C60='DONNEES INFOGRAPHIES'!$B$6,1,0) -> 0 | E60: =VLOOKUP(A60,A:R,'DONNEES INFOGRAPHIES'!$L$8,FALSE) -> 13266 | F60: 1229 | G60: 340 | H60: 262 | I60: 35 | J60: 755 | K60: 796 | L60: 1669 | M60: 2132 | N60: 2794 | O60: 633 | P60: 1727 | Q60: 894 | R60: 13266
A61: 9312Z | B61: Activités de clubs de sports | C61: =VLOOKUP(A61,'nomenclature naf'!A:C,3,FALSE) -> Sport, Montagne, Tourisme | D61: =IF(C61='DONNEES INFOGRAPHIES'!$B$6,1,0) -> 0 | E61: =VLOOKUP(A61,A:R,'DONNEES INFOGRAPHIES'!$L$8,FALSE) -> 13222 | F61: 877 | G61: 350 | H61: 455 | I61: 156 | J61: 761 | K61: 269 | L61: 1250 | M61: 2003 | N61: 1048 | O61: 1116 | P61: 4073 | Q61: 864 | R61: 13222
A62: 4332A | B62: Travaux de menuiserie bois et PVC | C62: =VLOOKUP(A62,'nomenclature naf'!A:C,3,FALSE) -> BTP | D62: =IF(C62='DONNEES INFOGRAPHIES'!$B$6,1,0) -> 0 | E62: =VLOOKUP(A62,A:R,'DONNEES INFOGRAPHIES'!$L$8,FALSE) -> 13060 | F62: 888 | G62: 598 | H62: 612 | I62: 344 | J62: 636 | K62: 653 | L62: 1839 | M62: 1764 | N62: 1420 | O62: 957 | P62: 2365 | Q62: 984 | R62: 13060
A63: 2611Z | B63: Fabrication de composants électroniques | C63: =VLOOKUP(A63,'nomenclature naf'!A:C,3,FALSE) -> Industrie du futur, production industrielle | D63: =IF(C63='DONNEES INFOGRAPHIES'!$B$6,1,0) -> 0 | E63: =VLOOKUP(A63,A:R,'DONNEES INFOGRAPHIES'!$L$8,FALSE) -> 13048 | F63: 27 | G63: 26 | J63: 30 | K63: 28 | L63: 875 | M63: 11257 | N63: 135 | P63: 455 | Q63: 215 | R63: 13048
A64: 6420Z | B64: Activités des sociétés holding | C64: =VLOOKUP(A64,'nomenclature naf'!A:C,3,FALSE) ->  | D64: =IF(C64='DONNEES INFOGRAPHIES'!$B$6,1,0) -> 0 | E64: =VLOOKUP(A64,A:R,'DONNEES INFOGRAPHIES'!$L$8,FALSE) -> 12649 | F64: 721 | G64: 347 | H64: 290 | I64: 62 | J64: 1047 | K64: 292 | L64: 912 | M64: 2014 | N64: 929 | O64: 644 | P64: 4669 | Q64: 722 | R64: 12649
A65: 8430A | B65: Activités générales de sécurité sociale | C65: =VLOOKUP(A65,'nomenclature naf'!A:C,3,FALSE) ->  | D65: =IF(C65='DONNEES INFOGRAPHIES'!$B$6,1,0) -> 0 | E65: =VLOOKUP(A65,A:R,'DONNEES INFOGRAPHIES'!$L$8,FALSE) -> 12625 | F65: 625 | G65: 393 | H65: 368 | I65: 195 | J65: 633 | K65: 439 | L65: 911 | M65: 1607 | N65: 1603 | O65: 1344 | P65: 4020 | Q65: 487 | R65: 12625
A66: 2211Z | B66: Fabrication et rechapage de pneumatiques | C66: =VLOOKUP(A66,'nomenclature naf'!A:C,3,FALSE) -> Industrie du futur, production industrielle | D66: =IF(C66='DONNEES INFOGRAPHIES'!$B$6,1,0) -> 0 | E66: =VLOOKUP(A66,A:R,'DONNEES INFOGRAPHIES'!$L$8,FALSE) -> 12248 | G66: 555 | K66: 540 | N66: 866 | O66: 10252 | P66: 35 | R66: 12248
A67: 9602A | B67: Coiffure | C67: =VLOOKUP(A67,'nomenclature naf'!A:C,3,FALSE) ->  | D67: =IF(C67='DONNEES INFOGRAPHIES'!$B$6,1,0) -> 0 | E67: =VLOOKUP(A67,A:R,'DONNEES INFOGRAPHIES'!$L$8,FALSE) -> 12218 | F67: 946 | G67: 506 | H67: 389 | I67: 180 | J67: 725 | K67: 216 | L67: 1469 | M67: 1812 | N67: 1044 | O67: 1055 | P67: 3229 | Q67: 647 | R67: 12218
A68: 4673A | B68: Commerce de gros de bois et de matériaux de construction | C68: =VLOOKUP(A68,'nomenclature naf'!A:C,3,FALSE) ->  | D68: =IF(C68='DONNEES INFOGRAPHIES'!$B$6,1,0) -> 0 | E68: =VLOOKUP(A68,A:R,'DONNEES INFOGRAPHIES'!$L$8,FALSE) -> 11976 | F68: 703 | G68: 309 | H68: 483 | I68: 196 | J68: 885 | K68: 289 | L68: 1270 | M68: 2016 | N68: 888 | O68: 961 | P68: 3129 | Q68: 847 | R68: 11976
A69: 3250A | B69: Fabrication de matériel médico-chirurgical et dentaire | C69: =VLOOKUP(A69,'nomenclature naf'!A:C,3,FALSE) -> Industrie du futur, production industrielle | D69: =IF(C69='DONNEES INFOGRAPHIES'!$B$6,1,0) -> 0 | E69: =VLOOKUP(A69,A:R,'DONNEES INFOGRAPHIES'!$L$8,FALSE) -> 11923 | F69: 820 | G69: 465 | H69: 92 | I69: 26 | J69: 1010 | K69: 72 | L69: 1179 | M69: 3358 | N69: 721 | O69: 328 | P69: 3705 | Q69: 147 | R69: 11923
A70: 4764Z | B70: Commerce de détail d'articles de sport en magasin spécialisé | C70: =VLOOKUP(A70,'nomenclature naf'!A:C,3,FALSE) ->  | D70: =IF(C70='DONNEES INFOGRAPHIES'!$B$6,1,0) -> 0 | E70: =VLOOKUP(A70,A:R,'DONNEES INFOGRAPHIES'!$L$8,FALSE) -> 11784 | F70: 364 | G70: 208 | H70: 188 | I70: 145 | J70: 501 | K70: 161 | L70: 2672 | M70: 1759 | N70: 533 | O70: 612 | P70: 1848 | Q70: 2793 | R70: 11784
A71: 3511Z | B71: Production d'électricité | C71: =VLOOKUP(A71,'nomenclature naf'!A:C,3,FALSE) -> Energie | D71: =IF(C71='DONNEES INFOGRAPHIES'!$B$6,1,0) -> 0 | E71: =VLOOKUP(A71,A:R,'DONNEES INFOGRAPHIES'!$L$8,FALSE) -> 11708 | F71: 1678 | G71: 41 | H71: 1479 | I71: 41 | J71: 2097 | K71: 52 | L71: 58 | M71: 1928 | N71: 21 | O71: 27 | P71: 3704 | Q71: 582 | R71: 11708
A72: 8122Z | B72: Autres activités nettoyage des bâtiments et nettoyage industriel | C72: =VLOOKUP(A72,'nomenclature naf'!A:C,3,FALSE) ->  | D72: =IF(C72='DONNEES INFOGRAPHIES'!$B$6,1,0) -> 0 | E72: =VLOOKUP(A72,A:R,'DONNEES INFOGRAPHIES'!$L$8,FALSE) -> 11585 | F72: 1107 | G72: 114 | H72: 114 | I72: 38 | J72: 655 | K72: 68 | L72: 694 | M72: 1561 | N72: 955 | O72: 1026 | P72: 4817 | Q72: 436 | R72: 11585
A73: 5520Z | B73: Hébergement touristique et autre hébergement de courte durée | C73: =VLOOKUP(A73,'nomenclature naf'!A:C,3,FALSE) -> Sport, Montagne, Tourisme | D73: =IF(C73='DONNEES INFOGRAPHIES'!$B$6,1,0) -> 0 | E73: =VLOOKUP(A73,A:R,'DONNEES INFOGRAPHIES'!$L$8,FALSE) -> 11554 | F73: 226 | G73: 78 | H73: 172 | I73: 66 | J73: 254 | K73: 169 | L73: 2474 | M73: 1222 | N73: 103 | O73: 335 | P73: 842 | Q73: 5613 | R73: 11554
A74: 6820A | B74: Location de logements | C74: =VLOOKUP(A74,'nomenclature naf'!A:C,3,FALSE) ->  | D74: =IF(C74='DONNEES INFOGRAPHIES'!$B$6,1,0) -> 0 | E74: =VLOOKUP(A74,A:R,'DONNEES INFOGRAPHIES'!$L$8,FALSE) -> 11315 | F74: 1076 | G74: 429 | H74: 215 | I74: 138 | J74: 514 | K74: 192 | L74: 833 | M74: 1738 | N74: 1130 | O74: 775 | P74: 3743 | Q74: 532 | R74: 11315
A75: 4312A | B75: Travaux de terrassement courants et travaux préparatoires | C75: =VLOOKUP(A75,'nomenclature naf'!A:C,3,FALSE) -> BTP | D75: =IF(C75='DONNEES INFOGRAPHIES'!$B$6,1,0) -> 0 | E75: =VLOOKUP(A75,A:R,'DONNEES INFOGRAPHIES'!$L$8,FALSE) -> 11254 | F75: 1059 | G75: 237 | H75: 645 | I75: 361 | J75: 718 | K75: 496 | L75: 1420 | M75: 1955 | N75: 797 | O75: 679 | P75: 1977 | Q75: 910 | R75: 11254
A76: 6512Z | B76: Autres assurances | C76: =VLOOKUP(A76,'nomenclature naf'!A:C,3,FALSE) ->  | D76: =IF(C76='DONNEES INFOGRAPHIES'!$B$6,1,0) -> 0 | E76: =VLOOKUP(A76,A:R,'DONNEES INFOGRAPHIES'!$L$8,FALSE) -> 11162 | F76: 306 | G76: 343 | H76: 183 | I76: 62 | J76: 694 | K76: 73 | L76: 513 | M76: 1101 | N76: 1145 | O76: 684 | P76: 5725 | Q76: 333 | R76: 11162
A77: 5630Z | B77: Débits de boissons | C77: =VLOOKUP(A77,'nomenclature naf'!A:C,3,FALSE) -> Sport, Montagne, Tourisme | D77: =IF(C77='DONNEES INFOGRAPHIES'!$B$6,1,0) -> 0 | E77: =VLOOKUP(A77,A:R,'DONNEES INFOGRAPHIES'!$L$8,FALSE) -> 10968 | F77: 406 | G77: 259 | H77: 302 | I77: 271 | J77: 546 | K77: 315 | L77: 1659 | M77: 1264 | N77: 934 | O77: 898 | P77: 2541 | Q77: 1573 | R77: 10968
A78: 6831Z | B78: Agences immobilières | C78: =VLOOKUP(A78,'nomenclature naf'!A:C,3,FALSE) ->  | D78: =IF(C78='DONNEES INFOGRAPHIES'!$B$6,1,0) -> 0 | E78: =VLOOKUP(A78,A:R,'DONNEES INFOGRAPHIES'!$L$8,FALSE) -> 10844 | F78: 514 | G78: 243 | H78: 214 | I78: 79 | J78: 571 | K78: 130 | L78: 2190 | M78: 1305 | N78: 577 | O78: 577 | P78: 3294 | Q78: 1150 | R78: 10844
A79: 2712Z | B79: Fabrication de matériel de distribution et de commande électrique | C79: =VLOOKUP(A79,'nomenclature naf'!A:C,3,FALSE) -> Industrie du futur, production industrielle | D79: =IF(C79='DONNEES INFOGRAPHIES'!$B$6,1,0) -> 0 | E79: =VLOOKUP(A79,A:R,'DONNEES INFOGRAPHIES'!$L$8,FALSE) -> 10660 | F79: 419 | G79: 50 | H79: 338 | J79: 338 | K79: 1 | L79: 266 | M79: 5733 | N79: 339 | O79: 62 | P79: 1587 | Q79: 1527 | R79: 10660
A80: 4939C | B80: Téléphériques et remontées mécaniques | C80: =VLOOKUP(A80,'nomenclature naf'!A:C,3,FALSE) -> Sport, Montagne, Tourisme | D80: =IF(C80='DONNEES INFOGRAPHIES'!$B$6,1,0) -> 0 | E80: =VLOOKUP(A80,A:R,'DONNEES INFOGRAPHIES'!$L$8,FALSE) -> 10602 | I80: 98 | J80: 42 | L80: 3582 | M80: 1458 | O80: 221 | Q80: 5201 | R80: 10602
A81: 4334Z | B81: Travaux de peinture et vitrerie | C81: =VLOOKUP(A81,'nomenclature naf'!A:C,3,FALSE) -> BTP | D81: =IF(C81='DONNEES INFOGRAPHIES'!$B$6,1,0) -> 0 | E81: =VLOOKUP(A81,A:R,'DONNEES INFOGRAPHIES'!$L$8,FALSE) -> 10501 | F81: 587 | G81: 340 | H81: 273 | I81: 80 | J81: 538 | K81: 162 | L81: 1201 | M81: 2166 | N81: 706 | O81: 933 | P81: 2782 | Q81: 733 | R81: 10501
A82: 7120B | B82: Analyses, essais et inspections techniques | C82: =VLOOKUP(A82,'nomenclature naf'!A:C,3,FALSE) ->  | D82: =IF(C82='DONNEES INFOGRAPHIES'!$B$6,1,0) -> 0 | E82: =VLOOKUP(A82,A:R,'DONNEES INFOGRAPHIES'!$L$8,FALSE) -> 10252 | F82: 386 | G82: 125 | H82: 144 | I82: 59 | J82: 573 | K82: 92 | L82: 538 | M82: 1821 | N82: 1073 | O82: 606 | P82: 4382 | Q82: 453 | R82: 10252
A83: 8559A | B83: Formation continue d'adultes | C83: =VLOOKUP(A83,'nomenclature naf'!A:C,3,FALSE) ->  | D83: =IF(C83='DONNEES INFOGRAPHIES'!$B$6,1,0) -> 0 | E83: =VLOOKUP(A83,A:R,'DONNEES INFOGRAPHIES'!$L$8,FALSE) -> 10139 | F83: 305 | G83: 256 | H83: 179 | I83: 59 | J83: 679 | K83: 126 | L83: 399 | M83: 929 | N83: 835 | O83: 817 | P83: 5058 | Q83: 497 | R83: 10139
A84: 3513Z | B84: Distribution d'électricité | C84: =VLOOKUP(A84,'nomenclature naf'!A:C,3,FALSE) -> Energie | D84: =IF(C84='DONNEES INFOGRAPHIES'!$B$6,1,0) -> 0 | E84: =VLOOKUP(A84,A:R,'DONNEES INFOGRAPHIES'!$L$8,FALSE) -> 10111 | F84: 861 | G84: 239 | H84: 229 | I84: 188 | J84: 705 | K84: 236 | L84: 599 | M84: 1816 | N84: 417 | O84: 900 | P84: 2860 | Q84: 1061 | R84: 10111
A85: 4910Z | B85: Transport ferroviaire interurbain de voyageurs | C85: =VLOOKUP(A85,'nomenclature naf'!A:C,3,FALSE) -> Sport, Montagne, Tourisme | D85: =IF(C85='DONNEES INFOGRAPHIES'!$B$6,1,0) -> 0 | E85: =VLOOKUP(A85,A:R,'DONNEES INFOGRAPHIES'!$L$8,FALSE) -> 9902 | F85: 224 | G85: 119 | H85: 4 | I85: 60 | J85: 424 | K85: 20 | L85: 549 | M85: 482 | N85: 359 | O85: 775 | P85: 6026 | Q85: 860 | R85: 9902
A86: 6622Z | B86: Activités des agents et courtiers d'assurances | C86: =VLOOKUP(A86,'nomenclature naf'!A:C,3,FALSE) ->  | D86: =IF(C86='DONNEES INFOGRAPHIES'!$B$6,1,0) -> 0 | E86: =VLOOKUP(A86,A:R,'DONNEES INFOGRAPHIES'!$L$8,FALSE) -> 9832 | F86: 411 | G86: 220 | H86: 197 | I86: 99 | J86: 1000 | K86: 191 | L86: 601 | M86: 890 | N86: 1006 | O86: 428 | P86: 4470 | Q86: 319 | R86: 9832
A87: 4322A | B87: Travaux d'installation d'eau et de gaz en tous locaux | C87: =VLOOKUP(A87,'nomenclature naf'!A:C,3,FALSE) -> BTP | D87: =IF(C87='DONNEES INFOGRAPHIES'!$B$6,1,0) -> 0 | E87: =VLOOKUP(A87,A:R,'DONNEES INFOGRAPHIES'!$L$8,FALSE) -> 9768 | F87: 898 | G87: 369 | H87: 298 | I87: 161 | J87: 623 | K87: 354 | L87: 779 | M87: 1677 | N87: 917 | O87: 589 | P87: 2523 | Q87: 580 | R87: 9768
A88: 4752B | B88: Comm. détail de quincaillerie, peintures et verres (mag.> 400 m2) | C88: =VLOOKUP(A88,'nomenclature naf'!A:C,3,FALSE) ->  | D88: =IF(C88='DONNEES INFOGRAPHIES'!$B$6,1,0) -> 0 | E88: =VLOOKUP(A88,A:R,'DONNEES INFOGRAPHIES'!$L$8,FALSE) -> 9581 | F88: 708 | G88: 415 | H88: 179 | I88: 146 | J88: 874 | K88: 261 | L88: 1120 | M88: 1762 | N88: 852 | O88: 697 | P88: 1900 | Q88: 667 | R88: 9581
A89: 7830Z | B89: Autre mise à disposition de ressources humaines | C89: =VLOOKUP(A89,'nomenclature naf'!A:C,3,FALSE) ->  | D89: =IF(C89='DONNEES INFOGRAPHIES'!$B$6,1,0) -> 0 | E89: =VLOOKUP(A89,A:R,'DONNEES INFOGRAPHIES'!$L$8,FALSE) -> 9574 | F89: 196 | G89: 422 | H89: 105 | I89: 54 | J89: 512 | K89: 207 | L89: 559 | M89: 1293 | N89: 724 | O89: 1038 | P89: 3764 | Q89: 700 | R89: 9574
A90: 8720A | B90: Hébergement social pour handicapés mentaux et malades mentaux | C90: =VLOOKUP(A90,'nomenclature naf'!A:C,3,FALSE) ->  | D90: =IF(C90='DONNEES INFOGRAPHIES'!$B$6,1,0) -> 0 | E90: =VLOOKUP(A90,A:R,'DONNEES INFOGRAPHIES'!$L$8,FALSE) -> 9466 | F90: 616 | G90: 425 | H90: 325 | I90: 482 | J90: 998 | K90: 411 | L90: 776 | M90: 1091 | N90: 814 | O90: 539 | P90: 2410 | Q90: 579 | R90: 9466
A91: 4331Z | B91: Travaux de plâtrerie | C91: =VLOOKUP(A91,'nomenclature naf'!A:C,3,FALSE) -> BTP | D91: =IF(C91='DONNEES INFOGRAPHIES'!$B$6,1,0) -> 0 | E91: =VLOOKUP(A91,A:R,'DONNEES INFOGRAPHIES'!$L$8,FALSE) -> 9465 | F91: 752 | G91: 459 | H91: 197 | I91: 263 | J91: 416 | K91: 382 | L91: 558 | M91: 973 | N91: 1372 | O91: 852 | P91: 2763 | Q91: 478 | R91: 9465
A92: 8710B | B92: Hébergement médicalisé pour enfants handicapés | C92: =VLOOKUP(A92,'nomenclature naf'!A:C,3,FALSE) ->  | D92: =IF(C92='DONNEES INFOGRAPHIES'!$B$6,1,0) -> 0 | E92: =VLOOKUP(A92,A:R,'DONNEES INFOGRAPHIES'!$L$8,FALSE) -> 8942 | F92: 841 | G92: 576 | H92: 231 | I92: 153 | J92: 432 | K92: 340 | L92: 911 | M92: 1414 | N92: 700 | O92: 631 | P92: 2294 | Q92: 419 | R92: 8942
A93: 2910Z | B93: Construction de véhicules automobiles | C93: =VLOOKUP(A93,'nomenclature naf'!A:C,3,FALSE) -> Industrie du futur, production industrielle | D93: =IF(C93='DONNEES INFOGRAPHIES'!$B$6,1,0) -> 0 | E93: =VLOOKUP(A93,A:R,'DONNEES INFOGRAPHIES'!$L$8,FALSE) -> 8810 | F93: 1382 | G93: 260 | H93: 2103 | J93: 29 | L93: 17 | M93: 85 | N93: 161 | O93: 9 | P93: 4684 | Q93: 80 | R93: 8810
A94: 5829C | B94: Edition de logiciels applicatifs | C94: =VLOOKUP(A94,'nomenclature naf'!A:C,3,FALSE) -> Numérique | D94: =IF(C94='DONNEES INFOGRAPHIES'!$B$6,1,0) -> 0 | E94: =VLOOKUP(A94,A:R,'DONNEES INFOGRAPHIES'!$L$8,FALSE) -> 8723 | F94: 50 | G94: 2 | H94: 82 | I94: 87 | J94: 104 | K94: 51 | L94: 482 | M94: 1841 | N94: 334 | O94: 507 | P94: 4957 | Q94: 226 | R94: 8723
A95: 2511Z | B95: Fabrication de structures métalliques et de parties de structures | C95: =VLOOKUP(A95,'nomenclature naf'!A:C,3,FALSE) -> Aéronautique | D95: =IF(C95='DONNEES INFOGRAPHIES'!$B$6,1,0) -> 0 | E95: =VLOOKUP(A95,A:R,'DONNEES INFOGRAPHIES'!$L$8,FALSE) -> 8570 | F95: 1311 | G95: 651 | H95: 119 | I95: 112 | J95: 375 | K95: 436 | L95: 422 | M95: 1194 | N95: 934 | O95: 532 | P95: 1943 | Q95: 541 | R95: 8570
A96: 1512Z | B96: Fabrication d'articles de voyage, de maroquinerie et de sellerie | C96: =VLOOKUP(A96,'nomenclature naf'!A:C,3,FALSE) -> Industrie du futur, production industrielle | D96: =IF(C96='DONNEES INFOGRAPHIES'!$B$6,1,0) -> 0 | E96: =VLOOKUP(A96,A:R,'DONNEES INFOGRAPHIES'!$L$8,FALSE) -> 8423 | F96: 253 | G96: 1794 | H96: 492 | I96: 292 | J96: 1983 | K96: 570 | L96: 205 | M96: 410 | N96: 626 | O96: 918 | P96: 526 | Q96: 354 | R96: 8423
A97: 8542Z | B97: Enseignement supérieur | C97: =VLOOKUP(A97,'nomenclature naf'!A:C,3,FALSE) ->  | D97: =IF(C97='DONNEES INFOGRAPHIES'!$B$6,1,0) -> 0 | E97: =VLOOKUP(A97,A:R,'DONNEES INFOGRAPHIES'!$L$8,FALSE) -> 8169 | F97: 132 | G97: 64 | J97: 80 | K97: 19 | L97: 451 | M97: 1272 | N97: 691 | O97: 378 | P97: 4738 | Q97: 344 | R97: 8169
A98: 2229A | B98: Fabrication de pièces techniques à base de matières plastiques | C98: =VLOOKUP(A98,'nomenclature naf'!A:C,3,FALSE) -> Polymères | D98: =IF(C98='DONNEES INFOGRAPHIES'!$B$6,1,0) -> 0 | E98: =VLOOKUP(A98,A:R,'DONNEES INFOGRAPHIES'!$L$8,FALSE) -> 8137 | F98: 3054 | G98: 36 | H98: 206 | I98: 498 | J98: 537 | K98: 120 | L98: 333 | M98: 1524 | N98: 212 | O98: 633 | P98: 749 | Q98: 235 | R98: 8137
A99: 4211Z | B99: Construction de routes et autoroutes | C99: =VLOOKUP(A99,'nomenclature naf'!A:C,3,FALSE) -> BTP | D99: =IF(C99='DONNEES INFOGRAPHIES'!$B$6,1,0) -> 0 | E99: =VLOOKUP(A99,A:R,'DONNEES INFOGRAPHIES'!$L$8,FALSE) -> 7945 | F99: 446 | G99: 328 | H99: 313 | I99: 436 | J99: 403 | K99: 233 | L99: 918 | M99: 1067 | N99: 504 | O99: 810 | P99: 1879 | Q99: 608 | R99: 7945
A100: 7311Z | B100: Activités des agences de publicité | C100: =VLOOKUP(A100,'nomenclature naf'!A:C,3,FALSE) ->  | D100: =IF(C100='DONNEES INFOGRAPHIES'!$B$6,1,0) -> 0 | E100: =VLOOKUP(A100,A:R,'DONNEES INFOGRAPHIES'!$L$8,FALSE) -> 7916 | F100: 162 | G100: 177 | H100: 68 | I100: 12 | J100: 492 | K100: 73 | L100: 589 | M100: 1172 | N100: 929 | O100: 456 | P100: 3497 | Q100: 289 | R100: 7916
A101: 6110Z | B101: Télécommunications filaires | C101: =VLOOKUP(A101,'nomenclature naf'!A:C,3,FALSE) -> Numérique | D101: =IF(C101='DONNEES INFOGRAPHIES'!$B$6,1,0) -> 0 | E101: =VLOOKUP(A101,A:R,'DONNEES INFOGRAPHIES'!$L$8,FALSE) -> 7486 | F101: 111 | G101: 93 | H101: 62 | I101: 61 | J101: 376 | K101: 84 | L101: 334 | M101: 1128 | N101: 369 | O101: 508 | P101: 4184 | Q101: 176 | R101: 7486
A102: 4646Z | B102: Commerce de gros de produits pharmaceutiques | C102: =VLOOKUP(A102,'nomenclature naf'!A:C,3,FALSE) ->  | D102: =IF(C102='DONNEES INFOGRAPHIES'!$B$6,1,0) -> 0 | E102: =VLOOKUP(A102,A:R,'DONNEES INFOGRAPHIES'!$L$8,FALSE) -> 7466 | F102: 191 | G102: 140 | H102: 26 | I102: 22 | J102: 219 | K102: 8 | L102: 371 | M102: 1468 | N102: 157 | O102: 583 | P102: 4268 | Q102: 13 | R102: 7466
A103: 4332B | B103: Travaux de menuiserie métallique et serrurerie | C103: =VLOOKUP(A103,'nomenclature naf'!A:C,3,FALSE) -> BTP | D103: =IF(C103='DONNEES INFOGRAPHIES'!$B$6,1,0) -> 0 | E103: =VLOOKUP(A103,A:R,'DONNEES INFOGRAPHIES'!$L$8,FALSE) -> 7263 | F103: 465 | G103: 160 | H103: 227 | I103: 154 | J103: 498 | K103: 179 | L103: 632 | M103: 1037 | N103: 1070 | O103: 584 | P103: 1806 | Q103: 451 | R103: 7263
A104: 4759A | B104: Commerce de détail de meubles | C104: =VLOOKUP(A104,'nomenclature naf'!A:C,3,FALSE) ->  | D104: =IF(C104='DONNEES INFOGRAPHIES'!$B$6,1,0) -> 0 | E104: =VLOOKUP(A104,A:R,'DONNEES INFOGRAPHIES'!$L$8,FALSE) -> 7093 | F104: 410 | G104: 272 | H104: 110 | I104: 146 | J104: 454 | K104: 124 | L104: 865 | M104: 1092 | N104: 697 | O104: 695 | P104: 1868 | Q104: 360 | R104: 7093
A105: 2562A | B105: Décolletage | C105: =VLOOKUP(A105,'nomenclature naf'!A:C,3,FALSE) -> Aéronautique | D105: =IF(C105='DONNEES INFOGRAPHIES'!$B$6,1,0) -> 0 | E105: =VLOOKUP(A105,A:R,'DONNEES INFOGRAPHIES'!$L$8,FALSE) -> 6992 | F105: 155 | H105: 51 | J105: 13 | K105: 47 | L105: 6247 | M105: 129 | N105: 130 | O105: 40 | P105: 178 | Q105: 2 | R105: 6992
A106: 4222Z | B106: Construction de réseaux électriques et de télécommunications | C106: =VLOOKUP(A106,'nomenclature naf'!A:C,3,FALSE) -> BTP | D106: =IF(C106='DONNEES INFOGRAPHIES'!$B$6,1,0) -> 0 | E106: =VLOOKUP(A106,A:R,'DONNEES INFOGRAPHIES'!$L$8,FALSE) -> 6910 | F106: 456 | G106: 108 | H106: 142 | I106: 303 | J106: 309 | K106: 189 | L106: 447 | M106: 626 | N106: 674 | O106: 423 | P106: 2828 | Q106: 405 | R106: 6910
A107: 8623Z | B107: Pratique dentaire | C107: =VLOOKUP(A107,'nomenclature naf'!A:C,3,FALSE) -> Santé | D107: =IF(C107='DONNEES INFOGRAPHIES'!$B$6,1,0) -> 0 | E107: =VLOOKUP(A107,A:R,'DONNEES INFOGRAPHIES'!$L$8,FALSE) -> 6879 | F107: 491 | G107: 180 | H107: 189 | I107: 51 | J107: 390 | K107: 139 | L107: 732 | M107: 1098 | N107: 661 | O107: 402 | P107: 2129 | Q107: 417 | R107: 6879
A108: 2932Z | B108: Fabrication d'autres équipements automobiles | C108: =VLOOKUP(A108,'nomenclature naf'!A:C,3,FALSE) -> Industrie du futur, production industrielle | D108: =IF(C108='DONNEES INFOGRAPHIES'!$B$6,1,0) -> 0 | E108: =VLOOKUP(A108,A:R,'DONNEES INFOGRAPHIES'!$L$8,FALSE) -> 6874 | F108: 1212 | G108: 384 | H108: 874 | J108: 153 | K108: 532 | L108: 356 | M108: 731 | N108: 1330 | O108: 21 | P108: 1232 | Q108: 49 | R108: 6874
A109: 6832A | B109: Administration d'immeubles et autres biens immobiliers | C109: =VLOOKUP(A109,'nomenclature naf'!A:C,3,FALSE) ->  | D109: =IF(C109='DONNEES INFOGRAPHIES'!$B$6,1,0) -> 0 | E109: =VLOOKUP(A109,A:R,'DONNEES INFOGRAPHIES'!$L$8,FALSE) -> 6841 | F109: 266 | G109: 141 | H109: 52 | I109: 10 | J109: 214 | K109: 28 | L109: 673 | M109: 943 | N109: 450 | O109: 327 | P109: 3291 | Q109: 446 | R109: 6841
A110: 8790A | B110: Hébergement social pour enfants en difficultés | C110: =VLOOKUP(A110,'nomenclature naf'!A:C,3,FALSE) ->  | D110: =IF(C110='DONNEES INFOGRAPHIES'!$B$6,1,0) -> 0 | E110: =VLOOKUP(A110,A:R,'DONNEES INFOGRAPHIES'!$L$8,FALSE) -> 6794 | F110: 318 | G110: 207 | H110: 230 | I110: 78 | J110: 561 | K110: 351 | L110: 607 | M110: 583 | N110: 804 | O110: 390 | P110: 2210 | Q110: 455 | R110: 6794
A111: 5629B | B111: Autres services de restauration n.c.a. | C111: =VLOOKUP(A111,'nomenclature naf'!A:C,3,FALSE) ->  | D111: =IF(C111='DONNEES INFOGRAPHIES'!$B$6,1,0) -> 0 | E111: =VLOOKUP(A111,A:R,'DONNEES INFOGRAPHIES'!$L$8,FALSE) -> 6758 | F111: 533 | G111: 43 | H111: 109 | I111: 14 | J111: 388 | K111: 59 | L111: 388 | M111: 659 | N111: 391 | O111: 381 | P111: 3633 | Q111: 160 | R111: 6758
A112: 8621Z | B112: Activité des médecins généralistes | C112: =VLOOKUP(A112,'nomenclature naf'!A:C,3,FALSE) -> Santé | D112: =IF(C112='DONNEES INFOGRAPHIES'!$B$6,1,0) -> 0 | E112: =VLOOKUP(A112,A:R,'DONNEES INFOGRAPHIES'!$L$8,FALSE) -> 6702 | F112: 404 | G112: 195 | H112: 287 | I112: 113 | J112: 411 | K112: 123 | L112: 562 | M112: 1005 | N112: 633 | O112: 472 | P112: 2082 | Q112: 415 | R112: 6702
A113: 4722Z | B113: Comm. détail viandes & produits à base de viande (magas. spéc.) | C113: =VLOOKUP(A113,'nomenclature naf'!A:C,3,FALSE) -> Métier de bouche | D113: =IF(C113='DONNEES INFOGRAPHIES'!$B$6,1,0) -> 0 | E113: =VLOOKUP(A113,A:R,'DONNEES INFOGRAPHIES'!$L$8,FALSE) -> 6661 | F113: 519 | G113: 178 | H113: 400 | I113: 196 | J113: 319 | K113: 181 | L113: 815 | M113: 911 | N113: 746 | O113: 540 | P113: 1509 | Q113: 347 | R113: 6661
A114: 4531Z | B114: Commerce de gros d'équipements automobiles | C114: =VLOOKUP(A114,'nomenclature naf'!A:C,3,FALSE) ->  | D114: =IF(C114='DONNEES INFOGRAPHIES'!$B$6,1,0) -> 0 | E114: =VLOOKUP(A114,A:R,'DONNEES INFOGRAPHIES'!$L$8,FALSE) -> 6605 | F114: 366 | G114: 152 | H114: 102 | I114: 152 | J114: 544 | K114: 167 | L114: 277 | M114: 671 | N114: 297 | O114: 479 | P114: 3036 | Q114: 362 | R114: 6605
A115: 7111Z | B115: Activités d'architecture | C115: =VLOOKUP(A115,'nomenclature naf'!A:C,3,FALSE) ->  | D115: =IF(C115='DONNEES INFOGRAPHIES'!$B$6,1,0) -> 0 | E115: =VLOOKUP(A115,A:R,'DONNEES INFOGRAPHIES'!$L$8,FALSE) -> 6388 | F115: 176 | G115: 60 | H115: 129 | I115: 69 | J115: 221 | K115: 58 | L115: 654 | M115: 878 | N115: 500 | O115: 547 | P115: 2492 | Q115: 604 | R115: 6388
A116: 9329Z | B116: Autres activités récréatives et de loisirs | C116: =VLOOKUP(A116,'nomenclature naf'!A:C,3,FALSE) -> Sport, Montagne, Tourisme | D116: =IF(C116='DONNEES INFOGRAPHIES'!$B$6,1,0) -> 0 | E116: =VLOOKUP(A116,A:R,'DONNEES INFOGRAPHIES'!$L$8,FALSE) -> 6375 | F116: 649 | G116: 207 | H116: 160 | I116: 33 | J116: 295 | K116: 178 | L116: 799 | M116: 749 | N116: 566 | O116: 367 | P116: 1912 | Q116: 460 | R116: 6375
A117: 4391A | B117: Travaux de charpente | C117: =VLOOKUP(A117,'nomenclature naf'!A:C,3,FALSE) -> BTP | D117: =IF(C117='DONNEES INFOGRAPHIES'!$B$6,1,0) -> 0 | E117: =VLOOKUP(A117,A:R,'DONNEES INFOGRAPHIES'!$L$8,FALSE) -> 6254 | F117: 645 | G117: 61 | H117: 163 | I117: 37 | J117: 305 | K117: 225 | L117: 1267 | M117: 1305 | N117: 492 | O117: 316 | P117: 631 | Q117: 807 | R117: 6254
A118: 8690A | B118: Ambulances | C118: =VLOOKUP(A118,'nomenclature naf'!A:C,3,FALSE) -> Santé | D118: =IF(C118='DONNEES INFOGRAPHIES'!$B$6,1,0) -> 0 | E118: =VLOOKUP(A118,A:R,'DONNEES INFOGRAPHIES'!$L$8,FALSE) -> 6069 | F118: 424 | G118: 506 | H118: 282 | I118: 244 | J118: 456 | K118: 319 | L118: 513 | M118: 824 | N118: 706 | O118: 486 | P118: 953 | Q118: 356 | R118: 6069
A119: 4649Z | B119: Commerce de gros d'autres biens domestiques | C119: =VLOOKUP(A119,'nomenclature naf'!A:C,3,FALSE) ->  | D119: =IF(C119='DONNEES INFOGRAPHIES'!$B$6,1,0) -> 0 | E119: =VLOOKUP(A119,A:R,'DONNEES INFOGRAPHIES'!$L$8,FALSE) -> 6068 | F119: 214 | G119: 21 | H119: 78 | I119: 9 | J119: 366 | K119: 32 | L119: 1144 | M119: 1078 | N119: 535 | O119: 304 | P119: 1953 | Q119: 334 | R119: 6068
A120: 8690B | B120: Laboratoires d'analyses médicales | C120: =VLOOKUP(A120,'nomenclature naf'!A:C,3,FALSE) -> Santé | D120: =IF(C120='DONNEES INFOGRAPHIES'!$B$6,1,0) -> 0 | E120: =VLOOKUP(A120,A:R,'DONNEES INFOGRAPHIES'!$L$8,FALSE) -> 6048 | F120: 327 | G120: 281 | H120: 189 | I120: 154 | J120: 347 | K120: 151 | L120: 628 | M120: 929 | N120: 432 | O120: 543 | P120: 1718 | Q120: 349 | R120: 6048
A121: 8211Z | B121: Services administratifs combinés de bureau | C121: =VLOOKUP(A121,'nomenclature naf'!A:C,3,FALSE) ->  | D121: =IF(C121='DONNEES INFOGRAPHIES'!$B$6,1,0) -> 0 | E121: =VLOOKUP(A121,A:R,'DONNEES INFOGRAPHIES'!$L$8,FALSE) -> 5947 | F121: 424 | G121: 100 | H121: 38 | I121: 39 | J121: 273 | K121: 51 | L121: 390 | M121: 648 | N121: 491 | O121: 457 | P121: 2761 | Q121: 275 | R121: 5947
A122: 8710C | B122: Héberg. médicalisé adultes handicapés & autre héberg. médicalisé | C122: =VLOOKUP(A122,'nomenclature naf'!A:C,3,FALSE) ->  | D122: =IF(C122='DONNEES INFOGRAPHIES'!$B$6,1,0) -> 0 | E122: =VLOOKUP(A122,A:R,'DONNEES INFOGRAPHIES'!$L$8,FALSE) -> 5944 | F122: 435 | G122: 229 | H122: 296 | I122: 334 | J122: 328 | K122: 316 | L122: 235 | M122: 832 | N122: 562 | O122: 594 | P122: 1433 | Q122: 350 | R122: 5944
A123: 4333Z | B123: Travaux de revêtement des sols et des murs | C123: =VLOOKUP(A123,'nomenclature naf'!A:C,3,FALSE) -> BTP | D123: =IF(C123='DONNEES INFOGRAPHIES'!$B$6,1,0) -> 0 | E123: =VLOOKUP(A123,A:R,'DONNEES INFOGRAPHIES'!$L$8,FALSE) -> 5861 | F123: 550 | G123: 221 | H123: 164 | I123: 123 | J123: 380 | K123: 109 | L123: 666 | M123: 1005 | N123: 600 | O123: 248 | P123: 1449 | Q123: 346 | R123: 5861
A124: 4711B | B124: Commerce d'alimentation générale | C124: =VLOOKUP(A124,'nomenclature naf'!A:C,3,FALSE) ->  | D124: =IF(C124='DONNEES INFOGRAPHIES'!$B$6,1,0) -> 0 | E124: =VLOOKUP(A124,A:R,'DONNEES INFOGRAPHIES'!$L$8,FALSE) -> 5814 | F124: 259 | G124: 137 | H124: 185 | I124: 91 | J124: 398 | K124: 102 | L124: 608 | M124: 837 | N124: 459 | O124: 295 | P124: 1830 | Q124: 613 | R124: 5814
A125: 7490B | B125: Activités spécialisées, scientifiques et techniques diverses | C125: =VLOOKUP(A125,'nomenclature naf'!A:C,3,FALSE) ->  | D125: =IF(C125='DONNEES INFOGRAPHIES'!$B$6,1,0) -> 0 | E125: =VLOOKUP(A125,A:R,'DONNEES INFOGRAPHIES'!$L$8,FALSE) -> 5806 | F125: 208 | G125: 39 | H125: 22 | I125: 13 | J125: 410 | K125: 24 | L125: 158 | M125: 1466 | N125: 330 | O125: 208 | P125: 2656 | Q125: 272 | R125: 5806
A126: 4778A | B126: Commerces de détail d'optique | C126: =VLOOKUP(A126,'nomenclature naf'!A:C,3,FALSE) ->  | D126: =IF(C126='DONNEES INFOGRAPHIES'!$B$6,1,0) -> 0 | E126: =VLOOKUP(A126,A:R,'DONNEES INFOGRAPHIES'!$L$8,FALSE) -> 5806 | F126: 408 | G126: 225 | H126: 210 | I126: 97 | J126: 354 | K126: 143 | L126: 535 | M126: 945 | N126: 549 | O126: 422 | P126: 1600 | Q126: 318 | R126: 5806
A127: 1812Z | B127: Autre imprimerie (labeur) | C127: =VLOOKUP(A127,'nomenclature naf'!A:C,3,FALSE) -> Industrie du futur, production industrielle | D127: =IF(C127='DONNEES INFOGRAPHIES'!$B$6,1,0) -> 0 | E127: =VLOOKUP(A127,A:R,'DONNEES INFOGRAPHIES'!$L$8,FALSE) -> 5803 | F127: 449 | G127: 193 | H127: 231 | I127: 67 | J127: 857 | K127: 57 | L127: 211 | M127: 771 | N127: 778 | O127: 967 | P127: 1103 | Q127: 119 | R127: 5803
A128: 2222Z | B128: Fabrication d'emballages en matières plastiques | C128: =VLOOKUP(A128,'nomenclature naf'!A:C,3,FALSE) -> Polymères | D128: =IF(C128='DONNEES INFOGRAPHIES'!$B$6,1,0) -> 0 | E128: =VLOOKUP(A128,A:R,'DONNEES INFOGRAPHIES'!$L$8,FALSE) -> 5765 | F128: 1856 | G128: 294 | H128: 2 | I128: 10 | J128: 313 | K128: 1036 | L128: 429 | M128: 303 | N128: 698 | O128: 318 | P128: 489 | Q128: 17 | R128: 5765
A129: 4669A | B129: Commerce de gros de matériel électrique | C129: =VLOOKUP(A129,'nomenclature naf'!A:C,3,FALSE) ->  | D129: =IF(C129='DONNEES INFOGRAPHIES'!$B$6,1,0) -> 0 | E129: =VLOOKUP(A129,A:R,'DONNEES INFOGRAPHIES'!$L$8,FALSE) -> 5653 | F129: 590 | G129: 89 | H129: 52 | I129: 31 | J129: 301 | K129: 48 | L129: 306 | M129: 928 | N129: 438 | O129: 322 | P129: 2329 | Q129: 219 | R129: 5653
A130: 2825Z | B130: Fabrication équipements aérauliques et frigorifiques industriels | C130: =VLOOKUP(A130,'nomenclature naf'!A:C,3,FALSE) -> Industrie du futur, production industrielle | D130: =IF(C130='DONNEES INFOGRAPHIES'!$B$6,1,0) -> 0 | E130: =VLOOKUP(A130,A:R,'DONNEES INFOGRAPHIES'!$L$8,FALSE) -> 5650 | F130: 1760 | G130: 37 | H130: 31 | I130: 45 | J130: 81 | L130: 113 | M130: 1724 | N130: 188 | O130: 5 | P130: 1583 | Q130: 83 | R130: 5650
A131: 3312Z | B131: Réparation de machines et équipements mécaniques | C131: =VLOOKUP(A131,'nomenclature naf'!A:C,3,FALSE) -> Industrie du futur, production industrielle | D131: =IF(C131='DONNEES INFOGRAPHIES'!$B$6,1,0) -> 0 | E131: =VLOOKUP(A131,A:R,'DONNEES INFOGRAPHIES'!$L$8,FALSE) -> 5605 | F131: 491 | G131: 175 | H131: 155 | I131: 58 | J131: 487 | K131: 177 | L131: 271 | M131: 630 | N131: 598 | O131: 260 | P131: 2016 | Q131: 287 | R131: 5605
A132: 4729Z | B132: Autres commerces de détail alimentaires en magasin spécialisé | C132: =VLOOKUP(A132,'nomenclature naf'!A:C,3,FALSE) -> Métier de bouche | D132: =IF(C132='DONNEES INFOGRAPHIES'!$B$6,1,0) -> 0 | E132: =VLOOKUP(A132,A:R,'DONNEES INFOGRAPHIES'!$L$8,FALSE) -> 5597 | F132: 302 | G132: 111 | H132: 158 | I132: 66 | J132: 243 | K132: 97 | L132: 839 | M132: 939 | N132: 332 | O132: 369 | P132: 1724 | Q132: 417 | R132: 5597
A133: 8559B | B133: Autres enseignements | C133: =VLOOKUP(A133,'nomenclature naf'!A:C,3,FALSE) ->  | D133: =IF(C133='DONNEES INFOGRAPHIES'!$B$6,1,0) -> 0 | E133: =VLOOKUP(A133,A:R,'DONNEES INFOGRAPHIES'!$L$8,FALSE) -> 5566 | F133: 218 | G133: 146 | H133: 79 | I133: 67 | J133: 247 | K133: 43 | L133: 318 | M133: 558 | N133: 403 | O133: 206 | P133: 2925 | Q133: 356 | R133: 5566
A134: 4778C | B134: Autres commerces de détail spécialisés divers | C134: =VLOOKUP(A134,'nomenclature naf'!A:C,3,FALSE) ->  | D134: =IF(C134='DONNEES INFOGRAPHIES'!$B$6,1,0) -> 0 | E134: =VLOOKUP(A134,A:R,'DONNEES INFOGRAPHIES'!$L$8,FALSE) -> 5524 | F134: 352 | G134: 212 | H134: 103 | I134: 72 | J134: 288 | K134: 93 | L134: 1068 | M134: 779 | N134: 499 | O134: 323 | P134: 1392 | Q134: 343 | R134: 5524
A135: 2561Z | B135: Traitement et revêtement des métaux | C135: =VLOOKUP(A135,'nomenclature naf'!A:C,3,FALSE) -> Aéronautique | D135: =IF(C135='DONNEES INFOGRAPHIES'!$B$6,1,0) -> 0 | E135: =VLOOKUP(A135,A:R,'DONNEES INFOGRAPHIES'!$L$8,FALSE) -> 5519 | F135: 501 | G135: 240 | H135: 91 | I135: 15 | J135: 251 | K135: 381 | L135: 1134 | M135: 502 | N135: 880 | O135: 276 | P135: 1134 | Q135: 114 | R135: 5519
A136: 8531Z | B136: Enseignement secondaire général | C136: =VLOOKUP(A136,'nomenclature naf'!A:C,3,FALSE) ->  | D136: =IF(C136='DONNEES INFOGRAPHIES'!$B$6,1,0) -> 0 | E136: =VLOOKUP(A136,A:R,'DONNEES INFOGRAPHIES'!$L$8,FALSE) -> 5469 | F136: 154 | G136: 114 | H136: 356 | I136: 46 | J136: 256 | K136: 364 | L136: 453 | M136: 435 | N136: 627 | O136: 535 | P136: 1882 | Q136: 247 | R136: 5469
A137: 4120B | B137: Construction d'autres bâtiments | C137: =VLOOKUP(A137,'nomenclature naf'!A:C,3,FALSE) -> BTP | D137: =IF(C137='DONNEES INFOGRAPHIES'!$B$6,1,0) -> 0 | E137: =VLOOKUP(A137,A:R,'DONNEES INFOGRAPHIES'!$L$8,FALSE) -> 5467 | F137: 470 | G137: 125 | H137: 58 | I137: 38 | J137: 258 | K137: 86 | L137: 295 | M137: 1039 | N137: 133 | O137: 503 | P137: 2039 | Q137: 423 | R137: 5467
A138: 8790B | B138: Hébergement social pour adultes, familles en difficultés et autre | C138: =VLOOKUP(A138,'nomenclature naf'!A:C,3,FALSE) ->  | D138: =IF(C138='DONNEES INFOGRAPHIES'!$B$6,1,0) -> 0 | E138: =VLOOKUP(A138,A:R,'DONNEES INFOGRAPHIES'!$L$8,FALSE) -> 5276 | F138: 565 | G138: 222 | H138: 170 | I138: 232 | J138: 212 | K138: 191 | L138: 421 | M138: 589 | N138: 596 | O138: 364 | P138: 1486 | Q138: 228 | R138: 5276
A139: 8520Z | B139: Enseignement primaire | C139: =VLOOKUP(A139,'nomenclature naf'!A:C,3,FALSE) ->  | D139: =IF(C139='DONNEES INFOGRAPHIES'!$B$6,1,0) -> 0 | E139: =VLOOKUP(A139,A:R,'DONNEES INFOGRAPHIES'!$L$8,FALSE) -> 5097 | F139: 458 | G139: 63 | H139: 232 | I139: 17 | J139: 328 | K139: 219 | L139: 665 | M139: 652 | N139: 477 | O139: 68 | P139: 1792 | Q139: 126 | R139: 5097
A140: 4674B | B140: Commerce de gros de fournitures pour la plomberie et le chauffage | C140: =VLOOKUP(A140,'nomenclature naf'!A:C,3,FALSE) ->  | D140: =IF(C140='DONNEES INFOGRAPHIES'!$B$6,1,0) -> 0 | E140: =VLOOKUP(A140,A:R,'DONNEES INFOGRAPHIES'!$L$8,FALSE) -> 5086 | F140: 532 | G140: 112 | H140: 96 | I140: 27 | J140: 261 | K140: 122 | L140: 310 | M140: 802 | N140: 437 | O140: 186 | P140: 1874 | Q140: 327 | R140: 5086
A141: 9001Z | B141: Arts du spectacle vivant | C141: =VLOOKUP(A141,'nomenclature naf'!A:C,3,FALSE) ->  | D141: =IF(C141='DONNEES INFOGRAPHIES'!$B$6,1,0) -> 0 | E141: =VLOOKUP(A141,A:R,'DONNEES INFOGRAPHIES'!$L$8,FALSE) -> 4898 | F141: 132 | G141: 138 | H141: 200 | I141: 20 | J141: 366 | K141: 29 | L141: 307 | M141: 684 | N141: 368 | O141: 297 | P141: 2026 | Q141: 331 | R141: 4898
A142: 2059Z | B142: Fabrication d'autres produits chimiques n.c.a. | C142: =VLOOKUP(A142,'nomenclature naf'!A:C,3,FALSE) -> Industrie du futur, production industrielle | D142: =IF(C142='DONNEES INFOGRAPHIES'!$B$6,1,0) -> 0 | E142: =VLOOKUP(A142,A:R,'DONNEES INFOGRAPHIES'!$L$8,FALSE) -> 4843 | F142: 96 | G142: 16 | H142: 155 | J142: 184 | K142: 224 | L142: 48 | M142: 874 | N142: 207 | O142: 287 | P142: 2718 | Q142: 34 | R142: 4843
A143: 8110Z | B143: Activités combinées de soutien lié aux bâtiments | C143: =VLOOKUP(A143,'nomenclature naf'!A:C,3,FALSE) ->  | D143: =IF(C143='DONNEES INFOGRAPHIES'!$B$6,1,0) -> 0 | E143: =VLOOKUP(A143,A:R,'DONNEES INFOGRAPHIES'!$L$8,FALSE) -> 4837 | F143: 100 | G143: 190 | H143: 41 | I143: 75 | J143: 209 | K143: 35 | L143: 671 | M143: 338 | N143: 401 | O143: 269 | P143: 2015 | Q143: 493 | R143: 4837
A144: 2822Z | B144: Fabrication de matériel de levage et de manutention | C144: =VLOOKUP(A144,'nomenclature naf'!A:C,3,FALSE) -> Industrie du futur, production industrielle | D144: =IF(C144='DONNEES INFOGRAPHIES'!$B$6,1,0) -> 0 | E144: =VLOOKUP(A144,A:R,'DONNEES INFOGRAPHIES'!$L$8,FALSE) -> 4764 | F144: 76 | G144: 407 | H144: 39 | J144: 307 | K144: 8 | L144: 27 | M144: 1185 | N144: 1306 | O144: 81 | P144: 862 | Q144: 466 | R144: 4764
A145: 6311Z | B145: Traitement de données, hébergement et activités connexes | C145: =VLOOKUP(A145,'nomenclature naf'!A:C,3,FALSE) -> Numérique | D145: =IF(C145='DONNEES INFOGRAPHIES'!$B$6,1,0) -> 0 | E145: =VLOOKUP(A145,A:R,'DONNEES INFOGRAPHIES'!$L$8,FALSE) -> 4720 | F145: 119 | G145: 6 | H145: 34 | I145: 17 | J145: 30 | K145: 27 | L145: 182 | M145: 360 | N145: 343 | O145: 292 | P145: 3145 | Q145: 165 | R145: 4720
A146: 6619A | B146: Supports juridiques de gestion de patrimoine mobilier | C146: =VLOOKUP(A146,'nomenclature naf'!A:C,3,FALSE) ->  | D146: =IF(C146='DONNEES INFOGRAPHIES'!$B$6,1,0) -> 0 | E146: =VLOOKUP(A146,A:R,'DONNEES INFOGRAPHIES'!$L$8,FALSE) -> 4674 | F146: 239 | G146: 143 | H146: 151 | I146: 57 | J146: 263 | K146: 79 | L146: 371 | M146: 761 | N146: 391 | O146: 450 | P146: 1504 | Q146: 265 | R146: 4674
A147: 3832Z | B147: Récupération de déchets triés | C147: =VLOOKUP(A147,'nomenclature naf'!A:C,3,FALSE) ->  | D147: =IF(C147='DONNEES INFOGRAPHIES'!$B$6,1,0) -> 0 | E147: =VLOOKUP(A147,A:R,'DONNEES INFOGRAPHIES'!$L$8,FALSE) -> 4673 | F147: 418 | G147: 201 | H147: 152 | I147: 14 | J147: 208 | K147: 184 | L147: 591 | M147: 629 | N147: 502 | O147: 292 | P147: 1062 | Q147: 420 | R147: 4673
A148: 4639B | B148: Commerce de gros alimentaire non spécialisé | C148: =VLOOKUP(A148,'nomenclature naf'!A:C,3,FALSE) ->  | D148: =IF(C148='DONNEES INFOGRAPHIES'!$B$6,1,0) -> 0 | E148: =VLOOKUP(A148,A:R,'DONNEES INFOGRAPHIES'!$L$8,FALSE) -> 4640 | F148: 492 | G148: 144 | H148: 23 | I148: 6 | J148: 447 | K148: 28 | L148: 604 | M148: 680 | N148: 233 | O148: 169 | P148: 1612 | Q148: 202 | R148: 4640
A149: 4939B | B149: Autres transports routiers de voyageurs | C149: =VLOOKUP(A149,'nomenclature naf'!A:C,3,FALSE) -> Sport, Montagne, Tourisme | D149: =IF(C149='DONNEES INFOGRAPHIES'!$B$6,1,0) -> 0 | E149: =VLOOKUP(A149,A:R,'DONNEES INFOGRAPHIES'!$L$8,FALSE) -> 4618 | F149: 197 | G149: 11 | H149: 202 | I149: 172 | J149: 104 | K149: 280 | L149: 859 | M149: 1034 | N149: 359 | O149: 178 | P149: 593 | Q149: 629 | R149: 4618
A150: 4776Z | B150: Comm. dét. fleurs, plantes, etc, animaux de cie et leurs aliments | C150: =VLOOKUP(A150,'nomenclature naf'!A:C,3,FALSE) ->  | D150: =IF(C150='DONNEES INFOGRAPHIES'!$B$6,1,0) -> 0 | E150: =VLOOKUP(A150,A:R,'DONNEES INFOGRAPHIES'!$L$8,FALSE) -> 4565 | F150: 338 | G150: 198 | H150: 85 | I150: 98 | J150: 237 | K150: 102 | L150: 632 | M150: 768 | N150: 395 | O150: 408 | P150: 1056 | Q150: 248 | R150: 4565
A151: 4532Z | B151: Commerce de détail d'équipements automobiles | C151: =VLOOKUP(A151,'nomenclature naf'!A:C,3,FALSE) ->  | D151: =IF(C151='DONNEES INFOGRAPHIES'!$B$6,1,0) -> 0 | E151: =VLOOKUP(A151,A:R,'DONNEES INFOGRAPHIES'!$L$8,FALSE) -> 4364 | F151: 301 | G151: 199 | H151: 144 | I151: 102 | J151: 315 | K151: 73 | L151: 402 | M151: 701 | N151: 386 | O151: 328 | P151: 1191 | Q151: 222 | R151: 4364
A152: 2410Z | B152: Sidérurgie | C152: =VLOOKUP(A152,'nomenclature naf'!A:C,3,FALSE) -> Aéronautique | D152: =IF(C152='DONNEES INFOGRAPHIES'!$B$6,1,0) -> 0 | E152: =VLOOKUP(A152,A:R,'DONNEES INFOGRAPHIES'!$L$8,FALSE) -> 4336 | F152: 272 | G152: 278 | M152: 530 | N152: 352 | O152: 1382 | P152: 9 | Q152: 1513 | R152: 4336
A153: 4719B | B153: Autres commerces de détail en magasin non spécialisé | C153: =VLOOKUP(A153,'nomenclature naf'!A:C,3,FALSE) ->  | D153: =IF(C153='DONNEES INFOGRAPHIES'!$B$6,1,0) -> 0 | E153: =VLOOKUP(A153,A:R,'DONNEES INFOGRAPHIES'!$L$8,FALSE) -> 4238 | F153: 174 | G153: 155 | H153: 149 | I153: 118 | J153: 373 | K153: 42 | L153: 308 | M153: 619 | N153: 317 | O153: 625 | P153: 1108 | Q153: 250 | R153: 4238
A154: 8532Z | B154: Enseignement secondaire technique ou professionnel | C154: =VLOOKUP(A154,'nomenclature naf'!A:C,3,FALSE) ->  | D154: =IF(C154='DONNEES INFOGRAPHIES'!$B$6,1,0) -> 0 | E154: =VLOOKUP(A154,A:R,'DONNEES INFOGRAPHIES'!$L$8,FALSE) -> 4209 | F154: 215 | G154: 68 | H154: 150 | I154: 25 | J154: 275 | K154: 128 | L154: 306 | M154: 910 | N154: 532 | O154: 330 | P154: 1103 | Q154: 167 | R154: 4209
A155: 2221Z | B155: Fabrication plaques, feuilles, tubes et profilés en plastique | C155: =VLOOKUP(A155,'nomenclature naf'!A:C,3,FALSE) -> Polymères | D155: =IF(C155='DONNEES INFOGRAPHIES'!$B$6,1,0) -> 0 | E155: =VLOOKUP(A155,A:R,'DONNEES INFOGRAPHIES'!$L$8,FALSE) -> 4176 | F155: 744 | G155: 235 | H155: 30 | J155: 290 | K155: 1561 | L155: 183 | M155: 418 | N155: 194 | O155: 108 | P155: 341 | Q155: 72 | R155: 4176
A156: 2550B | B156: Découpage, emboutissage | C156: =VLOOKUP(A156,'nomenclature naf'!A:C,3,FALSE) -> Aéronautique | D156: =IF(C156='DONNEES INFOGRAPHIES'!$B$6,1,0) -> 0 | E156: =VLOOKUP(A156,A:R,'DONNEES INFOGRAPHIES'!$L$8,FALSE) -> 4137 | F156: 295 | G156: 52 | H156: 193 | I156: 41 | J156: 206 | K156: 259 | L156: 363 | M156: 736 | N156: 767 | O156: 388 | P156: 641 | Q156: 196 | R156: 4137
A157: 4329A | B157: Travaux d'isolation | C157: =VLOOKUP(A157,'nomenclature naf'!A:C,3,FALSE) -> BTP | D157: =IF(C157='DONNEES INFOGRAPHIES'!$B$6,1,0) -> 0 | E157: =VLOOKUP(A157,A:R,'DONNEES INFOGRAPHIES'!$L$8,FALSE) -> 4116 | F157: 274 | G157: 153 | H157: 70 | I157: 31 | J157: 248 | K157: 39 | L157: 193 | M157: 1074 | N157: 306 | O157: 262 | P157: 1257 | Q157: 209 | R157: 4116
A158: 2651B | B158: Fabrication d'instrumentation scientifique et technique | C158: =VLOOKUP(A158,'nomenclature naf'!A:C,3,FALSE) -> Industrie du futur, production industrielle | D158: =IF(C158='DONNEES INFOGRAPHIES'!$B$6,1,0) -> 0 | E158: =VLOOKUP(A158,A:R,'DONNEES INFOGRAPHIES'!$L$8,FALSE) -> 4095 | F158: 753 | G158: 135 | H158: 39 | I158: 97 | J158: 263 | K158: 143 | L158: 288 | M158: 746 | N158: 525 | O158: 275 | P158: 765 | Q158: 66 | R158: 4095
A159: 8730A | B159: Hébergement social pour personnes âgées | C159: =VLOOKUP(A159,'nomenclature naf'!A:C,3,FALSE) ->  | D159: =IF(C159='DONNEES INFOGRAPHIES'!$B$6,1,0) -> 0 | E159: =VLOOKUP(A159,A:R,'DONNEES INFOGRAPHIES'!$L$8,FALSE) -> 4071 | F159: 235 | G159: 174 | H159: 136 | I159: 147 | J159: 340 | K159: 259 | L159: 382 | M159: 366 | N159: 614 | O159: 429 | P159: 861 | Q159: 128 | R159: 4071
A160: 1013A | B160: Préparation industrielle de produits à base de viande | C160: =VLOOKUP(A160,'nomenclature naf'!A:C,3,FALSE) -> Agriculture, Agroalimentaire, Forêt | D160: =IF(C160='DONNEES INFOGRAPHIES'!$B$6,1,0) -> 0 | E160: =VLOOKUP(A160,A:R,'DONNEES INFOGRAPHIES'!$L$8,FALSE) -> 4060 | F160: 430 | H160: 238 | I160: 108 | J160: 61 | K160: 496 | L160: 108 | M160: 507 | N160: 706 | O160: 238 | P160: 800 | Q160: 368 | R160: 4060
A161: 7729Z | B161: Location et location-bail autres biens personnels et domestiques | C161: =VLOOKUP(A161,'nomenclature naf'!A:C,3,FALSE) ->  | D161: =IF(C161='DONNEES INFOGRAPHIES'!$B$6,1,0) -> 0 | E161: =VLOOKUP(A161,A:R,'DONNEES INFOGRAPHIES'!$L$8,FALSE) -> 4034 | F161: 158 | G161: 136 | H161: 9 | I161: 19 | J161: 226 | K161: 13 | L161: 166 | M161: 843 | N161: 439 | O161: 401 | P161: 1091 | Q161: 533 | R161: 4034
A162: 4661Z | B162: Commerce de gros (commerce interentreprises) de matériel agricole | C162: =VLOOKUP(A162,'nomenclature naf'!A:C,3,FALSE) ->  | D162: =IF(C162='DONNEES INFOGRAPHIES'!$B$6,1,0) -> 0 | E162: =VLOOKUP(A162,A:R,'DONNEES INFOGRAPHIES'!$L$8,FALSE) -> 4028 | F162: 375 | G162: 339 | H162: 53 | I162: 358 | J162: 420 | K162: 271 | L162: 411 | M162: 355 | N162: 301 | O162: 522 | P162: 366 | Q162: 257 | R162: 4028
A163: 5629A | B163: Restauration collective sous contrat | C163: =VLOOKUP(A163,'nomenclature naf'!A:C,3,FALSE) ->  | D163: =IF(C163='DONNEES INFOGRAPHIES'!$B$6,1,0) -> 0 | E163: =VLOOKUP(A163,A:R,'DONNEES INFOGRAPHIES'!$L$8,FALSE) -> 4018 | F163: 118 | G163: 130 | H163: 41 | I163: 38 | J163: 358 | K163: 80 | L163: 338 | M163: 833 | N163: 137 | O163: 369 | P163: 1432 | Q163: 144 | R163: 4018
A164: 1396Z | B164: Fabrication d'autres textiles techniques et industriels | C164: =VLOOKUP(A164,'nomenclature naf'!A:C,3,FALSE) -> Industrie du futur, production industrielle | D164: =IF(C164='DONNEES INFOGRAPHIES'!$B$6,1,0) -> 0 | E164: =VLOOKUP(A164,A:R,'DONNEES INFOGRAPHIES'!$L$8,FALSE) -> 3991 | F164: 498 | H164: 152 | J164: 7 | K164: 320 | L164: 6 | M164: 809 | N164: 1724 | O164: 310 | P164: 165 | R164: 3991
A165: 3320C | B165: Concept. d'ens. & assembl s/site d'éqpts ctrle des processus ind. | C165: =VLOOKUP(A165,'nomenclature naf'!A:C,3,FALSE) -> Industrie du futur, production industrielle | D165: =IF(C165='DONNEES INFOGRAPHIES'!$B$6,1,0) -> 0 | E165: =VLOOKUP(A165,A:R,'DONNEES INFOGRAPHIES'!$L$8,FALSE) -> 3943 | F165: 160 | G165: 62 | H165: 480 | J165: 355 | K165: 13 | L165: 145 | M165: 896 | N165: 594 | O165: 242 | P165: 906 | Q165: 90 | R165: 3943
A166: 8219Z | B166: Photocopie prépa. documents & aut. activ. spéc. soutien de bureau | C166: =VLOOKUP(A166,'nomenclature naf'!A:C,3,FALSE) ->  | D166: =IF(C166='DONNEES INFOGRAPHIES'!$B$6,1,0) -> 0 | E166: =VLOOKUP(A166,A:R,'DONNEES INFOGRAPHIES'!$L$8,FALSE) -> 3912 | F166: 235 | G166: 141 | H166: 79 | I166: 18 | J166: 148 | K166: 23 | L166: 296 | M166: 704 | N166: 219 | O166: 283 | P166: 1596 | Q166: 170 | R166: 3912
A167: 3320A | B167: Installation structures métalliques, chaudronnées et tuyauterie | C167: =VLOOKUP(A167,'nomenclature naf'!A:C,3,FALSE) -> Industrie du futur, production industrielle | D167: =IF(C167='DONNEES INFOGRAPHIES'!$B$6,1,0) -> 0 | E167: =VLOOKUP(A167,A:R,'DONNEES INFOGRAPHIES'!$L$8,FALSE) -> 3907 | F167: 178 | G167: 76 | H167: 115 | I167: 38 | J167: 619 | K167: 62 | L167: 83 | M167: 850 | N167: 260 | O167: 272 | P167: 1253 | Q167: 101 | R167: 3907
A168: 1071A | B168: Fabrication industrielle de pain et de pâtisserie fraîche | C168: =VLOOKUP(A168,'nomenclature naf'!A:C,3,FALSE) -> Agriculture, Agroalimentaire, Forêt | D168: =IF(C168='DONNEES INFOGRAPHIES'!$B$6,1,0) -> 0 | E168: =VLOOKUP(A168,A:R,'DONNEES INFOGRAPHIES'!$L$8,FALSE) -> 3883 | F168: 324 | G168: 48 | H168: 104 | I168: 14 | J168: 1284 | K168: 37 | L168: 143 | M168: 511 | N168: 278 | O168: 420 | P168: 398 | Q168: 322 | R168: 3883
A169: 2223Z | B169: Fabrication d'éléments matières plastiques pour la construction | C169: =VLOOKUP(A169,'nomenclature naf'!A:C,3,FALSE) -> Polymères | D169: =IF(C169='DONNEES INFOGRAPHIES'!$B$6,1,0) -> 0 | E169: =VLOOKUP(A169,A:R,'DONNEES INFOGRAPHIES'!$L$8,FALSE) -> 3829 | F169: 695 | G169: 78 | H169: 50 | J169: 881 | K169: 128 | L169: 21 | M169: 596 | N169: 230 | O169: 62 | P169: 1085 | Q169: 3 | R169: 3829
A170: 4690Z | B170: Commerce de gros (commerce interentreprises) non spécialisé | C170: =VLOOKUP(A170,'nomenclature naf'!A:C,3,FALSE) ->  | D170: =IF(C170='DONNEES INFOGRAPHIES'!$B$6,1,0) -> 0 | E170: =VLOOKUP(A170,A:R,'DONNEES INFOGRAPHIES'!$L$8,FALSE) -> 3813 | F170: 311 | G170: 23 | H170: 47 | I170: 9 | J170: 246 | K170: 139 | L170: 369 | M170: 420 | N170: 368 | O170: 78 | P170: 1665 | Q170: 138 | R170: 3813
A171: 2920Z | B171: Fabrication de carrosseries et remorques | C171: =VLOOKUP(A171,'nomenclature naf'!A:C,3,FALSE) -> Industrie du futur, production industrielle | D171: =IF(C171='DONNEES INFOGRAPHIES'!$B$6,1,0) -> 0 | E171: =VLOOKUP(A171,A:R,'DONNEES INFOGRAPHIES'!$L$8,FALSE) -> 3757 | F171: 1200 | G171: 62 | H171: 509 | I171: 25 | J171: 354 | K171: 188 | L171: 97 | M171: 217 | N171: 392 | O171: 157 | P171: 505 | Q171: 51 | R171: 3757
A172: 4669C | B172: Comm. gros de fournitures & équipts divers pour commerces & sces | C172: =VLOOKUP(A172,'nomenclature naf'!A:C,3,FALSE) ->  | D172: =IF(C172='DONNEES INFOGRAPHIES'!$B$6,1,0) -> 0 | E172: =VLOOKUP(A172,A:R,'DONNEES INFOGRAPHIES'!$L$8,FALSE) -> 3725 | F172: 413 | G172: 40 | H172: 50 | I172: 5 | J172: 199 | K172: 54 | L172: 285 | M172: 398 | N172: 202 | O172: 206 | P172: 1641 | Q172: 232 | R172: 3725
A173: 4391B | B173: Travaux de couverture par éléments | C173: =VLOOKUP(A173,'nomenclature naf'!A:C,3,FALSE) -> BTP | D173: =IF(C173='DONNEES INFOGRAPHIES'!$B$6,1,0) -> 0 | E173: =VLOOKUP(A173,A:R,'DONNEES INFOGRAPHIES'!$L$8,FALSE) -> 3703 | F173: 336 | G173: 284 | H173: 50 | I173: 178 | J173: 125 | K173: 57 | L173: 326 | M173: 392 | N173: 530 | O173: 446 | P173: 732 | Q173: 247 | R173: 3703
A174: 9602B | B174: Soins de beauté | C174: =VLOOKUP(A174,'nomenclature naf'!A:C,3,FALSE) ->  | D174: =IF(C174='DONNEES INFOGRAPHIES'!$B$6,1,0) -> 0 | E174: =VLOOKUP(A174,A:R,'DONNEES INFOGRAPHIES'!$L$8,FALSE) -> 3692 | F174: 276 | G174: 113 | H174: 91 | I174: 35 | J174: 211 | K174: 61 | L174: 476 | M174: 484 | N174: 328 | O174: 257 | P174: 1121 | Q174: 239 | R174: 3692
A175: 7500Z | B175: Activités vétérinaires | C175: =VLOOKUP(A175,'nomenclature naf'!A:C,3,FALSE) ->  | D175: =IF(C175='DONNEES INFOGRAPHIES'!$B$6,1,0) -> 0 | E175: =VLOOKUP(A175,A:R,'DONNEES INFOGRAPHIES'!$L$8,FALSE) -> 3673 | F175: 308 | G175: 219 | H175: 130 | I175: 131 | J175: 241 | K175: 123 | L175: 567 | M175: 518 | N175: 324 | O175: 316 | P175: 668 | Q175: 128 | R175: 3673
A176: 6820B | B176: Location de terrains et d'autres biens immobiliers | C176: =VLOOKUP(A176,'nomenclature naf'!A:C,3,FALSE) ->  | D176: =IF(C176='DONNEES INFOGRAPHIES'!$B$6,1,0) -> 0 | E176: =VLOOKUP(A176,A:R,'DONNEES INFOGRAPHIES'!$L$8,FALSE) -> 3651 | F176: 193 | G176: 70 | H176: 86 | I176: 23 | J176: 208 | K176: 31 | L176: 370 | M176: 460 | N176: 276 | O176: 437 | P176: 1032 | Q176: 465 | R176: 3651
A177: 2016Z | B177: Fabrication de matières plastiques de base | C177: =VLOOKUP(A177,'nomenclature naf'!A:C,3,FALSE) -> Industrie du futur, production industrielle | D177: =IF(C177='DONNEES INFOGRAPHIES'!$B$6,1,0) -> 0 | E177: =VLOOKUP(A177,A:R,'DONNEES INFOGRAPHIES'!$L$8,FALSE) -> 3651 | F177: 102 | G177: 33 | H177: 59 | J177: 164 | K177: 162 | M177: 330 | N177: 1424 | O177: 20 | P177: 1357 | R177: 3651
A178: 4221Z | B178: Construction de réseaux pour fluides | C178: =VLOOKUP(A178,'nomenclature naf'!A:C,3,FALSE) -> BTP | D178: =IF(C178='DONNEES INFOGRAPHIES'!$B$6,1,0) -> 0 | E178: =VLOOKUP(A178,A:R,'DONNEES INFOGRAPHIES'!$L$8,FALSE) -> 3614 | F178: 274 | G178: 107 | H178: 330 | I178: 6 | J178: 348 | K178: 21 | L178: 246 | M178: 494 | N178: 341 | O178: 258 | P178: 988 | Q178: 201 | R178: 3614
A179: 3530Z | B179: Production et distribution de vapeur et d'air conditionné | C179: =VLOOKUP(A179,'nomenclature naf'!A:C,3,FALSE) -> Energie | D179: =IF(C179='DONNEES INFOGRAPHIES'!$B$6,1,0) -> 0 | E179: =VLOOKUP(A179,A:R,'DONNEES INFOGRAPHIES'!$L$8,FALSE) -> 3598 | F179: 96 | G179: 26 | H179: 1 | J179: 37 | K179: 2 | L179: 202 | M179: 771 | N179: 269 | O179: 376 | P179: 1483 | Q179: 335 | R179: 3598
A180: 1011Z | B180: Transformation et conservation de la viande de boucherie | C180: =VLOOKUP(A180,'nomenclature naf'!A:C,3,FALSE) -> Agriculture, Agroalimentaire, Forêt | D180: =IF(C180='DONNEES INFOGRAPHIES'!$B$6,1,0) -> 0 | E180: =VLOOKUP(A180,A:R,'DONNEES INFOGRAPHIES'!$L$8,FALSE) -> 3591 | F180: 401 | G180: 963 | H180: 109 | I180: 97 | J180: 337 | K180: 206 | L180: 211 | M180: 119 | N180: 795 | O180: 153 | P180: 115 | Q180: 85 | R180: 3591
A181: 3320B | B181: Installation de machines et équipements mécaniques | C181: =VLOOKUP(A181,'nomenclature naf'!A:C,3,FALSE) -> Industrie du futur, production industrielle | D181: =IF(C181='DONNEES INFOGRAPHIES'!$B$6,1,0) -> 0 | E181: =VLOOKUP(A181,A:R,'DONNEES INFOGRAPHIES'!$L$8,FALSE) -> 3542 | F181: 436 | G181: 65 | H181: 23 | I181: 44 | J181: 118 | K181: 53 | L181: 156 | M181: 524 | N181: 89 | O181: 271 | P181: 1418 | Q181: 345 | R181: 3542
A182: 4110A | B182: Promotion immobilière de logements | C182: =VLOOKUP(A182,'nomenclature naf'!A:C,3,FALSE) -> BTP | D182: =IF(C182='DONNEES INFOGRAPHIES'!$B$6,1,0) -> 0 | E182: =VLOOKUP(A182,A:R,'DONNEES INFOGRAPHIES'!$L$8,FALSE) -> 3523 | F182: 79 | G182: 11 | H182: 13 | I182: 3 | J182: 124 | K182: 20 | L182: 744 | M182: 410 | N182: 93 | O182: 145 | P182: 1638 | Q182: 243 | R182: 3523
A183: 8430C | B183: Distribution sociale de revenus | C183: =VLOOKUP(A183,'nomenclature naf'!A:C,3,FALSE) ->  | D183: =IF(C183='DONNEES INFOGRAPHIES'!$B$6,1,0) -> 0 | E183: =VLOOKUP(A183,A:R,'DONNEES INFOGRAPHIES'!$L$8,FALSE) -> 3499 | F183: 310 | G183: 32 | H183: 220 | I183: 103 | J183: 243 | K183: 144 | L183: 241 | M183: 432 | N183: 94 | O183: 343 | P183: 1162 | Q183: 175 | R183: 3499
A184: 2815Z | B184: Fabrication d'engrenages et d'organes mécaniques de transmission | C184: =VLOOKUP(A184,'nomenclature naf'!A:C,3,FALSE) -> Industrie du futur, production industrielle | D184: =IF(C184='DONNEES INFOGRAPHIES'!$B$6,1,0) -> 0 | E184: =VLOOKUP(A184,A:R,'DONNEES INFOGRAPHIES'!$L$8,FALSE) -> 3495 | G184: 21 | H184: 14 | J184: 35 | K184: 34 | L184: 2608 | M184: 65 | N184: 353 | P184: 106 | Q184: 259 | R184: 3495
A185: 4651Z | B185: Comm. de gros d'ordinat., d'éqpts informatiq. périph. & logiciels | C185: =VLOOKUP(A185,'nomenclature naf'!A:C,3,FALSE) -> Numérique | D185: =IF(C185='DONNEES INFOGRAPHIES'!$B$6,1,0) -> 0 | E185: =VLOOKUP(A185,A:R,'DONNEES INFOGRAPHIES'!$L$8,FALSE) -> 3466 | F185: 106 | G185: 16 | H185: 30 | I185: 17 | J185: 171 | K185: 70 | L185: 190 | M185: 1144 | N185: 100 | O185: 98 | P185: 1417 | Q185: 107 | R185: 3466
A186: 2899B | B186: Fabrication d'autres machines spécialisées | C186: =VLOOKUP(A186,'nomenclature naf'!A:C,3,FALSE) -> Industrie du futur, production industrielle | D186: =IF(C186='DONNEES INFOGRAPHIES'!$B$6,1,0) -> 0 | E186: =VLOOKUP(A186,A:R,'DONNEES INFOGRAPHIES'!$L$8,FALSE) -> 3452 | F186: 142 | G186: 15 | H186: 29 | I186: 38 | J186: 131 | K186: 42 | L186: 1966 | M186: 352 | N186: 158 | O186: 102 | P186: 414 | Q186: 63 | R186: 3452
A187: 4120A | B187: Construction de maisons individuelles | C187: =VLOOKUP(A187,'nomenclature naf'!A:C,3,FALSE) -> BTP | D187: =IF(C187='DONNEES INFOGRAPHIES'!$B$6,1,0) -> 0 | E187: =VLOOKUP(A187,A:R,'DONNEES INFOGRAPHIES'!$L$8,FALSE) -> 3443 | F187: 275 | G187: 151 | H187: 107 | I187: 41 | J187: 411 | K187: 47 | L187: 579 | M187: 479 | N187: 269 | O187: 285 | P187: 521 | Q187: 278 | R187: 3443
A188: 4634Z | B188: Commerce de gros (commerce interentreprises) de boissons | C188: =VLOOKUP(A188,'nomenclature naf'!A:C,3,FALSE) ->  | D188: =IF(C188='DONNEES INFOGRAPHIES'!$B$6,1,0) -> 0 | E188: =VLOOKUP(A188,A:R,'DONNEES INFOGRAPHIES'!$L$8,FALSE) -> 3440 | F188: 190 | G188: 35 | H188: 122 | I188: 52 | J188: 171 | K188: 91 | L188: 477 | M188: 239 | N188: 277 | O188: 173 | P188: 1208 | Q188: 405 | R188: 3440
A189: 1082Z | B189: Fabrication de cacao, chocolat et de produits de confiserie | C189: =VLOOKUP(A189,'nomenclature naf'!A:C,3,FALSE) -> Agriculture, Agroalimentaire, Forêt | D189: =IF(C189='DONNEES INFOGRAPHIES'!$B$6,1,0) -> 0 | E189: =VLOOKUP(A189,A:R,'DONNEES INFOGRAPHIES'!$L$8,FALSE) -> 3418 | F189: 61 | G189: 79 | H189: 105 | I189: 18 | J189: 1372 | K189: 2 | L189: 127 | M189: 137 | N189: 849 | O189: 152 | P189: 313 | Q189: 203 | R189: 3418
A190: 4711C | B190: Supérettes | C190: =VLOOKUP(A190,'nomenclature naf'!A:C,3,FALSE) ->  | D190: =IF(C190='DONNEES INFOGRAPHIES'!$B$6,1,0) -> 0 | E190: =VLOOKUP(A190,A:R,'DONNEES INFOGRAPHIES'!$L$8,FALSE) -> 3400 | F190: 91 | G190: 129 | H190: 68 | I190: 79 | J190: 182 | K190: 51 | L190: 457 | M190: 456 | N190: 185 | O190: 128 | P190: 892 | Q190: 682 | R190: 3400
A191: 4791B | B191: Vente à distance sur catalogue spécialisé | C191: =VLOOKUP(A191,'nomenclature naf'!A:C,3,FALSE) ->  | D191: =IF(C191='DONNEES INFOGRAPHIES'!$B$6,1,0) -> 0 | E191: =VLOOKUP(A191,A:R,'DONNEES INFOGRAPHIES'!$L$8,FALSE) -> 3395 | F191: 116 | G191: 112 | H191: 52 | I191: 4 | J191: 146 | K191: 56 | L191: 255 | M191: 600 | N191: 317 | O191: 101 | P191: 1417 | Q191: 219 | R191: 3395
A192: 4775Z | B192: Comm. détail de parfumerie & produits de beauté en magasin spéc. | C192: =VLOOKUP(A192,'nomenclature naf'!A:C,3,FALSE) ->  | D192: =IF(C192='DONNEES INFOGRAPHIES'!$B$6,1,0) -> 0 | E192: =VLOOKUP(A192,A:R,'DONNEES INFOGRAPHIES'!$L$8,FALSE) -> 3370 | F192: 164 | G192: 110 | H192: 78 | I192: 51 | J192: 222 | K192: 45 | L192: 391 | M192: 551 | N192: 304 | O192: 254 | P192: 1059 | Q192: 141 | R192: 3370
A193: 2446Z | B193: Élaboration et transformation de matières nucléaires | C193: =VLOOKUP(A193,'nomenclature naf'!A:C,3,FALSE) -> Aéronautique | D193: =IF(C193='DONNEES INFOGRAPHIES'!$B$6,1,0) -> 0 | E193: =VLOOKUP(A193,A:R,'DONNEES INFOGRAPHIES'!$L$8,FALSE) -> 3366 | J193: 3366 | R193: 3366
A194: 2892Z | B194: Fabrication de machines pour l'extraction ou la construction | C194: =VLOOKUP(A194,'nomenclature naf'!A:C,3,FALSE) -> Industrie du futur, production industrielle | D194: =IF(C194='DONNEES INFOGRAPHIES'!$B$6,1,0) -> 0 | E194: =VLOOKUP(A194,A:R,'DONNEES INFOGRAPHIES'!$L$8,FALSE) -> 3347 | F194: 340 | G194: 3 | H194: 4 | I194: 17 | K194: 8 | L194: 400 | M194: 1463 | N194: 249 | O194: 105 | P194: 756 | Q194: 2 | R194: 3347
A195: 4652Z | B195: Comm. de gros d'éqpts et composants électroniques et de télécomm. | C195: =VLOOKUP(A195,'nomenclature naf'!A:C,3,FALSE) -> Numérique | D195: =IF(C195='DONNEES INFOGRAPHIES'!$B$6,1,0) -> 0 | E195: =VLOOKUP(A195,A:R,'DONNEES INFOGRAPHIES'!$L$8,FALSE) -> 3345 | F195: 49 | G195: 7 | H195: 1 | I195: 4 | J195: 85 | K195: 35 | L195: 173 | M195: 957 | N195: 70 | O195: 118 | P195: 1790 | Q195: 56 | R195: 3345
A196: 8553Z | B196: Enseignement de la conduite | C196: =VLOOKUP(A196,'nomenclature naf'!A:C,3,FALSE) ->  | D196: =IF(C196='DONNEES INFOGRAPHIES'!$B$6,1,0) -> 0 | E196: =VLOOKUP(A196,A:R,'DONNEES INFOGRAPHIES'!$L$8,FALSE) -> 3311 | F196: 246 | G196: 124 | H196: 91 | I196: 50 | J196: 195 | K196: 78 | L196: 303 | M196: 527 | N196: 304 | O196: 241 | P196: 1003 | Q196: 149 | R196: 3311
A197: 2512Z | B197: Fabrication de portes et fenêtres en métal | C197: =VLOOKUP(A197,'nomenclature naf'!A:C,3,FALSE) -> Aéronautique | D197: =IF(C197='DONNEES INFOGRAPHIES'!$B$6,1,0) -> 0 | E197: =VLOOKUP(A197,A:R,'DONNEES INFOGRAPHIES'!$L$8,FALSE) -> 3285 | F197: 697 | G197: 116 | H197: 36 | I197: 17 | J197: 103 | K197: 60 | L197: 282 | M197: 305 | N197: 254 | O197: 81 | P197: 1234 | Q197: 100 | R197: 3285
A198: 3600Z | B198: Captage, traitement et distribution d'eau | C198: =VLOOKUP(A198,'nomenclature naf'!A:C,3,FALSE) ->  | D198: =IF(C198='DONNEES INFOGRAPHIES'!$B$6,1,0) -> 0 | E198: =VLOOKUP(A198,A:R,'DONNEES INFOGRAPHIES'!$L$8,FALSE) -> 3279 | F198: 262 | G198: 4 | H198: 128 | J198: 295 | K198: 17 | L198: 148 | M198: 387 | N198: 351 | O198: 309 | P198: 1261 | Q198: 117 | R198: 3279
A199: 4399D | B199: Autres travaux spécialisés de construction | C199: =VLOOKUP(A199,'nomenclature naf'!A:C,3,FALSE) -> BTP | D199: =IF(C199='DONNEES INFOGRAPHIES'!$B$6,1,0) -> 0 | E199: =VLOOKUP(A199,A:R,'DONNEES INFOGRAPHIES'!$L$8,FALSE) -> 3264 | F199: 222 | G199: 74 | H199: 86 | I199: 58 | J199: 347 | K199: 117 | L199: 263 | M199: 414 | N199: 276 | O199: 170 | P199: 1047 | Q199: 190 | R199: 3264
A200: 4329B | B200: Autres travaux d'installation n.c.a. | C200: =VLOOKUP(A200,'nomenclature naf'!A:C,3,FALSE) -> BTP | D200: =IF(C200='DONNEES INFOGRAPHIES'!$B$6,1,0) -> 0 | E200: =VLOOKUP(A200,A:R,'DONNEES INFOGRAPHIES'!$L$8,FALSE) -> 3253 | F200: 90 | G200: 26 | H200: 70 | J200: 197 | K200: 58 | L200: 321 | M200: 428 | N200: 258 | O200: 289 | P200: 1225 | Q200: 291 | R200: 3253
... 474 more rows

Sheet DPAE (DOMEX) (hidden)
A1: DPAE cumul sur 12 mois (tous contrats) | B1: 01 | C1: 03 | D1: 07 | E1: 15 | F1: 26 | G1: 38 | H1: 42 | I1: 43 | J1: 63 | K1: 69 | L1: 73 | M1: 74 | N1: TOTAL
A2: Aéronautique | B2: =SUMIFS(siloDPAE!$E:$E,siloDPAE!$H:$H,"Période",siloDPAE!$A:$A,B$19,siloDPAE!$F:$F,"Total",siloDPAE!$G:$G,$A2) -> 1398 | C2: =SUMIFS(siloDPAE!$E:$E,siloDPAE!$H:$H,"Période",siloDPAE!$A:$A,C$19,siloDPAE!$F:$F,"Total",siloDPAE!$G:$G,$A2) -> 875 | D2: =SUMIFS(siloDPAE!$E:$E,siloDPAE!$H:$H,"Période",siloDPAE!$A:$A,D$19,siloDPAE!$F:$F,"Total",siloDPAE!$G:$G,$A2) -> 323 | E2: =SUMIFS(siloDPAE!$E:$E,siloDPAE!$H:$H,"Période",siloDPAE!$A:$A,E$19,siloDPAE!$F:$F,"Total",siloDPAE!$G:$G,$A2) -> 119 | F2: =SUMIFS(siloDPAE!$E:$E,siloDPAE!$H:$H,"Période",siloDPAE!$A:$A,F$19,siloDPAE!$F:$F,"Total",siloDPAE!$G:$G,$A2) -> 1247 | G2: =SUMIFS(siloDPAE!$E:$E,siloDPAE!$H:$H,"Période",siloDPAE!$A:$A,G$19,siloDPAE!$F:$F,"Total",siloDPAE!$G:$G,$A2) -> 2281 | H2: =SUMIFS(siloDPAE!$E:$E,siloDPAE!$H:$H,"Période",siloDPAE!$A:$A,H$19,siloDPAE!$F:$F,"Total",siloDPAE!$G:$G,$A2) -> 2446 | I2: =SUMIFS(siloDPAE!$E:$E,siloDPAE!$H:$H,"Période",siloDPAE!$A:$A,I$19,siloDPAE!$F:$F,"Total",siloDPAE!$G:$G,$A2) -> 489 | J2: =SUMIFS(siloDPAE!$E:$E,siloDPAE!$H:$H,"Période",siloDPAE!$A:$A,J$19,siloDPAE!$F:$F,"Total",siloDPAE!$G:$G,$A2) -> 1613 | K2: =SUMIFS(siloDPAE!$E:$E,siloDPAE!$H:$H,"Période",siloDPAE!$A:$A,K$19,siloDPAE!$F:$F,"Total",siloDPAE!$G:$G,$A2) -> 3018 | L2: =SUMIFS(siloDPAE!$E:$E,siloDPAE!$H:$H,"Période",siloDPAE!$A:$A,L$19,siloDPAE!$F:$F,"Total",siloDPAE!$G:$G,$A2) -> 1146 | M2: =SUMIFS(siloDPAE!$E:$E,siloDPAE!$H:$H,"Période",siloDPAE!$A:$A,M$19,siloDPAE!$F:$F,"Total",siloDPAE!$G:$G,$A2) -> 2510 | N2: =SUM(B2:M2) -> 17465
A3: Agriculture, Agroalimentaire, Forêt | B3: =SUMIFS(siloDPAE!$E:$E,siloDPAE!$H:$H,"Période",siloDPAE!$A:$A,B$19,siloDPAE!$F:$F,"Total",siloDPAE!$G:$G,$A3) -> 8589 | C3: =SUMIFS(siloDPAE!$E:$E,siloDPAE!$H:$H,"Période",siloDPAE!$A:$A,C$19,siloDPAE!$F:$F,"Total",siloDPAE!$G:$G,$A3) -> 3875 | D3: =SUMIFS(siloDPAE!$E:$E,siloDPAE!$H:$H,"Période",siloDPAE!$A:$A,D$19,siloDPAE!$F:$F,"Total",siloDPAE!$G:$G,$A3) -> 15261 | E3: =SUMIFS(siloDPAE!$E:$E,siloDPAE!$H:$H,"Période",siloDPAE!$A:$A,E$19,siloDPAE!$F:$F,"Total",siloDPAE!$G:$G,$A3) -> 1926 | F3: =SUMIFS(siloDPAE!$E:$E,siloDPAE!$H:$H,"Période",siloDPAE!$A:$A,F$19,siloDPAE!$F:$F,"Total",siloDPAE!$G:$G,$A3) -> 32252 | G3: =SUMIFS(siloDPAE!$E:$E,siloDPAE!$H:$H,"Période",siloDPAE!$A:$A,G$19,siloDPAE!$F:$F,"Total",siloDPAE!$G:$G,$A3) -> 13038 | H3: =SUMIFS(siloDPAE!$E:$E,siloDPAE!$H:$H,"Période",siloDPAE!$A:$A,H$19,siloDPAE!$F:$F,"Total",siloDPAE!$G:$G,$A3) -> 12303 | I3: =SUMIFS(siloDPAE!$E:$E,siloDPAE!$H:$H,"Période",siloDPAE!$A:$A,I$19,siloDPAE!$F:$F,"Total",siloDPAE!$G:$G,$A3) -> 3136 | J3: =SUMIFS(siloDPAE!$E:$E,siloDPAE!$H:$H,"Période",siloDPAE!$A:$A,J$19,siloDPAE!$F:$F,"Total",siloDPAE!$G:$G,$A3) -> 13882 | K3: =SUMIFS(siloDPAE!$E:$E,siloDPAE!$H:$H,"Période",siloDPAE!$A:$A,K$19,siloDPAE!$F:$F,"Total",siloDPAE!$G:$G,$A3) -> 56056 | L3: =SUMIFS(siloDPAE!$E:$E,siloDPAE!$H:$H,"Période",siloDPAE!$A:$A,L$19,siloDPAE!$F:$F,"Total",siloDPAE!$G:$G,$A3) -> 7457 | M3: =SUMIFS(siloDPAE!$E:$E,siloDPAE!$H:$H,"Période",siloDPAE!$A:$A,M$19,siloDPAE!$F:$F,"Total",siloDPAE!$G:$G,$A3) -> 7087 | N3: =SUM(B3:M3) -> 174862
A4: BTP | B4: =SUMIFS(siloDPAE!$E:$E,siloDPAE!$H:$H,"Période",siloDPAE!$A:$A,B$19,siloDPAE!$F:$F,"Total",siloDPAE!$G:$G,$A4) -> 5342 | C4: =SUMIFS(siloDPAE!$E:$E,siloDPAE!$H:$H,"Période",siloDPAE!$A:$A,C$19,siloDPAE!$F:$F,"Total",siloDPAE!$G:$G,$A4) -> 2377 | D4: =SUMIFS(siloDPAE!$E:$E,siloDPAE!$H:$H,"Période",siloDPAE!$A:$A,D$19,siloDPAE!$F:$F,"Total",siloDPAE!$G:$G,$A4) -> 2652 | E4: =SUMIFS(siloDPAE!$E:$E,siloDPAE!$H:$H,"Période",siloDPAE!$A:$A,E$19,siloDPAE!$F:$F,"Total",siloDPAE!$G:$G,$A4) -> 1063 | F4: =SUMIFS(siloDPAE!$E:$E,siloDPAE!$H:$H,"Période",siloDPAE!$A:$A,F$19,siloDPAE!$F:$F,"Total",siloDPAE!$G:$G,$A4) -> 5961 | G4: =SUMIFS(siloDPAE!$E:$E,siloDPAE!$H:$H,"Période",siloDPAE!$A:$A,G$19,siloDPAE!$F:$F,"Total",siloDPAE!$G:$G,$A4) -> 14288 | H4: =SUMIFS(siloDPAE!$E:$E,siloDPAE!$H:$H,"Période",siloDPAE!$A:$A,H$19,siloDPAE!$F:$F,"Total",siloDPAE!$G:$G,$A4) -> 7351 | I4: =SUMIFS(siloDPAE!$E:$E,siloDPAE!$H:$H,"Période",siloDPAE!$A:$A,I$19,siloDPAE!$F:$F,"Total",siloDPAE!$G:$G,$A4) -> 1743 | J4: =SUMIFS(siloDPAE!$E:$E,siloDPAE!$H:$H,"Période",siloDPAE!$A:$A,J$19,siloDPAE!$F:$F,"Total",siloDPAE!$G:$G,$A4) -> 5560 | K4: =SUMIFS(siloDPAE!$E:$E,siloDPAE!$H:$H,"Période",siloDPAE!$A:$A,K$19,siloDPAE!$F:$F,"Total",siloDPAE!$G:$G,$A4) -> 23392 | L4: =SUMIFS(siloDPAE!$E:$E,siloDPAE!$H:$H,"Période",siloDPAE!$A:$A,L$19,siloDPAE!$F:$F,"Total",siloDPAE!$G:$G,$A4) -> 8119 | M4: =SUMIFS(siloDPAE!$E:$E,siloDPAE!$H:$H,"Période",siloDPAE!$A:$A,M$19,siloDPAE!$F:$F,"Total",siloDPAE!$G:$G,$A4) -> 9603 | N4: 87451
A5: Energie | B5: =SUMIFS(siloDPAE!$E:$E,siloDPAE!$H:$H,"Période",siloDPAE!$A:$A,B$19,siloDPAE!$F:$F,"Total",siloDPAE!$G:$G,$A5) -> 268 | C5: =SUMIFS(siloDPAE!$E:$E,siloDPAE!$H:$H,"Période",siloDPAE!$A:$A,C$19,siloDPAE!$F:$F,"Total",siloDPAE!$G:$G,$A5) -> 40 | D5: =SUMIFS(siloDPAE!$E:$E,siloDPAE!$H:$H,"Période",siloDPAE!$A:$A,D$19,siloDPAE!$F:$F,"Total",siloDPAE!$G:$G,$A5) -> 248 | E5: =SUMIFS(siloDPAE!$E:$E,siloDPAE!$H:$H,"Période",siloDPAE!$A:$A,E$19,siloDPAE!$F:$F,"Total",siloDPAE!$G:$G,$A5) -> 28 | F5: =SUMIFS(siloDPAE!$E:$E,siloDPAE!$H:$H,"Période",siloDPAE!$A:$A,F$19,siloDPAE!$F:$F,"Total",siloDPAE!$G:$G,$A5) -> 244 | G5: =SUMIFS(siloDPAE!$E:$E,siloDPAE!$H:$H,"Période",siloDPAE!$A:$A,G$19,siloDPAE!$F:$F,"Total",siloDPAE!$G:$G,$A5) -> 510 | H5: =SUMIFS(siloDPAE!$E:$E,siloDPAE!$H:$H,"Période",siloDPAE!$A:$A,H$19,siloDPAE!$F:$F,"Total",siloDPAE!$G:$G,$A5) -> 107 | I5: =SUMIFS(siloDPAE!$E:$E,siloDPAE!$H:$H,"Période",siloDPAE!$A:$A,I$19,siloDPAE!$F:$F,"Total",siloDPAE!$G:$G,$A5) -> 19 | J5: =SUMIFS(siloDPAE!$E:$E,siloDPAE!$H:$H,"Période",siloDPAE!$A:$A,J$19,siloDPAE!$F:$F,"Total",siloDPAE!$G:$G,$A5) -> 195 | K5: =SUMIFS(siloDPAE!$E:$E,siloDPAE!$H:$H,"Période",siloDPAE!$A:$A,K$19,siloDPAE!$F:$F,"Total",siloDPAE!$G:$G,$A5) -> 1387 | L5: =SUMIFS(siloDPAE!$E:$E,siloDPAE!$H:$H,"Période",siloDPAE!$A:$A,L$19,siloDPAE!$F:$F,"Total",siloDPAE!$G:$G,$A5) -> 279 | M5: =SUMIFS(siloDPAE!$E:$E,siloDPAE!$H:$H,"Période",siloDPAE!$A:$A,M$19,siloDPAE!$F:$F,"Total",siloDPAE!$G:$G,$A5) -> 99 | N5: 3424
A6: Industrie du futur, production industrielle | B6: =SUMIFS(siloDPAE!$E:$E,siloDPAE!$H:$H,"Période",siloDPAE!$A:$A,B$19,siloDPAE!$F:$F,"Total",siloDPAE!$G:$G,$A6) -> 4134 | C6: =SUMIFS(siloDPAE!$E:$E,siloDPAE!$H:$H,"Période",siloDPAE!$A:$A,C$19,siloDPAE!$F:$F,"Total",siloDPAE!$G:$G,$A6) -> 1558 | D6: =SUMIFS(siloDPAE!$E:$E,siloDPAE!$H:$H,"Période",siloDPAE!$A:$A,D$19,siloDPAE!$F:$F,"Total",siloDPAE!$G:$G,$A6) -> 2103 | E6: =SUMIFS(siloDPAE!$E:$E,siloDPAE!$H:$H,"Période",siloDPAE!$A:$A,E$19,siloDPAE!$F:$F,"Total",siloDPAE!$G:$G,$A6) -> 394 | F6: =SUMIFS(siloDPAE!$E:$E,siloDPAE!$H:$H,"Période",siloDPAE!$A:$A,F$19,siloDPAE!$F:$F,"Total",siloDPAE!$G:$G,$A6) -> 4026 | G6: =SUMIFS(siloDPAE!$E:$E,siloDPAE!$H:$H,"Période",siloDPAE!$A:$A,G$19,siloDPAE!$F:$F,"Total",siloDPAE!$G:$G,$A6) -> 10576 | H6: =SUMIFS(siloDPAE!$E:$E,siloDPAE!$H:$H,"Période",siloDPAE!$A:$A,H$19,siloDPAE!$F:$F,"Total",siloDPAE!$G:$G,$A6) -> 5478 | I6: =SUMIFS(siloDPAE!$E:$E,siloDPAE!$H:$H,"Période",siloDPAE!$A:$A,I$19,siloDPAE!$F:$F,"Total",siloDPAE!$G:$G,$A6) -> 981 | J6: =SUMIFS(siloDPAE!$E:$E,siloDPAE!$H:$H,"Période",siloDPAE!$A:$A,J$19,siloDPAE!$F:$F,"Total",siloDPAE!$G:$G,$A6) -> 3553 | K6: =SUMIFS(siloDPAE!$E:$E,siloDPAE!$H:$H,"Période",siloDPAE!$A:$A,K$19,siloDPAE!$F:$F,"Total",siloDPAE!$G:$G,$A6) -> 13359 | L6: =SUMIFS(siloDPAE!$E:$E,siloDPAE!$H:$H,"Période",siloDPAE!$A:$A,L$19,siloDPAE!$F:$F,"Total",siloDPAE!$G:$G,$A6) -> 2238 | M6: =SUMIFS(siloDPAE!$E:$E,siloDPAE!$H:$H,"Période",siloDPAE!$A:$A,M$19,siloDPAE!$F:$F,"Total",siloDPAE!$G:$G,$A6) -> 4406 | N6: 52806
A7: Métier de bouche | B7: =SUMIFS(siloDPAE!$E:$E,siloDPAE!$H:$H,"Période",siloDPAE!$A:$A,B$19,siloDPAE!$F:$F,"Total",siloDPAE!$G:$G,$A7) -> 4778 | C7: =SUMIFS(siloDPAE!$E:$E,siloDPAE!$H:$H,"Période",siloDPAE!$A:$A,C$19,siloDPAE!$F:$F,"Total",siloDPAE!$G:$G,$A7) -> 2272 | D7: =SUMIFS(siloDPAE!$E:$E,siloDPAE!$H:$H,"Période",siloDPAE!$A:$A,D$19,siloDPAE!$F:$F,"Total",siloDPAE!$G:$G,$A7) -> 2957 | E7: =SUMIFS(siloDPAE!$E:$E,siloDPAE!$H:$H,"Période",siloDPAE!$A:$A,E$19,siloDPAE!$F:$F,"Total",siloDPAE!$G:$G,$A7) -> 1061 | F7: =SUMIFS(siloDPAE!$E:$E,siloDPAE!$H:$H,"Période",siloDPAE!$A:$A,F$19,siloDPAE!$F:$F,"Total",siloDPAE!$G:$G,$A7) -> 3519 | G7: =SUMIFS(siloDPAE!$E:$E,siloDPAE!$H:$H,"Période",siloDPAE!$A:$A,G$19,siloDPAE!$F:$F,"Total",siloDPAE!$G:$G,$A7) -> 10157 | H7: =SUMIFS(siloDPAE!$E:$E,siloDPAE!$H:$H,"Période",siloDPAE!$A:$A,H$19,siloDPAE!$F:$F,"Total",siloDPAE!$G:$G,$A7) -> 9537 | I7: =SUMIFS(siloDPAE!$E:$E,siloDPAE!$H:$H,"Période",siloDPAE!$A:$A,I$19,siloDPAE!$F:$F,"Total",siloDPAE!$G:$G,$A7) -> 1024 | J7: =SUMIFS(siloDPAE!$E:$E,siloDPAE!$H:$H,"Période",siloDPAE!$A:$A,J$19,siloDPAE!$F:$F,"Total",siloDPAE!$G:$G,$A7) -> 6681 | K7: =SUMIFS(siloDPAE!$E:$E,siloDPAE!$H:$H,"Période",siloDPAE!$A:$A,K$19,siloDPAE!$F:$F,"Total",siloDPAE!$G:$G,$A7) -> 31443 | L7: =SUMIFS(siloDPAE!$E:$E,siloDPAE!$H:$H,"Période",siloDPAE!$A:$A,L$19,siloDPAE!$F:$F,"Total",siloDPAE!$G:$G,$A7) -> 5723 | M7: =SUMIFS(siloDPAE!$E:$E,siloDPAE!$H:$H,"Période",siloDPAE!$A:$A,M$19,siloDPAE!$F:$F,"Total",siloDPAE!$G:$G,$A7) -> 7841 | N7: 86993
A8: Mobilité, systèmes de transport intelligents | B8: =SUMIFS(siloDPAE!$E:$E,siloDPAE!$H:$H,"Période",siloDPAE!$A:$A,B$19,siloDPAE!$F:$F,"Total",siloDPAE!$G:$G,$A8) -> 4100 | C8: =SUMIFS(siloDPAE!$E:$E,siloDPAE!$H:$H,"Période",siloDPAE!$A:$A,C$19,siloDPAE!$F:$F,"Total",siloDPAE!$G:$G,$A8) -> 1723 | D8: =SUMIFS(siloDPAE!$E:$E,siloDPAE!$H:$H,"Période",siloDPAE!$A:$A,D$19,siloDPAE!$F:$F,"Total",siloDPAE!$G:$G,$A8) -> 758 | E8: =SUMIFS(siloDPAE!$E:$E,siloDPAE!$H:$H,"Période",siloDPAE!$A:$A,E$19,siloDPAE!$F:$F,"Total",siloDPAE!$G:$G,$A8) -> 545 | F8: =SUMIFS(siloDPAE!$E:$E,siloDPAE!$H:$H,"Période",siloDPAE!$A:$A,F$19,siloDPAE!$F:$F,"Total",siloDPAE!$G:$G,$A8) -> 4708 | G8: =SUMIFS(siloDPAE!$E:$E,siloDPAE!$H:$H,"Période",siloDPAE!$A:$A,G$19,siloDPAE!$F:$F,"Total",siloDPAE!$G:$G,$A8) -> 9753 | H8: =SUMIFS(siloDPAE!$E:$E,siloDPAE!$H:$H,"Période",siloDPAE!$A:$A,H$19,siloDPAE!$F:$F,"Total",siloDPAE!$G:$G,$A8) -> 3666 | I8: =SUMIFS(siloDPAE!$E:$E,siloDPAE!$H:$H,"Période",siloDPAE!$A:$A,I$19,siloDPAE!$F:$F,"Total",siloDPAE!$G:$G,$A8) -> 846 | J8: =SUMIFS(siloDPAE!$E:$E,siloDPAE!$H:$H,"Période",siloDPAE!$A:$A,J$19,siloDPAE!$F:$F,"Total",siloDPAE!$G:$G,$A8) -> 5066 | K8: =SUMIFS(siloDPAE!$E:$E,siloDPAE!$H:$H,"Période",siloDPAE!$A:$A,K$19,siloDPAE!$F:$F,"Total",siloDPAE!$G:$G,$A8) -> 30616 | L8: =SUMIFS(siloDPAE!$E:$E,siloDPAE!$H:$H,"Période",siloDPAE!$A:$A,L$19,siloDPAE!$F:$F,"Total",siloDPAE!$G:$G,$A8) -> 4516 | M8: =SUMIFS(siloDPAE!$E:$E,siloDPAE!$H:$H,"Période",siloDPAE!$A:$A,M$19,siloDPAE!$F:$F,"Total",siloDPAE!$G:$G,$A8) -> 4828 | N8: 71125
A9: Numérique | B9: =SUMIFS(siloDPAE!$E:$E,siloDPAE!$H:$H,"Période",siloDPAE!$A:$A,B$19,siloDPAE!$F:$F,"Total",siloDPAE!$G:$G,$A9) -> 779 | C9: =SUMIFS(siloDPAE!$E:$E,siloDPAE!$H:$H,"Période",siloDPAE!$A:$A,C$19,siloDPAE!$F:$F,"Total",siloDPAE!$G:$G,$A9) -> 603 | D9: =SUMIFS(siloDPAE!$E:$E,siloDPAE!$H:$H,"Période",siloDPAE!$A:$A,D$19,siloDPAE!$F:$F,"Total",siloDPAE!$G:$G,$A9) -> 503 | E9: =SUMIFS(siloDPAE!$E:$E,siloDPAE!$H:$H,"Période",siloDPAE!$A:$A,E$19,siloDPAE!$F:$F,"Total",siloDPAE!$G:$G,$A9) -> 67 | F9: =SUMIFS(siloDPAE!$E:$E,siloDPAE!$H:$H,"Période",siloDPAE!$A:$A,F$19,siloDPAE!$F:$F,"Total",siloDPAE!$G:$G,$A9) -> 3678 | G9: =SUMIFS(siloDPAE!$E:$E,siloDPAE!$H:$H,"Période",siloDPAE!$A:$A,G$19,siloDPAE!$F:$F,"Total",siloDPAE!$G:$G,$A9) -> 7554 | H9: =SUMIFS(siloDPAE!$E:$E,siloDPAE!$H:$H,"Période",siloDPAE!$A:$A,H$19,siloDPAE!$F:$F,"Total",siloDPAE!$G:$G,$A9) -> 2293 | I9: =SUMIFS(siloDPAE!$E:$E,siloDPAE!$H:$H,"Période",siloDPAE!$A:$A,I$19,siloDPAE!$F:$F,"Total",siloDPAE!$G:$G,$A9) -> 462 | J9: =SUMIFS(siloDPAE!$E:$E,siloDPAE!$H:$H,"Période",siloDPAE!$A:$A,J$19,siloDPAE!$F:$F,"Total",siloDPAE!$G:$G,$A9) -> 3972 | K9: =SUMIFS(siloDPAE!$E:$E,siloDPAE!$H:$H,"Période",siloDPAE!$A:$A,K$19,siloDPAE!$F:$F,"Total",siloDPAE!$G:$G,$A9) -> 34105 | L9: =SUMIFS(siloDPAE!$E:$E,siloDPAE!$H:$H,"Période",siloDPAE!$A:$A,L$19,siloDPAE!$F:$F,"Total",siloDPAE!$G:$G,$A9) -> 992 | M9: =SUMIFS(siloDPAE!$E:$E,siloDPAE!$H:$H,"Période",siloDPAE!$A:$A,M$19,siloDPAE!$F:$F,"Total",siloDPAE!$G:$G,$A9) -> 3246 | N9: 58254
A10: Polymères | B10: =SUMIFS(siloDPAE!$E:$E,siloDPAE!$H:$H,"Période",siloDPAE!$A:$A,B$19,siloDPAE!$F:$F,"Total",siloDPAE!$G:$G,$A10) -> 1527 | C10: =SUMIFS(siloDPAE!$E:$E,siloDPAE!$H:$H,"Période",siloDPAE!$A:$A,C$19,siloDPAE!$F:$F,"Total",siloDPAE!$G:$G,$A10) -> 73 | D10: =SUMIFS(siloDPAE!$E:$E,siloDPAE!$H:$H,"Période",siloDPAE!$A:$A,D$19,siloDPAE!$F:$F,"Total",siloDPAE!$G:$G,$A10) -> 81 | E10: =SUMIFS(siloDPAE!$E:$E,siloDPAE!$H:$H,"Période",siloDPAE!$A:$A,E$19,siloDPAE!$F:$F,"Total",siloDPAE!$G:$G,$A10) -> 45 | F10: =SUMIFS(siloDPAE!$E:$E,siloDPAE!$H:$H,"Période",siloDPAE!$A:$A,F$19,siloDPAE!$F:$F,"Total",siloDPAE!$G:$G,$A10) -> 431 | G10: =SUMIFS(siloDPAE!$E:$E,siloDPAE!$H:$H,"Période",siloDPAE!$A:$A,G$19,siloDPAE!$F:$F,"Total",siloDPAE!$G:$G,$A10) -> 588 | H10: =SUMIFS(siloDPAE!$E:$E,siloDPAE!$H:$H,"Période",siloDPAE!$A:$A,H$19,siloDPAE!$F:$F,"Total",siloDPAE!$G:$G,$A10) -> 195 | I10: =SUMIFS(siloDPAE!$E:$E,siloDPAE!$H:$H,"Période",siloDPAE!$A:$A,I$19,siloDPAE!$F:$F,"Total",siloDPAE!$G:$G,$A10) -> 740 | J10: =SUMIFS(siloDPAE!$E:$E,siloDPAE!$H:$H,"Période",siloDPAE!$A:$A,J$19,siloDPAE!$F:$F,"Total",siloDPAE!$G:$G,$A10) -> 230 | K10: =SUMIFS(siloDPAE!$E:$E,siloDPAE!$H:$H,"Période",siloDPAE!$A:$A,K$19,siloDPAE!$F:$F,"Total",siloDPAE!$G:$G,$A10) -> 833 | L10: =SUMIFS(siloDPAE!$E:$E,siloDPAE!$H:$H,"Période",siloDPAE!$A:$A,L$19,siloDPAE!$F:$F,"Total",siloDPAE!$G:$G,$A10) -> 83 | M10: =SUMIFS(siloDPAE!$E:$E,siloDPAE!$H:$H,"Période",siloDPAE!$A:$A,M$19,siloDPAE!$F:$F,"Total",siloDPAE!$G:$G,$A10) -> 272 | N10: 5098
A11: Santé | B11: =SUMIFS(siloDPAE!$E:$E,siloDPAE!$H:$H,"Période",siloDPAE!$A:$A,B$19,siloDPAE!$F:$F,"Total",siloDPAE!$G:$G,$A11) -> 13941 | C11: =SUMIFS(siloDPAE!$E:$E,siloDPAE!$H:$H,"Période",siloDPAE!$A:$A,C$19,siloDPAE!$F:$F,"Total",siloDPAE!$G:$G,$A11) -> 2878 | D11: =SUMIFS(siloDPAE!$E:$E,siloDPAE!$H:$H,"Période",siloDPAE!$A:$A,D$19,siloDPAE!$F:$F,"Total",siloDPAE!$G:$G,$A11) -> 5013 | E11: =SUMIFS(siloDPAE!$E:$E,siloDPAE!$H:$H,"Période",siloDPAE!$A:$A,E$19,siloDPAE!$F:$F,"Total",siloDPAE!$G:$G,$A11) -> 3619 | F11: =SUMIFS(siloDPAE!$E:$E,siloDPAE!$H:$H,"Période",siloDPAE!$A:$A,F$19,siloDPAE!$F:$F,"Total",siloDPAE!$G:$G,$A11) -> 13333 | G11: =SUMIFS(siloDPAE!$E:$E,siloDPAE!$H:$H,"Période",siloDPAE!$A:$A,G$19,siloDPAE!$F:$F,"Total",siloDPAE!$G:$G,$A11) -> 24741 | H11: =SUMIFS(siloDPAE!$E:$E,siloDPAE!$H:$H,"Période",siloDPAE!$A:$A,H$19,siloDPAE!$F:$F,"Total",siloDPAE!$G:$G,$A11) -> 19810 | I11: =SUMIFS(siloDPAE!$E:$E,siloDPAE!$H:$H,"Période",siloDPAE!$A:$A,I$19,siloDPAE!$F:$F,"Total",siloDPAE!$G:$G,$A11) -> 2525 | J11: =SUMIFS(siloDPAE!$E:$E,siloDPAE!$H:$H,"Période",siloDPAE!$A:$A,J$19,siloDPAE!$F:$F,"Total",siloDPAE!$G:$G,$A11) -> 15001 | K11: =SUMIFS(siloDPAE!$E:$E,siloDPAE!$H:$H,"Période",siloDPAE!$A:$A,K$19,siloDPAE!$F:$F,"Total",siloDPAE!$G:$G,$A11) -> 96885 | L11: =SUMIFS(siloDPAE!$E:$E,siloDPAE!$H:$H,"Période",siloDPAE!$A:$A,L$19,siloDPAE!$F:$F,"Total",siloDPAE!$G:$G,$A11) -> 5687 | M11: =SUMIFS(siloDPAE!$E:$E,siloDPAE!$H:$H,"Période",siloDPAE!$A:$A,M$19,siloDPAE!$F:$F,"Total",siloDPAE!$G:$G,$A11) -> 22347 | N11: 225780
A12: Services à la personne | B12: =SUMIFS(siloDPAE!$E:$E,siloDPAE!$H:$H,"Période",siloDPAE!$A:$A,B$19,siloDPAE!$F:$F,"Total",siloDPAE!$G:$G,$A12) -> 2676 | C12: =SUMIFS(siloDPAE!$E:$E,siloDPAE!$H:$H,"Période",siloDPAE!$A:$A,C$19,siloDPAE!$F:$F,"Total",siloDPAE!$G:$G,$A12) -> 1394 | D12: =SUMIFS(siloDPAE!$E:$E,siloDPAE!$H:$H,"Période",siloDPAE!$A:$A,D$19,siloDPAE!$F:$F,"Total",siloDPAE!$G:$G,$A12) -> 2378 | E12: =SUMIFS(siloDPAE!$E:$E,siloDPAE!$H:$H,"Période",siloDPAE!$A:$A,E$19,siloDPAE!$F:$F,"Total",siloDPAE!$G:$G,$A12) -> 877 | F12: =SUMIFS(siloDPAE!$E:$E,siloDPAE!$H:$H,"Période",siloDPAE!$A:$A,F$19,siloDPAE!$F:$F,"Total",siloDPAE!$G:$G,$A12) -> 4272 | G12: =SUMIFS(siloDPAE!$E:$E,siloDPAE!$H:$H,"Période",siloDPAE!$A:$A,G$19,siloDPAE!$F:$F,"Total",siloDPAE!$G:$G,$A12) -> 12795 | H12: =SUMIFS(siloDPAE!$E:$E,siloDPAE!$H:$H,"Période",siloDPAE!$A:$A,H$19,siloDPAE!$F:$F,"Total",siloDPAE!$G:$G,$A12) -> 6765 | I12: =SUMIFS(siloDPAE!$E:$E,siloDPAE!$H:$H,"Période",siloDPAE!$A:$A,I$19,siloDPAE!$F:$F,"Total",siloDPAE!$G:$G,$A12) -> 1439 | J12: =SUMIFS(siloDPAE!$E:$E,siloDPAE!$H:$H,"Période",siloDPAE!$A:$A,J$19,siloDPAE!$F:$F,"Total",siloDPAE!$G:$G,$A12) -> 3563 | K12: =SUMIFS(siloDPAE!$E:$E,siloDPAE!$H:$H,"Période",siloDPAE!$A:$A,K$19,siloDPAE!$F:$F,"Total",siloDPAE!$G:$G,$A12) -> 18182 | L12: =SUMIFS(siloDPAE!$E:$E,siloDPAE!$H:$H,"Période",siloDPAE!$A:$A,L$19,siloDPAE!$F:$F,"Total",siloDPAE!$G:$G,$A12) -> 3705 | M12: =SUMIFS(siloDPAE!$E:$E,siloDPAE!$H:$H,"Période",siloDPAE!$A:$A,M$19,siloDPAE!$F:$F,"Total",siloDPAE!$G:$G,$A12) -> 3720 | N12: 61766
A13: Sport, Montagne, Tourisme | B13: =SUMIFS(siloDPAE!$E:$E,siloDPAE!$H:$H,"Période",siloDPAE!$A:$A,B$19,siloDPAE!$F:$F,"Total",siloDPAE!$G:$G,$A13) -> 21606 | C13: =SUMIFS(siloDPAE!$E:$E,siloDPAE!$H:$H,"Période",siloDPAE!$A:$A,C$19,siloDPAE!$F:$F,"Total",siloDPAE!$G:$G,$A13) -> 12064 | D13: =SUMIFS(siloDPAE!$E:$E,siloDPAE!$H:$H,"Période",siloDPAE!$A:$A,D$19,siloDPAE!$F:$F,"Total",siloDPAE!$G:$G,$A13) -> 15454 | E13: =SUMIFS(siloDPAE!$E:$E,siloDPAE!$H:$H,"Période",siloDPAE!$A:$A,E$19,siloDPAE!$F:$F,"Total",siloDPAE!$G:$G,$A13) -> 5435 | F13: =SUMIFS(siloDPAE!$E:$E,siloDPAE!$H:$H,"Période",siloDPAE!$A:$A,F$19,siloDPAE!$F:$F,"Total",siloDPAE!$G:$G,$A13) -> 27269 | G13: =SUMIFS(siloDPAE!$E:$E,siloDPAE!$H:$H,"Période",siloDPAE!$A:$A,G$19,siloDPAE!$F:$F,"Total",siloDPAE!$G:$G,$A13) -> 58143 | H13: =SUMIFS(siloDPAE!$E:$E,siloDPAE!$H:$H,"Période",siloDPAE!$A:$A,H$19,siloDPAE!$F:$F,"Total",siloDPAE!$G:$G,$A13) -> 23175 | I13: =SUMIFS(siloDPAE!$E:$E,siloDPAE!$H:$H,"Période",siloDPAE!$A:$A,I$19,siloDPAE!$F:$F,"Total",siloDPAE!$G:$G,$A13) -> 7210 | J13: =SUMIFS(siloDPAE!$E:$E,siloDPAE!$H:$H,"Période",siloDPAE!$A:$A,J$19,siloDPAE!$F:$F,"Total",siloDPAE!$G:$G,$A13) -> 27025 | K13: =SUMIFS(siloDPAE!$E:$E,siloDPAE!$H:$H,"Période",siloDPAE!$A:$A,K$19,siloDPAE!$F:$F,"Total",siloDPAE!$G:$G,$A13) -> 145637 | L13: =SUMIFS(siloDPAE!$E:$E,siloDPAE!$H:$H,"Période",siloDPAE!$A:$A,L$19,siloDPAE!$F:$F,"Total",siloDPAE!$G:$G,$A13) -> 77715 | M13: =SUMIFS(siloDPAE!$E:$E,siloDPAE!$H:$H,"Période",siloDPAE!$A:$A,M$19,siloDPAE!$F:$F,"Total",siloDPAE!$G:$G,$A13) -> 83643 | N13: 504376
A14: Hors DOMEX | B14: =B15-SUM(B2:B13) -> 347458 | C14: =C15-SUM(C2:C13) -> 158133 | D14: 101778 | E14: 52300 | F14: 379365 | G14: 749428 | H14: 413147 | I14: 118220 | J14: 370899 | K14: 2110746 | L14: 223742 | M14: 364593 | N14: 5389809
A15: TOTAL | B15: =SUMIFS(siloDPAE!$E:$E,siloDPAE!$H:$H,"Période",siloDPAE!$A:$A,B$19,siloDPAE!$F:$F,"Total",siloDPAE!$G:$G,$A15) -> 416596 | C15: =SUMIFS(siloDPAE!$E:$E,siloDPAE!$H:$H,"Période",siloDPAE!$A:$A,C$19,siloDPAE!$F:$F,"Total",siloDPAE!$G:$G,$A15) -> 187865 | D15: =SUMIFS(siloDPAE!$E:$E,siloDPAE!$H:$H,"Période",siloDPAE!$A:$A,D$19,siloDPAE!$F:$F,"Total",siloDPAE!$G:$G,$A15) -> 149509 | E15: =SUMIFS(siloDPAE!$E:$E,siloDPAE!$H:$H,"Période",siloDPAE!$A:$A,E$19,siloDPAE!$F:$F,"Total",siloDPAE!$G:$G,$A15) -> 67479 | F15: =SUMIFS(siloDPAE!$E:$E,siloDPAE!$H:$H,"Période",siloDPAE!$A:$A,F$19,siloDPAE!$F:$F,"Total",siloDPAE!$G:$G,$A15) -> 480305 | G15: =SUMIFS(siloDPAE!$E:$E,siloDPAE!$H:$H,"Période",siloDPAE!$A:$A,G$19,siloDPAE!$F:$F,"Total",siloDPAE!$G:$G,$A15) -> 913852 | H15: =SUMIFS(siloDPAE!$E:$E,siloDPAE!$H:$H,"Période",siloDPAE!$A:$A,H$19,siloDPAE!$F:$F,"Total",siloDPAE!$G:$G,$A15) -> 506273 | I15: =SUMIFS(siloDPAE!$E:$E,siloDPAE!$H:$H,"Période",siloDPAE!$A:$A,I$19,siloDPAE!$F:$F,"Total",siloDPAE!$G:$G,$A15) -> 138834 | J15: =SUMIFS(siloDPAE!$E:$E,siloDPAE!$H:$H,"Période",siloDPAE!$A:$A,J$19,siloDPAE!$F:$F,"Total",siloDPAE!$G:$G,$A15) -> 457240 | K15: =SUMIFS(siloDPAE!$E:$E,siloDPAE!$H:$H,"Période",siloDPAE!$A:$A,K$19,siloDPAE!$F:$F,"Total",siloDPAE!$G:$G,$A15) -> 2565659 | L15: =SUMIFS(siloDPAE!$E:$E,siloDPAE!$H:$H,"Période",siloDPAE!$A:$A,L$19,siloDPAE!$F:$F,"Total",siloDPAE!$G:$G,$A15) -> 341402 | M15: =SUMIFS(siloDPAE!$E:$E,siloDPAE!$H:$H,"Période",siloDPAE!$A:$A,M$19,siloDPAE!$F:$F,"Total",siloDPAE!$G:$G,$A15) -> 514195 | N15: 6739209
A19: DPAE cumul sur 12 mois (PLUS D'UN MOIS) | B19: =B1 -> 01 | C19: =C1 -> 03 | D19: 07 | E19: 15 | F19: 26 | G19: 38 | H19: 42 | I19: 43 | J19: 63 | K19: 69 | L19: 73 | M19: 74 | N19: TOTAL
A20: =A2 -> Aéronautique | B20: =SUMIFS(siloDPAE!$E:$E,siloDPAE!$H:$H,"Période",siloDPAE!$A:$A,B$19,siloDPAE!$F:$F,"Hors court",siloDPAE!$G:$G,$A20) -> 1288 | C20: =SUMIFS(siloDPAE!$E:$E,siloDPAE!$H:$H,"Période",siloDPAE!$A:$A,C$19,siloDPAE!$F:$F,"Hors court",siloDPAE!$G:$G,$A20) -> 824 | D20: =SUMIFS(siloDPAE!$E:$E,siloDPAE!$H:$H,"Période",siloDPAE!$A:$A,D$19,siloDPAE!$F:$F,"Hors court",siloDPAE!$G:$G,$A20) -> 303 | E20: =SUMIFS(siloDPAE!$E:$E,siloDPAE!$H:$H,"Période",siloDPAE!$A:$A,E$19,siloDPAE!$F:$F,"Hors court",siloDPAE!$G:$G,$A20) -> 116 | F20: =SUMIFS(siloDPAE!$E:$E,siloDPAE!$H:$H,"Période",siloDPAE!$A:$A,F$19,siloDPAE!$F:$F,"Hors court",siloDPAE!$G:$G,$A20) -> 1191 | G20: =SUMIFS(siloDPAE!$E:$E,siloDPAE!$H:$H,"Période",siloDPAE!$A:$A,G$19,siloDPAE!$F:$F,"Hors court",siloDPAE!$G:$G,$A20) -> 2008 | H20: =SUMIFS(siloDPAE!$E:$E,siloDPAE!$H:$H,"Période",siloDPAE!$A:$A,H$19,siloDPAE!$F:$F,"Hors court",siloDPAE!$G:$G,$A20) -> 2214 | I20: =SUMIFS(siloDPAE!$E:$E,siloDPAE!$H:$H,"Période",siloDPAE!$A:$A,I$19,siloDPAE!$F:$F,"Hors court",siloDPAE!$G:$G,$A20) -> 446 | J20: =SUMIFS(siloDPAE!$E:$E,siloDPAE!$H:$H,"Période",siloDPAE!$A:$A,J$19,siloDPAE!$F:$F,"Hors court",siloDPAE!$G:$G,$A20) -> 1510 | K20: =SUMIFS(siloDPAE!$E:$E,siloDPAE!$H:$H,"Période",siloDPAE!$A:$A,K$19,siloDPAE!$F:$F,"Hors court",siloDPAE!$G:$G,$A20) -> 2783 | L20: =SUMIFS(siloDPAE!$E:$E,siloDPAE!$H:$H,"Période",siloDPAE!$A:$A,L$19,siloDPAE!$F:$F,"Hors court",siloDPAE!$G:$G,$A20) -> 1025 | M20: =SUMIFS(siloDPAE!$E:$E,siloDPAE!$H:$H,"Période",siloDPAE!$A:$A,M$19,siloDPAE!$F:$F,"Hors court",siloDPAE!$G:$G,$A20) -> 2297 | N20: =SUM(B20:M20) -> 16005
A21: =A3 -> Agriculture, Agroalimentaire, Forêt | B21: =SUMIFS(siloDPAE!$E:$E,siloDPAE!$H:$H,"Période",siloDPAE!$A:$A,B$19,siloDPAE!$F:$F,"Hors court",siloDPAE!$G:$G,$A21) -> 2824 | C21: =SUMIFS(siloDPAE!$E:$E,siloDPAE!$H:$H,"Période",siloDPAE!$A:$A,C$19,siloDPAE!$F:$F,"Hors court",siloDPAE!$G:$G,$A21) -> 1372 | D21: =SUMIFS(siloDPAE!$E:$E,siloDPAE!$H:$H,"Période",siloDPAE!$A:$A,D$19,siloDPAE!$F:$F,"Hors court",siloDPAE!$G:$G,$A21) -> 1523 | E21: =SUMIFS(siloDPAE!$E:$E,siloDPAE!$H:$H,"Période",siloDPAE!$A:$A,E$19,siloDPAE!$F:$F,"Hors court",siloDPAE!$G:$G,$A21) -> 878 | F21: =SUMIFS(siloDPAE!$E:$E,siloDPAE!$H:$H,"Période",siloDPAE!$A:$A,F$19,siloDPAE!$F:$F,"Hors court",siloDPAE!$G:$G,$A21) -> 4606 | G21: =SUMIFS(siloDPAE!$E:$E,siloDPAE!$H:$H,"Période",siloDPAE!$A:$A,G$19,siloDPAE!$F:$F,"Hors court",siloDPAE!$G:$G,$A21) -> 3739 | H21: =SUMIFS(siloDPAE!$E:$E,siloDPAE!$H:$H,"Période",siloDPAE!$A:$A,H$19,siloDPAE!$F:$F,"Hors court",siloDPAE!$G:$G,$A21) -> 3459 | I21: =SUMIFS(siloDPAE!$E:$E,siloDPAE!$H:$H,"Période",siloDPAE!$A:$A,I$19,siloDPAE!$F:$F,"Hors court",siloDPAE!$G:$G,$A21) -> 1378 | J21: =SUMIFS(siloDPAE!$E:$E,siloDPAE!$H:$H,"Période",siloDPAE!$A:$A,J$19,siloDPAE!$F:$F,"Hors court",siloDPAE!$G:$G,$A21) -> 2444 | K21: =SUMIFS(siloDPAE!$E:$E,siloDPAE!$H:$H,"Période",siloDPAE!$A:$A,K$19,siloDPAE!$F:$F,"Hors court",siloDPAE!$G:$G,$A21) -> 4911 | L21: =SUMIFS(siloDPAE!$E:$E,siloDPAE!$H:$H,"Période",siloDPAE!$A:$A,L$19,siloDPAE!$F:$F,"Hors court",siloDPAE!$G:$G,$A21) -> 2191 | M21: =SUMIFS(siloDPAE!$E:$E,siloDPAE!$H:$H,"Période",siloDPAE!$A:$A,M$19,siloDPAE!$F:$F,"Hors court",siloDPAE!$G:$G,$A21) -> 3402 | N21: =SUM(B21:M21) -> 32727
A22: BTP | B22: =SUMIFS(siloDPAE!$E:$E,siloDPAE!$H:$H,"Période",siloDPAE!$A:$A,B$19,siloDPAE!$F:$F,"Hors court",siloDPAE!$G:$G,$A22) -> 4888 | C22: =SUMIFS(siloDPAE!$E:$E,siloDPAE!$H:$H,"Période",siloDPAE!$A:$A,C$19,siloDPAE!$F:$F,"Hors court",siloDPAE!$G:$G,$A22) -> 2142 | D22: =SUMIFS(siloDPAE!$E:$E,siloDPAE!$H:$H,"Période",siloDPAE!$A:$A,D$19,siloDPAE!$F:$F,"Hors court",siloDPAE!$G:$G,$A22) -> 2293 | E22: =SUMIFS(siloDPAE!$E:$E,siloDPAE!$H:$H,"Période",siloDPAE!$A:$A,E$19,siloDPAE!$F:$F,"Hors court",siloDPAE!$G:$G,$A22) -> 952 | F22: =SUMIFS(siloDPAE!$E:$E,siloDPAE!$H:$H,"Période",siloDPAE!$A:$A,F$19,siloDPAE!$F:$F,"Hors court",siloDPAE!$G:$G,$A22) -> 5296 | G22: =SUMIFS(siloDPAE!$E:$E,siloDPAE!$H:$H,"Période",siloDPAE!$A:$A,G$19,siloDPAE!$F:$F,"Hors court",siloDPAE!$G:$G,$A22) -> 12418 | H22: =SUMIFS(siloDPAE!$E:$E,siloDPAE!$H:$H,"Période",siloDPAE!$A:$A,H$19,siloDPAE!$F:$F,"Hors court",siloDPAE!$G:$G,$A22) -> 6347 | I22: =SUMIFS(siloDPAE!$E:$E,siloDPAE!$H:$H,"Période",siloDPAE!$A:$A,I$19,siloDPAE!$F:$F,"Hors court",siloDPAE!$G:$G,$A22) -> 1525 | J22: =SUMIFS(siloDPAE!$E:$E,siloDPAE!$H:$H,"Période",siloDPAE!$A:$A,J$19,siloDPAE!$F:$F,"Hors court",siloDPAE!$G:$G,$A22) -> 5024 | K22: =SUMIFS(siloDPAE!$E:$E,siloDPAE!$H:$H,"Période",siloDPAE!$A:$A,K$19,siloDPAE!$F:$F,"Hors court",siloDPAE!$G:$G,$A22) -> 21803 | L22: =SUMIFS(siloDPAE!$E:$E,siloDPAE!$H:$H,"Période",siloDPAE!$A:$A,L$19,siloDPAE!$F:$F,"Hors court",siloDPAE!$G:$G,$A22) -> 7254 | M22: =SUMIFS(siloDPAE!$E:$E,siloDPAE!$H:$H,"Période",siloDPAE!$A:$A,M$19,siloDPAE!$F:$F,"Hors court",siloDPAE!$G:$G,$A22) -> 8509 | N22: 78451
A23: Energie | B23: =SUMIFS(siloDPAE!$E:$E,siloDPAE!$H:$H,"Période",siloDPAE!$A:$A,B$19,siloDPAE!$F:$F,"Hors court",siloDPAE!$G:$G,$A23) -> 268 | C23: =SUMIFS(siloDPAE!$E:$E,siloDPAE!$H:$H,"Période",siloDPAE!$A:$A,C$19,siloDPAE!$F:$F,"Hors court",siloDPAE!$G:$G,$A23) -> 35 | D23: =SUMIFS(siloDPAE!$E:$E,siloDPAE!$H:$H,"Période",siloDPAE!$A:$A,D$19,siloDPAE!$F:$F,"Hors court",siloDPAE!$G:$G,$A23) -> 136 | E23: =SUMIFS(siloDPAE!$E:$E,siloDPAE!$H:$H,"Période",siloDPAE!$A:$A,E$19,siloDPAE!$F:$F,"Hors court",siloDPAE!$G:$G,$A23) -> 26 | F23: =SUMIFS(siloDPAE!$E:$E,siloDPAE!$H:$H,"Période",siloDPAE!$A:$A,F$19,siloDPAE!$F:$F,"Hors court",siloDPAE!$G:$G,$A23) -> 229 | G23: =SUMIFS(siloDPAE!$E:$E,siloDPAE!$H:$H,"Période",siloDPAE!$A:$A,G$19,siloDPAE!$F:$F,"Hors court",siloDPAE!$G:$G,$A23) -> 489 | H23: =SUMIFS(siloDPAE!$E:$E,siloDPAE!$H:$H,"Période",siloDPAE!$A:$A,H$19,siloDPAE!$F:$F,"Hors court",siloDPAE!$G:$G,$A23) -> 105 | I23: =SUMIFS(siloDPAE!$E:$E,siloDPAE!$H:$H,"Période",siloDPAE!$A:$A,I$19,siloDPAE!$F:$F,"Hors court",siloDPAE!$G:$G,$A23) -> 17 | J23: =SUMIFS(siloDPAE!$E:$E,siloDPAE!$H:$H,"Période",siloDPAE!$A:$A,J$19,siloDPAE!$F:$F,"Hors court",siloDPAE!$G:$G,$A23) -> 176 | K23: =SUMIFS(siloDPAE!$E:$E,siloDPAE!$H:$H,"Période",siloDPAE!$A:$A,K$19,siloDPAE!$F:$F,"Hors court",siloDPAE!$G:$G,$A23) -> 1361 | L23: =SUMIFS(siloDPAE!$E:$E,siloDPAE!$H:$H,"Période",siloDPAE!$A:$A,L$19,siloDPAE!$F:$F,"Hors court",siloDPAE!$G:$G,$A23) -> 277 | M23: =SUMIFS(siloDPAE!$E:$E,siloDPAE!$H:$H,"Période",siloDPAE!$A:$A,M$19,siloDPAE!$F:$F,"Hors court",siloDPAE!$G:$G,$A23) -> 88 | N23: 3207
A24: Industrie du futur, production industrielle | B24: =SUMIFS(siloDPAE!$E:$E,siloDPAE!$H:$H,"Période",siloDPAE!$A:$A,B$19,siloDPAE!$F:$F,"Hors court",siloDPAE!$G:$G,$A24) -> 3835 | C24: =SUMIFS(siloDPAE!$E:$E,siloDPAE!$H:$H,"Période",siloDPAE!$A:$A,C$19,siloDPAE!$F:$F,"Hors court",siloDPAE!$G:$G,$A24) -> 1439 | D24: =SUMIFS(siloDPAE!$E:$E,siloDPAE!$H:$H,"Période",siloDPAE!$A:$A,D$19,siloDPAE!$F:$F,"Hors court",siloDPAE!$G:$G,$A24) -> 1941 | E24: =SUMIFS(siloDPAE!$E:$E,siloDPAE!$H:$H,"Période",siloDPAE!$A:$A,E$19,siloDPAE!$F:$F,"Hors court",siloDPAE!$G:$G,$A24) -> 347 | F24: =SUMIFS(siloDPAE!$E:$E,siloDPAE!$H:$H,"Période",siloDPAE!$A:$A,F$19,siloDPAE!$F:$F,"Hors court",siloDPAE!$G:$G,$A24) -> 3623 | G24: =SUMIFS(siloDPAE!$E:$E,siloDPAE!$H:$H,"Période",siloDPAE!$A:$A,G$19,siloDPAE!$F:$F,"Hors court",siloDPAE!$G:$G,$A24) -> 9778 | H24: =SUMIFS(siloDPAE!$E:$E,siloDPAE!$H:$H,"Période",siloDPAE!$A:$A,H$19,siloDPAE!$F:$F,"Hors court",siloDPAE!$G:$G,$A24) -> 4407 | I24: =SUMIFS(siloDPAE!$E:$E,siloDPAE!$H:$H,"Période",siloDPAE!$A:$A,I$19,siloDPAE!$F:$F,"Hors court",siloDPAE!$G:$G,$A24) -> 903 | J24: =SUMIFS(siloDPAE!$E:$E,siloDPAE!$H:$H,"Période",siloDPAE!$A:$A,J$19,siloDPAE!$F:$F,"Hors court",siloDPAE!$G:$G,$A24) -> 3335 | K24: =SUMIFS(siloDPAE!$E:$E,siloDPAE!$H:$H,"Période",siloDPAE!$A:$A,K$19,siloDPAE!$F:$F,"Hors court",siloDPAE!$G:$G,$A24) -> 12626 | L24: =SUMIFS(siloDPAE!$E:$E,siloDPAE!$H:$H,"Période",siloDPAE!$A:$A,L$19,siloDPAE!$F:$F,"Hors court",siloDPAE!$G:$G,$A24) -> 2055 | M24: =SUMIFS(siloDPAE!$E:$E,siloDPAE!$H:$H,"Période",siloDPAE!$A:$A,M$19,siloDPAE!$F:$F,"Hors court",siloDPAE!$G:$G,$A24) -> 4158 | N24: 48447
A25: Métier de bouche | B25: =SUMIFS(siloDPAE!$E:$E,siloDPAE!$H:$H,"Période",siloDPAE!$A:$A,B$19,siloDPAE!$F:$F,"Hors court",siloDPAE!$G:$G,$A25) -> 2554 | C25: =SUMIFS(siloDPAE!$E:$E,siloDPAE!$H:$H,"Période",siloDPAE!$A:$A,C$19,siloDPAE!$F:$F,"Hors court",siloDPAE!$G:$G,$A25) -> 1091 | D25: =SUMIFS(siloDPAE!$E:$E,siloDPAE!$H:$H,"Période",siloDPAE!$A:$A,D$19,siloDPAE!$F:$F,"Hors court",siloDPAE!$G:$G,$A25) -> 1271 | E25: =SUMIFS(siloDPAE!$E:$E,siloDPAE!$H:$H,"Période",siloDPAE!$A:$A,E$19,siloDPAE!$F:$F,"Hors court",siloDPAE!$G:$G,$A25) -> 531 | F25: =SUMIFS(siloDPAE!$E:$E,siloDPAE!$H:$H,"Période",siloDPAE!$A:$A,F$19,siloDPAE!$F:$F,"Hors court",siloDPAE!$G:$G,$A25) -> 2076 | G25: =SUMIFS(siloDPAE!$E:$E,siloDPAE!$H:$H,"Période",siloDPAE!$A:$A,G$19,siloDPAE!$F:$F,"Hors court",siloDPAE!$G:$G,$A25) -> 4455 | H25: =SUMIFS(siloDPAE!$E:$E,siloDPAE!$H:$H,"Période",siloDPAE!$A:$A,H$19,siloDPAE!$F:$F,"Hors court",siloDPAE!$G:$G,$A25) -> 2820 | I25: =SUMIFS(siloDPAE!$E:$E,siloDPAE!$H:$H,"Période",siloDPAE!$A:$A,I$19,siloDPAE!$F:$F,"Hors court",siloDPAE!$G:$G,$A25) -> 751 | J25: =SUMIFS(siloDPAE!$E:$E,siloDPAE!$H:$H,"Période",siloDPAE!$A:$A,J$19,siloDPAE!$F:$F,"Hors court",siloDPAE!$G:$G,$A25) -> 2232 | K25: =SUMIFS(siloDPAE!$E:$E,siloDPAE!$H:$H,"Période",siloDPAE!$A:$A,K$19,siloDPAE!$F:$F,"Hors court",siloDPAE!$G:$G,$A25) -> 9348 | L25: =SUMIFS(siloDPAE!$E:$E,siloDPAE!$H:$H,"Période",siloDPAE!$A:$A,L$19,siloDPAE!$F:$F,"Hors court",siloDPAE!$G:$G,$A25) -> 3228 | M25: =SUMIFS(siloDPAE!$E:$E,siloDPAE!$H:$H,"Période",siloDPAE!$A:$A,M$19,siloDPAE!$F:$F,"Hors court",siloDPAE!$G:$G,$A25) -> 5514 | N25: 35871
A26: Mobilité, systèmes de transport intelligents | B26: =SUMIFS(siloDPAE!$E:$E,siloDPAE!$H:$H,"Période",siloDPAE!$A:$A,B$19,siloDPAE!$F:$F,"Hors court",siloDPAE!$G:$G,$A26) -> 3271 | C26: =SUMIFS(siloDPAE!$E:$E,siloDPAE!$H:$H,"Période",siloDPAE!$A:$A,C$19,siloDPAE!$F:$F,"Hors court",siloDPAE!$G:$G,$A26) -> 1249 | D26: =SUMIFS(siloDPAE!$E:$E,siloDPAE!$H:$H,"Période",siloDPAE!$A:$A,D$19,siloDPAE!$F:$F,"Hors court",siloDPAE!$G:$G,$A26) -> 662 | E26: =SUMIFS(siloDPAE!$E:$E,siloDPAE!$H:$H,"Période",siloDPAE!$A:$A,E$19,siloDPAE!$F:$F,"Hors court",siloDPAE!$G:$G,$A26) -> 359 | F26: =SUMIFS(siloDPAE!$E:$E,siloDPAE!$H:$H,"Période",siloDPAE!$A:$A,F$19,siloDPAE!$F:$F,"Hors court",siloDPAE!$G:$G,$A26) -> 3811 | G26: =SUMIFS(siloDPAE!$E:$E,siloDPAE!$H:$H,"Période",siloDPAE!$A:$A,G$19,siloDPAE!$F:$F,"Hors court",siloDPAE!$G:$G,$A26) -> 7074 | H26: =SUMIFS(siloDPAE!$E:$E,siloDPAE!$H:$H,"Période",siloDPAE!$A:$A,H$19,siloDPAE!$F:$F,"Hors court",siloDPAE!$G:$G,$A26) -> 2990 | I26: =SUMIFS(siloDPAE!$E:$E,siloDPAE!$H:$H,"Période",siloDPAE!$A:$A,I$19,siloDPAE!$F:$F,"Hors court",siloDPAE!$G:$G,$A26) -> 536 | J26: =SUMIFS(siloDPAE!$E:$E,siloDPAE!$H:$H,"Période",siloDPAE!$A:$A,J$19,siloDPAE!$F:$F,"Hors court",siloDPAE!$G:$G,$A26) -> 3374 | K26: =SUMIFS(siloDPAE!$E:$E,siloDPAE!$H:$H,"Période",siloDPAE!$A:$A,K$19,siloDPAE!$F:$F,"Hors court",siloDPAE!$G:$G,$A26) -> 19864 | L26: =SUMIFS(siloDPAE!$E:$E,siloDPAE!$H:$H,"Période",siloDPAE!$A:$A,L$19,siloDPAE!$F:$F,"Hors court",siloDPAE!$G:$G,$A26) -> 3749 | M26: =SUMIFS(siloDPAE!$E:$E,siloDPAE!$H:$H,"Période",siloDPAE!$A:$A,M$19,siloDPAE!$F:$F,"Hors court",siloDPAE!$G:$G,$A26) -> 4333 | N26: 51272
A27: Numérique | B27: =SUMIFS(siloDPAE!$E:$E,siloDPAE!$H:$H,"Période",siloDPAE!$A:$A,B$19,siloDPAE!$F:$F,"Hors court",siloDPAE!$G:$G,$A27) -> 557 | C27: =SUMIFS(siloDPAE!$E:$E,siloDPAE!$H:$H,"Période",siloDPAE!$A:$A,C$19,siloDPAE!$F:$F,"Hors court",siloDPAE!$G:$G,$A27) -> 353 | D27: =SUMIFS(siloDPAE!$E:$E,siloDPAE!$H:$H,"Période",siloDPAE!$A:$A,D$19,siloDPAE!$F:$F,"Hors court",siloDPAE!$G:$G,$A27) -> 198 | E27: =SUMIFS(siloDPAE!$E:$E,siloDPAE!$H:$H,"Période",siloDPAE!$A:$A,E$19,siloDPAE!$F:$F,"Hors court",siloDPAE!$G:$G,$A27) -> 43 | F27: =SUMIFS(siloDPAE!$E:$E,siloDPAE!$H:$H,"Période",siloDPAE!$A:$A,F$19,siloDPAE!$F:$F,"Hors court",siloDPAE!$G:$G,$A27) -> 1389 | G27: =SUMIFS(siloDPAE!$E:$E,siloDPAE!$H:$H,"Période",siloDPAE!$A:$A,G$19,siloDPAE!$F:$F,"Hors court",siloDPAE!$G:$G,$A27) -> 4164 | H27: =SUMIFS(siloDPAE!$E:$E,siloDPAE!$H:$H,"Période",siloDPAE!$A:$A,H$19,siloDPAE!$F:$F,"Hors court",siloDPAE!$G:$G,$A27) -> 1044 | I27: =SUMIFS(siloDPAE!$E:$E,siloDPAE!$H:$H,"Période",siloDPAE!$A:$A,I$19,siloDPAE!$F:$F,"Hors court",siloDPAE!$G:$G,$A27) -> 167 | J27: =SUMIFS(siloDPAE!$E:$E,siloDPAE!$H:$H,"Période",siloDPAE!$A:$A,J$19,siloDPAE!$F:$F,"Hors court",siloDPAE!$G:$G,$A27) -> 1441 | K27: =SUMIFS(siloDPAE!$E:$E,siloDPAE!$H:$H,"Période",siloDPAE!$A:$A,K$19,siloDPAE!$F:$F,"Hors court",siloDPAE!$G:$G,$A27) -> 18182 | L27: =SUMIFS(siloDPAE!$E:$E,siloDPAE!$H:$H,"Période",siloDPAE!$A:$A,L$19,siloDPAE!$F:$F,"Hors court",siloDPAE!$G:$G,$A27) -> 626 | M27: =SUMIFS(siloDPAE!$E:$E,siloDPAE!$H:$H,"Période",siloDPAE!$A:$A,M$19,siloDPAE!$F:$F,"Hors court",siloDPAE!$G:$G,$A27) -> 1645 | N27: 29809
A28: Polymères | B28: =SUMIFS(siloDPAE!$E:$E,siloDPAE!$H:$H,"Période",siloDPAE!$A:$A,B$19,siloDPAE!$F:$F,"Hors court",siloDPAE!$G:$G,$A28) -> 1387 | C28: =SUMIFS(siloDPAE!$E:$E,siloDPAE!$H:$H,"Période",siloDPAE!$A:$A,C$19,siloDPAE!$F:$F,"Hors court",siloDPAE!$G:$G,$A28) -> 70 | D28: =SUMIFS(siloDPAE!$E:$E,siloDPAE!$H:$H,"Période",siloDPAE!$A:$A,D$19,siloDPAE!$F:$F,"Hors court",siloDPAE!$G:$G,$A28) -> 51 | E28: =SUMIFS(siloDPAE!$E:$E,siloDPAE!$H:$H,"Période",siloDPAE!$A:$A,E$19,siloDPAE!$F:$F,"Hors court",siloDPAE!$G:$G,$A28) -> 45 | F28: =SUMIFS(siloDPAE!$E:$E,siloDPAE!$H:$H,"Période",siloDPAE!$A:$A,F$19,siloDPAE!$F:$F,"Hors court",siloDPAE!$G:$G,$A28) -> 408 | G28: =SUMIFS(siloDPAE!$E:$E,siloDPAE!$H:$H,"Période",siloDPAE!$A:$A,G$19,siloDPAE!$F:$F,"Hors court",siloDPAE!$G:$G,$A28) -> 549 | H28: =SUMIFS(siloDPAE!$E:$E,siloDPAE!$H:$H,"Période",siloDPAE!$A:$A,H$19,siloDPAE!$F:$F,"Hors court",siloDPAE!$G:$G,$A28) -> 185 | I28: =SUMIFS(siloDPAE!$E:$E,siloDPAE!$H:$H,"Période",siloDPAE!$A:$A,I$19,siloDPAE!$F:$F,"Hors court",siloDPAE!$G:$G,$A28) -> 533 | J28: =SUMIFS(siloDPAE!$E:$E,siloDPAE!$H:$H,"Période",siloDPAE!$A:$A,J$19,siloDPAE!$F:$F,"Hors court",siloDPAE!$G:$G,$A28) -> 212 | K28: =SUMIFS(siloDPAE!$E:$E,siloDPAE!$H:$H,"Période",siloDPAE!$A:$A,K$19,siloDPAE!$F:$F,"Hors court",siloDPAE!$G:$G,$A28) -> 791 | L28: =SUMIFS(siloDPAE!$E:$E,siloDPAE!$H:$H,"Période",siloDPAE!$A:$A,L$19,siloDPAE!$F:$F,"Hors court",siloDPAE!$G:$G,$A28) -> 74 | M28: =SUMIFS(siloDPAE!$E:$E,siloDPAE!$H:$H,"Période",siloDPAE!$A:$A,M$19,siloDPAE!$F:$F,"Hors court",siloDPAE!$G:$G,$A28) -> 243 | N28: 4548
A29: Santé | B29: =SUMIFS(siloDPAE!$E:$E,siloDPAE!$H:$H,"Période",siloDPAE!$A:$A,B$19,siloDPAE!$F:$F,"Hors court",siloDPAE!$G:$G,$A29) -> 2744 | C29: =SUMIFS(siloDPAE!$E:$E,siloDPAE!$H:$H,"Période",siloDPAE!$A:$A,C$19,siloDPAE!$F:$F,"Hors court",siloDPAE!$G:$G,$A29) -> 1391 | D29: =SUMIFS(siloDPAE!$E:$E,siloDPAE!$H:$H,"Période",siloDPAE!$A:$A,D$19,siloDPAE!$F:$F,"Hors court",siloDPAE!$G:$G,$A29) -> 1224 | E29: =SUMIFS(siloDPAE!$E:$E,siloDPAE!$H:$H,"Période",siloDPAE!$A:$A,E$19,siloDPAE!$F:$F,"Hors court",siloDPAE!$G:$G,$A29) -> 646 | F29: =SUMIFS(siloDPAE!$E:$E,siloDPAE!$H:$H,"Période",siloDPAE!$A:$A,F$19,siloDPAE!$F:$F,"Hors court",siloDPAE!$G:$G,$A29) -> 2818 | G29: =SUMIFS(siloDPAE!$E:$E,siloDPAE!$H:$H,"Période",siloDPAE!$A:$A,G$19,siloDPAE!$F:$F,"Hors court",siloDPAE!$G:$G,$A29) -> 4874 | H29: =SUMIFS(siloDPAE!$E:$E,siloDPAE!$H:$H,"Période",siloDPAE!$A:$A,H$19,siloDPAE!$F:$F,"Hors court",siloDPAE!$G:$G,$A29) -> 2534 | I29: =SUMIFS(siloDPAE!$E:$E,siloDPAE!$H:$H,"Période",siloDPAE!$A:$A,I$19,siloDPAE!$F:$F,"Hors court",siloDPAE!$G:$G,$A29) -> 779 | J29: =SUMIFS(siloDPAE!$E:$E,siloDPAE!$H:$H,"Période",siloDPAE!$A:$A,J$19,siloDPAE!$F:$F,"Hors court",siloDPAE!$G:$G,$A29) -> 3621 | K29: =SUMIFS(siloDPAE!$E:$E,siloDPAE!$H:$H,"Période",siloDPAE!$A:$A,K$19,siloDPAE!$F:$F,"Hors court",siloDPAE!$G:$G,$A29) -> 11592 | L29: =SUMIFS(siloDPAE!$E:$E,siloDPAE!$H:$H,"Période",siloDPAE!$A:$A,L$19,siloDPAE!$F:$F,"Hors court",siloDPAE!$G:$G,$A29) -> 2075 | M29: =SUMIFS(siloDPAE!$E:$E,siloDPAE!$H:$H,"Période",siloDPAE!$A:$A,M$19,siloDPAE!$F:$F,"Hors court",siloDPAE!$G:$G,$A29) -> 3298 | N29: 37596
A30: Services à la personne | B30: =SUMIFS(siloDPAE!$E:$E,siloDPAE!$H:$H,"Période",siloDPAE!$A:$A,B$19,siloDPAE!$F:$F,"Hors court",siloDPAE!$G:$G,$A30) -> 1650 | C30: =SUMIFS(siloDPAE!$E:$E,siloDPAE!$H:$H,"Période",siloDPAE!$A:$A,C$19,siloDPAE!$F:$F,"Hors court",siloDPAE!$G:$G,$A30) -> 765 | D30: =SUMIFS(siloDPAE!$E:$E,siloDPAE!$H:$H,"Période",siloDPAE!$A:$A,D$19,siloDPAE!$F:$F,"Hors court",siloDPAE!$G:$G,$A30) -> 1048 | E30: =SUMIFS(siloDPAE!$E:$E,siloDPAE!$H:$H,"Période",siloDPAE!$A:$A,E$19,siloDPAE!$F:$F,"Hors court",siloDPAE!$G:$G,$A30) -> 427 | F30: =SUMIFS(siloDPAE!$E:$E,siloDPAE!$H:$H,"Période",siloDPAE!$A:$A,F$19,siloDPAE!$F:$F,"Hors court",siloDPAE!$G:$G,$A30) -> 2125 | G30: =SUMIFS(siloDPAE!$E:$E,siloDPAE!$H:$H,"Période",siloDPAE!$A:$A,G$19,siloDPAE!$F:$F,"Hors court",siloDPAE!$G:$G,$A30) -> 6922 | H30: =SUMIFS(siloDPAE!$E:$E,siloDPAE!$H:$H,"Période",siloDPAE!$A:$A,H$19,siloDPAE!$F:$F,"Hors court",siloDPAE!$G:$G,$A30) -> 2879 | I30: =SUMIFS(siloDPAE!$E:$E,siloDPAE!$H:$H,"Période",siloDPAE!$A:$A,I$19,siloDPAE!$F:$F,"Hors court",siloDPAE!$G:$G,$A30) -> 551 | J30: =SUMIFS(siloDPAE!$E:$E,siloDPAE!$H:$H,"Période",siloDPAE!$A:$A,J$19,siloDPAE!$F:$F,"Hors court",siloDPAE!$G:$G,$A30) -> 2337 | K30: =SUMIFS(siloDPAE!$E:$E,siloDPAE!$H:$H,"Période",siloDPAE!$A:$A,K$19,siloDPAE!$F:$F,"Hors court",siloDPAE!$G:$G,$A30) -> 12449 | L30: =SUMIFS(siloDPAE!$E:$E,siloDPAE!$H:$H,"Période",siloDPAE!$A:$A,L$19,siloDPAE!$F:$F,"Hors court",siloDPAE!$G:$G,$A30) -> 2417 | M30: =SUMIFS(siloDPAE!$E:$E,siloDPAE!$H:$H,"Période",siloDPAE!$A:$A,M$19,siloDPAE!$F:$F,"Hors court",siloDPAE!$G:$G,$A30) -> 2787 | N30: 36357
A31: Sport, Montagne, Tourisme | B31: =SUMIFS(siloDPAE!$E:$E,siloDPAE!$H:$H,"Période",siloDPAE!$A:$A,B$19,siloDPAE!$F:$F,"Hors court",siloDPAE!$G:$G,$A31) -> 11465 | C31: =SUMIFS(siloDPAE!$E:$E,siloDPAE!$H:$H,"Période",siloDPAE!$A:$A,C$19,siloDPAE!$F:$F,"Hors court",siloDPAE!$G:$G,$A31) -> 5424 | D31: =SUMIFS(siloDPAE!$E:$E,siloDPAE!$H:$H,"Période",siloDPAE!$A:$A,D$19,siloDPAE!$F:$F,"Hors court",siloDPAE!$G:$G,$A31) -> 9633 | E31: =SUMIFS(siloDPAE!$E:$E,siloDPAE!$H:$H,"Période",siloDPAE!$A:$A,E$19,siloDPAE!$F:$F,"Hors court",siloDPAE!$G:$G,$A31) -> 3144 | F31: =SUMIFS(siloDPAE!$E:$E,siloDPAE!$H:$H,"Période",siloDPAE!$A:$A,F$19,siloDPAE!$F:$F,"Hors court",siloDPAE!$G:$G,$A31) -> 12309 | G31: =SUMIFS(siloDPAE!$E:$E,siloDPAE!$H:$H,"Période",siloDPAE!$A:$A,G$19,siloDPAE!$F:$F,"Hors court",siloDPAE!$G:$G,$A31) -> 30242 | H31: =SUMIFS(siloDPAE!$E:$E,siloDPAE!$H:$H,"Période",siloDPAE!$A:$A,H$19,siloDPAE!$F:$F,"Hors court",siloDPAE!$G:$G,$A31) -> 10690 | I31: =SUMIFS(siloDPAE!$E:$E,siloDPAE!$H:$H,"Période",siloDPAE!$A:$A,I$19,siloDPAE!$F:$F,"Hors court",siloDPAE!$G:$G,$A31) -> 3687 | J31: =SUMIFS(siloDPAE!$E:$E,siloDPAE!$H:$H,"Période",siloDPAE!$A:$A,J$19,siloDPAE!$F:$F,"Hors court",siloDPAE!$G:$G,$A31) -> 13909 | K31: =SUMIFS(siloDPAE!$E:$E,siloDPAE!$H:$H,"Période",siloDPAE!$A:$A,K$19,siloDPAE!$F:$F,"Hors court",siloDPAE!$G:$G,$A31) -> 58513 | L31: =SUMIFS(siloDPAE!$E:$E,siloDPAE!$H:$H,"Période",siloDPAE!$A:$A,L$19,siloDPAE!$F:$F,"Hors court",siloDPAE!$G:$G,$A31) -> 57245 | M31: =SUMIFS(siloDPAE!$E:$E,siloDPAE!$H:$H,"Période",siloDPAE!$A:$A,M$19,siloDPAE!$F:$F,"Hors court",siloDPAE!$G:$G,$A31) -> 54864 | N31: 271125
A32: Hors DOMEX | B32: =B33-SUM(B20:B31) -> 35459 | C32: =C33-SUM(C20:C31) -> 20012 | D32: =D33-SUM(D20:D31) -> 17177 | E32: =E33-SUM(E20:E31) -> 8194 | F32: =F33-SUM(F20:F31) -> 35703 | G32: =G33-SUM(G20:G31) -> 96233 | H32: =H33-SUM(H20:H31) -> 42579 | I32: =I33-SUM(I20:I31) -> 11227 | J32: =J33-SUM(J20:J31) -> 41608 | K32: =K33-SUM(K20:K31) -> 212909 | L32: =L33-SUM(L20:L31) -> 48690 | M32: =M33-SUM(M20:M31) -> 63635 | N32: 633426
A33: TOTAL | B33: =SUMIFS(siloDPAE!$E:$E,siloDPAE!$H:$H,"Période",siloDPAE!$A:$A,B$19,siloDPAE!$F:$F,"Hors court",siloDPAE!$G:$G,$A33) -> 72190 | C33: =SUMIFS(siloDPAE!$E:$E,siloDPAE!$H:$H,"Période",siloDPAE!$A:$A,C$19,siloDPAE!$F:$F,"Hors court",siloDPAE!$G:$G,$A33) -> 36167 | D33: =SUMIFS(siloDPAE!$E:$E,siloDPAE!$H:$H,"Période",siloDPAE!$A:$A,D$19,siloDPAE!$F:$F,"Hors court",siloDPAE!$G:$G,$A33) -> 37460 | E33: =SUMIFS(siloDPAE!$E:$E,siloDPAE!$H:$H,"Période",siloDPAE!$A:$A,E$19,siloDPAE!$F:$F,"Hors court",siloDPAE!$G:$G,$A33) -> 15708 | F33: =SUMIFS(siloDPAE!$E:$E,siloDPAE!$H:$H,"Période",siloDPAE!$A:$A,F$19,siloDPAE!$F:$F,"Hors court",siloDPAE!$G:$G,$A33) -> 75584 | G33: =SUMIFS(siloDPAE!$E:$E,siloDPAE!$H:$H,"Période",siloDPAE!$A:$A,G$19,siloDPAE!$F:$F,"Hors court",siloDPAE!$G:$G,$A33) -> 182945 | H33: =SUMIFS(siloDPAE!$E:$E,siloDPAE!$H:$H,"Période",siloDPAE!$A:$A,H$19,siloDPAE!$F:$F,"Hors court",siloDPAE!$G:$G,$A33) -> 82253 | I33: =SUMIFS(siloDPAE!$E:$E,siloDPAE!$H:$H,"Période",siloDPAE!$A:$A,I$19,siloDPAE!$F:$F,"Hors court",siloDPAE!$G:$G,$A33) -> 22500 | J33: =SUMIFS(siloDPAE!$E:$E,siloDPAE!$H:$H,"Période",siloDPAE!$A:$A,J$19,siloDPAE!$F:$F,"Hors court",siloDPAE!$G:$G,$A33) -> 81223 | K33: =SUMIFS(siloDPAE!$E:$E,siloDPAE!$H:$H,"Période",siloDPAE!$A:$A,K$19,siloDPAE!$F:$F,"Hors court",siloDPAE!$G:$G,$A33) -> 387132 | L33: =SUMIFS(siloDPAE!$E:$E,siloDPAE!$H:$H,"Période",siloDPAE!$A:$A,L$19,siloDPAE!$F:$F,"Hors court",siloDPAE!$G:$G,$A33) -> 130906 | M33: =SUMIFS(siloDPAE!$E:$E,siloDPAE!$H:$H,"Période",siloDPAE!$A:$A,M$19,siloDPAE!$F:$F,"Hors court",siloDPAE!$G:$G,$A33) -> 154773 | N33: 1278841

Sheet OEE (ROME) (hidden)
A1: Code ROME | B1: Libellé ROME | C1: DOMEX | D1: Clé tri DOMEX | E1: Territoire sélection | F1: ='DPAE (DOMEX)'!B1 -> 01 | G1: ='DPAE (DOMEX)'!C1 -> 03 | H1: ='DPAE (DOMEX)'!D1 -> 07 | I1: ='DPAE (DOMEX)'!E1 -> 15 | J1: ='DPAE (DOMEX)'!F1 -> 26 | K1: ='DPAE (DOMEX)'!G1 -> 38 | L1: ='DPAE (DOMEX)'!H1 -> 42 | M1: ='DPAE (DOMEX)'!I1 -> 43 | N1: ='DPAE (DOMEX)'!J1 -> 63 | O1: ='DPAE (DOMEX)'!K1 -> 69 | P1: ='DPAE (DOMEX)'!L1 -> 73 | Q1: ='DPAE (DOMEX)'!M1 -> 74 | R1: ='DPAE (DOMEX)'!N1 -> TOTAL
A2: N1103 | B2: Magasinage et préparation de commandes | C2: Mobilité, systèmes de transport intelligents | D2: =IF(C2='DONNEES INFOGRAPHIES'!$B$6,1,0) -> 1 | E2: =VLOOKUP(A2,A:R,'DONNEES INFOGRAPHIES'!$L$9+4,FALSE) -> 16015 | F2: =SUMIFS(SILOSTMAT!$C:$C,SILOSTMAT!$A:$A,F$1,SILOSTMAT!$B:$B,$A2) -> 1775 | G2: =SUMIFS(SILOSTMAT!$C:$C,SILOSTMAT!$A:$A,G$1,SILOSTMAT!$B:$B,$A2) -> 298 | H2: =SUMIFS(SILOSTMAT!$C:$C,SILOSTMAT!$A:$A,H$1,SILOSTMAT!$B:$B,$A2) -> 242 | I2: =SUMIFS(SILOSTMAT!$C:$C,SILOSTMAT!$A:$A,I$1,SILOSTMAT!$B:$B,$A2) -> 116 | J2: =SUMIFS(SILOSTMAT!$C:$C,SILOSTMAT!$A:$A,J$1,SILOSTMAT!$B:$B,$A2) -> 1343 | K2: =SUMIFS(SILOSTMAT!$C:$C,SILOSTMAT!$A:$A,K$1,SILOSTMAT!$B:$B,$A2) -> 3015 | L2: =SUMIFS(SILOSTMAT!$C:$C,SILOSTMAT!$A:$A,L$1,SILOSTMAT!$B:$B,$A2) -> 733 | M2: =SUMIFS(SILOSTMAT!$C:$C,SILOSTMAT!$A:$A,M$1,SILOSTMAT!$B:$B,$A2) -> 196 | N2: =SUMIFS(SILOSTMAT!$C:$C,SILOSTMAT!$A:$A,N$1,SILOSTMAT!$B:$B,$A2) -> 770 | O2: =SUMIFS(SILOSTMAT!$C:$C,SILOSTMAT!$A:$A,O$1,SILOSTMAT!$B:$B,$A2) -> 5566 | P2: =SUMIFS(SILOSTMAT!$C:$C,SILOSTMAT!$A:$A,P$1,SILOSTMAT!$B:$B,$A2) -> 754 | Q2: =SUMIFS(SILOSTMAT!$C:$C,SILOSTMAT!$A:$A,Q$1,SILOSTMAT!$B:$B,$A2) -> 1207 | R2: =SUMIFS(SILOSTMAT!$C:$C,SILOSTMAT!$A:$A,R$1,SILOSTMAT!$B:$B,$A2) -> 16015
A3: N4101 | B3: Conduite de transport de marchandises sur longue distance | C3: Mobilité, systèmes de transport intelligents | D3: =IF(C3='DONNEES INFOGRAPHIES'!$B$6,1,0) -> 1 | E3: =VLOOKUP(A3,A:R,'DONNEES INFOGRAPHIES'!$L$9+4,FALSE) -> 8583 | F3: =SUMIFS(SILOSTMAT!$C:$C,SILOSTMAT!$A:$A,F$1,SILOSTMAT!$B:$B,$A3) -> 678 | G3: =SUMIFS(SILOSTMAT!$C:$C,SILOSTMAT!$A:$A,G$1,SILOSTMAT!$B:$B,$A3) -> 167 | H3: =SUMIFS(SILOSTMAT!$C:$C,SILOSTMAT!$A:$A,H$1,SILOSTMAT!$B:$B,$A3) -> 146 | I3: =SUMIFS(SILOSTMAT!$C:$C,SILOSTMAT!$A:$A,I$1,SILOSTMAT!$B:$B,$A3) -> 118 | J3: =SUMIFS(SILOSTMAT!$C:$C,SILOSTMAT!$A:$A,J$1,SILOSTMAT!$B:$B,$A3) -> 736 | K3: =SUMIFS(SILOSTMAT!$C:$C,SILOSTMAT!$A:$A,K$1,SILOSTMAT!$B:$B,$A3) -> 889 | L3: =SUMIFS(SILOSTMAT!$C:$C,SILOSTMAT!$A:$A,L$1,SILOSTMAT!$B:$B,$A3) -> 461 | M3: =SUMIFS(SILOSTMAT!$C:$C,SILOSTMAT!$A:$A,M$1,SILOSTMAT!$B:$B,$A3) -> 145 | N3: =SUMIFS(SILOSTMAT!$C:$C,SILOSTMAT!$A:$A,N$1,SILOSTMAT!$B:$B,$A3) -> 646 | O3: =SUMIFS(SILOSTMAT!$C:$C,SILOSTMAT!$A:$A,O$1,SILOSTMAT!$B:$B,$A3) -> 2419 | P3: =SUMIFS(SILOSTMAT!$C:$C,SILOSTMAT!$A:$A,P$1,SILOSTMAT!$B:$B,$A3) -> 1578 | Q3: =SUMIFS(SILOSTMAT!$C:$C,SILOSTMAT!$A:$A,Q$1,SILOSTMAT!$B:$B,$A3) -> 600 | R3: =SUMIFS(SILOSTMAT!$C:$C,SILOSTMAT!$A:$A,R$1,SILOSTMAT!$B:$B,$A3) -> 8583
A4: N1101 | B4: Conduite d'engins de déplacement des charges | C4: Mobilité, systèmes de transport intelligents | D4: =IF(C4='DONNEES INFOGRAPHIES'!$B$6,1,0) -> 1 | E4: =VLOOKUP(A4,A:R,'DONNEES INFOGRAPHIES'!$L$9+4,FALSE) -> 6470 | F4: =SUMIFS(SILOSTMAT!$C:$C,SILOSTMAT!$A:$A,F$1,SILOSTMAT!$B:$B,$A4) -> 853 | G4: =SUMIFS(SILOSTMAT!$C:$C,SILOSTMAT!$A:$A,G$1,SILOSTMAT!$B:$B,$A4) -> 92 | H4: =SUMIFS(SILOSTMAT!$C:$C,SILOSTMAT!$A:$A,H$1,SILOSTMAT!$B:$B,$A4) -> 158 | I4: =SUMIFS(SILOSTMAT!$C:$C,SILOSTMAT!$A:$A,I$1,SILOSTMAT!$B:$B,$A4) -> 14 | J4: =SUMIFS(SILOSTMAT!$C:$C,SILOSTMAT!$A:$A,J$1,SILOSTMAT!$B:$B,$A4) -> 775 | K4: =SUMIFS(SILOSTMAT!$C:$C,SILOSTMAT!$A:$A,K$1,SILOSTMAT!$B:$B,$A4) -> 966 | L4: =SUMIFS(SILOSTMAT!$C:$C,SILOSTMAT!$A:$A,L$1,SILOSTMAT!$B:$B,$A4) -> 570 | M4: =SUMIFS(SILOSTMAT!$C:$C,SILOSTMAT!$A:$A,M$1,SILOSTMAT!$B:$B,$A4) -> 125 | N4: =SUMIFS(SILOSTMAT!$C:$C,SILOSTMAT!$A:$A,N$1,SILOSTMAT!$B:$B,$A4) -> 510 | O4: =SUMIFS(SILOSTMAT!$C:$C,SILOSTMAT!$A:$A,O$1,SILOSTMAT!$B:$B,$A4) -> 1751 | P4: =SUMIFS(SILOSTMAT!$C:$C,SILOSTMAT!$A:$A,P$1,SILOSTMAT!$B:$B,$A4) -> 242 | Q4: =SUMIFS(SILOSTMAT!$C:$C,SILOSTMAT!$A:$A,Q$1,SILOSTMAT!$B:$B,$A4) -> 414 | R4: =SUMIFS(SILOSTMAT!$C:$C,SILOSTMAT!$A:$A,R$1,SILOSTMAT!$B:$B,$A4) -> 6470
A5: N1105 | B5: Manutention manuelle de charges | C5: Mobilité, systèmes de transport intelligents | D5: =IF(C5='DONNEES INFOGRAPHIES'!$B$6,1,0) -> 1 | E5: =VLOOKUP(A5,A:R,'DONNEES INFOGRAPHIES'!$L$9+4,FALSE) -> 5102 | F5: =SUMIFS(SILOSTMAT!$C:$C,SILOSTMAT!$A:$A,F$1,SILOSTMAT!$B:$B,$A5) -> 583 | G5: =SUMIFS(SILOSTMAT!$C:$C,SILOSTMAT!$A:$A,G$1,SILOSTMAT!$B:$B,$A5) -> 188 | H5: =SUMIFS(SILOSTMAT!$C:$C,SILOSTMAT!$A:$A,H$1,SILOSTMAT!$B:$B,$A5) -> 72 | I5: =SUMIFS(SILOSTMAT!$C:$C,SILOSTMAT!$A:$A,I$1,SILOSTMAT!$B:$B,$A5) -> 49 | J5: =SUMIFS(SILOSTMAT!$C:$C,SILOSTMAT!$A:$A,J$1,SILOSTMAT!$B:$B,$A5) -> 417 | K5: =SUMIFS(SILOSTMAT!$C:$C,SILOSTMAT!$A:$A,K$1,SILOSTMAT!$B:$B,$A5) -> 692 | L5: =SUMIFS(SILOSTMAT!$C:$C,SILOSTMAT!$A:$A,L$1,SILOSTMAT!$B:$B,$A5) -> 352 | M5: =SUMIFS(SILOSTMAT!$C:$C,SILOSTMAT!$A:$A,M$1,SILOSTMAT!$B:$B,$A5) -> 192 | N5: =SUMIFS(SILOSTMAT!$C:$C,SILOSTMAT!$A:$A,N$1,SILOSTMAT!$B:$B,$A5) -> 431 | O5: =SUMIFS(SILOSTMAT!$C:$C,SILOSTMAT!$A:$A,O$1,SILOSTMAT!$B:$B,$A5) -> 1638 | P5: =SUMIFS(SILOSTMAT!$C:$C,SILOSTMAT!$A:$A,P$1,SILOSTMAT!$B:$B,$A5) -> 237 | Q5: =SUMIFS(SILOSTMAT!$C:$C,SILOSTMAT!$A:$A,Q$1,SILOSTMAT!$B:$B,$A5) -> 251 | R5: =SUMIFS(SILOSTMAT!$C:$C,SILOSTMAT!$A:$A,R$1,SILOSTMAT!$B:$B,$A5) -> 5102
A6: N4105 | B6: Conduite et livraison par tournées sur courte distance | C6: Mobilité, systèmes de transport intelligents | D6: =IF(C6='DONNEES INFOGRAPHIES'!$B$6,1,0) -> 1 | E6: =VLOOKUP(A6,A:R,'DONNEES INFOGRAPHIES'!$L$9+4,FALSE) -> 3783 | F6: =SUMIFS(SILOSTMAT!$C:$C,SILOSTMAT!$A:$A,F$1,SILOSTMAT!$B:$B,$A6) -> 213 | G6: =SUMIFS(SILOSTMAT!$C:$C,SILOSTMAT!$A:$A,G$1,SILOSTMAT!$B:$B,$A6) -> 101 | H6: =SUMIFS(SILOSTMAT!$C:$C,SILOSTMAT!$A:$A,H$1,SILOSTMAT!$B:$B,$A6) -> 84 | I6: =SUMIFS(SILOSTMAT!$C:$C,SILOSTMAT!$A:$A,I$1,SILOSTMAT!$B:$B,$A6) -> 45 | J6: =SUMIFS(SILOSTMAT!$C:$C,SILOSTMAT!$A:$A,J$1,SILOSTMAT!$B:$B,$A6) -> 290 | K6: =SUMIFS(SILOSTMAT!$C:$C,SILOSTMAT!$A:$A,K$1,SILOSTMAT!$B:$B,$A6) -> 484 | L6: =SUMIFS(SILOSTMAT!$C:$C,SILOSTMAT!$A:$A,L$1,SILOSTMAT!$B:$B,$A6) -> 262 | M6: =SUMIFS(SILOSTMAT!$C:$C,SILOSTMAT!$A:$A,M$1,SILOSTMAT!$B:$B,$A6) -> 90 | N6: =SUMIFS(SILOSTMAT!$C:$C,SILOSTMAT!$A:$A,N$1,SILOSTMAT!$B:$B,$A6) -> 407 | O6: =SUMIFS(SILOSTMAT!$C:$C,SILOSTMAT!$A:$A,O$1,SILOSTMAT!$B:$B,$A6) -> 1002 | P6: =SUMIFS(SILOSTMAT!$C:$C,SILOSTMAT!$A:$A,P$1,SILOSTMAT!$B:$B,$A6) -> 402 | Q6: =SUMIFS(SILOSTMAT!$C:$C,SILOSTMAT!$A:$A,Q$1,SILOSTMAT!$B:$B,$A6) -> 403 | R6: =SUMIFS(SILOSTMAT!$C:$C,SILOSTMAT!$A:$A,R$1,SILOSTMAT!$B:$B,$A6) -> 3783
A7: N4103 | B7: Conduite de transport en commun sur route | C7: Mobilité, systèmes de transport intelligents | D7: =IF(C7='DONNEES INFOGRAPHIES'!$B$6,1,0) -> 1 | E7: =VLOOKUP(A7,A:R,'DONNEES INFOGRAPHIES'!$L$9+4,FALSE) -> 3314 | F7: =SUMIFS(SILOSTMAT!$C:$C,SILOSTMAT!$A:$A,F$1,SILOSTMAT!$B:$B,$A7) -> 104 | G7: =SUMIFS(SILOSTMAT!$C:$C,SILOSTMAT!$A:$A,G$1,SILOSTMAT!$B:$B,$A7) -> 125 | H7: =SUMIFS(SILOSTMAT!$C:$C,SILOSTMAT!$A:$A,H$1,SILOSTMAT!$B:$B,$A7) -> 116 | I7: =SUMIFS(SILOSTMAT!$C:$C,SILOSTMAT!$A:$A,I$1,SILOSTMAT!$B:$B,$A7) -> 38 | J7: =SUMIFS(SILOSTMAT!$C:$C,SILOSTMAT!$A:$A,J$1,SILOSTMAT!$B:$B,$A7) -> 181 | K7: =SUMIFS(SILOSTMAT!$C:$C,SILOSTMAT!$A:$A,K$1,SILOSTMAT!$B:$B,$A7) -> 670 | L7: =SUMIFS(SILOSTMAT!$C:$C,SILOSTMAT!$A:$A,L$1,SILOSTMAT!$B:$B,$A7) -> 201 | M7: =SUMIFS(SILOSTMAT!$C:$C,SILOSTMAT!$A:$A,M$1,SILOSTMAT!$B:$B,$A7) -> 66 | N7: =SUMIFS(SILOSTMAT!$C:$C,SILOSTMAT!$A:$A,N$1,SILOSTMAT!$B:$B,$A7) -> 204 | O7: =SUMIFS(SILOSTMAT!$C:$C,SILOSTMAT!$A:$A,O$1,SILOSTMAT!$B:$B,$A7) -> 959 | P7: =SUMIFS(SILOSTMAT!$C:$C,SILOSTMAT!$A:$A,P$1,SILOSTMAT!$B:$B,$A7) -> 187 | Q7: =SUMIFS(SILOSTMAT!$C:$C,SILOSTMAT!$A:$A,Q$1,SILOSTMAT!$B:$B,$A7) -> 463 | R7: =SUMIFS(SILOSTMAT!$C:$C,SILOSTMAT!$A:$A,R$1,SILOSTMAT!$B:$B,$A7) -> 3314
A8: N1303 | B8: Intervention technique d'exploitation logistique | C8: Mobilité, systèmes de transport intelligents | D8: =IF(C8='DONNEES INFOGRAPHIES'!$B$6,1,0) -> 1 | E8: =VLOOKUP(A8,A:R,'DONNEES INFOGRAPHIES'!$L$9+4,FALSE) -> 2384 | F8: =SUMIFS(SILOSTMAT!$C:$C,SILOSTMAT!$A:$A,F$1,SILOSTMAT!$B:$B,$A8) -> 272 | G8: =SUMIFS(SILOSTMAT!$C:$C,SILOSTMAT!$A:$A,G$1,SILOSTMAT!$B:$B,$A8) -> 38 | H8: =SUMIFS(SILOSTMAT!$C:$C,SILOSTMAT!$A:$A,H$1,SILOSTMAT!$B:$B,$A8) -> 19 | I8: =SUMIFS(SILOSTMAT!$C:$C,SILOSTMAT!$A:$A,I$1,SILOSTMAT!$B:$B,$A8) -> 8 | J8: =SUMIFS(SILOSTMAT!$C:$C,SILOSTMAT!$A:$A,J$1,SILOSTMAT!$B:$B,$A8) -> 124 | K8: =SUMIFS(SILOSTMAT!$C:$C,SILOSTMAT!$A:$A,K$1,SILOSTMAT!$B:$B,$A8) -> 407 | L8: =SUMIFS(SILOSTMAT!$C:$C,SILOSTMAT!$A:$A,L$1,SILOSTMAT!$B:$B,$A8) -> 134 | M8: =SUMIFS(SILOSTMAT!$C:$C,SILOSTMAT!$A:$A,M$1,SILOSTMAT!$B:$B,$A8) -> 42 | N8: =SUMIFS(SILOSTMAT!$C:$C,SILOSTMAT!$A:$A,N$1,SILOSTMAT!$B:$B,$A8) -> 119 | O8: =SUMIFS(SILOSTMAT!$C:$C,SILOSTMAT!$A:$A,O$1,SILOSTMAT!$B:$B,$A8) -> 866 | P8: =SUMIFS(SILOSTMAT!$C:$C,SILOSTMAT!$A:$A,P$1,SILOSTMAT!$B:$B,$A8) -> 163 | Q8: =SUMIFS(SILOSTMAT!$C:$C,SILOSTMAT!$A:$A,Q$1,SILOSTMAT!$B:$B,$A8) -> 192 | R8: =SUMIFS(SILOSTMAT!$C:$C,SILOSTMAT!$A:$A,R$1,SILOSTMAT!$B:$B,$A8) -> 2384
A9: N4203 | B9: Intervention technique d'exploitation des transports routiers de marchandises | C9: Mobilité, systèmes de transport intelligents | D9: =IF(C9='DONNEES INFOGRAPHIES'!$B$6,1,0) -> 1 | E9: =VLOOKUP(A9,A:R,'DONNEES INFOGRAPHIES'!$L$9+4,FALSE) -> 837 | F9: =SUMIFS(SILOSTMAT!$C:$C,SILOSTMAT!$A:$A,F$1,SILOSTMAT!$B:$B,$A9) -> 70 | G9: =SUMIFS(SILOSTMAT!$C:$C,SILOSTMAT!$A:$A,G$1,SILOSTMAT!$B:$B,$A9) -> 6 | H9: =SUMIFS(SILOSTMAT!$C:$C,SILOSTMAT!$A:$A,H$1,SILOSTMAT!$B:$B,$A9) -> 4 | I9: =SUMIFS(SILOSTMAT!$C:$C,SILOSTMAT!$A:$A,I$1,SILOSTMAT!$B:$B,$A9) -> 4 | J9: =SUMIFS(SILOSTMAT!$C:$C,SILOSTMAT!$A:$A,J$1,SILOSTMAT!$B:$B,$A9) -> 47 | K9: =SUMIFS(SILOSTMAT!$C:$C,SILOSTMAT!$A:$A,K$1,SILOSTMAT!$B:$B,$A9) -> 110 | L9: =SUMIFS(SILOSTMAT!$C:$C,SILOSTMAT!$A:$A,L$1,SILOSTMAT!$B:$B,$A9) -> 83 | M9: =SUMIFS(SILOSTMAT!$C:$C,SILOSTMAT!$A:$A,M$1,SILOSTMAT!$B:$B,$A9) -> 4 | N9: =SUMIFS(SILOSTMAT!$C:$C,SILOSTMAT!$A:$A,N$1,SILOSTMAT!$B:$B,$A9) -> 47 | O9: =SUMIFS(SILOSTMAT!$C:$C,SILOSTMAT!$A:$A,O$1,SILOSTMAT!$B:$B,$A9) -> 375 | P9: =SUMIFS(SILOSTMAT!$C:$C,SILOSTMAT!$A:$A,P$1,SILOSTMAT!$B:$B,$A9) -> 54 | Q9: =SUMIFS(SILOSTMAT!$C:$C,SILOSTMAT!$A:$A,Q$1,SILOSTMAT!$B:$B,$A9) -> 33 | R9: =SUMIFS(SILOSTMAT!$C:$C,SILOSTMAT!$A:$A,R$1,SILOSTMAT!$B:$B,$A9) -> 837
A10: N1102 | B10: Déménagement | C10: Mobilité, systèmes de transport intelligents | D10: =IF(C10='DONNEES INFOGRAPHIES'!$B$6,1,0) -> 1 | E10: =VLOOKUP(A10,A:R,'DONNEES INFOGRAPHIES'!$L$9+4,FALSE) -> 791 | F10: =SUMIFS(SILOSTMAT!$C:$C,SILOSTMAT!$A:$A,F$1,SILOSTMAT!$B:$B,$A10) -> 16 | G10: =SUMIFS(SILOSTMAT!$C:$C,SILOSTMAT!$A:$A,G$1,SILOSTMAT!$B:$B,$A10) -> 1 | H10: =SUMIFS(SILOSTMAT!$C:$C,SILOSTMAT!$A:$A,H$1,SILOSTMAT!$B:$B,$A10) -> 0 | I10: =SUMIFS(SILOSTMAT!$C:$C,SILOSTMAT!$A:$A,I$1,SILOSTMAT!$B:$B,$A10) -> 1 | J10: =SUMIFS(SILOSTMAT!$C:$C,SILOSTMAT!$A:$A,J$1,SILOSTMAT!$B:$B,$A10) -> 2 | K10: =SUMIFS(SILOSTMAT!$C:$C,SILOSTMAT!$A:$A,K$1,SILOSTMAT!$B:$B,$A10) -> 17 | L10: =SUMIFS(SILOSTMAT!$C:$C,SILOSTMAT!$A:$A,L$1,SILOSTMAT!$B:$B,$A10) -> 11 | M10: =SUMIFS(SILOSTMAT!$C:$C,SILOSTMAT!$A:$A,M$1,SILOSTMAT!$B:$B,$A10) -> 0 | N10: =SUMIFS(SILOSTMAT!$C:$C,SILOSTMAT!$A:$A,N$1,SILOSTMAT!$B:$B,$A10) -> 36 | O10: =SUMIFS(SILOSTMAT!$C:$C,SILOSTMAT!$A:$A,O$1,SILOSTMAT!$B:$B,$A10) -> 688 | P10: =SUMIFS(SILOSTMAT!$C:$C,SILOSTMAT!$A:$A,P$1,SILOSTMAT!$B:$B,$A10) -> 7 | Q10: =SUMIFS(SILOSTMAT!$C:$C,SILOSTMAT!$A:$A,Q$1,SILOSTMAT!$B:$B,$A10) -> 12 | R10: =SUMIFS(SILOSTMAT!$C:$C,SILOSTMAT!$A:$A,R$1,SILOSTMAT!$B:$B,$A10) -> 791
A11: N1301 | B11: Conception et organisation de la chaîne logistique | C11: Mobilité, systèmes de transport intelligents | D11: =IF(C11='DONNEES INFOGRAPHIES'!$B$6,1,0) -> 1 | E11: =VLOOKUP(A11,A:R,'DONNEES INFOGRAPHIES'!$L$9+4,FALSE) -> 697 | F11: =SUMIFS(SILOSTMAT!$C:$C,SILOSTMAT!$A:$A,F$1,SILOSTMAT!$B:$B,$A11) -> 51 | G11: =SUMIFS(SILOSTMAT!$C:$C,SILOSTMAT!$A:$A,G$1,SILOSTMAT!$B:$B,$A11) -> 4 | H11: =SUMIFS(SILOSTMAT!$C:$C,SILOSTMAT!$A:$A,H$1,SILOSTMAT!$B:$B,$A11) -> 13 | I11: =SUMIFS(SILOSTMAT!$C:$C,SILOSTMAT!$A:$A,I$1,SILOSTMAT!$B:$B,$A11) -> 3 | J11: =SUMIFS(SILOSTMAT!$C:$C,SILOSTMAT!$A:$A,J$1,SILOSTMAT!$B:$B,$A11) -> 40 | K11: =SUMIFS(SILOSTMAT!$C:$C,SILOSTMAT!$A:$A,K$1,SILOSTMAT!$B:$B,$A11) -> 183 | L11: =SUMIFS(SILOSTMAT!$C:$C,SILOSTMAT!$A:$A,L$1,SILOSTMAT!$B:$B,$A11) -> 36 | M11: =SUMIFS(SILOSTMAT!$C:$C,SILOSTMAT!$A:$A,M$1,SILOSTMAT!$B:$B,$A11) -> 4 | N11: =SUMIFS(SILOSTMAT!$C:$C,SILOSTMAT!$A:$A,N$1,SILOSTMAT!$B:$B,$A11) -> 28 | O11: =SUMIFS(SILOSTMAT!$C:$C,SILOSTMAT!$A:$A,O$1,SILOSTMAT!$B:$B,$A11) -> 223 | P11: =SUMIFS(SILOSTMAT!$C:$C,SILOSTMAT!$A:$A,P$1,SILOSTMAT!$B:$B,$A11) -> 43 | Q11: =SUMIFS(SILOSTMAT!$C:$C,SILOSTMAT!$A:$A,Q$1,SILOSTMAT!$B:$B,$A11) -> 69 | R11: =SUMIFS(SILOSTMAT!$C:$C,SILOSTMAT!$A:$A,R$1,SILOSTMAT!$B:$B,$A11) -> 697
A12: N4102 | B12: Conduite de transport de particuliers | C12: Mobilité, systèmes de transport intelligents | D12: =IF(C12='DONNEES INFOGRAPHIES'!$B$6,1,0) -> 1 | E12: =VLOOKUP(A12,A:R,'DONNEES INFOGRAPHIES'!$L$9+4,FALSE) -> 626 | F12: =SUMIFS(SILOSTMAT!$C:$C,SILOSTMAT!$A:$A,F$1,SILOSTMAT!$B:$B,$A12) -> 27 | G12: =SUMIFS(SILOSTMAT!$C:$C,SILOSTMAT!$A:$A,G$1,SILOSTMAT!$B:$B,$A12) -> 18 | H12: =SUMIFS(SILOSTMAT!$C:$C,SILOSTMAT!$A:$A,H$1,SILOSTMAT!$B:$B,$A12) -> 24 | I12: =SUMIFS(SILOSTMAT!$C:$C,SILOSTMAT!$A:$A,I$1,SILOSTMAT!$B:$B,$A12) -> 8 | J12: =SUMIFS(SILOSTMAT!$C:$C,SILOSTMAT!$A:$A,J$1,SILOSTMAT!$B:$B,$A12) -> 56 | K12: =SUMIFS(SILOSTMAT!$C:$C,SILOSTMAT!$A:$A,K$1,SILOSTMAT!$B:$B,$A12) -> 102 | L12: =SUMIFS(SILOSTMAT!$C:$C,SILOSTMAT!$A:$A,L$1,SILOSTMAT!$B:$B,$A12) -> 11 | M12: =SUMIFS(SILOSTMAT!$C:$C,SILOSTMAT!$A:$A,M$1,SILOSTMAT!$B:$B,$A12) -> 6 | N12: =SUMIFS(SILOSTMAT!$C:$C,SILOSTMAT!$A:$A,N$1,SILOSTMAT!$B:$B,$A12) -> 49 | O12: =SUMIFS(SILOSTMAT!$C:$C,SILOSTMAT!$A:$A,O$1,SILOSTMAT!$B:$B,$A12) -> 160 | P12: =SUMIFS(SILOSTMAT!$C:$C,SILOSTMAT!$A:$A,P$1,SILOSTMAT!$B:$B,$A12) -> 83 | Q12: =SUMIFS(SILOSTMAT!$C:$C,SILOSTMAT!$A:$A,Q$1,SILOSTMAT!$B:$B,$A12) -> 82 | R12: =SUMIFS(SILOSTMAT!$C:$C,SILOSTMAT!$A:$A,R$1,SILOSTMAT!$B:$B,$A12) -> 626
A13: N1104 | B13: Manoeuvre et conduite d'engins lourds de manutention | C13: Mobilité, systèmes de transport intelligents | D13: =IF(C13='DONNEES INFOGRAPHIES'!$B$6,1,0) -> 1 | E13: =VLOOKUP(A13,A:R,'DONNEES INFOGRAPHIES'!$L$9+4,FALSE) -> 325 | F13: =SUMIFS(SILOSTMAT!$C:$C,SILOSTMAT!$A:$A,F$1,SILOSTMAT!$B:$B,$A13) -> 54 | G13: =SUMIFS(SILOSTMAT!$C:$C,SILOSTMAT!$A:$A,G$1,SILOSTMAT!$B:$B,$A13) -> 23 | H13: =SUMIFS(SILOSTMAT!$C:$C,SILOSTMAT!$A:$A,H$1,SILOSTMAT!$B:$B,$A13) -> 2 | I13: =SUMIFS(SILOSTMAT!$C:$C,SILOSTMAT!$A:$A,I$1,SILOSTMAT!$B:$B,$A13) -> 7 | J13: =SUMIFS(SILOSTMAT!$C:$C,SILOSTMAT!$A:$A,J$1,SILOSTMAT!$B:$B,$A13) -> 58 | K13: =SUMIFS(SILOSTMAT!$C:$C,SILOSTMAT!$A:$A,K$1,SILOSTMAT!$B:$B,$A13) -> 29 | L13: =SUMIFS(SILOSTMAT!$C:$C,SILOSTMAT!$A:$A,L$1,SILOSTMAT!$B:$B,$A13) -> 18 | M13: =SUMIFS(SILOSTMAT!$C:$C,SILOSTMAT!$A:$A,M$1,SILOSTMAT!$B:$B,$A13) -> 6 | N13: =SUMIFS(SILOSTMAT!$C:$C,SILOSTMAT!$A:$A,N$1,SILOSTMAT!$B:$B,$A13) -> 5 | O13: =SUMIFS(SILOSTMAT!$C:$C,SILOSTMAT!$A:$A,O$1,SILOSTMAT!$B:$B,$A13) -> 80 | P13: =SUMIFS(SILOSTMAT!$C:$C,SILOSTMAT!$A:$A,P$1,SILOSTMAT!$B:$B,$A13) -> 28 | Q13: =SUMIFS(SILOSTMAT!$C:$C,SILOSTMAT!$A:$A,Q$1,SILOSTMAT!$B:$B,$A13) -> 15 | R13: =SUMIFS(SILOSTMAT!$C:$C,SILOSTMAT!$A:$A,R$1,SILOSTMAT!$B:$B,$A13) -> 325
A14: N1302 | B14: Direction de site logistique | C14: Mobilité, systèmes de transport intelligents | D14: =IF(C14='DONNEES INFOGRAPHIES'!$B$6,1,0) -> 1 | E14: =VLOOKUP(A14,A:R,'DONNEES INFOGRAPHIES'!$L$9+4,FALSE) -> 307 | F14: =SUMIFS(SILOSTMAT!$C:$C,SILOSTMAT!$A:$A,F$1,SILOSTMAT!$B:$B,$A14) -> 26 | G14: =SUMIFS(SILOSTMAT!$C:$C,SILOSTMAT!$A:$A,G$1,SILOSTMAT!$B:$B,$A14) -> 4 | H14: =SUMIFS(SILOSTMAT!$C:$C,SILOSTMAT!$A:$A,H$1,SILOSTMAT!$B:$B,$A14) -> 2 | I14: =SUMIFS(SILOSTMAT!$C:$C,SILOSTMAT!$A:$A,I$1,SILOSTMAT!$B:$B,$A14) -> 1 | J14: =SUMIFS(SILOSTMAT!$C:$C,SILOSTMAT!$A:$A,J$1,SILOSTMAT!$B:$B,$A14) -> 11 | K14: =SUMIFS(SILOSTMAT!$C:$C,SILOSTMAT!$A:$A,K$1,SILOSTMAT!$B:$B,$A14) -> 27 | L14: =SUMIFS(SILOSTMAT!$C:$C,SILOSTMAT!$A:$A,L$1,SILOSTMAT!$B:$B,$A14) -> 39 | M14: =SUMIFS(SILOSTMAT!$C:$C,SILOSTMAT!$A:$A,M$1,SILOSTMAT!$B:$B,$A14) -> 4 | N14: =SUMIFS(SILOSTMAT!$C:$C,SILOSTMAT!$A:$A,N$1,SILOSTMAT!$B:$B,$A14) -> 20 | O14: =SUMIFS(SILOSTMAT!$C:$C,SILOSTMAT!$A:$A,O$1,SILOSTMAT!$B:$B,$A14) -> 133 | P14: =SUMIFS(SILOSTMAT!$C:$C,SILOSTMAT!$A:$A,P$1,SILOSTMAT!$B:$B,$A14) -> 21 | Q14: =SUMIFS(SILOSTMAT!$C:$C,SILOSTMAT!$A:$A,Q$1,SILOSTMAT!$B:$B,$A14) -> 19 | R14: =SUMIFS(SILOSTMAT!$C:$C,SILOSTMAT!$A:$A,R$1,SILOSTMAT!$B:$B,$A14) -> 307
A15: N1201 | B15: Affrètement transport | C15: Mobilité, systèmes de transport intelligents | D15: =IF(C15='DONNEES INFOGRAPHIES'!$B$6,1,0) -> 1 | E15: =VLOOKUP(A15,A:R,'DONNEES INFOGRAPHIES'!$L$9+4,FALSE) -> 275 | F15: =SUMIFS(SILOSTMAT!$C:$C,SILOSTMAT!$A:$A,F$1,SILOSTMAT!$B:$B,$A15) -> 36 | G15: =SUMIFS(SILOSTMAT!$C:$C,SILOSTMAT!$A:$A,G$1,SILOSTMAT!$B:$B,$A15) -> 1 | H15: =SUMIFS(SILOSTMAT!$C:$C,SILOSTMAT!$A:$A,H$1,SILOSTMAT!$B:$B,$A15) -> 1 | I15: =SUMIFS(SILOSTMAT!$C:$C,SILOSTMAT!$A:$A,I$1,SILOSTMAT!$B:$B,$A15) -> 0 | J15: =SUMIFS(SILOSTMAT!$C:$C,SILOSTMAT!$A:$A,J$1,SILOSTMAT!$B:$B,$A15) -> 8 | K15: =SUMIFS(SILOSTMAT!$C:$C,SILOSTMAT!$A:$A,K$1,SILOSTMAT!$B:$B,$A15) -> 19 | L15: =SUMIFS(SILOSTMAT!$C:$C,SILOSTMAT!$A:$A,L$1,SILOSTMAT!$B:$B,$A15) -> 55 | M15: =SUMIFS(SILOSTMAT!$C:$C,SILOSTMAT!$A:$A,M$1,SILOSTMAT!$B:$B,$A15) -> 2 | N15: =SUMIFS(SILOSTMAT!$C:$C,SILOSTMAT!$A:$A,N$1,SILOSTMAT!$B:$B,$A15) -> 16 | O15: =SUMIFS(SILOSTMAT!$C:$C,SILOSTMAT!$A:$A,O$1,SILOSTMAT!$B:$B,$A15) -> 107 | P15: =SUMIFS(SILOSTMAT!$C:$C,SILOSTMAT!$A:$A,P$1,SILOSTMAT!$B:$B,$A15) -> 21 | Q15: =SUMIFS(SILOSTMAT!$C:$C,SILOSTMAT!$A:$A,Q$1,SILOSTMAT!$B:$B,$A15) -> 9 | R15: =SUMIFS(SILOSTMAT!$C:$C,SILOSTMAT!$A:$A,R$1,SILOSTMAT!$B:$B,$A15) -> 275
A16: N4104 | B16: Courses et livraisons express | C16: Mobilité, systèmes de transport intelligents | D16: =IF(C16='DONNEES INFOGRAPHIES'!$B$6,1,0) -> 1 | E16: =VLOOKUP(A16,A:R,'DONNEES INFOGRAPHIES'!$L$9+4,FALSE) -> 225 | F16: =SUMIFS(SILOSTMAT!$C:$C,SILOSTMAT!$A:$A,F$1,SILOSTMAT!$B:$B,$A16) -> 8 | G16: =SUMIFS(SILOSTMAT!$C:$C,SILOSTMAT!$A:$A,G$1,SILOSTMAT!$B:$B,$A16) -> 7 | H16: =SUMIFS(SILOSTMAT!$C:$C,SILOSTMAT!$A:$A,H$1,SILOSTMAT!$B:$B,$A16) -> 6 | I16: =SUMIFS(SILOSTMAT!$C:$C,SILOSTMAT!$A:$A,I$1,SILOSTMAT!$B:$B,$A16) -> 7 | J16: =SUMIFS(SILOSTMAT!$C:$C,SILOSTMAT!$A:$A,J$1,SILOSTMAT!$B:$B,$A16) -> 13 | K16: =SUMIFS(SILOSTMAT!$C:$C,SILOSTMAT!$A:$A,K$1,SILOSTMAT!$B:$B,$A16) -> 16 | L16: =SUMIFS(SILOSTMAT!$C:$C,SILOSTMAT!$A:$A,L$1,SILOSTMAT!$B:$B,$A16) -> 24 | M16: =SUMIFS(SILOSTMAT!$C:$C,SILOSTMAT!$A:$A,M$1,SILOSTMAT!$B:$B,$A16) -> 1 | N16: =SUMIFS(SILOSTMAT!$C:$C,SILOSTMAT!$A:$A,N$1,SILOSTMAT!$B:$B,$A16) -> 32 | O16: =SUMIFS(SILOSTMAT!$C:$C,SILOSTMAT!$A:$A,O$1,SILOSTMAT!$B:$B,$A16) -> 70 | P16: =SUMIFS(SILOSTMAT!$C:$C,SILOSTMAT!$A:$A,P$1,SILOSTMAT!$B:$B,$A16) -> 25 | Q16: =SUMIFS(SILOSTMAT!$C:$C,SILOSTMAT!$A:$A,Q$1,SILOSTMAT!$B:$B,$A16) -> 16 | R16: =SUMIFS(SILOSTMAT!$C:$C,SILOSTMAT!$A:$A,R$1,SILOSTMAT!$B:$B,$A16) -> 225
A17: N1202 | B17: Gestion des opérations de circulation internationale des marchandises | C17: Mobilité, systèmes de transport intelligents | D17: =IF(C17='DONNEES INFOGRAPHIES'!$B$6,1,0) -> 1 | E17: =VLOOKUP(A17,A:R,'DONNEES INFOGRAPHIES'!$L$9+4,FALSE) -> 183 | F17: =SUMIFS(SILOSTMAT!$C:$C,SILOSTMAT!$A:$A,F$1,SILOSTMAT!$B:$B,$A17) -> 11 | G17: =SUMIFS(SILOSTMAT!$C:$C,SILOSTMAT!$A:$A,G$1,SILOSTMAT!$B:$B,$A17) -> 0 | H17: =SUMIFS(SILOSTMAT!$C:$C,SILOSTMAT!$A:$A,H$1,SILOSTMAT!$B:$B,$A17) -> 3 | I17: =SUMIFS(SILOSTMAT!$C:$C,SILOSTMAT!$A:$A,I$1,SILOSTMAT!$B:$B,$A17) -> 0 | J17: =SUMIFS(SILOSTMAT!$C:$C,SILOSTMAT!$A:$A,J$1,SILOSTMAT!$B:$B,$A17) -> 15 | K17: =SUMIFS(SILOSTMAT!$C:$C,SILOSTMAT!$A:$A,K$1,SILOSTMAT!$B:$B,$A17) -> 31 | L17: =SUMIFS(SILOSTMAT!$C:$C,SILOSTMAT!$A:$A,L$1,SILOSTMAT!$B:$B,$A17) -> 7 | M17: =SUMIFS(SILOSTMAT!$C:$C,SILOSTMAT!$A:$A,M$1,SILOSTMAT!$B:$B,$A17) -> 0 | N17: =SUMIFS(SILOSTMAT!$C:$C,SILOSTMAT!$A:$A,N$1,SILOSTMAT!$B:$B,$A17) -> 4 | O17: =SUMIFS(SILOSTMAT!$C:$C,SILOSTMAT!$A:$A,O$1,SILOSTMAT!$B:$B,$A17) -> 84 | P17: =SUMIFS(SILOSTMAT!$C:$C,SILOSTMAT!$A:$A,P$1,SILOSTMAT!$B:$B,$A17) -> 5 | Q17: =SUMIFS(SILOSTMAT!$C:$C,SILOSTMAT!$A:$A,Q$1,SILOSTMAT!$B:$B,$A17) -> 23 | R17: =SUMIFS(SILOSTMAT!$C:$C,SILOSTMAT!$A:$A,R$1,SILOSTMAT!$B:$B,$A17) -> 183
A18: N4204 | B18: Intervention technique d'exploitation des transports routiers de personnes | C18: Mobilité, systèmes de transport intelligents | D18: =IF(C18='DONNEES INFOGRAPHIES'!$B$6,1,0) -> 1 | E18: =VLOOKUP(A18,A:R,'DONNEES INFOGRAPHIES'!$L$9+4,FALSE) -> 161 | F18: =SUMIFS(SILOSTMAT!$C:$C,SILOSTMAT!$A:$A,F$1,SILOSTMAT!$B:$B,$A18) -> 17 | G18: =SUMIFS(SILOSTMAT!$C:$C,SILOSTMAT!$A:$A,G$1,SILOSTMAT!$B:$B,$A18) -> 0 | H18: =SUMIFS(SILOSTMAT!$C:$C,SILOSTMAT!$A:$A,H$1,SILOSTMAT!$B:$B,$A18) -> 1 | I18: =SUMIFS(SILOSTMAT!$C:$C,SILOSTMAT!$A:$A,I$1,SILOSTMAT!$B:$B,$A18) -> 0 | J18: =SUMIFS(SILOSTMAT!$C:$C,SILOSTMAT!$A:$A,J$1,SILOSTMAT!$B:$B,$A18) -> 5 | K18: =SUMIFS(SILOSTMAT!$C:$C,SILOSTMAT!$A:$A,K$1,SILOSTMAT!$B:$B,$A18) -> 32 | L18: =SUMIFS(SILOSTMAT!$C:$C,SILOSTMAT!$A:$A,L$1,SILOSTMAT!$B:$B,$A18) -> 9 | M18: =SUMIFS(SILOSTMAT!$C:$C,SILOSTMAT!$A:$A,M$1,SILOSTMAT!$B:$B,$A18) -> 4 | N18: =SUMIFS(SILOSTMAT!$C:$C,SILOSTMAT!$A:$A,N$1,SILOSTMAT!$B:$B,$A18) -> 4 | O18: =SUMIFS(SILOSTMAT!$C:$C,SILOSTMAT!$A:$A,O$1,SILOSTMAT!$B:$B,$A18) -> 37 | P18: =SUMIFS(SILOSTMAT!$C:$C,SILOSTMAT!$A:$A,P$1,SILOSTMAT!$B:$B,$A18) -> 24 | Q18: =SUMIFS(SILOSTMAT!$C:$C,SILOSTMAT!$A:$A,Q$1,SILOSTMAT!$B:$B,$A18) -> 28 | R18: =SUMIFS(SILOSTMAT!$C:$C,SILOSTMAT!$A:$A,R$1,SILOSTMAT!$B:$B,$A18) -> 161
A19: N4201 | B19: Direction d'exploitation des transports routiers de marchandises | C19: Mobilité, systèmes de transport intelligents | D19: =IF(C19='DONNEES INFOGRAPHIES'!$B$6,1,0) -> 1 | E19: =VLOOKUP(A19,A:R,'DONNEES INFOGRAPHIES'!$L$9+4,FALSE) -> 139 | F19: =SUMIFS(SILOSTMAT!$C:$C,SILOSTMAT!$A:$A,F$1,SILOSTMAT!$B:$B,$A19) -> 19 | G19: =SUMIFS(SILOSTMAT!$C:$C,SILOSTMAT!$A:$A,G$1,SILOSTMAT!$B:$B,$A19) -> 1 | H19: =SUMIFS(SILOSTMAT!$C:$C,SILOSTMAT!$A:$A,H$1,SILOSTMAT!$B:$B,$A19) -> 0 | I19: =SUMIFS(SILOSTMAT!$C:$C,SILOSTMAT!$A:$A,I$1,SILOSTMAT!$B:$B,$A19) -> 0 | J19: =SUMIFS(SILOSTMAT!$C:$C,SILOSTMAT!$A:$A,J$1,SILOSTMAT!$B:$B,$A19) -> 12 | K19: =SUMIFS(SILOSTMAT!$C:$C,SILOSTMAT!$A:$A,K$1,SILOSTMAT!$B:$B,$A19) -> 16 | L19: =SUMIFS(SILOSTMAT!$C:$C,SILOSTMAT!$A:$A,L$1,SILOSTMAT!$B:$B,$A19) -> 4 | M19: =SUMIFS(SILOSTMAT!$C:$C,SILOSTMAT!$A:$A,M$1,SILOSTMAT!$B:$B,$A19) -> 4 | N19: =SUMIFS(SILOSTMAT!$C:$C,SILOSTMAT!$A:$A,N$1,SILOSTMAT!$B:$B,$A19) -> 10 | O19: =SUMIFS(SILOSTMAT!$C:$C,SILOSTMAT!$A:$A,O$1,SILOSTMAT!$B:$B,$A19) -> 52 | P19: =SUMIFS(SILOSTMAT!$C:$C,SILOSTMAT!$A:$A,P$1,SILOSTMAT!$B:$B,$A19) -> 17 | Q19: =SUMIFS(SILOSTMAT!$C:$C,SILOSTMAT!$A:$A,Q$1,SILOSTMAT!$B:$B,$A19) -> 4 | R19: =SUMIFS(SILOSTMAT!$C:$C,SILOSTMAT!$A:$A,R$1,SILOSTMAT!$B:$B,$A19) -> 139
A20: N2201 | B20: Personnel d'escale aéroportuaire | C20: Mobilité, systèmes de transport intelligents | D20: =IF(C20='DONNEES INFOGRAPHIES'!$B$6,1,0) -> 1 | E20: =VLOOKUP(A20,A:R,'DONNEES INFOGRAPHIES'!$L$9+4,FALSE) -> 125 | F20: =SUMIFS(SILOSTMAT!$C:$C,SILOSTMAT!$A:$A,F$1,SILOSTMAT!$B:$B,$A20) -> 0 | G20: =SUMIFS(SILOSTMAT!$C:$C,SILOSTMAT!$A:$A,G$1,SILOSTMAT!$B:$B,$A20) -> 0 | H20: =SUMIFS(SILOSTMAT!$C:$C,SILOSTMAT!$A:$A,H$1,SILOSTMAT!$B:$B,$A20) -> 0 | I20: =SUMIFS(SILOSTMAT!$C:$C,SILOSTMAT!$A:$A,I$1,SILOSTMAT!$B:$B,$A20) -> 0 | J20: =SUMIFS(SILOSTMAT!$C:$C,SILOSTMAT!$A:$A,J$1,SILOSTMAT!$B:$B,$A20) -> 0 | K20: =SUMIFS(SILOSTMAT!$C:$C,SILOSTMAT!$A:$A,K$1,SILOSTMAT!$B:$B,$A20) -> 11 | L20: =SUMIFS(SILOSTMAT!$C:$C,SILOSTMAT!$A:$A,L$1,SILOSTMAT!$B:$B,$A20) -> 0 | M20: =SUMIFS(SILOSTMAT!$C:$C,SILOSTMAT!$A:$A,M$1,SILOSTMAT!$B:$B,$A20) -> 0 | N20: =SUMIFS(SILOSTMAT!$C:$C,SILOSTMAT!$A:$A,N$1,SILOSTMAT!$B:$B,$A20) -> 0 | O20: =SUMIFS(SILOSTMAT!$C:$C,SILOSTMAT!$A:$A,O$1,SILOSTMAT!$B:$B,$A20) -> 113 | P20: =SUMIFS(SILOSTMAT!$C:$C,SILOSTMAT!$A:$A,P$1,SILOSTMAT!$B:$B,$A20) -> 0 | Q20: =SUMIFS(SILOSTMAT!$C:$C,SILOSTMAT!$A:$A,Q$1,SILOSTMAT!$B:$B,$A20) -> 1 | R20: =SUMIFS(SILOSTMAT!$C:$C,SILOSTMAT!$A:$A,R$1,SILOSTMAT!$B:$B,$A20) -> 125
A21: N2203 | B21: Exploitation des pistes aéroportuaires | C21: Mobilité, systèmes de transport intelligents | D21: =IF(C21='DONNEES INFOGRAPHIES'!$B$6,1,0) -> 1 | E21: =VLOOKUP(A21,A:R,'DONNEES INFOGRAPHIES'!$L$9+4,FALSE) -> 116 | F21: =SUMIFS(SILOSTMAT!$C:$C,SILOSTMAT!$A:$A,F$1,SILOSTMAT!$B:$B,$A21) -> 6 | G21: =SUMIFS(SILOSTMAT!$C:$C,SILOSTMAT!$A:$A,G$1,SILOSTMAT!$B:$B,$A21) -> 0 | H21: =SUMIFS(SILOSTMAT!$C:$C,SILOSTMAT!$A:$A,H$1,SILOSTMAT!$B:$B,$A21) -> 0 | I21: =SUMIFS(SILOSTMAT!$C:$C,SILOSTMAT!$A:$A,I$1,SILOSTMAT!$B:$B,$A21) -> 0 | J21: =SUMIFS(SILOSTMAT!$C:$C,SILOSTMAT!$A:$A,J$1,SILOSTMAT!$B:$B,$A21) -> 2 | K21: =SUMIFS(SILOSTMAT!$C:$C,SILOSTMAT!$A:$A,K$1,SILOSTMAT!$B:$B,$A21) -> 12 | L21: =SUMIFS(SILOSTMAT!$C:$C,SILOSTMAT!$A:$A,L$1,SILOSTMAT!$B:$B,$A21) -> 0 | M21: =SUMIFS(SILOSTMAT!$C:$C,SILOSTMAT!$A:$A,M$1,SILOSTMAT!$B:$B,$A21) -> 0 | N21: =SUMIFS(SILOSTMAT!$C:$C,SILOSTMAT!$A:$A,N$1,SILOSTMAT!$B:$B,$A21) -> 2 | O21: =SUMIFS(SILOSTMAT!$C:$C,SILOSTMAT!$A:$A,O$1,SILOSTMAT!$B:$B,$A21) -> 92 | P21: =SUMIFS(SILOSTMAT!$C:$C,SILOSTMAT!$A:$A,P$1,SILOSTMAT!$B:$B,$A21) -> 2 | Q21: =SUMIFS(SILOSTMAT!$C:$C,SILOSTMAT!$A:$A,Q$1,SILOSTMAT!$B:$B,$A21) -> 0 | R21: =SUMIFS(SILOSTMAT!$C:$C,SILOSTMAT!$A:$A,R$1,SILOSTMAT!$B:$B,$A21) -> 116
A22: N4302 | B22: Contrôle des transports en commun | C22: Mobilité, systèmes de transport intelligents | D22: =IF(C22='DONNEES INFOGRAPHIES'!$B$6,1,0) -> 1 | E22: =VLOOKUP(A22,A:R,'DONNEES INFOGRAPHIES'!$L$9+4,FALSE) -> 98 | F22: =SUMIFS(SILOSTMAT!$C:$C,SILOSTMAT!$A:$A,F$1,SILOSTMAT!$B:$B,$A22) -> 0 | G22: =SUMIFS(SILOSTMAT!$C:$C,SILOSTMAT!$A:$A,G$1,SILOSTMAT!$B:$B,$A22) -> 1 | H22: =SUMIFS(SILOSTMAT!$C:$C,SILOSTMAT!$A:$A,H$1,SILOSTMAT!$B:$B,$A22) -> 0 | I22: =SUMIFS(SILOSTMAT!$C:$C,SILOSTMAT!$A:$A,I$1,SILOSTMAT!$B:$B,$A22) -> 2 | J22: =SUMIFS(SILOSTMAT!$C:$C,SILOSTMAT!$A:$A,J$1,SILOSTMAT!$B:$B,$A22) -> 1 | K22: =SUMIFS(SILOSTMAT!$C:$C,SILOSTMAT!$A:$A,K$1,SILOSTMAT!$B:$B,$A22) -> 2 | L22: =SUMIFS(SILOSTMAT!$C:$C,SILOSTMAT!$A:$A,L$1,SILOSTMAT!$B:$B,$A22) -> 0 | M22: =SUMIFS(SILOSTMAT!$C:$C,SILOSTMAT!$A:$A,M$1,SILOSTMAT!$B:$B,$A22) -> 0 | N22: =SUMIFS(SILOSTMAT!$C:$C,SILOSTMAT!$A:$A,N$1,SILOSTMAT!$B:$B,$A22) -> 1 | O22: =SUMIFS(SILOSTMAT!$C:$C,SILOSTMAT!$A:$A,O$1,SILOSTMAT!$B:$B,$A22) -> 83 | P22: =SUMIFS(SILOSTMAT!$C:$C,SILOSTMAT!$A:$A,P$1,SILOSTMAT!$B:$B,$A22) -> 3 | Q22: =SUMIFS(SILOSTMAT!$C:$C,SILOSTMAT!$A:$A,Q$1,SILOSTMAT!$B:$B,$A22) -> 5 | R22: =SUMIFS(SILOSTMAT!$C:$C,SILOSTMAT!$A:$A,R$1,SILOSTMAT!$B:$B,$A22) -> 98
A23: N4401 | B23: Circulation du réseau ferré | C23: Mobilité, systèmes de transport intelligents | D23: =IF(C23='DONNEES INFOGRAPHIES'!$B$6,1,0) -> 1 | E23: =VLOOKUP(A23,A:R,'DONNEES INFOGRAPHIES'!$L$9+4,FALSE) -> 79 | F23: =SUMIFS(SILOSTMAT!$C:$C,SILOSTMAT!$A:$A,F$1,SILOSTMAT!$B:$B,$A23) -> 1 | G23: =SUMIFS(SILOSTMAT!$C:$C,SILOSTMAT!$A:$A,G$1,SILOSTMAT!$B:$B,$A23) -> 0 | H23: =SUMIFS(SILOSTMAT!$C:$C,SILOSTMAT!$A:$A,H$1,SILOSTMAT!$B:$B,$A23) -> 1 | I23: =SUMIFS(SILOSTMAT!$C:$C,SILOSTMAT!$A:$A,I$1,SILOSTMAT!$B:$B,$A23) -> 0 | J23: =SUMIFS(SILOSTMAT!$C:$C,SILOSTMAT!$A:$A,J$1,SILOSTMAT!$B:$B,$A23) -> 1 | K23: =SUMIFS(SILOSTMAT!$C:$C,SILOSTMAT!$A:$A,K$1,SILOSTMAT!$B:$B,$A23) -> 2 | L23: =SUMIFS(SILOSTMAT!$C:$C,SILOSTMAT!$A:$A,L$1,SILOSTMAT!$B:$B,$A23) -> 2 | M23: =SUMIFS(SILOSTMAT!$C:$C,SILOSTMAT!$A:$A,M$1,SILOSTMAT!$B:$B,$A23) -> 0 | N23: =SUMIFS(SILOSTMAT!$C:$C,SILOSTMAT!$A:$A,N$1,SILOSTMAT!$B:$B,$A23) -> 0 | O23: =SUMIFS(SILOSTMAT!$C:$C,SILOSTMAT!$A:$A,O$1,SILOSTMAT!$B:$B,$A23) -> 66 | P23: =SUMIFS(SILOSTMAT!$C:$C,SILOSTMAT!$A:$A,P$1,SILOSTMAT!$B:$B,$A23) -> 3 | Q23: =SUMIFS(SILOSTMAT!$C:$C,SILOSTMAT!$A:$A,Q$1,SILOSTMAT!$B:$B,$A23) -> 3 | R23: =SUMIFS(SILOSTMAT!$C:$C,SILOSTMAT!$A:$A,R$1,SILOSTMAT!$B:$B,$A23) -> 79
A24: N4403 | B24: Manoeuvre du réseau ferré | C24: Mobilité, systèmes de transport intelligents | D24: =IF(C24='DONNEES INFOGRAPHIES'!$B$6,1,0) -> 1 | E24: =VLOOKUP(A24,A:R,'DONNEES INFOGRAPHIES'!$L$9+4,FALSE) -> 77 | F24: =SUMIFS(SILOSTMAT!$C:$C,SILOSTMAT!$A:$A,F$1,SILOSTMAT!$B:$B,$A24) -> 1 | G24: =SUMIFS(SILOSTMAT!$C:$C,SILOSTMAT!$A:$A,G$1,SILOSTMAT!$B:$B,$A24) -> 0 | H24: =SUMIFS(SILOSTMAT!$C:$C,SILOSTMAT!$A:$A,H$1,SILOSTMAT!$B:$B,$A24) -> 0 | I24: =SUMIFS(SILOSTMAT!$C:$C,SILOSTMAT!$A:$A,I$1,SILOSTMAT!$B:$B,$A24) -> 0 | J24: =SUMIFS(SILOSTMAT!$C:$C,SILOSTMAT!$A:$A,J$1,SILOSTMAT!$B:$B,$A24) -> 0 | K24: =SUMIFS(SILOSTMAT!$C:$C,SILOSTMAT!$A:$A,K$1,SILOSTMAT!$B:$B,$A24) -> 2 | L24: =SUMIFS(SILOSTMAT!$C:$C,SILOSTMAT!$A:$A,L$1,SILOSTMAT!$B:$B,$A24) -> 0 | M24: =SUMIFS(SILOSTMAT!$C:$C,SILOSTMAT!$A:$A,M$1,SILOSTMAT!$B:$B,$A24) -> 0 | N24: =SUMIFS(SILOSTMAT!$C:$C,SILOSTMAT!$A:$A,N$1,SILOSTMAT!$B:$B,$A24) -> 3 | O24: =SUMIFS(SILOSTMAT!$C:$C,SILOSTMAT!$A:$A,O$1,SILOSTMAT!$B:$B,$A24) -> 70 | P24: =SUMIFS(SILOSTMAT!$C:$C,SILOSTMAT!$A:$A,P$1,SILOSTMAT!$B:$B,$A24) -> 1 | Q24: =SUMIFS(SILOSTMAT!$C:$C,SILOSTMAT!$A:$A,Q$1,SILOSTMAT!$B:$B,$A24) -> 0 | R24: =SUMIFS(SILOSTMAT!$C:$C,SILOSTMAT!$A:$A,R$1,SILOSTMAT!$B:$B,$A24) -> 77
A25: N4301 | B25: Conduite sur rails | C25: Mobilité, systèmes de transport intelligents | D25: =IF(C25='DONNEES INFOGRAPHIES'!$B$6,1,0) -> 1 | E25: =VLOOKUP(A25,A:R,'DONNEES INFOGRAPHIES'!$L$9+4,FALSE) -> 63 | F25: =SUMIFS(SILOSTMAT!$C:$C,SILOSTMAT!$A:$A,F$1,SILOSTMAT!$B:$B,$A25) -> 22 | G25: =SUMIFS(SILOSTMAT!$C:$C,SILOSTMAT!$A:$A,G$1,SILOSTMAT!$B:$B,$A25) -> 0 | H25: =SUMIFS(SILOSTMAT!$C:$C,SILOSTMAT!$A:$A,H$1,SILOSTMAT!$B:$B,$A25) -> 0 | I25: =SUMIFS(SILOSTMAT!$C:$C,SILOSTMAT!$A:$A,I$1,SILOSTMAT!$B:$B,$A25) -> 0 | J25: =SUMIFS(SILOSTMAT!$C:$C,SILOSTMAT!$A:$A,J$1,SILOSTMAT!$B:$B,$A25) -> 0 | K25: =SUMIFS(SILOSTMAT!$C:$C,SILOSTMAT!$A:$A,K$1,SILOSTMAT!$B:$B,$A25) -> 1 | L25: =SUMIFS(SILOSTMAT!$C:$C,SILOSTMAT!$A:$A,L$1,SILOSTMAT!$B:$B,$A25) -> 1 | M25: =SUMIFS(SILOSTMAT!$C:$C,SILOSTMAT!$A:$A,M$1,SILOSTMAT!$B:$B,$A25) -> 0 | N25: =SUMIFS(SILOSTMAT!$C:$C,SILOSTMAT!$A:$A,N$1,SILOSTMAT!$B:$B,$A25) -> 2 | O25: =SUMIFS(SILOSTMAT!$C:$C,SILOSTMAT!$A:$A,O$1,SILOSTMAT!$B:$B,$A25) -> 36 | P25: =SUMIFS(SILOSTMAT!$C:$C,SILOSTMAT!$A:$A,P$1,SILOSTMAT!$B:$B,$A25) -> 0 | Q25: =SUMIFS(SILOSTMAT!$C:$C,SILOSTMAT!$A:$A,Q$1,SILOSTMAT!$B:$B,$A25) -> 1 | R25: =SUMIFS(SILOSTMAT!$C:$C,SILOSTMAT!$A:$A,R$1,SILOSTMAT!$B:$B,$A25) -> 63
A26: N2204 | B26: Préparation des vols | C26: Mobilité, systèmes de transport intelligents | D26: =IF(C26='DONNEES INFOGRAPHIES'!$B$6,1,0) -> 1 | E26: =VLOOKUP(A26,A:R,'DONNEES INFOGRAPHIES'!$L$9+4,FALSE) -> 42 | F26: =SUMIFS(SILOSTMAT!$C:$C,SILOSTMAT!$A:$A,F$1,SILOSTMAT!$B:$B,$A26) -> 1 | G26: =SUMIFS(SILOSTMAT!$C:$C,SILOSTMAT!$A:$A,G$1,SILOSTMAT!$B:$B,$A26) -> 0 | H26: =SUMIFS(SILOSTMAT!$C:$C,SILOSTMAT!$A:$A,H$1,SILOSTMAT!$B:$B,$A26) -> 0 | I26: =SUMIFS(SILOSTMAT!$C:$C,SILOSTMAT!$A:$A,I$1,SILOSTMAT!$B:$B,$A26) -> 0 | J26: =SUMIFS(SILOSTMAT!$C:$C,SILOSTMAT!$A:$A,J$1,SILOSTMAT!$B:$B,$A26) -> 0 | K26: =SUMIFS(SILOSTMAT!$C:$C,SILOSTMAT!$A:$A,K$1,SILOSTMAT!$B:$B,$A26) -> 0 | L26: =SUMIFS(SILOSTMAT!$C:$C,SILOSTMAT!$A:$A,L$1,SILOSTMAT!$B:$B,$A26) -> 0 | M26: =SUMIFS(SILOSTMAT!$C:$C,SILOSTMAT!$A:$A,M$1,SILOSTMAT!$B:$B,$A26) -> 0 | N26: =SUMIFS(SILOSTMAT!$C:$C,SILOSTMAT!$A:$A,N$1,SILOSTMAT!$B:$B,$A26) -> 1 | O26: =SUMIFS(SILOSTMAT!$C:$C,SILOSTMAT!$A:$A,O$1,SILOSTMAT!$B:$B,$A26) -> 36 | P26: =SUMIFS(SILOSTMAT!$C:$C,SILOSTMAT!$A:$A,P$1,SILOSTMAT!$B:$B,$A26) -> 0 | Q26: =SUMIFS(SILOSTMAT!$C:$C,SILOSTMAT!$A:$A,Q$1,SILOSTMAT!$B:$B,$A26) -> 4 | R26: =SUMIFS(SILOSTMAT!$C:$C,SILOSTMAT!$A:$A,R$1,SILOSTMAT!$B:$B,$A26) -> 42
A27: N3201 | B27: Exploitation des opérations portuaires et du transport maritime | C27: Mobilité, systèmes de transport intelligents | D27: =IF(C27='DONNEES INFOGRAPHIES'!$B$6,1,0) -> 1 | E27: =VLOOKUP(A27,A:R,'DONNEES INFOGRAPHIES'!$L$9+4,FALSE) -> 31 | F27: =SUMIFS(SILOSTMAT!$C:$C,SILOSTMAT!$A:$A,F$1,SILOSTMAT!$B:$B,$A27) -> 2 | G27: =SUMIFS(SILOSTMAT!$C:$C,SILOSTMAT!$A:$A,G$1,SILOSTMAT!$B:$B,$A27) -> 0 | H27: =SUMIFS(SILOSTMAT!$C:$C,SILOSTMAT!$A:$A,H$1,SILOSTMAT!$B:$B,$A27) -> 0 | I27: =SUMIFS(SILOSTMAT!$C:$C,SILOSTMAT!$A:$A,I$1,SILOSTMAT!$B:$B,$A27) -> 0 | J27: =SUMIFS(SILOSTMAT!$C:$C,SILOSTMAT!$A:$A,J$1,SILOSTMAT!$B:$B,$A27) -> 17 | K27: =SUMIFS(SILOSTMAT!$C:$C,SILOSTMAT!$A:$A,K$1,SILOSTMAT!$B:$B,$A27) -> 2 | L27: =SUMIFS(SILOSTMAT!$C:$C,SILOSTMAT!$A:$A,L$1,SILOSTMAT!$B:$B,$A27) -> 2 | M27: =SUMIFS(SILOSTMAT!$C:$C,SILOSTMAT!$A:$A,M$1,SILOSTMAT!$B:$B,$A27) -> 0 | N27: =SUMIFS(SILOSTMAT!$C:$C,SILOSTMAT!$A:$A,N$1,SILOSTMAT!$B:$B,$A27) -> 0 | O27: =SUMIFS(SILOSTMAT!$C:$C,SILOSTMAT!$A:$A,O$1,SILOSTMAT!$B:$B,$A27) -> 7 | P27: =SUMIFS(SILOSTMAT!$C:$C,SILOSTMAT!$A:$A,P$1,SILOSTMAT!$B:$B,$A27) -> 1 | Q27: =SUMIFS(SILOSTMAT!$C:$C,SILOSTMAT!$A:$A,Q$1,SILOSTMAT!$B:$B,$A27) -> 0 | R27: =SUMIFS(SILOSTMAT!$C:$C,SILOSTMAT!$A:$A,R$1,SILOSTMAT!$B:$B,$A27) -> 31
A28: N4202 | B28: Direction d'exploitation des transports routiers de personnes | C28: Mobilité, systèmes de transport intelligents | D28: =IF(C28='DONNEES INFOGRAPHIES'!$B$6,1,0) -> 1 | E28: =VLOOKUP(A28,A:R,'DONNEES INFOGRAPHIES'!$L$9+4,FALSE) -> 25 | F28: =SUMIFS(SILOSTMAT!$C:$C,SILOSTMAT!$A:$A,F$1,SILOSTMAT!$B:$B,$A28) -> 5 | G28: =SUMIFS(SILOSTMAT!$C:$C,SILOSTMAT!$A:$A,G$1,SILOSTMAT!$B:$B,$A28) -> 0 | H28: =SUMIFS(SILOSTMAT!$C:$C,SILOSTMAT!$A:$A,H$1,SILOSTMAT!$B:$B,$A28) -> 0 | I28: =SUMIFS(SILOSTMAT!$C:$C,SILOSTMAT!$A:$A,I$1,SILOSTMAT!$B:$B,$A28) -> 0 | J28: =SUMIFS(SILOSTMAT!$C:$C,SILOSTMAT!$A:$A,J$1,SILOSTMAT!$B:$B,$A28) -> 0 | K28: =SUMIFS(SILOSTMAT!$C:$C,SILOSTMAT!$A:$A,K$1,SILOSTMAT!$B:$B,$A28) -> 3 | L28: =SUMIFS(SILOSTMAT!$C:$C,SILOSTMAT!$A:$A,L$1,SILOSTMAT!$B:$B,$A28) -> 0 | M28: =SUMIFS(SILOSTMAT!$C:$C,SILOSTMAT!$A:$A,M$1,SILOSTMAT!$B:$B,$A28) -> 0 | N28: =SUMIFS(SILOSTMAT!$C:$C,SILOSTMAT!$A:$A,N$1,SILOSTMAT!$B:$B,$A28) -> 1 | O28: =SUMIFS(SILOSTMAT!$C:$C,SILOSTMAT!$A:$A,O$1,SILOSTMAT!$B:$B,$A28) -> 15 | P28: =SUMIFS(SILOSTMAT!$C:$C,SILOSTMAT!$A:$A,P$1,SILOSTMAT!$B:$B,$A28) -> 0 | Q28: =SUMIFS(SILOSTMAT!$C:$C,SILOSTMAT!$A:$A,Q$1,SILOSTMAT!$B:$B,$A28) -> 1 | R28: =SUMIFS(SILOSTMAT!$C:$C,SILOSTMAT!$A:$A,R$1,SILOSTMAT!$B:$B,$A28) -> 25
A29: N2202 | B29: Contrôle de la navigation aérienne | C29: Mobilité, systèmes de transport intelligents | D29: =IF(C29='DONNEES INFOGRAPHIES'!$B$6,1,0) -> 1 | E29: =VLOOKUP(A29,A:R,'DONNEES INFOGRAPHIES'!$L$9+4,FALSE) -> 24 | F29: =SUMIFS(SILOSTMAT!$C:$C,SILOSTMAT!$A:$A,F$1,SILOSTMAT!$B:$B,$A29) -> 0 | G29: =SUMIFS(SILOSTMAT!$C:$C,SILOSTMAT!$A:$A,G$1,SILOSTMAT!$B:$B,$A29) -> 0 | H29: =SUMIFS(SILOSTMAT!$C:$C,SILOSTMAT!$A:$A,H$1,SILOSTMAT!$B:$B,$A29) -> 0 | I29: =SUMIFS(SILOSTMAT!$C:$C,SILOSTMAT!$A:$A,I$1,SILOSTMAT!$B:$B,$A29) -> 0 | J29: =SUMIFS(SILOSTMAT!$C:$C,SILOSTMAT!$A:$A,J$1,SILOSTMAT!$B:$B,$A29) -> 0 | K29: =SUMIFS(SILOSTMAT!$C:$C,SILOSTMAT!$A:$A,K$1,SILOSTMAT!$B:$B,$A29) -> 1 | L29: =SUMIFS(SILOSTMAT!$C:$C,SILOSTMAT!$A:$A,L$1,SILOSTMAT!$B:$B,$A29) -> 0 | M29: =SUMIFS(SILOSTMAT!$C:$C,SILOSTMAT!$A:$A,M$1,SILOSTMAT!$B:$B,$A29) -> 0 | N29: =SUMIFS(SILOSTMAT!$C:$C,SILOSTMAT!$A:$A,N$1,SILOSTMAT!$B:$B,$A29) -> 0 | O29: =SUMIFS(SILOSTMAT!$C:$C,SILOSTMAT!$A:$A,O$1,SILOSTMAT!$B:$B,$A29) -> 20 | P29: =SUMIFS(SILOSTMAT!$C:$C,SILOSTMAT!$A:$A,P$1,SILOSTMAT!$B:$B,$A29) -> 2 | Q29: =SUMIFS(SILOSTMAT!$C:$C,SILOSTMAT!$A:$A,Q$1,SILOSTMAT!$B:$B,$A29) -> 1 | R29: =SUMIFS(SILOSTMAT!$C:$C,SILOSTMAT!$A:$A,R$1,SILOSTMAT!$B:$B,$A29) -> 24
A30: N3103 | B30: Navigation fluviale | C30: Mobilité, systèmes de transport intelligents | D30: =IF(C30='DONNEES INFOGRAPHIES'!$B$6,1,0) -> 1 | E30: =VLOOKUP(A30,A:R,'DONNEES INFOGRAPHIES'!$L$9+4,FALSE) -> 22 | F30: =SUMIFS(SILOSTMAT!$C:$C,SILOSTMAT!$A:$A,F$1,SILOSTMAT!$B:$B,$A30) -> 0 | G30: =SUMIFS(SILOSTMAT!$C:$C,SILOSTMAT!$A:$A,G$1,SILOSTMAT!$B:$B,$A30) -> 0 | H30: =SUMIFS(SILOSTMAT!$C:$C,SILOSTMAT!$A:$A,H$1,SILOSTMAT!$B:$B,$A30) -> 0 | I30: =SUMIFS(SILOSTMAT!$C:$C,SILOSTMAT!$A:$A,I$1,SILOSTMAT!$B:$B,$A30) -> 0 | J30: =SUMIFS(SILOSTMAT!$C:$C,SILOSTMAT!$A:$A,J$1,SILOSTMAT!$B:$B,$A30) -> 1 | K30: =SUMIFS(SILOSTMAT!$C:$C,SILOSTMAT!$A:$A,K$1,SILOSTMAT!$B:$B,$A30) -> 12 | L30: =SUMIFS(SILOSTMAT!$C:$C,SILOSTMAT!$A:$A,L$1,SILOSTMAT!$B:$B,$A30) -> 0 | M30: =SUMIFS(SILOSTMAT!$C:$C,SILOSTMAT!$A:$A,M$1,SILOSTMAT!$B:$B,$A30) -> 0 | N30: =SUMIFS(SILOSTMAT!$C:$C,SILOSTMAT!$A:$A,N$1,SILOSTMAT!$B:$B,$A30) -> 0 | O30: =SUMIFS(SILOSTMAT!$C:$C,SILOSTMAT!$A:$A,O$1,SILOSTMAT!$B:$B,$A30) -> 7 | P30: =SUMIFS(SILOSTMAT!$C:$C,SILOSTMAT!$A:$A,P$1,SILOSTMAT!$B:$B,$A30) -> 2 | Q30: =SUMIFS(SILOSTMAT!$C:$C,SILOSTMAT!$A:$A,Q$1,SILOSTMAT!$B:$B,$A30) -> 0 | R30: =SUMIFS(SILOSTMAT!$C:$C,SILOSTMAT!$A:$A,R$1,SILOSTMAT!$B:$B,$A30) -> 22
A31: N3203 | B31: Manutention portuaire | C31: Mobilité, systèmes de transport intelligents | D31: =IF(C31='DONNEES INFOGRAPHIES'!$B$6,1,0) -> 1 | E31: =VLOOKUP(A31,A:R,'DONNEES INFOGRAPHIES'!$L$9+4,FALSE) -> 16 | F31: =SUMIFS(SILOSTMAT!$C:$C,SILOSTMAT!$A:$A,F$1,SILOSTMAT!$B:$B,$A31) -> 1 | G31: =SUMIFS(SILOSTMAT!$C:$C,SILOSTMAT!$A:$A,G$1,SILOSTMAT!$B:$B,$A31) -> 0 | H31: =SUMIFS(SILOSTMAT!$C:$C,SILOSTMAT!$A:$A,H$1,SILOSTMAT!$B:$B,$A31) -> 0 | I31: =SUMIFS(SILOSTMAT!$C:$C,SILOSTMAT!$A:$A,I$1,SILOSTMAT!$B:$B,$A31) -> 0 | J31: =SUMIFS(SILOSTMAT!$C:$C,SILOSTMAT!$A:$A,J$1,SILOSTMAT!$B:$B,$A31) -> 6 | K31: =SUMIFS(SILOSTMAT!$C:$C,SILOSTMAT!$A:$A,K$1,SILOSTMAT!$B:$B,$A31) -> 2 | L31: =SUMIFS(SILOSTMAT!$C:$C,SILOSTMAT!$A:$A,L$1,SILOSTMAT!$B:$B,$A31) -> 0 | M31: =SUMIFS(SILOSTMAT!$C:$C,SILOSTMAT!$A:$A,M$1,SILOSTMAT!$B:$B,$A31) -> 0 | N31: =SUMIFS(SILOSTMAT!$C:$C,SILOSTMAT!$A:$A,N$1,SILOSTMAT!$B:$B,$A31) -> 0 | O31: =SUMIFS(SILOSTMAT!$C:$C,SILOSTMAT!$A:$A,O$1,SILOSTMAT!$B:$B,$A31) -> 3 | P31: =SUMIFS(SILOSTMAT!$C:$C,SILOSTMAT!$A:$A,P$1,SILOSTMAT!$B:$B,$A31) -> 4 | Q31: =SUMIFS(SILOSTMAT!$C:$C,SILOSTMAT!$A:$A,Q$1,SILOSTMAT!$B:$B,$A31) -> 0 | R31: =SUMIFS(SILOSTMAT!$C:$C,SILOSTMAT!$A:$A,R$1,SILOSTMAT!$B:$B,$A31) -> 16
A32: N3101 | B32: Encadrement de la navigation maritime | C32: Mobilité, systèmes de transport intelligents | D32: =IF(C32='DONNEES INFOGRAPHIES'!$B$6,1,0) -> 1 | E32: =VLOOKUP(A32,A:R,'DONNEES INFOGRAPHIES'!$L$9+4,FALSE) -> 8 | F32: =SUMIFS(SILOSTMAT!$C:$C,SILOSTMAT!$A:$A,F$1,SILOSTMAT!$B:$B,$A32) -> 0 | G32: =SUMIFS(SILOSTMAT!$C:$C,SILOSTMAT!$A:$A,G$1,SILOSTMAT!$B:$B,$A32) -> 0 | H32: =SUMIFS(SILOSTMAT!$C:$C,SILOSTMAT!$A:$A,H$1,SILOSTMAT!$B:$B,$A32) -> 0 | I32: =SUMIFS(SILOSTMAT!$C:$C,SILOSTMAT!$A:$A,I$1,SILOSTMAT!$B:$B,$A32) -> 0 | J32: =SUMIFS(SILOSTMAT!$C:$C,SILOSTMAT!$A:$A,J$1,SILOSTMAT!$B:$B,$A32) -> 0 | K32: =SUMIFS(SILOSTMAT!$C:$C,SILOSTMAT!$A:$A,K$1,SILOSTMAT!$B:$B,$A32) -> 0 | L32: =SUMIFS(SILOSTMAT!$C:$C,SILOSTMAT!$A:$A,L$1,SILOSTMAT!$B:$B,$A32) -> 0 | M32: =SUMIFS(SILOSTMAT!$C:$C,SILOSTMAT!$A:$A,M$1,SILOSTMAT!$B:$B,$A32) -> 0 | N32: =SUMIFS(SILOSTMAT!$C:$C,SILOSTMAT!$A:$A,N$1,SILOSTMAT!$B:$B,$A32) -> 0 | O32: =SUMIFS(SILOSTMAT!$C:$C,SILOSTMAT!$A:$A,O$1,SILOSTMAT!$B:$B,$A32) -> 1 | P32: =SUMIFS(SILOSTMAT!$C:$C,SILOSTMAT!$A:$A,P$1,SILOSTMAT!$B:$B,$A32) -> 0 | Q32: =SUMIFS(SILOSTMAT!$C:$C,SILOSTMAT!$A:$A,Q$1,SILOSTMAT!$B:$B,$A32) -> 7 | R32: =SUMIFS(SILOSTMAT!$C:$C,SILOSTMAT!$A:$A,R$1,SILOSTMAT!$B:$B,$A32) -> 8
A33: N2205 | B33: Direction d'escale et exploitation aéroportuaire | C33: Mobilité, systèmes de transport intelligents | D33: =IF(C33='DONNEES INFOGRAPHIES'!$B$6,1,0) -> 1 | E33: =VLOOKUP(A33,A:R,'DONNEES INFOGRAPHIES'!$L$9+4,FALSE) -> 6 | F33: =SUMIFS(SILOSTMAT!$C:$C,SILOSTMAT!$A:$A,F$1,SILOSTMAT!$B:$B,$A33) -> 0 | G33: =SUMIFS(SILOSTMAT!$C:$C,SILOSTMAT!$A:$A,G$1,SILOSTMAT!$B:$B,$A33) -> 0 | H33: =SUMIFS(SILOSTMAT!$C:$C,SILOSTMAT!$A:$A,H$1,SILOSTMAT!$B:$B,$A33) -> 0 | I33: =SUMIFS(SILOSTMAT!$C:$C,SILOSTMAT!$A:$A,I$1,SILOSTMAT!$B:$B,$A33) -> 0 | J33: =SUMIFS(SILOSTMAT!$C:$C,SILOSTMAT!$A:$A,J$1,SILOSTMAT!$B:$B,$A33) -> 0 | K33: =SUMIFS(SILOSTMAT!$C:$C,SILOSTMAT!$A:$A,K$1,SILOSTMAT!$B:$B,$A33) -> 2 | L33: =SUMIFS(SILOSTMAT!$C:$C,SILOSTMAT!$A:$A,L$1,SILOSTMAT!$B:$B,$A33) -> 0 | M33: =SUMIFS(SILOSTMAT!$C:$C,SILOSTMAT!$A:$A,M$1,SILOSTMAT!$B:$B,$A33) -> 0 | N33: =SUMIFS(SILOSTMAT!$C:$C,SILOSTMAT!$A:$A,N$1,SILOSTMAT!$B:$B,$A33) -> 0 | O33: =SUMIFS(SILOSTMAT!$C:$C,SILOSTMAT!$A:$A,O$1,SILOSTMAT!$B:$B,$A33) -> 4 | P33: =SUMIFS(SILOSTMAT!$C:$C,SILOSTMAT!$A:$A,P$1,SILOSTMAT!$B:$B,$A33) -> 0 | Q33: =SUMIFS(SILOSTMAT!$C:$C,SILOSTMAT!$A:$A,Q$1,SILOSTMAT!$B:$B,$A33) -> 0 | R33: =SUMIFS(SILOSTMAT!$C:$C,SILOSTMAT!$A:$A,R$1,SILOSTMAT!$B:$B,$A33) -> 6
A34: N2102 | B34: Pilotage et navigation technique aérienne | C34: Mobilité, systèmes de transport intelligents | D34: =IF(C34='DONNEES INFOGRAPHIES'!$B$6,1,0) -> 1 | E34: =VLOOKUP(A34,A:R,'DONNEES INFOGRAPHIES'!$L$9+4,FALSE) -> 5 | F34: =SUMIFS(SILOSTMAT!$C:$C,SILOSTMAT!$A:$A,F$1,SILOSTMAT!$B:$B,$A34) -> 0 | G34: =SUMIFS(SILOSTMAT!$C:$C,SILOSTMAT!$A:$A,G$1,SILOSTMAT!$B:$B,$A34) -> 0 | H34: =SUMIFS(SILOSTMAT!$C:$C,SILOSTMAT!$A:$A,H$1,SILOSTMAT!$B:$B,$A34) -> 0 | I34: =SUMIFS(SILOSTMAT!$C:$C,SILOSTMAT!$A:$A,I$1,SILOSTMAT!$B:$B,$A34) -> 0 | J34: =SUMIFS(SILOSTMAT!$C:$C,SILOSTMAT!$A:$A,J$1,SILOSTMAT!$B:$B,$A34) -> 2 | K34: =SUMIFS(SILOSTMAT!$C:$C,SILOSTMAT!$A:$A,K$1,SILOSTMAT!$B:$B,$A34) -> 0 | L34: =SUMIFS(SILOSTMAT!$C:$C,SILOSTMAT!$A:$A,L$1,SILOSTMAT!$B:$B,$A34) -> 0 | M34: =SUMIFS(SILOSTMAT!$C:$C,SILOSTMAT!$A:$A,M$1,SILOSTMAT!$B:$B,$A34) -> 0 | N34: =SUMIFS(SILOSTMAT!$C:$C,SILOSTMAT!$A:$A,N$1,SILOSTMAT!$B:$B,$A34) -> 0 | O34: =SUMIFS(SILOSTMAT!$C:$C,SILOSTMAT!$A:$A,O$1,SILOSTMAT!$B:$B,$A34) -> 1 | P34: =SUMIFS(SILOSTMAT!$C:$C,SILOSTMAT!$A:$A,P$1,SILOSTMAT!$B:$B,$A34) -> 0 | Q34: =SUMIFS(SILOSTMAT!$C:$C,SILOSTMAT!$A:$A,Q$1,SILOSTMAT!$B:$B,$A34) -> 2 | R34: =SUMIFS(SILOSTMAT!$C:$C,SILOSTMAT!$A:$A,R$1,SILOSTMAT!$B:$B,$A34) -> 5
A35: N3102 | B35: Équipage de la navigation maritime | C35: Mobilité, systèmes de transport intelligents | D35: =IF(C35='DONNEES INFOGRAPHIES'!$B$6,1,0) -> 1 | E35: =VLOOKUP(A35,A:R,'DONNEES INFOGRAPHIES'!$L$9+4,FALSE) -> 3 | F35: =SUMIFS(SILOSTMAT!$C:$C,SILOSTMAT!$A:$A,F$1,SILOSTMAT!$B:$B,$A35) -> 0 | G35: =SUMIFS(SILOSTMAT!$C:$C,SILOSTMAT!$A:$A,G$1,SILOSTMAT!$B:$B,$A35) -> 0 | H35: =SUMIFS(SILOSTMAT!$C:$C,SILOSTMAT!$A:$A,H$1,SILOSTMAT!$B:$B,$A35) -> 0 | I35: =SUMIFS(SILOSTMAT!$C:$C,SILOSTMAT!$A:$A,I$1,SILOSTMAT!$B:$B,$A35) -> 0 | J35: =SUMIFS(SILOSTMAT!$C:$C,SILOSTMAT!$A:$A,J$1,SILOSTMAT!$B:$B,$A35) -> 0 | K35: =SUMIFS(SILOSTMAT!$C:$C,SILOSTMAT!$A:$A,K$1,SILOSTMAT!$B:$B,$A35) -> 2 | L35: =SUMIFS(SILOSTMAT!$C:$C,SILOSTMAT!$A:$A,L$1,SILOSTMAT!$B:$B,$A35) -> 0 | M35: =SUMIFS(SILOSTMAT!$C:$C,SILOSTMAT!$A:$A,M$1,SILOSTMAT!$B:$B,$A35) -> 0 | N35: =SUMIFS(SILOSTMAT!$C:$C,SILOSTMAT!$A:$A,N$1,SILOSTMAT!$B:$B,$A35) -> 0 | O35: =SUMIFS(SILOSTMAT!$C:$C,SILOSTMAT!$A:$A,O$1,SILOSTMAT!$B:$B,$A35) -> 0 | P35: =SUMIFS(SILOSTMAT!$C:$C,SILOSTMAT!$A:$A,P$1,SILOSTMAT!$B:$B,$A35) -> 0 | Q35: =SUMIFS(SILOSTMAT!$C:$C,SILOSTMAT!$A:$A,Q$1,SILOSTMAT!$B:$B,$A35) -> 1 | R35: =SUMIFS(SILOSTMAT!$C:$C,SILOSTMAT!$A:$A,R$1,SILOSTMAT!$B:$B,$A35) -> 3
A36: N2101 | B36: Navigation commerciale aérienne | C36: Mobilité, systèmes de transport intelligents | D36: =IF(C36='DONNEES INFOGRAPHIES'!$B$6,1,0) -> 1 | E36: =VLOOKUP(A36,A:R,'DONNEES INFOGRAPHIES'!$L$9+4,FALSE) -> 2 | F36: =SUMIFS(SILOSTMAT!$C:$C,SILOSTMAT!$A:$A,F$1,SILOSTMAT!$B:$B,$A36) -> 0 | G36: =SUMIFS(SILOSTMAT!$C:$C,SILOSTMAT!$A:$A,G$1,SILOSTMAT!$B:$B,$A36) -> 0 | H36: =SUMIFS(SILOSTMAT!$C:$C,SILOSTMAT!$A:$A,H$1,SILOSTMAT!$B:$B,$A36) -> 0 | I36: =SUMIFS(SILOSTMAT!$C:$C,SILOSTMAT!$A:$A,I$1,SILOSTMAT!$B:$B,$A36) -> 0 | J36: =SUMIFS(SILOSTMAT!$C:$C,SILOSTMAT!$A:$A,J$1,SILOSTMAT!$B:$B,$A36) -> 0 | K36: =SUMIFS(SILOSTMAT!$C:$C,SILOSTMAT!$A:$A,K$1,SILOSTMAT!$B:$B,$A36) -> 0 | L36: =SUMIFS(SILOSTMAT!$C:$C,SILOSTMAT!$A:$A,L$1,SILOSTMAT!$B:$B,$A36) -> 0 | M36: =SUMIFS(SILOSTMAT!$C:$C,SILOSTMAT!$A:$A,M$1,SILOSTMAT!$B:$B,$A36) -> 0 | N36: =SUMIFS(SILOSTMAT!$C:$C,SILOSTMAT!$A:$A,N$1,SILOSTMAT!$B:$B,$A36) -> 0 | O36: =SUMIFS(SILOSTMAT!$C:$C,SILOSTMAT!$A:$A,O$1,SILOSTMAT!$B:$B,$A36) -> 1 | P36: =SUMIFS(SILOSTMAT!$C:$C,SILOSTMAT!$A:$A,P$1,SILOSTMAT!$B:$B,$A36) -> 1 | Q36: =SUMIFS(SILOSTMAT!$C:$C,SILOSTMAT!$A:$A,Q$1,SILOSTMAT!$B:$B,$A36) -> 0 | R36: =SUMIFS(SILOSTMAT!$C:$C,SILOSTMAT!$A:$A,R$1,SILOSTMAT!$B:$B,$A36) -> 2
A37: N3202 | B37: Exploitation du transport fluvial | C37: Mobilité, systèmes de transport intelligents | D37: =IF(C37='DONNEES INFOGRAPHIES'!$B$6,1,0) -> 1 | E37: =VLOOKUP(A37,A:R,'DONNEES INFOGRAPHIES'!$L$9+4,FALSE) -> 0 | F37: =SUMIFS(SILOSTMAT!$C:$C,SILOSTMAT!$A:$A,F$1,SILOSTMAT!$B:$B,$A37) -> 0 | G37: =SUMIFS(SILOSTMAT!$C:$C,SILOSTMAT!$A:$A,G$1,SILOSTMAT!$B:$B,$A37) -> 0 | H37: =SUMIFS(SILOSTMAT!$C:$C,SILOSTMAT!$A:$A,H$1,SILOSTMAT!$B:$B,$A37) -> 0 | I37: =SUMIFS(SILOSTMAT!$C:$C,SILOSTMAT!$A:$A,I$1,SILOSTMAT!$B:$B,$A37) -> 0 | J37: =SUMIFS(SILOSTMAT!$C:$C,SILOSTMAT!$A:$A,J$1,SILOSTMAT!$B:$B,$A37) -> 0 | K37: =SUMIFS(SILOSTMAT!$C:$C,SILOSTMAT!$A:$A,K$1,SILOSTMAT!$B:$B,$A37) -> 0 | L37: =SUMIFS(SILOSTMAT!$C:$C,SILOSTMAT!$A:$A,L$1,SILOSTMAT!$B:$B,$A37) -> 0 | M37: =SUMIFS(SILOSTMAT!$C:$C,SILOSTMAT!$A:$A,M$1,SILOSTMAT!$B:$B,$A37) -> 0 | N37: =SUMIFS(SILOSTMAT!$C:$C,SILOSTMAT!$A:$A,N$1,SILOSTMAT!$B:$B,$A37) -> 0 | O37: =SUMIFS(SILOSTMAT!$C:$C,SILOSTMAT!$A:$A,O$1,SILOSTMAT!$B:$B,$A37) -> 0 | P37: =SUMIFS(SILOSTMAT!$C:$C,SILOSTMAT!$A:$A,P$1,SILOSTMAT!$B:$B,$A37) -> 0 | Q37: =SUMIFS(SILOSTMAT!$C:$C,SILOSTMAT!$A:$A,Q$1,SILOSTMAT!$B:$B,$A37) -> 0 | R37: =SUMIFS(SILOSTMAT!$C:$C,SILOSTMAT!$A:$A,R$1,SILOSTMAT!$B:$B,$A37) -> 0
A38: K1304 | B38: Services domestiques | C38: Services à la personne | D38: =IF(C38='DONNEES INFOGRAPHIES'!$B$6,1,0) -> 0 | E38: =VLOOKUP(A38,A:R,'DONNEES INFOGRAPHIES'!$L$9+4,FALSE) -> 15946 | F38: =SUMIFS(SILOSTMAT!$C:$C,SILOSTMAT!$A:$A,F$1,SILOSTMAT!$B:$B,$A38) -> 1106 | G38: =SUMIFS(SILOSTMAT!$C:$C,SILOSTMAT!$A:$A,G$1,SILOSTMAT!$B:$B,$A38) -> 344 | H38: =SUMIFS(SILOSTMAT!$C:$C,SILOSTMAT!$A:$A,H$1,SILOSTMAT!$B:$B,$A38) -> 645 | I38: =SUMIFS(SILOSTMAT!$C:$C,SILOSTMAT!$A:$A,I$1,SILOSTMAT!$B:$B,$A38) -> 134 | J38: =SUMIFS(SILOSTMAT!$C:$C,SILOSTMAT!$A:$A,J$1,SILOSTMAT!$B:$B,$A38) -> 844 | K38: =SUMIFS(SILOSTMAT!$C:$C,SILOSTMAT!$A:$A,K$1,SILOSTMAT!$B:$B,$A38) -> 2672 | L38: =SUMIFS(SILOSTMAT!$C:$C,SILOSTMAT!$A:$A,L$1,SILOSTMAT!$B:$B,$A38) -> 1255 | M38: =SUMIFS(SILOSTMAT!$C:$C,SILOSTMAT!$A:$A,M$1,SILOSTMAT!$B:$B,$A38) -> 242 | N38: =SUMIFS(SILOSTMAT!$C:$C,SILOSTMAT!$A:$A,N$1,SILOSTMAT!$B:$B,$A38) -> 1566 | O38: =SUMIFS(SILOSTMAT!$C:$C,SILOSTMAT!$A:$A,O$1,SILOSTMAT!$B:$B,$A38) -> 4300 | P38: =SUMIFS(SILOSTMAT!$C:$C,SILOSTMAT!$A:$A,P$1,SILOSTMAT!$B:$B,$A38) -> 1091 | Q38: =SUMIFS(SILOSTMAT!$C:$C,SILOSTMAT!$A:$A,Q$1,SILOSTMAT!$B:$B,$A38) -> 1747 | R38: =SUMIFS(SILOSTMAT!$C:$C,SILOSTMAT!$A:$A,R$1,SILOSTMAT!$B:$B,$A38) -> 15946
A39: K1302 | B39: Assistance auprès d'adultes | C39: Services à la personne | D39: =IF(C39='DONNEES INFOGRAPHIES'!$B$6,1,0) -> 0 | E39: =VLOOKUP(A39,A:R,'DONNEES INFOGRAPHIES'!$L$9+4,FALSE) -> 13989 | F39: =SUMIFS(SILOSTMAT!$C:$C,SILOSTMAT!$A:$A,F$1,SILOSTMAT!$B:$B,$A39) -> 614 | G39: =SUMIFS(SILOSTMAT!$C:$C,SILOSTMAT!$A:$A,G$1,SILOSTMAT!$B:$B,$A39) -> 331 | H39: =SUMIFS(SILOSTMAT!$C:$C,SILOSTMAT!$A:$A,H$1,SILOSTMAT!$B:$B,$A39) -> 504 | I39: =SUMIFS(SILOSTMAT!$C:$C,SILOSTMAT!$A:$A,I$1,SILOSTMAT!$B:$B,$A39) -> 189 | J39: =SUMIFS(SILOSTMAT!$C:$C,SILOSTMAT!$A:$A,J$1,SILOSTMAT!$B:$B,$A39) -> 701 | K39: =SUMIFS(SILOSTMAT!$C:$C,SILOSTMAT!$A:$A,K$1,SILOSTMAT!$B:$B,$A39) -> 3686 | L39: =SUMIFS(SILOSTMAT!$C:$C,SILOSTMAT!$A:$A,L$1,SILOSTMAT!$B:$B,$A39) -> 1093 | M39: =SUMIFS(SILOSTMAT!$C:$C,SILOSTMAT!$A:$A,M$1,SILOSTMAT!$B:$B,$A39) -> 216 | N39: =SUMIFS(SILOSTMAT!$C:$C,SILOSTMAT!$A:$A,N$1,SILOSTMAT!$B:$B,$A39) -> 1280 | O39: =SUMIFS(SILOSTMAT!$C:$C,SILOSTMAT!$A:$A,O$1,SILOSTMAT!$B:$B,$A39) -> 3885 | P39: =SUMIFS(SILOSTMAT!$C:$C,SILOSTMAT!$A:$A,P$1,SILOSTMAT!$B:$B,$A39) -> 864 | Q39: =SUMIFS(SILOSTMAT!$C:$C,SILOSTMAT!$A:$A,Q$1,SILOSTMAT!$B:$B,$A39) -> 626 | R39: =SUMIFS(SILOSTMAT!$C:$C,SILOSTMAT!$A:$A,R$1,SILOSTMAT!$B:$B,$A39) -> 13989
A40: G1602 | B40: Personnel de cuisine | C40: Sport, Montagne, Tourisme | D40: =IF(C40='DONNEES INFOGRAPHIES'!$B$6,1,0) -> 0 | E40: =VLOOKUP(A40,A:R,'DONNEES INFOGRAPHIES'!$L$9+4,FALSE) -> 12198 | F40: =SUMIFS(SILOSTMAT!$C:$C,SILOSTMAT!$A:$A,F$1,SILOSTMAT!$B:$B,$A40) -> 564 | G40: =SUMIFS(SILOSTMAT!$C:$C,SILOSTMAT!$A:$A,G$1,SILOSTMAT!$B:$B,$A40) -> 363 | H40: =SUMIFS(SILOSTMAT!$C:$C,SILOSTMAT!$A:$A,H$1,SILOSTMAT!$B:$B,$A40) -> 387 | I40: =SUMIFS(SILOSTMAT!$C:$C,SILOSTMAT!$A:$A,I$1,SILOSTMAT!$B:$B,$A40) -> 193 | J40: =SUMIFS(SILOSTMAT!$C:$C,SILOSTMAT!$A:$A,J$1,SILOSTMAT!$B:$B,$A40) -> 795 | K40: =SUMIFS(SILOSTMAT!$C:$C,SILOSTMAT!$A:$A,K$1,SILOSTMAT!$B:$B,$A40) -> 1405 | L40: =SUMIFS(SILOSTMAT!$C:$C,SILOSTMAT!$A:$A,L$1,SILOSTMAT!$B:$B,$A40) -> 569 | M40: =SUMIFS(SILOSTMAT!$C:$C,SILOSTMAT!$A:$A,M$1,SILOSTMAT!$B:$B,$A40) -> 204 | N40: =SUMIFS(SILOSTMAT!$C:$C,SILOSTMAT!$A:$A,N$1,SILOSTMAT!$B:$B,$A40) -> 1104 | O40: =SUMIFS(SILOSTMAT!$C:$C,SILOSTMAT!$A:$A,O$1,SILOSTMAT!$B:$B,$A40) -> 2491 | P40: =SUMIFS(SILOSTMAT!$C:$C,SILOSTMAT!$A:$A,P$1,SILOSTMAT!$B:$B,$A40) -> 1965 | Q40: =SUMIFS(SILOSTMAT!$C:$C,SILOSTMAT!$A:$A,Q$1,SILOSTMAT!$B:$B,$A40) -> 2158 | R40: =SUMIFS(SILOSTMAT!$C:$C,SILOSTMAT!$A:$A,R$1,SILOSTMAT!$B:$B,$A40) -> 12198
A41: K2204 | B41: Nettoyage de locaux | D41: =IF(C41='DONNEES INFOGRAPHIES'!$B$6,1,0) -> 0 | E41: =VLOOKUP(A41,A:R,'DONNEES INFOGRAPHIES'!$L$9+4,FALSE) -> 11338 | F41: =SUMIFS(SILOSTMAT!$C:$C,SILOSTMAT!$A:$A,F$1,SILOSTMAT!$B:$B,$A41) -> 812 | G41: =SUMIFS(SILOSTMAT!$C:$C,SILOSTMAT!$A:$A,G$1,SILOSTMAT!$B:$B,$A41) -> 272 | H41: =SUMIFS(SILOSTMAT!$C:$C,SILOSTMAT!$A:$A,H$1,SILOSTMAT!$B:$B,$A41) -> 429 | I41: =SUMIFS(SILOSTMAT!$C:$C,SILOSTMAT!$A:$A,I$1,SILOSTMAT!$B:$B,$A41) -> 112 | J41: =SUMIFS(SILOSTMAT!$C:$C,SILOSTMAT!$A:$A,J$1,SILOSTMAT!$B:$B,$A41) -> 1201 | K41: =SUMIFS(SILOSTMAT!$C:$C,SILOSTMAT!$A:$A,K$1,SILOSTMAT!$B:$B,$A41) -> 1841 | L41: =SUMIFS(SILOSTMAT!$C:$C,SILOSTMAT!$A:$A,L$1,SILOSTMAT!$B:$B,$A41) -> 920 | M41: =SUMIFS(SILOSTMAT!$C:$C,SILOSTMAT!$A:$A,M$1,SILOSTMAT!$B:$B,$A41) -> 171 | N41: =SUMIFS(SILOSTMAT!$C:$C,SILOSTMAT!$A:$A,N$1,SILOSTMAT!$B:$B,$A41) -> 963 | O41: =SUMIFS(SILOSTMAT!$C:$C,SILOSTMAT!$A:$A,O$1,SILOSTMAT!$B:$B,$A41) -> 2332 | P41: =SUMIFS(SILOSTMAT!$C:$C,SILOSTMAT!$A:$A,P$1,SILOSTMAT!$B:$B,$A41) -> 1265 | Q41: =SUMIFS(SILOSTMAT!$C:$C,SILOSTMAT!$A:$A,Q$1,SILOSTMAT!$B:$B,$A41) -> 1020 | R41: =SUMIFS(SILOSTMAT!$C:$C,SILOSTMAT!$A:$A,R$1,SILOSTMAT!$B:$B,$A41) -> 11338
A42: M1203 | B42: Comptabilité | D42: =IF(C42='DONNEES INFOGRAPHIES'!$B$6,1,0) -> 0 | E42: =VLOOKUP(A42,A:R,'DONNEES INFOGRAPHIES'!$L$9+4,FALSE) -> 11077 | F42: =SUMIFS(SILOSTMAT!$C:$C,SILOSTMAT!$A:$A,F$1,SILOSTMAT!$B:$B,$A42) -> 589 | G42: =SUMIFS(SILOSTMAT!$C:$C,SILOSTMAT!$A:$A,G$1,SILOSTMAT!$B:$B,$A42) -> 237 | H42: =SUMIFS(SILOSTMAT!$C:$C,SILOSTMAT!$A:$A,H$1,SILOSTMAT!$B:$B,$A42) -> 180 | I42: =SUMIFS(SILOSTMAT!$C:$C,SILOSTMAT!$A:$A,I$1,SILOSTMAT!$B:$B,$A42) -> 94 | J42: =SUMIFS(SILOSTMAT!$C:$C,SILOSTMAT!$A:$A,J$1,SILOSTMAT!$B:$B,$A42) -> 545 | K42: =SUMIFS(SILOSTMAT!$C:$C,SILOSTMAT!$A:$A,K$1,SILOSTMAT!$B:$B,$A42) -> 1887 | L42: =SUMIFS(SILOSTMAT!$C:$C,SILOSTMAT!$A:$A,L$1,SILOSTMAT!$B:$B,$A42) -> 634 | M42: =SUMIFS(SILOSTMAT!$C:$C,SILOSTMAT!$A:$A,M$1,SILOSTMAT!$B:$B,$A42) -> 122 | N42: =SUMIFS(SILOSTMAT!$C:$C,SILOSTMAT!$A:$A,N$1,SILOSTMAT!$B:$B,$A42) -> 589 | O42: =SUMIFS(SILOSTMAT!$C:$C,SILOSTMAT!$A:$A,O$1,SILOSTMAT!$B:$B,$A42) -> 4472 | P42: =SUMIFS(SILOSTMAT!$C:$C,SILOSTMAT!$A:$A,P$1,SILOSTMAT!$B:$B,$A42) -> 659 | Q42: =SUMIFS(SILOSTMAT!$C:$C,SILOSTMAT!$A:$A,Q$1,SILOSTMAT!$B:$B,$A42) -> 1069 | R42: =SUMIFS(SILOSTMAT!$C:$C,SILOSTMAT!$A:$A,R$1,SILOSTMAT!$B:$B,$A42) -> 11077
A43: G1803 | B43: Service en restauration | C43: Sport, Montagne, Tourisme | D43: =IF(C43='DONNEES INFOGRAPHIES'!$B$6,1,0) -> 0 | E43: =VLOOKUP(A43,A:R,'DONNEES INFOGRAPHIES'!$L$9+4,FALSE) -> 10364 | F43: =SUMIFS(SILOSTMAT!$C:$C,SILOSTMAT!$A:$A,F$1,SILOSTMAT!$B:$B,$A43) -> 515 | G43: =SUMIFS(SILOSTMAT!$C:$C,SILOSTMAT!$A:$A,G$1,SILOSTMAT!$B:$B,$A43) -> 291 | H43: =SUMIFS(SILOSTMAT!$C:$C,SILOSTMAT!$A:$A,H$1,SILOSTMAT!$B:$B,$A43) -> 451 | I43: =SUMIFS(SILOSTMAT!$C:$C,SILOSTMAT!$A:$A,I$1,SILOSTMAT!$B:$B,$A43) -> 168 | J43: =SUMIFS(SILOSTMAT!$C:$C,SILOSTMAT!$A:$A,J$1,SILOSTMAT!$B:$B,$A43) -> 755 | K43: =SUMIFS(SILOSTMAT!$C:$C,SILOSTMAT!$A:$A,K$1,SILOSTMAT!$B:$B,$A43) -> 1368 | L43: =SUMIFS(SILOSTMAT!$C:$C,SILOSTMAT!$A:$A,L$1,SILOSTMAT!$B:$B,$A43) -> 524 | M43: =SUMIFS(SILOSTMAT!$C:$C,SILOSTMAT!$A:$A,M$1,SILOSTMAT!$B:$B,$A43) -> 173 | N43: =SUMIFS(SILOSTMAT!$C:$C,SILOSTMAT!$A:$A,N$1,SILOSTMAT!$B:$B,$A43) -> 899 | O43: =SUMIFS(SILOSTMAT!$C:$C,SILOSTMAT!$A:$A,O$1,SILOSTMAT!$B:$B,$A43) -> 1704 | P43: =SUMIFS(SILOSTMAT!$C:$C,SILOSTMAT!$A:$A,P$1,SILOSTMAT!$B:$B,$A43) -> 1561 | Q43: =SUMIFS(SILOSTMAT!$C:$C,SILOSTMAT!$A:$A,Q$1,SILOSTMAT!$B:$B,$A43) -> 1955 | R43: =SUMIFS(SILOSTMAT!$C:$C,SILOSTMAT!$A:$A,R$1,SILOSTMAT!$B:$B,$A43) -> 10364
A44: I1304 | B44: Installation et maintenance d'équipements industriels et d'exploitation | C44: Industrie du futur, production industrielle | D44: =IF(C44='DONNEES INFOGRAPHIES'!$B$6,1,0) -> 0 | E44: =VLOOKUP(A44,A:R,'DONNEES INFOGRAPHIES'!$L$9+4,FALSE) -> 9664 | F44: =SUMIFS(SILOSTMAT!$C:$C,SILOSTMAT!$A:$A,F$1,SILOSTMAT!$B:$B,$A44) -> 841 | G44: =SUMIFS(SILOSTMAT!$C:$C,SILOSTMAT!$A:$A,G$1,SILOSTMAT!$B:$B,$A44) -> 216 | H44: =SUMIFS(SILOSTMAT!$C:$C,SILOSTMAT!$A:$A,H$1,SILOSTMAT!$B:$B,$A44) -> 202 | I44: =SUMIFS(SILOSTMAT!$C:$C,SILOSTMAT!$A:$A,I$1,SILOSTMAT!$B:$B,$A44) -> 65 | J44: =SUMIFS(SILOSTMAT!$C:$C,SILOSTMAT!$A:$A,J$1,SILOSTMAT!$B:$B,$A44) -> 750 | K44: =SUMIFS(SILOSTMAT!$C:$C,SILOSTMAT!$A:$A,K$1,SILOSTMAT!$B:$B,$A44) -> 1360 | L44: =SUMIFS(SILOSTMAT!$C:$C,SILOSTMAT!$A:$A,L$1,SILOSTMAT!$B:$B,$A44) -> 713 | M44: =SUMIFS(SILOSTMAT!$C:$C,SILOSTMAT!$A:$A,M$1,SILOSTMAT!$B:$B,$A44) -> 122 | N44: =SUMIFS(SILOSTMAT!$C:$C,SILOSTMAT!$A:$A,N$1,SILOSTMAT!$B:$B,$A44) -> 787 | O44: =SUMIFS(SILOSTMAT!$C:$C,SILOSTMAT!$A:$A,O$1,SILOSTMAT!$B:$B,$A44) -> 3544 | P44: =SUMIFS(SILOSTMAT!$C:$C,SILOSTMAT!$A:$A,P$1,SILOSTMAT!$B:$B,$A44) -> 524 | Q44: =SUMIFS(SILOSTMAT!$C:$C,SILOSTMAT!$A:$A,Q$1,SILOSTMAT!$B:$B,$A44) -> 540 | R44: =SUMIFS(SILOSTMAT!$C:$C,SILOSTMAT!$A:$A,R$1,SILOSTMAT!$B:$B,$A44) -> 9664
A45: I1604 | B45: Mécanique automobile et entretien de véhicules | D45: =IF(C45='DONNEES INFOGRAPHIES'!$B$6,1,0) -> 0 | E45: =VLOOKUP(A45,A:R,'DONNEES INFOGRAPHIES'!$L$9+4,FALSE) -> 9063 | F45: =SUMIFS(SILOSTMAT!$C:$C,SILOSTMAT!$A:$A,F$1,SILOSTMAT!$B:$B,$A45) -> 712 | G45: =SUMIFS(SILOSTMAT!$C:$C,SILOSTMAT!$A:$A,G$1,SILOSTMAT!$B:$B,$A45) -> 220 | H45: =SUMIFS(SILOSTMAT!$C:$C,SILOSTMAT!$A:$A,H$1,SILOSTMAT!$B:$B,$A45) -> 174 | I45: =SUMIFS(SILOSTMAT!$C:$C,SILOSTMAT!$A:$A,I$1,SILOSTMAT!$B:$B,$A45) -> 132 | J45: =SUMIFS(SILOSTMAT!$C:$C,SILOSTMAT!$A:$A,J$1,SILOSTMAT!$B:$B,$A45) -> 636 | K45: =SUMIFS(SILOSTMAT!$C:$C,SILOSTMAT!$A:$A,K$1,SILOSTMAT!$B:$B,$A45) -> 1339 | L45: =SUMIFS(SILOSTMAT!$C:$C,SILOSTMAT!$A:$A,L$1,SILOSTMAT!$B:$B,$A45) -> 555 | M45: =SUMIFS(SILOSTMAT!$C:$C,SILOSTMAT!$A:$A,M$1,SILOSTMAT!$B:$B,$A45) -> 185 | N45: =SUMIFS(SILOSTMAT!$C:$C,SILOSTMAT!$A:$A,N$1,SILOSTMAT!$B:$B,$A45) -> 630 | O45: =SUMIFS(SILOSTMAT!$C:$C,SILOSTMAT!$A:$A,O$1,SILOSTMAT!$B:$B,$A45) -> 3227 | P45: =SUMIFS(SILOSTMAT!$C:$C,SILOSTMAT!$A:$A,P$1,SILOSTMAT!$B:$B,$A45) -> 593 | Q45: =SUMIFS(SILOSTMAT!$C:$C,SILOSTMAT!$A:$A,Q$1,SILOSTMAT!$B:$B,$A45) -> 660 | R45: =SUMIFS(SILOSTMAT!$C:$C,SILOSTMAT!$A:$A,R$1,SILOSTMAT!$B:$B,$A45) -> 9063
A46: G1603 | B46: Personnel polyvalent en restauration | C46: Sport, Montagne, Tourisme | D46: =IF(C46='DONNEES INFOGRAPHIES'!$B$6,1,0) -> 0 | E46: =VLOOKUP(A46,A:R,'DONNEES INFOGRAPHIES'!$L$9+4,FALSE) -> 8506 | F46: =SUMIFS(SILOSTMAT!$C:$C,SILOSTMAT!$A:$A,F$1,SILOSTMAT!$B:$B,$A46) -> 373 | G46: =SUMIFS(SILOSTMAT!$C:$C,SILOSTMAT!$A:$A,G$1,SILOSTMAT!$B:$B,$A46) -> 231 | H46: =SUMIFS(SILOSTMAT!$C:$C,SILOSTMAT!$A:$A,H$1,SILOSTMAT!$B:$B,$A46) -> 166 | I46: =SUMIFS(SILOSTMAT!$C:$C,SILOSTMAT!$A:$A,I$1,SILOSTMAT!$B:$B,$A46) -> 97 | J46: =SUMIFS(SILOSTMAT!$C:$C,SILOSTMAT!$A:$A,J$1,SILOSTMAT!$B:$B,$A46) -> 445 | K46: =SUMIFS(SILOSTMAT!$C:$C,SILOSTMAT!$A:$A,K$1,SILOSTMAT!$B:$B,$A46) -> 1464 | L46: =SUMIFS(SILOSTMAT!$C:$C,SILOSTMAT!$A:$A,L$1,SILOSTMAT!$B:$B,$A46) -> 707 | M46: =SUMIFS(SILOSTMAT!$C:$C,SILOSTMAT!$A:$A,M$1,SILOSTMAT!$B:$B,$A46) -> 140 | N46: =SUMIFS(SILOSTMAT!$C:$C,SILOSTMAT!$A:$A,N$1,SILOSTMAT!$B:$B,$A46) -> 717 | O46: =SUMIFS(SILOSTMAT!$C:$C,SILOSTMAT!$A:$A,O$1,SILOSTMAT!$B:$B,$A46) -> 2438 | P46: =SUMIFS(SILOSTMAT!$C:$C,SILOSTMAT!$A:$A,P$1,SILOSTMAT!$B:$B,$A46) -> 721 | Q46: =SUMIFS(SILOSTMAT!$C:$C,SILOSTMAT!$A:$A,Q$1,SILOSTMAT!$B:$B,$A46) -> 1007 | R46: =SUMIFS(SILOSTMAT!$C:$C,SILOSTMAT!$A:$A,R$1,SILOSTMAT!$B:$B,$A46) -> 8506
A47: D1401 | B47: Assistant commercial / assistante commerciale | C47: Force de vente | D47: =IF(C47='DONNEES INFOGRAPHIES'!$B$6,1,0) -> 0 | E47: =VLOOKUP(A47,A:R,'DONNEES INFOGRAPHIES'!$L$9+4,FALSE) -> 7699 | F47: =SUMIFS(SILOSTMAT!$C:$C,SILOSTMAT!$A:$A,F$1,SILOSTMAT!$B:$B,$A47) -> 415 | G47: =SUMIFS(SILOSTMAT!$C:$C,SILOSTMAT!$A:$A,G$1,SILOSTMAT!$B:$B,$A47) -> 123 | H47: =SUMIFS(SILOSTMAT!$C:$C,SILOSTMAT!$A:$A,H$1,SILOSTMAT!$B:$B,$A47) -> 77 | I47: =SUMIFS(SILOSTMAT!$C:$C,SILOSTMAT!$A:$A,I$1,SILOSTMAT!$B:$B,$A47) -> 39 | J47: =SUMIFS(SILOSTMAT!$C:$C,SILOSTMAT!$A:$A,J$1,SILOSTMAT!$B:$B,$A47) -> 370 | K47: =SUMIFS(SILOSTMAT!$C:$C,SILOSTMAT!$A:$A,K$1,SILOSTMAT!$B:$B,$A47) -> 1247 | L47: =SUMIFS(SILOSTMAT!$C:$C,SILOSTMAT!$A:$A,L$1,SILOSTMAT!$B:$B,$A47) -> 495 | M47: =SUMIFS(SILOSTMAT!$C:$C,SILOSTMAT!$A:$A,M$1,SILOSTMAT!$B:$B,$A47) -> 127 | N47: =SUMIFS(SILOSTMAT!$C:$C,SILOSTMAT!$A:$A,N$1,SILOSTMAT!$B:$B,$A47) -> 311 | O47: =SUMIFS(SILOSTMAT!$C:$C,SILOSTMAT!$A:$A,O$1,SILOSTMAT!$B:$B,$A47) -> 3522 | P47: =SUMIFS(SILOSTMAT!$C:$C,SILOSTMAT!$A:$A,P$1,SILOSTMAT!$B:$B,$A47) -> 462 | Q47: =SUMIFS(SILOSTMAT!$C:$C,SILOSTMAT!$A:$A,Q$1,SILOSTMAT!$B:$B,$A47) -> 511 | R47: =SUMIFS(SILOSTMAT!$C:$C,SILOSTMAT!$A:$A,R$1,SILOSTMAT!$B:$B,$A47) -> 7699
A48: D1507 | B48: Mise en rayon libre-service | C48: Force de vente | D48: =IF(C48='DONNEES INFOGRAPHIES'!$B$6,1,0) -> 0 | E48: =VLOOKUP(A48,A:R,'DONNEES INFOGRAPHIES'!$L$9+4,FALSE) -> 7407 | F48: =SUMIFS(SILOSTMAT!$C:$C,SILOSTMAT!$A:$A,F$1,SILOSTMAT!$B:$B,$A48) -> 455 | G48: =SUMIFS(SILOSTMAT!$C:$C,SILOSTMAT!$A:$A,G$1,SILOSTMAT!$B:$B,$A48) -> 172 | H48: =SUMIFS(SILOSTMAT!$C:$C,SILOSTMAT!$A:$A,H$1,SILOSTMAT!$B:$B,$A48) -> 153 | I48: =SUMIFS(SILOSTMAT!$C:$C,SILOSTMAT!$A:$A,I$1,SILOSTMAT!$B:$B,$A48) -> 144 | J48: =SUMIFS(SILOSTMAT!$C:$C,SILOSTMAT!$A:$A,J$1,SILOSTMAT!$B:$B,$A48) -> 417 | K48: =SUMIFS(SILOSTMAT!$C:$C,SILOSTMAT!$A:$A,K$1,SILOSTMAT!$B:$B,$A48) -> 1759 | L48: =SUMIFS(SILOSTMAT!$C:$C,SILOSTMAT!$A:$A,L$1,SILOSTMAT!$B:$B,$A48) -> 732 | M48: =SUMIFS(SILOSTMAT!$C:$C,SILOSTMAT!$A:$A,M$1,SILOSTMAT!$B:$B,$A48) -> 94 | N48: =SUMIFS(SILOSTMAT!$C:$C,SILOSTMAT!$A:$A,N$1,SILOSTMAT!$B:$B,$A48) -> 628 | O48: =SUMIFS(SILOSTMAT!$C:$C,SILOSTMAT!$A:$A,O$1,SILOSTMAT!$B:$B,$A48) -> 1345 | P48: =SUMIFS(SILOSTMAT!$C:$C,SILOSTMAT!$A:$A,P$1,SILOSTMAT!$B:$B,$A48) -> 527 | Q48: =SUMIFS(SILOSTMAT!$C:$C,SILOSTMAT!$A:$A,Q$1,SILOSTMAT!$B:$B,$A48) -> 981 | R48: =SUMIFS(SILOSTMAT!$C:$C,SILOSTMAT!$A:$A,R$1,SILOSTMAT!$B:$B,$A48) -> 7407
A49: M1607 | B49: Secrétariat | D49: =IF(C49='DONNEES INFOGRAPHIES'!$B$6,1,0) -> 0 | E49: =VLOOKUP(A49,A:R,'DONNEES INFOGRAPHIES'!$L$9+4,FALSE) -> 7131 | F49: =SUMIFS(SILOSTMAT!$C:$C,SILOSTMAT!$A:$A,F$1,SILOSTMAT!$B:$B,$A49) -> 477 | G49: =SUMIFS(SILOSTMAT!$C:$C,SILOSTMAT!$A:$A,G$1,SILOSTMAT!$B:$B,$A49) -> 146 | H49: =SUMIFS(SILOSTMAT!$C:$C,SILOSTMAT!$A:$A,H$1,SILOSTMAT!$B:$B,$A49) -> 144 | I49: =SUMIFS(SILOSTMAT!$C:$C,SILOSTMAT!$A:$A,I$1,SILOSTMAT!$B:$B,$A49) -> 82 | J49: =SUMIFS(SILOSTMAT!$C:$C,SILOSTMAT!$A:$A,J$1,SILOSTMAT!$B:$B,$A49) -> 434 | K49: =SUMIFS(SILOSTMAT!$C:$C,SILOSTMAT!$A:$A,K$1,SILOSTMAT!$B:$B,$A49) -> 1070 | L49: =SUMIFS(SILOSTMAT!$C:$C,SILOSTMAT!$A:$A,L$1,SILOSTMAT!$B:$B,$A49) -> 513 | M49: =SUMIFS(SILOSTMAT!$C:$C,SILOSTMAT!$A:$A,M$1,SILOSTMAT!$B:$B,$A49) -> 105 | N49: =SUMIFS(SILOSTMAT!$C:$C,SILOSTMAT!$A:$A,N$1,SILOSTMAT!$B:$B,$A49) -> 409 | O49: =SUMIFS(SILOSTMAT!$C:$C,SILOSTMAT!$A:$A,O$1,SILOSTMAT!$B:$B,$A49) -> 2631 | P49: =SUMIFS(SILOSTMAT!$C:$C,SILOSTMAT!$A:$A,P$1,SILOSTMAT!$B:$B,$A49) -> 469 | Q49: =SUMIFS(SILOSTMAT!$C:$C,SILOSTMAT!$A:$A,Q$1,SILOSTMAT!$B:$B,$A49) -> 651 | R49: =SUMIFS(SILOSTMAT!$C:$C,SILOSTMAT!$A:$A,R$1,SILOSTMAT!$B:$B,$A49) -> 7131
A50: K1303 | B50: Assistance auprès d'enfants | C50: Services à la personne | D50: =IF(C50='DONNEES INFOGRAPHIES'!$B$6,1,0) -> 0 | E50: =VLOOKUP(A50,A:R,'DONNEES INFOGRAPHIES'!$L$9+4,FALSE) -> 6993 | F50: =SUMIFS(SILOSTMAT!$C:$C,SILOSTMAT!$A:$A,F$1,SILOSTMAT!$B:$B,$A50) -> 286 | G50: =SUMIFS(SILOSTMAT!$C:$C,SILOSTMAT!$A:$A,G$1,SILOSTMAT!$B:$B,$A50) -> 64 | H50: =SUMIFS(SILOSTMAT!$C:$C,SILOSTMAT!$A:$A,H$1,SILOSTMAT!$B:$B,$A50) -> 126 | I50: =SUMIFS(SILOSTMAT!$C:$C,SILOSTMAT!$A:$A,I$1,SILOSTMAT!$B:$B,$A50) -> 43 | J50: =SUMIFS(SILOSTMAT!$C:$C,SILOSTMAT!$A:$A,J$1,SILOSTMAT!$B:$B,$A50) -> 276 | K50: =SUMIFS(SILOSTMAT!$C:$C,SILOSTMAT!$A:$A,K$1,SILOSTMAT!$B:$B,$A50) -> 915 | L50: =SUMIFS(SILOSTMAT!$C:$C,SILOSTMAT!$A:$A,L$1,SILOSTMAT!$B:$B,$A50) -> 338 | M50: =SUMIFS(SILOSTMAT!$C:$C,SILOSTMAT!$A:$A,M$1,SILOSTMAT!$B:$B,$A50) -> 84 | N50: =SUMIFS(SILOSTMAT!$C:$C,SILOSTMAT!$A:$A,N$1,SILOSTMAT!$B:$B,$A50) -> 399 | O50: =SUMIFS(SILOSTMAT!$C:$C,SILOSTMAT!$A:$A,O$1,SILOSTMAT!$B:$B,$A50) -> 2978 | P50: =SUMIFS(SILOSTMAT!$C:$C,SILOSTMAT!$A:$A,P$1,SILOSTMAT!$B:$B,$A50) -> 630 | Q50: =SUMIFS(SILOSTMAT!$C:$C,SILOSTMAT!$A:$A,Q$1,SILOSTMAT!$B:$B,$A50) -> 854 | R50: =SUMIFS(SILOSTMAT!$C:$C,SILOSTMAT!$A:$A,R$1,SILOSTMAT!$B:$B,$A50) -> 6993
A51: J1501 | B51: Aide-soignant / aide-soignante | C51: Santé | D51: =IF(C51='DONNEES INFOGRAPHIES'!$B$6,1,0) -> 0 | E51: =VLOOKUP(A51,A:R,'DONNEES INFOGRAPHIES'!$L$9+4,FALSE) -> 6912 | F51: =SUMIFS(SILOSTMAT!$C:$C,SILOSTMAT!$A:$A,F$1,SILOSTMAT!$B:$B,$A51) -> 619 | G51: =SUMIFS(SILOSTMAT!$C:$C,SILOSTMAT!$A:$A,G$1,SILOSTMAT!$B:$B,$A51) -> 273 | H51: =SUMIFS(SILOSTMAT!$C:$C,SILOSTMAT!$A:$A,H$1,SILOSTMAT!$B:$B,$A51) -> 493 | I51: =SUMIFS(SILOSTMAT!$C:$C,SILOSTMAT!$A:$A,I$1,SILOSTMAT!$B:$B,$A51) -> 310 | J51: =SUMIFS(SILOSTMAT!$C:$C,SILOSTMAT!$A:$A,J$1,SILOSTMAT!$B:$B,$A51) -> 420 | K51: =SUMIFS(SILOSTMAT!$C:$C,SILOSTMAT!$A:$A,K$1,SILOSTMAT!$B:$B,$A51) -> 893 | L51: =SUMIFS(SILOSTMAT!$C:$C,SILOSTMAT!$A:$A,L$1,SILOSTMAT!$B:$B,$A51) -> 540 | M51: =SUMIFS(SILOSTMAT!$C:$C,SILOSTMAT!$A:$A,M$1,SILOSTMAT!$B:$B,$A51) -> 234 | N51: =SUMIFS(SILOSTMAT!$C:$C,SILOSTMAT!$A:$A,N$1,SILOSTMAT!$B:$B,$A51) -> 578 | O51: =SUMIFS(SILOSTMAT!$C:$C,SILOSTMAT!$A:$A,O$1,SILOSTMAT!$B:$B,$A51) -> 1448 | P51: =SUMIFS(SILOSTMAT!$C:$C,SILOSTMAT!$A:$A,P$1,SILOSTMAT!$B:$B,$A51) -> 549 | Q51: =SUMIFS(SILOSTMAT!$C:$C,SILOSTMAT!$A:$A,Q$1,SILOSTMAT!$B:$B,$A51) -> 555 | R51: =SUMIFS(SILOSTMAT!$C:$C,SILOSTMAT!$A:$A,R$1,SILOSTMAT!$B:$B,$A51) -> 6912
A52: H3302 | B52: Opérations manuelles d'assemblage, tri ou emballage | C52: Industrie du futur, production industrielle | D52: =IF(C52='DONNEES INFOGRAPHIES'!$B$6,1,0) -> 0 | E52: =VLOOKUP(A52,A:R,'DONNEES INFOGRAPHIES'!$L$9+4,FALSE) -> 6541 | F52: =SUMIFS(SILOSTMAT!$C:$C,SILOSTMAT!$A:$A,F$1,SILOSTMAT!$B:$B,$A52) -> 717 | G52: =SUMIFS(SILOSTMAT!$C:$C,SILOSTMAT!$A:$A,G$1,SILOSTMAT!$B:$B,$A52) -> 194 | H52: =SUMIFS(SILOSTMAT!$C:$C,SILOSTMAT!$A:$A,H$1,SILOSTMAT!$B:$B,$A52) -> 266 | I52: =SUMIFS(SILOSTMAT!$C:$C,SILOSTMAT!$A:$A,I$1,SILOSTMAT!$B:$B,$A52) -> 91 | J52: =SUMIFS(SILOSTMAT!$C:$C,SILOSTMAT!$A:$A,J$1,SILOSTMAT!$B:$B,$A52) -> 585 | K52: =SUMIFS(SILOSTMAT!$C:$C,SILOSTMAT!$A:$A,K$1,SILOSTMAT!$B:$B,$A52) -> 1222 | L52: =SUMIFS(SILOSTMAT!$C:$C,SILOSTMAT!$A:$A,L$1,SILOSTMAT!$B:$B,$A52) -> 647 | M52: =SUMIFS(SILOSTMAT!$C:$C,SILOSTMAT!$A:$A,M$1,SILOSTMAT!$B:$B,$A52) -> 169 | N52: =SUMIFS(SILOSTMAT!$C:$C,SILOSTMAT!$A:$A,N$1,SILOSTMAT!$B:$B,$A52) -> 534 | O52: =SUMIFS(SILOSTMAT!$C:$C,SILOSTMAT!$A:$A,O$1,SILOSTMAT!$B:$B,$A52) -> 1263 | P52: =SUMIFS(SILOSTMAT!$C:$C,SILOSTMAT!$A:$A,P$1,SILOSTMAT!$B:$B,$A52) -> 268 | Q52: =SUMIFS(SILOSTMAT!$C:$C,SILOSTMAT!$A:$A,Q$1,SILOSTMAT!$B:$B,$A52) -> 585 | R52: =SUMIFS(SILOSTMAT!$C:$C,SILOSTMAT!$A:$A,R$1,SILOSTMAT!$B:$B,$A52) -> 6541
A53: H2903 | B53: Conduite d'équipement d'usinage | C53: Aéronautique | D53: =IF(C53='DONNEES INFOGRAPHIES'!$B$6,1,0) -> 0 | E53: =VLOOKUP(A53,A:R,'DONNEES INFOGRAPHIES'!$L$9+4,FALSE) -> 6441 | F53: =SUMIFS(SILOSTMAT!$C:$C,SILOSTMAT!$A:$A,F$1,SILOSTMAT!$B:$B,$A53) -> 430 | G53: =SUMIFS(SILOSTMAT!$C:$C,SILOSTMAT!$A:$A,G$1,SILOSTMAT!$B:$B,$A53) -> 197 | H53: =SUMIFS(SILOSTMAT!$C:$C,SILOSTMAT!$A:$A,H$1,SILOSTMAT!$B:$B,$A53) -> 107 | I53: =SUMIFS(SILOSTMAT!$C:$C,SILOSTMAT!$A:$A,I$1,SILOSTMAT!$B:$B,$A53) -> 18 | J53: =SUMIFS(SILOSTMAT!$C:$C,SILOSTMAT!$A:$A,J$1,SILOSTMAT!$B:$B,$A53) -> 257 | K53: =SUMIFS(SILOSTMAT!$C:$C,SILOSTMAT!$A:$A,K$1,SILOSTMAT!$B:$B,$A53) -> 951 | L53: =SUMIFS(SILOSTMAT!$C:$C,SILOSTMAT!$A:$A,L$1,SILOSTMAT!$B:$B,$A53) -> 991 | M53: =SUMIFS(SILOSTMAT!$C:$C,SILOSTMAT!$A:$A,M$1,SILOSTMAT!$B:$B,$A53) -> 157 | N53: =SUMIFS(SILOSTMAT!$C:$C,SILOSTMAT!$A:$A,N$1,SILOSTMAT!$B:$B,$A53) -> 521 | O53: =SUMIFS(SILOSTMAT!$C:$C,SILOSTMAT!$A:$A,O$1,SILOSTMAT!$B:$B,$A53) -> 1358 | P53: =SUMIFS(SILOSTMAT!$C:$C,SILOSTMAT!$A:$A,P$1,SILOSTMAT!$B:$B,$A53) -> 350 | Q53: =SUMIFS(SILOSTMAT!$C:$C,SILOSTMAT!$A:$A,Q$1,SILOSTMAT!$B:$B,$A53) -> 1104 | R53: =SUMIFS(SILOSTMAT!$C:$C,SILOSTMAT!$A:$A,R$1,SILOSTMAT!$B:$B,$A53) -> 6441
A54: K2503 | B54: Sécurité et surveillance privées | D54: =IF(C54='DONNEES INFOGRAPHIES'!$B$6,1,0) -> 0 | E54: =VLOOKUP(A54,A:R,'DONNEES INFOGRAPHIES'!$L$9+4,FALSE) -> 6132 | F54: =SUMIFS(SILOSTMAT!$C:$C,SILOSTMAT!$A:$A,F$1,SILOSTMAT!$B:$B,$A54) -> 200 | G54: =SUMIFS(SILOSTMAT!$C:$C,SILOSTMAT!$A:$A,G$1,SILOSTMAT!$B:$B,$A54) -> 40 | H54: =SUMIFS(SILOSTMAT!$C:$C,SILOSTMAT!$A:$A,H$1,SILOSTMAT!$B:$B,$A54) -> 37 | I54: =SUMIFS(SILOSTMAT!$C:$C,SILOSTMAT!$A:$A,I$1,SILOSTMAT!$B:$B,$A54) -> 15 | J54: =SUMIFS(SILOSTMAT!$C:$C,SILOSTMAT!$A:$A,J$1,SILOSTMAT!$B:$B,$A54) -> 95 | K54: =SUMIFS(SILOSTMAT!$C:$C,SILOSTMAT!$A:$A,K$1,SILOSTMAT!$B:$B,$A54) -> 442 | L54: =SUMIFS(SILOSTMAT!$C:$C,SILOSTMAT!$A:$A,L$1,SILOSTMAT!$B:$B,$A54) -> 398 | M54: =SUMIFS(SILOSTMAT!$C:$C,SILOSTMAT!$A:$A,M$1,SILOSTMAT!$B:$B,$A54) -> 21 | N54: =SUMIFS(SILOSTMAT!$C:$C,SILOSTMAT!$A:$A,N$1,SILOSTMAT!$B:$B,$A54) -> 586 | O54: =SUMIFS(SILOSTMAT!$C:$C,SILOSTMAT!$A:$A,O$1,SILOSTMAT!$B:$B,$A54) -> 3626 | P54: =SUMIFS(SILOSTMAT!$C:$C,SILOSTMAT!$A:$A,P$1,SILOSTMAT!$B:$B,$A54) -> 391 | Q54: =SUMIFS(SILOSTMAT!$C:$C,SILOSTMAT!$A:$A,Q$1,SILOSTMAT!$B:$B,$A54) -> 281 | R54: =SUMIFS(SILOSTMAT!$C:$C,SILOSTMAT!$A:$A,R$1,SILOSTMAT!$B:$B,$A54) -> 6132
A55: K1207 | B55: Intervention socioéducative | D55: =IF(C55='DONNEES INFOGRAPHIES'!$B$6,1,0) -> 0 | E55: =VLOOKUP(A55,A:R,'DONNEES INFOGRAPHIES'!$L$9+4,FALSE) -> 5863 | F55: =SUMIFS(SILOSTMAT!$C:$C,SILOSTMAT!$A:$A,F$1,SILOSTMAT!$B:$B,$A55) -> 561 | G55: =SUMIFS(SILOSTMAT!$C:$C,SILOSTMAT!$A:$A,G$1,SILOSTMAT!$B:$B,$A55) -> 120 | H55: =SUMIFS(SILOSTMAT!$C:$C,SILOSTMAT!$A:$A,H$1,SILOSTMAT!$B:$B,$A55) -> 209 | I55: =SUMIFS(SILOSTMAT!$C:$C,SILOSTMAT!$A:$A,I$1,SILOSTMAT!$B:$B,$A55) -> 96 | J55: =SUMIFS(SILOSTMAT!$C:$C,SILOSTMAT!$A:$A,J$1,SILOSTMAT!$B:$B,$A55) -> 400 | K55: =SUMIFS(SILOSTMAT!$C:$C,SILOSTMAT!$A:$A,K$1,SILOSTMAT!$B:$B,$A55) -> 905 | L55: =SUMIFS(SILOSTMAT!$C:$C,SILOSTMAT!$A:$A,L$1,SILOSTMAT!$B:$B,$A55) -> 250 | M55: =SUMIFS(SILOSTMAT!$C:$C,SILOSTMAT!$A:$A,M$1,SILOSTMAT!$B:$B,$A55) -> 114 | N55: =SUMIFS(SILOSTMAT!$C:$C,SILOSTMAT!$A:$A,N$1,SILOSTMAT!$B:$B,$A55) -> 344 | O55: =SUMIFS(SILOSTMAT!$C:$C,SILOSTMAT!$A:$A,O$1,SILOSTMAT!$B:$B,$A55) -> 1262 | P55: =SUMIFS(SILOSTMAT!$C:$C,SILOSTMAT!$A:$A,P$1,SILOSTMAT!$B:$B,$A55) -> 509 | Q55: =SUMIFS(SILOSTMAT!$C:$C,SILOSTMAT!$A:$A,Q$1,SILOSTMAT!$B:$B,$A55) -> 1093 | R55: =SUMIFS(SILOSTMAT!$C:$C,SILOSTMAT!$A:$A,R$1,SILOSTMAT!$B:$B,$A55) -> 5863
A56: D1106 | B56: Vente en alimentation | D56: =IF(C56='DONNEES INFOGRAPHIES'!$B$6,1,0) -> 0 | E56: =VLOOKUP(A56,A:R,'DONNEES INFOGRAPHIES'!$L$9+4,FALSE) -> 5846 | F56: =SUMIFS(SILOSTMAT!$C:$C,SILOSTMAT!$A:$A,F$1,SILOSTMAT!$B:$B,$A56) -> 364 | G56: =SUMIFS(SILOSTMAT!$C:$C,SILOSTMAT!$A:$A,G$1,SILOSTMAT!$B:$B,$A56) -> 152 | H56: =SUMIFS(SILOSTMAT!$C:$C,SILOSTMAT!$A:$A,H$1,SILOSTMAT!$B:$B,$A56) -> 153 | I56: =SUMIFS(SILOSTMAT!$C:$C,SILOSTMAT!$A:$A,I$1,SILOSTMAT!$B:$B,$A56) -> 84 | J56: =SUMIFS(SILOSTMAT!$C:$C,SILOSTMAT!$A:$A,J$1,SILOSTMAT!$B:$B,$A56) -> 394 | K56: =SUMIFS(SILOSTMAT!$C:$C,SILOSTMAT!$A:$A,K$1,SILOSTMAT!$B:$B,$A56) -> 730 | L56: =SUMIFS(SILOSTMAT!$C:$C,SILOSTMAT!$A:$A,L$1,SILOSTMAT!$B:$B,$A56) -> 386 | M56: =SUMIFS(SILOSTMAT!$C:$C,SILOSTMAT!$A:$A,M$1,SILOSTMAT!$B:$B,$A56) -> 151 | N56: =SUMIFS(SILOSTMAT!$C:$C,SILOSTMAT!$A:$A,N$1,SILOSTMAT!$B:$B,$A56) -> 612 | O56: =SUMIFS(SILOSTMAT!$C:$C,SILOSTMAT!$A:$A,O$1,SILOSTMAT!$B:$B,$A56) -> 1259 | P56: =SUMIFS(SILOSTMAT!$C:$C,SILOSTMAT!$A:$A,P$1,SILOSTMAT!$B:$B,$A56) -> 703 | Q56: =SUMIFS(SILOSTMAT!$C:$C,SILOSTMAT!$A:$A,Q$1,SILOSTMAT!$B:$B,$A56) -> 858 | R56: =SUMIFS(SILOSTMAT!$C:$C,SILOSTMAT!$A:$A,R$1,SILOSTMAT!$B:$B,$A56) -> 5846
A57: J1506 | B57: Infirmier / infirmière en soins généraux (ide) | C57: Santé | D57: =IF(C57='DONNEES INFOGRAPHIES'!$B$6,1,0) -> 0 | E57: =VLOOKUP(A57,A:R,'DONNEES INFOGRAPHIES'!$L$9+4,FALSE) -> 5468 | F57: =SUMIFS(SILOSTMAT!$C:$C,SILOSTMAT!$A:$A,F$1,SILOSTMAT!$B:$B,$A57) -> 346 | G57: =SUMIFS(SILOSTMAT!$C:$C,SILOSTMAT!$A:$A,G$1,SILOSTMAT!$B:$B,$A57) -> 208 | H57: =SUMIFS(SILOSTMAT!$C:$C,SILOSTMAT!$A:$A,H$1,SILOSTMAT!$B:$B,$A57) -> 326 | I57: =SUMIFS(SILOSTMAT!$C:$C,SILOSTMAT!$A:$A,I$1,SILOSTMAT!$B:$B,$A57) -> 193 | J57: =SUMIFS(SILOSTMAT!$C:$C,SILOSTMAT!$A:$A,J$1,SILOSTMAT!$B:$B,$A57) -> 329 | K57: =SUMIFS(SILOSTMAT!$C:$C,SILOSTMAT!$A:$A,K$1,SILOSTMAT!$B:$B,$A57) -> 678 | L57: =SUMIFS(SILOSTMAT!$C:$C,SILOSTMAT!$A:$A,L$1,SILOSTMAT!$B:$B,$A57) -> 348 | M57: =SUMIFS(SILOSTMAT!$C:$C,SILOSTMAT!$A:$A,M$1,SILOSTMAT!$B:$B,$A57) -> 181 | N57: =SUMIFS(SILOSTMAT!$C:$C,SILOSTMAT!$A:$A,N$1,SILOSTMAT!$B:$B,$A57) -> 448 | O57: =SUMIFS(SILOSTMAT!$C:$C,SILOSTMAT!$A:$A,O$1,SILOSTMAT!$B:$B,$A57) -> 1527 | P57: =SUMIFS(SILOSTMAT!$C:$C,SILOSTMAT!$A:$A,P$1,SILOSTMAT!$B:$B,$A57) -> 320 | Q57: =SUMIFS(SILOSTMAT!$C:$C,SILOSTMAT!$A:$A,Q$1,SILOSTMAT!$B:$B,$A57) -> 564 | R57: =SUMIFS(SILOSTMAT!$C:$C,SILOSTMAT!$A:$A,R$1,SILOSTMAT!$B:$B,$A57) -> 5468
A58: I1203 | B58: Maintenance des bâtiments et des locaux | D58: =IF(C58='DONNEES INFOGRAPHIES'!$B$6,1,0) -> 0 | E58: =VLOOKUP(A58,A:R,'DONNEES INFOGRAPHIES'!$L$9+4,FALSE) -> 5450 | F58: =SUMIFS(SILOSTMAT!$C:$C,SILOSTMAT!$A:$A,F$1,SILOSTMAT!$B:$B,$A58) -> 421 | G58: =SUMIFS(SILOSTMAT!$C:$C,SILOSTMAT!$A:$A,G$1,SILOSTMAT!$B:$B,$A58) -> 121 | H58: =SUMIFS(SILOSTMAT!$C:$C,SILOSTMAT!$A:$A,H$1,SILOSTMAT!$B:$B,$A58) -> 176 | I58: =SUMIFS(SILOSTMAT!$C:$C,SILOSTMAT!$A:$A,I$1,SILOSTMAT!$B:$B,$A58) -> 99 | J58: =SUMIFS(SILOSTMAT!$C:$C,SILOSTMAT!$A:$A,J$1,SILOSTMAT!$B:$B,$A58) -> 339 | K58: =SUMIFS(SILOSTMAT!$C:$C,SILOSTMAT!$A:$A,K$1,SILOSTMAT!$B:$B,$A58) -> 720 | L58: =SUMIFS(SILOSTMAT!$C:$C,SILOSTMAT!$A:$A,L$1,SILOSTMAT!$B:$B,$A58) -> 210 | M58: =SUMIFS(SILOSTMAT!$C:$C,SILOSTMAT!$A:$A,M$1,SILOSTMAT!$B:$B,$A58) -> 92 | N58: =SUMIFS(SILOSTMAT!$C:$C,SILOSTMAT!$A:$A,N$1,SILOSTMAT!$B:$B,$A58) -> 492 | O58: =SUMIFS(SILOSTMAT!$C:$C,SILOSTMAT!$A:$A,O$1,SILOSTMAT!$B:$B,$A58) -> 1442 | P58: =SUMIFS(SILOSTMAT!$C:$C,SILOSTMAT!$A:$A,P$1,SILOSTMAT!$B:$B,$A58) -> 750 | Q58: =SUMIFS(SILOSTMAT!$C:$C,SILOSTMAT!$A:$A,Q$1,SILOSTMAT!$B:$B,$A58) -> 588 | R58: =SUMIFS(SILOSTMAT!$C:$C,SILOSTMAT!$A:$A,R$1,SILOSTMAT!$B:$B,$A58) -> 5450
A59: G1203 | B59: Animation de loisirs auprès d'enfants ou d'adolescents | C59: Sport, Montagne, Tourisme | D59: =IF(C59='DONNEES INFOGRAPHIES'!$B$6,1,0) -> 0 | E59: =VLOOKUP(A59,A:R,'DONNEES INFOGRAPHIES'!$L$9+4,FALSE) -> 5427 | F59: =SUMIFS(SILOSTMAT!$C:$C,SILOSTMAT!$A:$A,F$1,SILOSTMAT!$B:$B,$A59) -> 502 | G59: =SUMIFS(SILOSTMAT!$C:$C,SILOSTMAT!$A:$A,G$1,SILOSTMAT!$B:$B,$A59) -> 84 | H59: =SUMIFS(SILOSTMAT!$C:$C,SILOSTMAT!$A:$A,H$1,SILOSTMAT!$B:$B,$A59) -> 209 | I59: =SUMIFS(SILOSTMAT!$C:$C,SILOSTMAT!$A:$A,I$1,SILOSTMAT!$B:$B,$A59) -> 46 | J59: =SUMIFS(SILOSTMAT!$C:$C,SILOSTMAT!$A:$A,J$1,SILOSTMAT!$B:$B,$A59) -> 354 | K59: =SUMIFS(SILOSTMAT!$C:$C,SILOSTMAT!$A:$A,K$1,SILOSTMAT!$B:$B,$A59) -> 770 | L59: =SUMIFS(SILOSTMAT!$C:$C,SILOSTMAT!$A:$A,L$1,SILOSTMAT!$B:$B,$A59) -> 456 | M59: =SUMIFS(SILOSTMAT!$C:$C,SILOSTMAT!$A:$A,M$1,SILOSTMAT!$B:$B,$A59) -> 118 | N59: =SUMIFS(SILOSTMAT!$C:$C,SILOSTMAT!$A:$A,N$1,SILOSTMAT!$B:$B,$A59) -> 376 | O59: =SUMIFS(SILOSTMAT!$C:$C,SILOSTMAT!$A:$A,O$1,SILOSTMAT!$B:$B,$A59) -> 1086 | P59: =SUMIFS(SILOSTMAT!$C:$C,SILOSTMAT!$A:$A,P$1,SILOSTMAT!$B:$B,$A59) -> 558 | Q59: =SUMIFS(SILOSTMAT!$C:$C,SILOSTMAT!$A:$A,Q$1,SILOSTMAT!$B:$B,$A59) -> 868 | R59: =SUMIFS(SILOSTMAT!$C:$C,SILOSTMAT!$A:$A,R$1,SILOSTMAT!$B:$B,$A59) -> 5427
A60: H2102 | B60: Conduite d'équipement de production alimentaire | C60: Agriculture, Agroalimentaire, Forêt | D60: =IF(C60='DONNEES INFOGRAPHIES'!$B$6,1,0) -> 0 | E60: =VLOOKUP(A60,A:R,'DONNEES INFOGRAPHIES'!$L$9+4,FALSE) -> 5270 | F60: =SUMIFS(SILOSTMAT!$C:$C,SILOSTMAT!$A:$A,F$1,SILOSTMAT!$B:$B,$A60) -> 366 | G60: =SUMIFS(SILOSTMAT!$C:$C,SILOSTMAT!$A:$A,G$1,SILOSTMAT!$B:$B,$A60) -> 271 | H60: =SUMIFS(SILOSTMAT!$C:$C,SILOSTMAT!$A:$A,H$1,SILOSTMAT!$B:$B,$A60) -> 207 | I60: =SUMIFS(SILOSTMAT!$C:$C,SILOSTMAT!$A:$A,I$1,SILOSTMAT!$B:$B,$A60) -> 81 | J60: =SUMIFS(SILOSTMAT!$C:$C,SILOSTMAT!$A:$A,J$1,SILOSTMAT!$B:$B,$A60) -> 1016 | K60: =SUMIFS(SILOSTMAT!$C:$C,SILOSTMAT!$A:$A,K$1,SILOSTMAT!$B:$B,$A60) -> 511 | L60: =SUMIFS(SILOSTMAT!$C:$C,SILOSTMAT!$A:$A,L$1,SILOSTMAT!$B:$B,$A60) -> 628 | M60: =SUMIFS(SILOSTMAT!$C:$C,SILOSTMAT!$A:$A,M$1,SILOSTMAT!$B:$B,$A60) -> 196 | N60: =SUMIFS(SILOSTMAT!$C:$C,SILOSTMAT!$A:$A,N$1,SILOSTMAT!$B:$B,$A60) -> 456 | O60: =SUMIFS(SILOSTMAT!$C:$C,SILOSTMAT!$A:$A,O$1,SILOSTMAT!$B:$B,$A60) -> 891 | P60: =SUMIFS(SILOSTMAT!$C:$C,SILOSTMAT!$A:$A,P$1,SILOSTMAT!$B:$B,$A60) -> 319 | Q60: =SUMIFS(SILOSTMAT!$C:$C,SILOSTMAT!$A:$A,Q$1,SILOSTMAT!$B:$B,$A60) -> 328 | R60: =SUMIFS(SILOSTMAT!$C:$C,SILOSTMAT!$A:$A,R$1,SILOSTMAT!$B:$B,$A60) -> 5270
A61: H2909 | B61: Montage-assemblage mécanique | C61: Aéronautique | D61: =IF(C61='DONNEES INFOGRAPHIES'!$B$6,1,0) -> 0 | E61: =VLOOKUP(A61,A:R,'DONNEES INFOGRAPHIES'!$L$9+4,FALSE) -> 5145 | F61: =SUMIFS(SILOSTMAT!$C:$C,SILOSTMAT!$A:$A,F$1,SILOSTMAT!$B:$B,$A61) -> 538 | G61: =SUMIFS(SILOSTMAT!$C:$C,SILOSTMAT!$A:$A,G$1,SILOSTMAT!$B:$B,$A61) -> 156 | H61: =SUMIFS(SILOSTMAT!$C:$C,SILOSTMAT!$A:$A,H$1,SILOSTMAT!$B:$B,$A61) -> 220 | I61: =SUMIFS(SILOSTMAT!$C:$C,SILOSTMAT!$A:$A,I$1,SILOSTMAT!$B:$B,$A61) -> 29 | J61: =SUMIFS(SILOSTMAT!$C:$C,SILOSTMAT!$A:$A,J$1,SILOSTMAT!$B:$B,$A61) -> 315 | K61: =SUMIFS(SILOSTMAT!$C:$C,SILOSTMAT!$A:$A,K$1,SILOSTMAT!$B:$B,$A61) -> 902 | L61: =SUMIFS(SILOSTMAT!$C:$C,SILOSTMAT!$A:$A,L$1,SILOSTMAT!$B:$B,$A61) -> 439 | M61: =SUMIFS(SILOSTMAT!$C:$C,SILOSTMAT!$A:$A,M$1,SILOSTMAT!$B:$B,$A61) -> 93 | N61: =SUMIFS(SILOSTMAT!$C:$C,SILOSTMAT!$A:$A,N$1,SILOSTMAT!$B:$B,$A61) -> 236 | O61: =SUMIFS(SILOSTMAT!$C:$C,SILOSTMAT!$A:$A,O$1,SILOSTMAT!$B:$B,$A61) -> 1402 | P61: =SUMIFS(SILOSTMAT!$C:$C,SILOSTMAT!$A:$A,P$1,SILOSTMAT!$B:$B,$A61) -> 294 | Q61: =SUMIFS(SILOSTMAT!$C:$C,SILOSTMAT!$A:$A,Q$1,SILOSTMAT!$B:$B,$A61) -> 521 | R61: =SUMIFS(SILOSTMAT!$C:$C,SILOSTMAT!$A:$A,R$1,SILOSTMAT!$B:$B,$A61) -> 5145
A62: F1602 | B62: Électricité bâtiment | C62: BTP | D62: =IF(C62='DONNEES INFOGRAPHIES'!$B$6,1,0) -> 0 | E62: =VLOOKUP(A62,A:R,'DONNEES INFOGRAPHIES'!$L$9+4,FALSE) -> 4966 | F62: =SUMIFS(SILOSTMAT!$C:$C,SILOSTMAT!$A:$A,F$1,SILOSTMAT!$B:$B,$A62) -> 388 | G62: =SUMIFS(SILOSTMAT!$C:$C,SILOSTMAT!$A:$A,G$1,SILOSTMAT!$B:$B,$A62) -> 202 | H62: =SUMIFS(SILOSTMAT!$C:$C,SILOSTMAT!$A:$A,H$1,SILOSTMAT!$B:$B,$A62) -> 105 | I62: =SUMIFS(SILOSTMAT!$C:$C,SILOSTMAT!$A:$A,I$1,SILOSTMAT!$B:$B,$A62) -> 44 | J62: =SUMIFS(SILOSTMAT!$C:$C,SILOSTMAT!$A:$A,J$1,SILOSTMAT!$B:$B,$A62) -> 306 | K62: =SUMIFS(SILOSTMAT!$C:$C,SILOSTMAT!$A:$A,K$1,SILOSTMAT!$B:$B,$A62) -> 797 | L62: =SUMIFS(SILOSTMAT!$C:$C,SILOSTMAT!$A:$A,L$1,SILOSTMAT!$B:$B,$A62) -> 280 | M62: =SUMIFS(SILOSTMAT!$C:$C,SILOSTMAT!$A:$A,M$1,SILOSTMAT!$B:$B,$A62) -> 98 | N62: =SUMIFS(SILOSTMAT!$C:$C,SILOSTMAT!$A:$A,N$1,SILOSTMAT!$B:$B,$A62) -> 431 | O62: =SUMIFS(SILOSTMAT!$C:$C,SILOSTMAT!$A:$A,O$1,SILOSTMAT!$B:$B,$A62) -> 1393 | P62: =SUMIFS(SILOSTMAT!$C:$C,SILOSTMAT!$A:$A,P$1,SILOSTMAT!$B:$B,$A62) -> 354 | Q62: =SUMIFS(SILOSTMAT!$C:$C,SILOSTMAT!$A:$A,Q$1,SILOSTMAT!$B:$B,$A62) -> 568 | R62: =SUMIFS(SILOSTMAT!$C:$C,SILOSTMAT!$A:$A,R$1,SILOSTMAT!$B:$B,$A62) -> 4966
A63: F1703 | B63: Maçonnerie | C63: BTP | D63: =IF(C63='DONNEES INFOGRAPHIES'!$B$6,1,0) -> 0 | E63: =VLOOKUP(A63,A:R,'DONNEES INFOGRAPHIES'!$L$9+4,FALSE) -> 4870 | F63: =SUMIFS(SILOSTMAT!$C:$C,SILOSTMAT!$A:$A,F$1,SILOSTMAT!$B:$B,$A63) -> 476 | G63: =SUMIFS(SILOSTMAT!$C:$C,SILOSTMAT!$A:$A,G$1,SILOSTMAT!$B:$B,$A63) -> 114 | H63: =SUMIFS(SILOSTMAT!$C:$C,SILOSTMAT!$A:$A,H$1,SILOSTMAT!$B:$B,$A63) -> 146 | I63: =SUMIFS(SILOSTMAT!$C:$C,SILOSTMAT!$A:$A,I$1,SILOSTMAT!$B:$B,$A63) -> 50 | J63: =SUMIFS(SILOSTMAT!$C:$C,SILOSTMAT!$A:$A,J$1,SILOSTMAT!$B:$B,$A63) -> 497 | K63: =SUMIFS(SILOSTMAT!$C:$C,SILOSTMAT!$A:$A,K$1,SILOSTMAT!$B:$B,$A63) -> 510 | L63: =SUMIFS(SILOSTMAT!$C:$C,SILOSTMAT!$A:$A,L$1,SILOSTMAT!$B:$B,$A63) -> 348 | M63: =SUMIFS(SILOSTMAT!$C:$C,SILOSTMAT!$A:$A,M$1,SILOSTMAT!$B:$B,$A63) -> 146 | N63: =SUMIFS(SILOSTMAT!$C:$C,SILOSTMAT!$A:$A,N$1,SILOSTMAT!$B:$B,$A63) -> 469 | O63: =SUMIFS(SILOSTMAT!$C:$C,SILOSTMAT!$A:$A,O$1,SILOSTMAT!$B:$B,$A63) -> 1046 | P63: =SUMIFS(SILOSTMAT!$C:$C,SILOSTMAT!$A:$A,P$1,SILOSTMAT!$B:$B,$A63) -> 330 | Q63: =SUMIFS(SILOSTMAT!$C:$C,SILOSTMAT!$A:$A,Q$1,SILOSTMAT!$B:$B,$A63) -> 738 | R63: =SUMIFS(SILOSTMAT!$C:$C,SILOSTMAT!$A:$A,R$1,SILOSTMAT!$B:$B,$A63) -> 4870
A64: K2107 | B64: Enseignement général du second degré | D64: =IF(C64='DONNEES INFOGRAPHIES'!$B$6,1,0) -> 0 | E64: =VLOOKUP(A64,A:R,'DONNEES INFOGRAPHIES'!$L$9+4,FALSE) -> 4403 | F64: =SUMIFS(SILOSTMAT!$C:$C,SILOSTMAT!$A:$A,F$1,SILOSTMAT!$B:$B,$A64) -> 96 | G64: =SUMIFS(SILOSTMAT!$C:$C,SILOSTMAT!$A:$A,G$1,SILOSTMAT!$B:$B,$A64) -> 36 | H64: =SUMIFS(SILOSTMAT!$C:$C,SILOSTMAT!$A:$A,H$1,SILOSTMAT!$B:$B,$A64) -> 99 | I64: =SUMIFS(SILOSTMAT!$C:$C,SILOSTMAT!$A:$A,I$1,SILOSTMAT!$B:$B,$A64) -> 18 | J64: =SUMIFS(SILOSTMAT!$C:$C,SILOSTMAT!$A:$A,J$1,SILOSTMAT!$B:$B,$A64) -> 152 | K64: =SUMIFS(SILOSTMAT!$C:$C,SILOSTMAT!$A:$A,K$1,SILOSTMAT!$B:$B,$A64) -> 864 | L64: =SUMIFS(SILOSTMAT!$C:$C,SILOSTMAT!$A:$A,L$1,SILOSTMAT!$B:$B,$A64) -> 258 | M64: =SUMIFS(SILOSTMAT!$C:$C,SILOSTMAT!$A:$A,M$1,SILOSTMAT!$B:$B,$A64) -> 52 | N64: =SUMIFS(SILOSTMAT!$C:$C,SILOSTMAT!$A:$A,N$1,SILOSTMAT!$B:$B,$A64) -> 317 | O64: =SUMIFS(SILOSTMAT!$C:$C,SILOSTMAT!$A:$A,O$1,SILOSTMAT!$B:$B,$A64) -> 2131 | P64: =SUMIFS(SILOSTMAT!$C:$C,SILOSTMAT!$A:$A,P$1,SILOSTMAT!$B:$B,$A64) -> 139 | Q64: =SUMIFS(SILOSTMAT!$C:$C,SILOSTMAT!$A:$A,Q$1,SILOSTMAT!$B:$B,$A64) -> 241 | R64: =SUMIFS(SILOSTMAT!$C:$C,SILOSTMAT!$A:$A,R$1,SILOSTMAT!$B:$B,$A64) -> 4403
A65: F1603 | B65: Installation d'équipements sanitaires et thermiques | C65: BTP | D65: =IF(C65='DONNEES INFOGRAPHIES'!$B$6,1,0) -> 0 | E65: =VLOOKUP(A65,A:R,'DONNEES INFOGRAPHIES'!$L$9+4,FALSE) -> 4391 | F65: =SUMIFS(SILOSTMAT!$C:$C,SILOSTMAT!$A:$A,F$1,SILOSTMAT!$B:$B,$A65) -> 228 | G65: =SUMIFS(SILOSTMAT!$C:$C,SILOSTMAT!$A:$A,G$1,SILOSTMAT!$B:$B,$A65) -> 102 | H65: =SUMIFS(SILOSTMAT!$C:$C,SILOSTMAT!$A:$A,H$1,SILOSTMAT!$B:$B,$A65) -> 109 | I65: =SUMIFS(SILOSTMAT!$C:$C,SILOSTMAT!$A:$A,I$1,SILOSTMAT!$B:$B,$A65) -> 33 | J65: =SUMIFS(SILOSTMAT!$C:$C,SILOSTMAT!$A:$A,J$1,SILOSTMAT!$B:$B,$A65) -> 274 | K65: =SUMIFS(SILOSTMAT!$C:$C,SILOSTMAT!$A:$A,K$1,SILOSTMAT!$B:$B,$A65) -> 610 | L65: =SUMIFS(SILOSTMAT!$C:$C,SILOSTMAT!$A:$A,L$1,SILOSTMAT!$B:$B,$A65) -> 310 | M65: =SUMIFS(SILOSTMAT!$C:$C,SILOSTMAT!$A:$A,M$1,SILOSTMAT!$B:$B,$A65) -> 93 | N65: =SUMIFS(SILOSTMAT!$C:$C,SILOSTMAT!$A:$A,N$1,SILOSTMAT!$B:$B,$A65) -> 315 | O65: =SUMIFS(SILOSTMAT!$C:$C,SILOSTMAT!$A:$A,O$1,SILOSTMAT!$B:$B,$A65) -> 1339 | P65: =SUMIFS(SILOSTMAT!$C:$C,SILOSTMAT!$A:$A,P$1,SILOSTMAT!$B:$B,$A65) -> 374 | Q65: =SUMIFS(SILOSTMAT!$C:$C,SILOSTMAT!$A:$A,Q$1,SILOSTMAT!$B:$B,$A65) -> 604 | R65: =SUMIFS(SILOSTMAT!$C:$C,SILOSTMAT!$A:$A,R$1,SILOSTMAT!$B:$B,$A65) -> 4391
A66: D1505 | B66: Personnel de caisse | D66: =IF(C66='DONNEES INFOGRAPHIES'!$B$6,1,0) -> 0 | E66: =VLOOKUP(A66,A:R,'DONNEES INFOGRAPHIES'!$L$9+4,FALSE) -> 4389 | F66: =SUMIFS(SILOSTMAT!$C:$C,SILOSTMAT!$A:$A,F$1,SILOSTMAT!$B:$B,$A66) -> 270 | G66: =SUMIFS(SILOSTMAT!$C:$C,SILOSTMAT!$A:$A,G$1,SILOSTMAT!$B:$B,$A66) -> 51 | H66: =SUMIFS(SILOSTMAT!$C:$C,SILOSTMAT!$A:$A,H$1,SILOSTMAT!$B:$B,$A66) -> 74 | I66: =SUMIFS(SILOSTMAT!$C:$C,SILOSTMAT!$A:$A,I$1,SILOSTMAT!$B:$B,$A66) -> 68 | J66: =SUMIFS(SILOSTMAT!$C:$C,SILOSTMAT!$A:$A,J$1,SILOSTMAT!$B:$B,$A66) -> 133 | K66: =SUMIFS(SILOSTMAT!$C:$C,SILOSTMAT!$A:$A,K$1,SILOSTMAT!$B:$B,$A66) -> 738 | L66: =SUMIFS(SILOSTMAT!$C:$C,SILOSTMAT!$A:$A,L$1,SILOSTMAT!$B:$B,$A66) -> 161 | M66: =SUMIFS(SILOSTMAT!$C:$C,SILOSTMAT!$A:$A,M$1,SILOSTMAT!$B:$B,$A66) -> 45 | N66: =SUMIFS(SILOSTMAT!$C:$C,SILOSTMAT!$A:$A,N$1,SILOSTMAT!$B:$B,$A66) -> 212 | O66: =SUMIFS(SILOSTMAT!$C:$C,SILOSTMAT!$A:$A,O$1,SILOSTMAT!$B:$B,$A66) -> 1775 | P66: =SUMIFS(SILOSTMAT!$C:$C,SILOSTMAT!$A:$A,P$1,SILOSTMAT!$B:$B,$A66) -> 323 | Q66: =SUMIFS(SILOSTMAT!$C:$C,SILOSTMAT!$A:$A,Q$1,SILOSTMAT!$B:$B,$A66) -> 539 | R66: =SUMIFS(SILOSTMAT!$C:$C,SILOSTMAT!$A:$A,R$1,SILOSTMAT!$B:$B,$A66) -> 4389
A67: F1704 | B67: Préparation du gros oeuvre et des travaux publics | C67: BTP | D67: =IF(C67='DONNEES INFOGRAPHIES'!$B$6,1,0) -> 0 | E67: =VLOOKUP(A67,A:R,'DONNEES INFOGRAPHIES'!$L$9+4,FALSE) -> 4259 | F67: =SUMIFS(SILOSTMAT!$C:$C,SILOSTMAT!$A:$A,F$1,SILOSTMAT!$B:$B,$A67) -> 237 | G67: =SUMIFS(SILOSTMAT!$C:$C,SILOSTMAT!$A:$A,G$1,SILOSTMAT!$B:$B,$A67) -> 139 | H67: =SUMIFS(SILOSTMAT!$C:$C,SILOSTMAT!$A:$A,H$1,SILOSTMAT!$B:$B,$A67) -> 93 | I67: =SUMIFS(SILOSTMAT!$C:$C,SILOSTMAT!$A:$A,I$1,SILOSTMAT!$B:$B,$A67) -> 137 | J67: =SUMIFS(SILOSTMAT!$C:$C,SILOSTMAT!$A:$A,J$1,SILOSTMAT!$B:$B,$A67) -> 478 | K67: =SUMIFS(SILOSTMAT!$C:$C,SILOSTMAT!$A:$A,K$1,SILOSTMAT!$B:$B,$A67) -> 580 | L67: =SUMIFS(SILOSTMAT!$C:$C,SILOSTMAT!$A:$A,L$1,SILOSTMAT!$B:$B,$A67) -> 244 | M67: =SUMIFS(SILOSTMAT!$C:$C,SILOSTMAT!$A:$A,M$1,SILOSTMAT!$B:$B,$A67) -> 86 | N67: =SUMIFS(SILOSTMAT!$C:$C,SILOSTMAT!$A:$A,N$1,SILOSTMAT!$B:$B,$A67) -> 444 | O67: =SUMIFS(SILOSTMAT!$C:$C,SILOSTMAT!$A:$A,O$1,SILOSTMAT!$B:$B,$A67) -> 941 | P67: =SUMIFS(SILOSTMAT!$C:$C,SILOSTMAT!$A:$A,P$1,SILOSTMAT!$B:$B,$A67) -> 369 | Q67: =SUMIFS(SILOSTMAT!$C:$C,SILOSTMAT!$A:$A,Q$1,SILOSTMAT!$B:$B,$A67) -> 511 | R67: =SUMIFS(SILOSTMAT!$C:$C,SILOSTMAT!$A:$A,R$1,SILOSTMAT!$B:$B,$A67) -> 4259
A68: G1601 | B68: Chef / cheffe de cuisine | C68: Sport, Montagne, Tourisme | D68: =IF(C68='DONNEES INFOGRAPHIES'!$B$6,1,0) -> 0 | E68: =VLOOKUP(A68,A:R,'DONNEES INFOGRAPHIES'!$L$9+4,FALSE) -> 4228 | F68: =SUMIFS(SILOSTMAT!$C:$C,SILOSTMAT!$A:$A,F$1,SILOSTMAT!$B:$B,$A68) -> 204 | G68: =SUMIFS(SILOSTMAT!$C:$C,SILOSTMAT!$A:$A,G$1,SILOSTMAT!$B:$B,$A68) -> 99 | H68: =SUMIFS(SILOSTMAT!$C:$C,SILOSTMAT!$A:$A,H$1,SILOSTMAT!$B:$B,$A68) -> 195 | I68: =SUMIFS(SILOSTMAT!$C:$C,SILOSTMAT!$A:$A,I$1,SILOSTMAT!$B:$B,$A68) -> 124 | J68: =SUMIFS(SILOSTMAT!$C:$C,SILOSTMAT!$A:$A,J$1,SILOSTMAT!$B:$B,$A68) -> 341 | K68: =SUMIFS(SILOSTMAT!$C:$C,SILOSTMAT!$A:$A,K$1,SILOSTMAT!$B:$B,$A68) -> 514 | L68: =SUMIFS(SILOSTMAT!$C:$C,SILOSTMAT!$A:$A,L$1,SILOSTMAT!$B:$B,$A68) -> 215 | M68: =SUMIFS(SILOSTMAT!$C:$C,SILOSTMAT!$A:$A,M$1,SILOSTMAT!$B:$B,$A68) -> 88 | N68: =SUMIFS(SILOSTMAT!$C:$C,SILOSTMAT!$A:$A,N$1,SILOSTMAT!$B:$B,$A68) -> 362 | O68: =SUMIFS(SILOSTMAT!$C:$C,SILOSTMAT!$A:$A,O$1,SILOSTMAT!$B:$B,$A68) -> 845 | P68: =SUMIFS(SILOSTMAT!$C:$C,SILOSTMAT!$A:$A,P$1,SILOSTMAT!$B:$B,$A68) -> 568 | Q68: =SUMIFS(SILOSTMAT!$C:$C,SILOSTMAT!$A:$A,Q$1,SILOSTMAT!$B:$B,$A68) -> 673 | R68: =SUMIFS(SILOSTMAT!$C:$C,SILOSTMAT!$A:$A,R$1,SILOSTMAT!$B:$B,$A68) -> 4228
A69: A1203 | B69: Aménagement et entretien des espaces verts | C69: Agriculture, Agroalimentaire, Forêt | D69: =IF(C69='DONNEES INFOGRAPHIES'!$B$6,1,0) -> 0 | E69: =VLOOKUP(A69,A:R,'DONNEES INFOGRAPHIES'!$L$9+4,FALSE) -> 3943 | F69: =SUMIFS(SILOSTMAT!$C:$C,SILOSTMAT!$A:$A,F$1,SILOSTMAT!$B:$B,$A69) -> 262 | G69: =SUMIFS(SILOSTMAT!$C:$C,SILOSTMAT!$A:$A,G$1,SILOSTMAT!$B:$B,$A69) -> 84 | H69: =SUMIFS(SILOSTMAT!$C:$C,SILOSTMAT!$A:$A,H$1,SILOSTMAT!$B:$B,$A69) -> 94 | I69: =SUMIFS(SILOSTMAT!$C:$C,SILOSTMAT!$A:$A,I$1,SILOSTMAT!$B:$B,$A69) -> 28 | J69: =SUMIFS(SILOSTMAT!$C:$C,SILOSTMAT!$A:$A,J$1,SILOSTMAT!$B:$B,$A69) -> 248 | K69: =SUMIFS(SILOSTMAT!$C:$C,SILOSTMAT!$A:$A,K$1,SILOSTMAT!$B:$B,$A69) -> 603 | L69: =SUMIFS(SILOSTMAT!$C:$C,SILOSTMAT!$A:$A,L$1,SILOSTMAT!$B:$B,$A69) -> 233 | M69: =SUMIFS(SILOSTMAT!$C:$C,SILOSTMAT!$A:$A,M$1,SILOSTMAT!$B:$B,$A69) -> 67 | N69: =SUMIFS(SILOSTMAT!$C:$C,SILOSTMAT!$A:$A,N$1,SILOSTMAT!$B:$B,$A69) -> 251 | O69: =SUMIFS(SILOSTMAT!$C:$C,SILOSTMAT!$A:$A,O$1,SILOSTMAT!$B:$B,$A69) -> 1111 | P69: =SUMIFS(SILOSTMAT!$C:$C,SILOSTMAT!$A:$A,P$1,SILOSTMAT!$B:$B,$A69) -> 282 | Q69: =SUMIFS(SILOSTMAT!$C:$C,SILOSTMAT!$A:$A,Q$1,SILOSTMAT!$B:$B,$A69) -> 680 | R69: =SUMIFS(SILOSTMAT!$C:$C,SILOSTMAT!$A:$A,R$1,SILOSTMAT!$B:$B,$A69) -> 3943
A70: D1407 | B70: Technico-commercial / technico-commerciale | C70: Force de vente | D70: =IF(C70='DONNEES INFOGRAPHIES'!$B$6,1,0) -> 0 | E70: =VLOOKUP(A70,A:R,'DONNEES INFOGRAPHIES'!$L$9+4,FALSE) -> 3552 | F70: =SUMIFS(SILOSTMAT!$C:$C,SILOSTMAT!$A:$A,F$1,SILOSTMAT!$B:$B,$A70) -> 192 | G70: =SUMIFS(SILOSTMAT!$C:$C,SILOSTMAT!$A:$A,G$1,SILOSTMAT!$B:$B,$A70) -> 79 | H70: =SUMIFS(SILOSTMAT!$C:$C,SILOSTMAT!$A:$A,H$1,SILOSTMAT!$B:$B,$A70) -> 33 | I70: =SUMIFS(SILOSTMAT!$C:$C,SILOSTMAT!$A:$A,I$1,SILOSTMAT!$B:$B,$A70) -> 16 | J70: =SUMIFS(SILOSTMAT!$C:$C,SILOSTMAT!$A:$A,J$1,SILOSTMAT!$B:$B,$A70) -> 206 | K70: =SUMIFS(SILOSTMAT!$C:$C,SILOSTMAT!$A:$A,K$1,SILOSTMAT!$B:$B,$A70) -> 378 | L70: =SUMIFS(SILOSTMAT!$C:$C,SILOSTMAT!$A:$A,L$1,SILOSTMAT!$B:$B,$A70) -> 276 | M70: =SUMIFS(SILOSTMAT!$C:$C,SILOSTMAT!$A:$A,M$1,SILOSTMAT!$B:$B,$A70) -> 77 | N70: =SUMIFS(SILOSTMAT!$C:$C,SILOSTMAT!$A:$A,N$1,SILOSTMAT!$B:$B,$A70) -> 131 | O70: =SUMIFS(SILOSTMAT!$C:$C,SILOSTMAT!$A:$A,O$1,SILOSTMAT!$B:$B,$A70) -> 1782 | P70: =SUMIFS(SILOSTMAT!$C:$C,SILOSTMAT!$A:$A,P$1,SILOSTMAT!$B:$B,$A70) -> 134 | Q70: =SUMIFS(SILOSTMAT!$C:$C,SILOSTMAT!$A:$A,Q$1,SILOSTMAT!$B:$B,$A70) -> 248 | R70: =SUMIFS(SILOSTMAT!$C:$C,SILOSTMAT!$A:$A,R$1,SILOSTMAT!$B:$B,$A70) -> 3552
A71: D1214 | B71: Vente en habillement et accessoires de la personne | C71: Force de vente | D71: =IF(C71='DONNEES INFOGRAPHIES'!$B$6,1,0) -> 0 | E71: =VLOOKUP(A71,A:R,'DONNEES INFOGRAPHIES'!$L$9+4,FALSE) -> 3487 | F71: =SUMIFS(SILOSTMAT!$C:$C,SILOSTMAT!$A:$A,F$1,SILOSTMAT!$B:$B,$A71) -> 1056 | G71: =SUMIFS(SILOSTMAT!$C:$C,SILOSTMAT!$A:$A,G$1,SILOSTMAT!$B:$B,$A71) -> 74 | H71: =SUMIFS(SILOSTMAT!$C:$C,SILOSTMAT!$A:$A,H$1,SILOSTMAT!$B:$B,$A71) -> 55 | I71: =SUMIFS(SILOSTMAT!$C:$C,SILOSTMAT!$A:$A,I$1,SILOSTMAT!$B:$B,$A71) -> 189 | J71: =SUMIFS(SILOSTMAT!$C:$C,SILOSTMAT!$A:$A,J$1,SILOSTMAT!$B:$B,$A71) -> 95 | K71: =SUMIFS(SILOSTMAT!$C:$C,SILOSTMAT!$A:$A,K$1,SILOSTMAT!$B:$B,$A71) -> 431 | L71: =SUMIFS(SILOSTMAT!$C:$C,SILOSTMAT!$A:$A,L$1,SILOSTMAT!$B:$B,$A71) -> 207 | M71: =SUMIFS(SILOSTMAT!$C:$C,SILOSTMAT!$A:$A,M$1,SILOSTMAT!$B:$B,$A71) -> 22 | N71: =SUMIFS(SILOSTMAT!$C:$C,SILOSTMAT!$A:$A,N$1,SILOSTMAT!$B:$B,$A71) -> 196 | O71: =SUMIFS(SILOSTMAT!$C:$C,SILOSTMAT!$A:$A,O$1,SILOSTMAT!$B:$B,$A71) -> 615 | P71: =SUMIFS(SILOSTMAT!$C:$C,SILOSTMAT!$A:$A,P$1,SILOSTMAT!$B:$B,$A71) -> 145 | Q71: =SUMIFS(SILOSTMAT!$C:$C,SILOSTMAT!$A:$A,Q$1,SILOSTMAT!$B:$B,$A71) -> 402 | R71: =SUMIFS(SILOSTMAT!$C:$C,SILOSTMAT!$A:$A,R$1,SILOSTMAT!$B:$B,$A71) -> 3487
A72: M1805 | B72: Études et développement informatique | C72: Numérique | D72: =IF(C72='DONNEES INFOGRAPHIES'!$B$6,1,0) -> 0 | E72: =VLOOKUP(A72,A:R,'DONNEES INFOGRAPHIES'!$L$9+4,FALSE) -> 3463 | F72: =SUMIFS(SILOSTMAT!$C:$C,SILOSTMAT!$A:$A,F$1,SILOSTMAT!$B:$B,$A72) -> 49 | G72: =SUMIFS(SILOSTMAT!$C:$C,SILOSTMAT!$A:$A,G$1,SILOSTMAT!$B:$B,$A72) -> 24 | H72: =SUMIFS(SILOSTMAT!$C:$C,SILOSTMAT!$A:$A,H$1,SILOSTMAT!$B:$B,$A72) -> 29 | I72: =SUMIFS(SILOSTMAT!$C:$C,SILOSTMAT!$A:$A,I$1,SILOSTMAT!$B:$B,$A72) -> 31 | J72: =SUMIFS(SILOSTMAT!$C:$C,SILOSTMAT!$A:$A,J$1,SILOSTMAT!$B:$B,$A72) -> 169 | K72: =SUMIFS(SILOSTMAT!$C:$C,SILOSTMAT!$A:$A,K$1,SILOSTMAT!$B:$B,$A72) -> 563 | L72: =SUMIFS(SILOSTMAT!$C:$C,SILOSTMAT!$A:$A,L$1,SILOSTMAT!$B:$B,$A72) -> 66 | M72: =SUMIFS(SILOSTMAT!$C:$C,SILOSTMAT!$A:$A,M$1,SILOSTMAT!$B:$B,$A72) -> 9 | N72: =SUMIFS(SILOSTMAT!$C:$C,SILOSTMAT!$A:$A,N$1,SILOSTMAT!$B:$B,$A72) -> 214 | O72: =SUMIFS(SILOSTMAT!$C:$C,SILOSTMAT!$A:$A,O$1,SILOSTMAT!$B:$B,$A72) -> 2137 | P72: =SUMIFS(SILOSTMAT!$C:$C,SILOSTMAT!$A:$A,P$1,SILOSTMAT!$B:$B,$A72) -> 57 | Q72: =SUMIFS(SILOSTMAT!$C:$C,SILOSTMAT!$A:$A,Q$1,SILOSTMAT!$B:$B,$A72) -> 115 | R72: =SUMIFS(SILOSTMAT!$C:$C,SILOSTMAT!$A:$A,R$1,SILOSTMAT!$B:$B,$A72) -> 3463
A73: D1212 | B73: Vente en décoration et équipement du foyer | C73: Force de vente | D73: =IF(C73='DONNEES INFOGRAPHIES'!$B$6,1,0) -> 0 | E73: =VLOOKUP(A73,A:R,'DONNEES INFOGRAPHIES'!$L$9+4,FALSE) -> 3360 | F73: =SUMIFS(SILOSTMAT!$C:$C,SILOSTMAT!$A:$A,F$1,SILOSTMAT!$B:$B,$A73) -> 192 | G73: =SUMIFS(SILOSTMAT!$C:$C,SILOSTMAT!$A:$A,G$1,SILOSTMAT!$B:$B,$A73) -> 85 | H73: =SUMIFS(SILOSTMAT!$C:$C,SILOSTMAT!$A:$A,H$1,SILOSTMAT!$B:$B,$A73) -> 34 | I73: =SUMIFS(SILOSTMAT!$C:$C,SILOSTMAT!$A:$A,I$1,SILOSTMAT!$B:$B,$A73) -> 43 | J73: =SUMIFS(SILOSTMAT!$C:$C,SILOSTMAT!$A:$A,J$1,SILOSTMAT!$B:$B,$A73) -> 192 | K73: =SUMIFS(SILOSTMAT!$C:$C,SILOSTMAT!$A:$A,K$1,SILOSTMAT!$B:$B,$A73) -> 654 | L73: =SUMIFS(SILOSTMAT!$C:$C,SILOSTMAT!$A:$A,L$1,SILOSTMAT!$B:$B,$A73) -> 460 | M73: =SUMIFS(SILOSTMAT!$C:$C,SILOSTMAT!$A:$A,M$1,SILOSTMAT!$B:$B,$A73) -> 51 | N73: =SUMIFS(SILOSTMAT!$C:$C,SILOSTMAT!$A:$A,N$1,SILOSTMAT!$B:$B,$A73) -> 305 | O73: =SUMIFS(SILOSTMAT!$C:$C,SILOSTMAT!$A:$A,O$1,SILOSTMAT!$B:$B,$A73) -> 795 | P73: =SUMIFS(SILOSTMAT!$C:$C,SILOSTMAT!$A:$A,P$1,SILOSTMAT!$B:$B,$A73) -> 203 | Q73: =SUMIFS(SILOSTMAT!$C:$C,SILOSTMAT!$A:$A,Q$1,SILOSTMAT!$B:$B,$A73) -> 346 | R73: =SUMIFS(SILOSTMAT!$C:$C,SILOSTMAT!$A:$A,R$1,SILOSTMAT!$B:$B,$A73) -> 3360
A74: M1601 | B74: Accueil et renseignements | D74: =IF(C74='DONNEES INFOGRAPHIES'!$B$6,1,0) -> 0 | E74: =VLOOKUP(A74,A:R,'DONNEES INFOGRAPHIES'!$L$9+4,FALSE) -> 3281 | F74: =SUMIFS(SILOSTMAT!$C:$C,SILOSTMAT!$A:$A,F$1,SILOSTMAT!$B:$B,$A74) -> 178 | G74: =SUMIFS(SILOSTMAT!$C:$C,SILOSTMAT!$A:$A,G$1,SILOSTMAT!$B:$B,$A74) -> 73 | H74: =SUMIFS(SILOSTMAT!$C:$C,SILOSTMAT!$A:$A,H$1,SILOSTMAT!$B:$B,$A74) -> 70 | I74: =SUMIFS(SILOSTMAT!$C:$C,SILOSTMAT!$A:$A,I$1,SILOSTMAT!$B:$B,$A74) -> 103 | J74: =SUMIFS(SILOSTMAT!$C:$C,SILOSTMAT!$A:$A,J$1,SILOSTMAT!$B:$B,$A74) -> 164 | K74: =SUMIFS(SILOSTMAT!$C:$C,SILOSTMAT!$A:$A,K$1,SILOSTMAT!$B:$B,$A74) -> 430 | L74: =SUMIFS(SILOSTMAT!$C:$C,SILOSTMAT!$A:$A,L$1,SILOSTMAT!$B:$B,$A74) -> 96 | M74: =SUMIFS(SILOSTMAT!$C:$C,SILOSTMAT!$A:$A,M$1,SILOSTMAT!$B:$B,$A74) -> 38 | N74: =SUMIFS(SILOSTMAT!$C:$C,SILOSTMAT!$A:$A,N$1,SILOSTMAT!$B:$B,$A74) -> 362 | O74: =SUMIFS(SILOSTMAT!$C:$C,SILOSTMAT!$A:$A,O$1,SILOSTMAT!$B:$B,$A74) -> 986 | P74: =SUMIFS(SILOSTMAT!$C:$C,SILOSTMAT!$A:$A,P$1,SILOSTMAT!$B:$B,$A74) -> 362 | Q74: =SUMIFS(SILOSTMAT!$C:$C,SILOSTMAT!$A:$A,Q$1,SILOSTMAT!$B:$B,$A74) -> 419 | R74: =SUMIFS(SILOSTMAT!$C:$C,SILOSTMAT!$A:$A,R$1,SILOSTMAT!$B:$B,$A74) -> 3281
A75: G1703 | B75: Réception en hôtellerie | C75: Sport, Montagne, Tourisme | D75: =IF(C75='DONNEES INFOGRAPHIES'!$B$6,1,0) -> 0 | E75: =VLOOKUP(A75,A:R,'DONNEES INFOGRAPHIES'!$L$9+4,FALSE) -> 3255 | F75: =SUMIFS(SILOSTMAT!$C:$C,SILOSTMAT!$A:$A,F$1,SILOSTMAT!$B:$B,$A75) -> 111 | G75: =SUMIFS(SILOSTMAT!$C:$C,SILOSTMAT!$A:$A,G$1,SILOSTMAT!$B:$B,$A75) -> 80 | H75: =SUMIFS(SILOSTMAT!$C:$C,SILOSTMAT!$A:$A,H$1,SILOSTMAT!$B:$B,$A75) -> 107 | I75: =SUMIFS(SILOSTMAT!$C:$C,SILOSTMAT!$A:$A,I$1,SILOSTMAT!$B:$B,$A75) -> 33 | J75: =SUMIFS(SILOSTMAT!$C:$C,SILOSTMAT!$A:$A,J$1,SILOSTMAT!$B:$B,$A75) -> 208 | K75: =SUMIFS(SILOSTMAT!$C:$C,SILOSTMAT!$A:$A,K$1,SILOSTMAT!$B:$B,$A75) -> 332 | L75: =SUMIFS(SILOSTMAT!$C:$C,SILOSTMAT!$A:$A,L$1,SILOSTMAT!$B:$B,$A75) -> 34 | M75: =SUMIFS(SILOSTMAT!$C:$C,SILOSTMAT!$A:$A,M$1,SILOSTMAT!$B:$B,$A75) -> 31 | N75: =SUMIFS(SILOSTMAT!$C:$C,SILOSTMAT!$A:$A,N$1,SILOSTMAT!$B:$B,$A75) -> 226 | O75: =SUMIFS(SILOSTMAT!$C:$C,SILOSTMAT!$A:$A,O$1,SILOSTMAT!$B:$B,$A75) -> 475 | P75: =SUMIFS(SILOSTMAT!$C:$C,SILOSTMAT!$A:$A,P$1,SILOSTMAT!$B:$B,$A75) -> 793 | Q75: =SUMIFS(SILOSTMAT!$C:$C,SILOSTMAT!$A:$A,Q$1,SILOSTMAT!$B:$B,$A75) -> 825 | R75: =SUMIFS(SILOSTMAT!$C:$C,SILOSTMAT!$A:$A,R$1,SILOSTMAT!$B:$B,$A75) -> 3255
A76: M1501 | B76: Assistanat en ressources humaines | D76: =IF(C76='DONNEES INFOGRAPHIES'!$B$6,1,0) -> 0 | E76: =VLOOKUP(A76,A:R,'DONNEES INFOGRAPHIES'!$L$9+4,FALSE) -> 3181 | F76: =SUMIFS(SILOSTMAT!$C:$C,SILOSTMAT!$A:$A,F$1,SILOSTMAT!$B:$B,$A76) -> 180 | G76: =SUMIFS(SILOSTMAT!$C:$C,SILOSTMAT!$A:$A,G$1,SILOSTMAT!$B:$B,$A76) -> 49 | H76: =SUMIFS(SILOSTMAT!$C:$C,SILOSTMAT!$A:$A,H$1,SILOSTMAT!$B:$B,$A76) -> 59 | I76: =SUMIFS(SILOSTMAT!$C:$C,SILOSTMAT!$A:$A,I$1,SILOSTMAT!$B:$B,$A76) -> 26 | J76: =SUMIFS(SILOSTMAT!$C:$C,SILOSTMAT!$A:$A,J$1,SILOSTMAT!$B:$B,$A76) -> 181 | K76: =SUMIFS(SILOSTMAT!$C:$C,SILOSTMAT!$A:$A,K$1,SILOSTMAT!$B:$B,$A76) -> 607 | L76: =SUMIFS(SILOSTMAT!$C:$C,SILOSTMAT!$A:$A,L$1,SILOSTMAT!$B:$B,$A76) -> 153 | M76: =SUMIFS(SILOSTMAT!$C:$C,SILOSTMAT!$A:$A,M$1,SILOSTMAT!$B:$B,$A76) -> 44 | N76: =SUMIFS(SILOSTMAT!$C:$C,SILOSTMAT!$A:$A,N$1,SILOSTMAT!$B:$B,$A76) -> 234 | O76: =SUMIFS(SILOSTMAT!$C:$C,SILOSTMAT!$A:$A,O$1,SILOSTMAT!$B:$B,$A76) -> 1207 | P76: =SUMIFS(SILOSTMAT!$C:$C,SILOSTMAT!$A:$A,P$1,SILOSTMAT!$B:$B,$A76) -> 192 | Q76: =SUMIFS(SILOSTMAT!$C:$C,SILOSTMAT!$A:$A,Q$1,SILOSTMAT!$B:$B,$A76) -> 249 | R76: =SUMIFS(SILOSTMAT!$C:$C,SILOSTMAT!$A:$A,R$1,SILOSTMAT!$B:$B,$A76) -> 3181
A77: G1605 | B77: Plonge en restauration | C77: Sport, Montagne, Tourisme | D77: =IF(C77='DONNEES INFOGRAPHIES'!$B$6,1,0) -> 0 | E77: =VLOOKUP(A77,A:R,'DONNEES INFOGRAPHIES'!$L$9+4,FALSE) -> 3126 | F77: =SUMIFS(SILOSTMAT!$C:$C,SILOSTMAT!$A:$A,F$1,SILOSTMAT!$B:$B,$A77) -> 187 | G77: =SUMIFS(SILOSTMAT!$C:$C,SILOSTMAT!$A:$A,G$1,SILOSTMAT!$B:$B,$A77) -> 78 | H77: =SUMIFS(SILOSTMAT!$C:$C,SILOSTMAT!$A:$A,H$1,SILOSTMAT!$B:$B,$A77) -> 96 | I77: =SUMIFS(SILOSTMAT!$C:$C,SILOSTMAT!$A:$A,I$1,SILOSTMAT!$B:$B,$A77) -> 68 | J77: =SUMIFS(SILOSTMAT!$C:$C,SILOSTMAT!$A:$A,J$1,SILOSTMAT!$B:$B,$A77) -> 140 | K77: =SUMIFS(SILOSTMAT!$C:$C,SILOSTMAT!$A:$A,K$1,SILOSTMAT!$B:$B,$A77) -> 323 | L77: =SUMIFS(SILOSTMAT!$C:$C,SILOSTMAT!$A:$A,L$1,SILOSTMAT!$B:$B,$A77) -> 192 | M77: =SUMIFS(SILOSTMAT!$C:$C,SILOSTMAT!$A:$A,M$1,SILOSTMAT!$B:$B,$A77) -> 38 | N77: =SUMIFS(SILOSTMAT!$C:$C,SILOSTMAT!$A:$A,N$1,SILOSTMAT!$B:$B,$A77) -> 325 | O77: =SUMIFS(SILOSTMAT!$C:$C,SILOSTMAT!$A:$A,O$1,SILOSTMAT!$B:$B,$A77) -> 470 | P77: =SUMIFS(SILOSTMAT!$C:$C,SILOSTMAT!$A:$A,P$1,SILOSTMAT!$B:$B,$A77) -> 565 | Q77: =SUMIFS(SILOSTMAT!$C:$C,SILOSTMAT!$A:$A,Q$1,SILOSTMAT!$B:$B,$A77) -> 644 | R77: =SUMIFS(SILOSTMAT!$C:$C,SILOSTMAT!$A:$A,R$1,SILOSTMAT!$B:$B,$A77) -> 3126
A78: D1402 | B78: Relation commerciale grands comptes et entreprises | C78: Force de vente | D78: =IF(C78='DONNEES INFOGRAPHIES'!$B$6,1,0) -> 0 | E78: =VLOOKUP(A78,A:R,'DONNEES INFOGRAPHIES'!$L$9+4,FALSE) -> 3060 | F78: =SUMIFS(SILOSTMAT!$C:$C,SILOSTMAT!$A:$A,F$1,SILOSTMAT!$B:$B,$A78) -> 77 | G78: =SUMIFS(SILOSTMAT!$C:$C,SILOSTMAT!$A:$A,G$1,SILOSTMAT!$B:$B,$A78) -> 57 | H78: =SUMIFS(SILOSTMAT!$C:$C,SILOSTMAT!$A:$A,H$1,SILOSTMAT!$B:$B,$A78) -> 28 | I78: =SUMIFS(SILOSTMAT!$C:$C,SILOSTMAT!$A:$A,I$1,SILOSTMAT!$B:$B,$A78) -> 28 | J78: =SUMIFS(SILOSTMAT!$C:$C,SILOSTMAT!$A:$A,J$1,SILOSTMAT!$B:$B,$A78) -> 137 | K78: =SUMIFS(SILOSTMAT!$C:$C,SILOSTMAT!$A:$A,K$1,SILOSTMAT!$B:$B,$A78) -> 441 | L78: =SUMIFS(SILOSTMAT!$C:$C,SILOSTMAT!$A:$A,L$1,SILOSTMAT!$B:$B,$A78) -> 250 | M78: =SUMIFS(SILOSTMAT!$C:$C,SILOSTMAT!$A:$A,M$1,SILOSTMAT!$B:$B,$A78) -> 30 | N78: =SUMIFS(SILOSTMAT!$C:$C,SILOSTMAT!$A:$A,N$1,SILOSTMAT!$B:$B,$A78) -> 169 | O78: =SUMIFS(SILOSTMAT!$C:$C,SILOSTMAT!$A:$A,O$1,SILOSTMAT!$B:$B,$A78) -> 1601 | P78: =SUMIFS(SILOSTMAT!$C:$C,SILOSTMAT!$A:$A,P$1,SILOSTMAT!$B:$B,$A78) -> 111 | Q78: =SUMIFS(SILOSTMAT!$C:$C,SILOSTMAT!$A:$A,Q$1,SILOSTMAT!$B:$B,$A78) -> 131 | R78: =SUMIFS(SILOSTMAT!$C:$C,SILOSTMAT!$A:$A,R$1,SILOSTMAT!$B:$B,$A78) -> 3060
A79: D1408 | B79: Téléconseil et télévente | C79: Force de vente | D79: =IF(C79='DONNEES INFOGRAPHIES'!$B$6,1,0) -> 0 | E79: =VLOOKUP(A79,A:R,'DONNEES INFOGRAPHIES'!$L$9+4,FALSE) -> 3038 | F79: =SUMIFS(SILOSTMAT!$C:$C,SILOSTMAT!$A:$A,F$1,SILOSTMAT!$B:$B,$A79) -> 48 | G79: =SUMIFS(SILOSTMAT!$C:$C,SILOSTMAT!$A:$A,G$1,SILOSTMAT!$B:$B,$A79) -> 43 | H79: =SUMIFS(SILOSTMAT!$C:$C,SILOSTMAT!$A:$A,H$1,SILOSTMAT!$B:$B,$A79) -> 117 | I79: =SUMIFS(SILOSTMAT!$C:$C,SILOSTMAT!$A:$A,I$1,SILOSTMAT!$B:$B,$A79) -> 9 | J79: =SUMIFS(SILOSTMAT!$C:$C,SILOSTMAT!$A:$A,J$1,SILOSTMAT!$B:$B,$A79) -> 142 | K79: =SUMIFS(SILOSTMAT!$C:$C,SILOSTMAT!$A:$A,K$1,SILOSTMAT!$B:$B,$A79) -> 292 | L79: =SUMIFS(SILOSTMAT!$C:$C,SILOSTMAT!$A:$A,L$1,SILOSTMAT!$B:$B,$A79) -> 170 | M79: =SUMIFS(SILOSTMAT!$C:$C,SILOSTMAT!$A:$A,M$1,SILOSTMAT!$B:$B,$A79) -> 65 | N79: =SUMIFS(SILOSTMAT!$C:$C,SILOSTMAT!$A:$A,N$1,SILOSTMAT!$B:$B,$A79) -> 298 | O79: =SUMIFS(SILOSTMAT!$C:$C,SILOSTMAT!$A:$A,O$1,SILOSTMAT!$B:$B,$A79) -> 1691 | P79: =SUMIFS(SILOSTMAT!$C:$C,SILOSTMAT!$A:$A,P$1,SILOSTMAT!$B:$B,$A79) -> 66 | Q79: =SUMIFS(SILOSTMAT!$C:$C,SILOSTMAT!$A:$A,Q$1,SILOSTMAT!$B:$B,$A79) -> 97 | R79: =SUMIFS(SILOSTMAT!$C:$C,SILOSTMAT!$A:$A,R$1,SILOSTMAT!$B:$B,$A79) -> 3038
A80: G1501 | B80: Personnel d'étage | C80: Sport, Montagne, Tourisme | D80: =IF(C80='DONNEES INFOGRAPHIES'!$B$6,1,0) -> 0 | E80: =VLOOKUP(A80,A:R,'DONNEES INFOGRAPHIES'!$L$9+4,FALSE) -> 3032 | F80: =SUMIFS(SILOSTMAT!$C:$C,SILOSTMAT!$A:$A,F$1,SILOSTMAT!$B:$B,$A80) -> 109 | G80: =SUMIFS(SILOSTMAT!$C:$C,SILOSTMAT!$A:$A,G$1,SILOSTMAT!$B:$B,$A80) -> 98 | H80: =SUMIFS(SILOSTMAT!$C:$C,SILOSTMAT!$A:$A,H$1,SILOSTMAT!$B:$B,$A80) -> 155 | I80: =SUMIFS(SILOSTMAT!$C:$C,SILOSTMAT!$A:$A,I$1,SILOSTMAT!$B:$B,$A80) -> 32 | J80: =SUMIFS(SILOSTMAT!$C:$C,SILOSTMAT!$A:$A,J$1,SILOSTMAT!$B:$B,$A80) -> 194 | K80: =SUMIFS(SILOSTMAT!$C:$C,SILOSTMAT!$A:$A,K$1,SILOSTMAT!$B:$B,$A80) -> 262 | L80: =SUMIFS(SILOSTMAT!$C:$C,SILOSTMAT!$A:$A,L$1,SILOSTMAT!$B:$B,$A80) -> 55 | M80: =SUMIFS(SILOSTMAT!$C:$C,SILOSTMAT!$A:$A,M$1,SILOSTMAT!$B:$B,$A80) -> 28 | N80: =SUMIFS(SILOSTMAT!$C:$C,SILOSTMAT!$A:$A,N$1,SILOSTMAT!$B:$B,$A80) -> 281 | O80: =SUMIFS(SILOSTMAT!$C:$C,SILOSTMAT!$A:$A,O$1,SILOSTMAT!$B:$B,$A80) -> 406 | P80: =SUMIFS(SILOSTMAT!$C:$C,SILOSTMAT!$A:$A,P$1,SILOSTMAT!$B:$B,$A80) -> 604 | Q80: =SUMIFS(SILOSTMAT!$C:$C,SILOSTMAT!$A:$A,Q$1,SILOSTMAT!$B:$B,$A80) -> 808 | R80: =SUMIFS(SILOSTMAT!$C:$C,SILOSTMAT!$A:$A,R$1,SILOSTMAT!$B:$B,$A80) -> 3032
A81: G1801 | B81: Café, bar brasserie | C81: Sport, Montagne, Tourisme | D81: =IF(C81='DONNEES INFOGRAPHIES'!$B$6,1,0) -> 0 | E81: =VLOOKUP(A81,A:R,'DONNEES INFOGRAPHIES'!$L$9+4,FALSE) -> 3031 | F81: =SUMIFS(SILOSTMAT!$C:$C,SILOSTMAT!$A:$A,F$1,SILOSTMAT!$B:$B,$A81) -> 87 | G81: =SUMIFS(SILOSTMAT!$C:$C,SILOSTMAT!$A:$A,G$1,SILOSTMAT!$B:$B,$A81) -> 127 | H81: =SUMIFS(SILOSTMAT!$C:$C,SILOSTMAT!$A:$A,H$1,SILOSTMAT!$B:$B,$A81) -> 112 | I81: =SUMIFS(SILOSTMAT!$C:$C,SILOSTMAT!$A:$A,I$1,SILOSTMAT!$B:$B,$A81) -> 39 | J81: =SUMIFS(SILOSTMAT!$C:$C,SILOSTMAT!$A:$A,J$1,SILOSTMAT!$B:$B,$A81) -> 191 | K81: =SUMIFS(SILOSTMAT!$C:$C,SILOSTMAT!$A:$A,K$1,SILOSTMAT!$B:$B,$A81) -> 288 | L81: =SUMIFS(SILOSTMAT!$C:$C,SILOSTMAT!$A:$A,L$1,SILOSTMAT!$B:$B,$A81) -> 147 | M81: =SUMIFS(SILOSTMAT!$C:$C,SILOSTMAT!$A:$A,M$1,SILOSTMAT!$B:$B,$A81) -> 59 | N81: =SUMIFS(SILOSTMAT!$C:$C,SILOSTMAT!$A:$A,N$1,SILOSTMAT!$B:$B,$A81) -> 261 | O81: =SUMIFS(SILOSTMAT!$C:$C,SILOSTMAT!$A:$A,O$1,SILOSTMAT!$B:$B,$A81) -> 511 | P81: =SUMIFS(SILOSTMAT!$C:$C,SILOSTMAT!$A:$A,P$1,SILOSTMAT!$B:$B,$A81) -> 642 | Q81: =SUMIFS(SILOSTMAT!$C:$C,SILOSTMAT!$A:$A,Q$1,SILOSTMAT!$B:$B,$A81) -> 567 | R81: =SUMIFS(SILOSTMAT!$C:$C,SILOSTMAT!$A:$A,R$1,SILOSTMAT!$B:$B,$A81) -> 3031
A82: A1401 | B82: Aide agricole de production fruitière ou viticole | C82: Agriculture, Agroalimentaire, Forêt | D82: =IF(C82='DONNEES INFOGRAPHIES'!$B$6,1,0) -> 0 | E82: =VLOOKUP(A82,A:R,'DONNEES INFOGRAPHIES'!$L$9+4,FALSE) -> 3028 | F82: =SUMIFS(SILOSTMAT!$C:$C,SILOSTMAT!$A:$A,F$1,SILOSTMAT!$B:$B,$A82) -> 44 | G82: =SUMIFS(SILOSTMAT!$C:$C,SILOSTMAT!$A:$A,G$1,SILOSTMAT!$B:$B,$A82) -> 1 | H82: =SUMIFS(SILOSTMAT!$C:$C,SILOSTMAT!$A:$A,H$1,SILOSTMAT!$B:$B,$A82) -> 100 | I82: =SUMIFS(SILOSTMAT!$C:$C,SILOSTMAT!$A:$A,I$1,SILOSTMAT!$B:$B,$A82) -> 0 | J82: =SUMIFS(SILOSTMAT!$C:$C,SILOSTMAT!$A:$A,J$1,SILOSTMAT!$B:$B,$A82) -> 340 | K82: =SUMIFS(SILOSTMAT!$C:$C,SILOSTMAT!$A:$A,K$1,SILOSTMAT!$B:$B,$A82) -> 14 | L82: =SUMIFS(SILOSTMAT!$C:$C,SILOSTMAT!$A:$A,L$1,SILOSTMAT!$B:$B,$A82) -> 34 | M82: =SUMIFS(SILOSTMAT!$C:$C,SILOSTMAT!$A:$A,M$1,SILOSTMAT!$B:$B,$A82) -> 2 | N82: =SUMIFS(SILOSTMAT!$C:$C,SILOSTMAT!$A:$A,N$1,SILOSTMAT!$B:$B,$A82) -> 9 | O82: =SUMIFS(SILOSTMAT!$C:$C,SILOSTMAT!$A:$A,O$1,SILOSTMAT!$B:$B,$A82) -> 2365 | P82: =SUMIFS(SILOSTMAT!$C:$C,SILOSTMAT!$A:$A,P$1,SILOSTMAT!$B:$B,$A82) -> 85 | Q82: =SUMIFS(SILOSTMAT!$C:$C,SILOSTMAT!$A:$A,Q$1,SILOSTMAT!$B:$B,$A82) -> 34 | R82: =SUMIFS(SILOSTMAT!$C:$C,SILOSTMAT!$A:$A,R$1,SILOSTMAT!$B:$B,$A82) -> 3028
A83: K1201 | B83: Action sociale | D83: =IF(C83='DONNEES INFOGRAPHIES'!$B$6,1,0) -> 0 | E83: =VLOOKUP(A83,A:R,'DONNEES INFOGRAPHIES'!$L$9+4,FALSE) -> 2934 | F83: =SUMIFS(SILOSTMAT!$C:$C,SILOSTMAT!$A:$A,F$1,SILOSTMAT!$B:$B,$A83) -> 283 | G83: =SUMIFS(SILOSTMAT!$C:$C,SILOSTMAT!$A:$A,G$1,SILOSTMAT!$B:$B,$A83) -> 63 | H83: =SUMIFS(SILOSTMAT!$C:$C,SILOSTMAT!$A:$A,H$1,SILOSTMAT!$B:$B,$A83) -> 87 | I83: =SUMIFS(SILOSTMAT!$C:$C,SILOSTMAT!$A:$A,I$1,SILOSTMAT!$B:$B,$A83) -> 25 | J83: =SUMIFS(SILOSTMAT!$C:$C,SILOSTMAT!$A:$A,J$1,SILOSTMAT!$B:$B,$A83) -> 182 | K83: =SUMIFS(SILOSTMAT!$C:$C,SILOSTMAT!$A:$A,K$1,SILOSTMAT!$B:$B,$A83) -> 433 | L83: =SUMIFS(SILOSTMAT!$C:$C,SILOSTMAT!$A:$A,L$1,SILOSTMAT!$B:$B,$A83) -> 336 | M83: =SUMIFS(SILOSTMAT!$C:$C,SILOSTMAT!$A:$A,M$1,SILOSTMAT!$B:$B,$A83) -> 32 | N83: =SUMIFS(SILOSTMAT!$C:$C,SILOSTMAT!$A:$A,N$1,SILOSTMAT!$B:$B,$A83) -> 136 | O83: =SUMIFS(SILOSTMAT!$C:$C,SILOSTMAT!$A:$A,O$1,SILOSTMAT!$B:$B,$A83) -> 951 | P83: =SUMIFS(SILOSTMAT!$C:$C,SILOSTMAT!$A:$A,P$1,SILOSTMAT!$B:$B,$A83) -> 117 | Q83: =SUMIFS(SILOSTMAT!$C:$C,SILOSTMAT!$A:$A,Q$1,SILOSTMAT!$B:$B,$A83) -> 289 | R83: =SUMIFS(SILOSTMAT!$C:$C,SILOSTMAT!$A:$A,R$1,SILOSTMAT!$B:$B,$A83) -> 2934
